{"text_format":"1","workbook":"xlsx","n_sheets":13,"sheets":["Anleitung","Persönliche Daten","Monatliches Budget","Erwerbseinkommen","Vermögensstruktur","Projektplanung","Vorsorge","Vermögensprojektion","Graphik Vermögensprojektion","Hilfstabelle Vermögen","HilfstabelleProjektion","Hilfstabelle Steuern","Tabelle1"],"not_rendered":{"charts":4,"images":0,"macros":1,"external_links":0,"defined_names":1,"comments":0,"pivot_tables":0},"unopened":[],"bounds":{"document_bytes":16777216,"sheet_cells":100000,"rows_first":2000,"rows_last":500,"rows_between":2000,"halvings":0,"cell_chars":16384,"cell_head_chars":4096},"cells_cut":0,"cells_raw":0,"read":"whole","date_system":"1900"}

{"sheet":"Anleitung","index":0,"n_rows":0,"n_cols":0,"rows_kept":0,"cut":false,"hidden":false,"merged":[]}

{"sheet":"Persönliche Daten","index":1,"n_rows":23,"n_cols":9,"rows_kept":23,"cut":false,"hidden":false,"merged":[]}
[]
[]
[]
[null,null,"Persönliche Finanzplanung - Daten"]
[]
[]
[null,null,"Name"]
[]
[null,null,"Vorname"]
[]
[null,null,"Adresse"]
[]
[]
[]
["x"]
[]
[]
[null,null,"Planungszeitraum",null,null,"von",null,"bis"]
[]
[null,null,"Ordentliche Pensionierung im Jahre"]
[]
[]
[null,null,null,null,null,null,null,null," "]

{"sheet":"Monatliches Budget","index":2,"n_rows":93,"n_cols":11,"rows_kept":93,"cut":false,"hidden":false,"merged":[[22,3,22,5],[2,2,2,10],[6,5,6,9],[8,2,8,3],[9,3,9,5],[10,3,10,5],[12,3,12,5],[13,3,13,5],[16,2,16,3],[18,3,18,10],[20,3,20,5],[21,3,21,5],[34,3,34,5],[23,3,23,5],[24,3,24,5],[25,3,25,5],[26,3,26,5],[27,3,27,5],[28,3,28,5],[29,3,29,5],[30,3,30,5],[31,3,31,5],[32,3,32,5],[33,3,33,5],[49,3,49,5],[35,3,35,5],[36,3,36,5],[39,3,39,5],[40,3,40,10],[42,3,42,5],[43,3,43,5],[44,3,44,5],[45,3,45,6],[46,3,46,5],[47,3,47,5],[48,3,48,5],[68,3,68,5],[50,3,50,5],[51,3,51,5],[52,3,52,5],[53,3,53,5],[54,3,54,5],[55,3,55,5],[56,3,56,5],[57,3,57,5],[63,3,63,10],[66,3,66,5],[67,3,67,5],[92,3,92,7],[37,3,37,4],[58,3,58,4],[74,3,74,4],[81,4,81,6],[82,3,82,5],[83,3,83,5],[84,3,84,5],[85,3,85,5],[90,3,90,4],[69,3,69,5],[70,3,70,5],[71,3,71,5],[72,3,72,5],[73,3,73,5],[79,2,79,3]]}
[]
[]
[null,null,"Aktuelles monatliches Budget"]
[null,null,"ohne Anlageerträge"]
[]
[]
[null,null,null,"Gelb: Betrag eintragen oder Liste ergänzen. ",null,"Grün: Häufigkeit im Jahr eintragen, wenn der vorgegebene Wert nicht zutrifft."]
[]
[null,null,"Einkommen",null,null,null,null,"Betrag","Häufigkeit \nim Jahr","Betrag \npro Monat","Betrag \npro Jahr"]
[null,null,null,"Monatslohn Netto                 (13. Monatslohn siehe unten bei Saldo)",null,null,null,0,12,{"$f":"IF(H10>0,ROUND(H10,1),\" \")","v":" "},{"$f":"IF(H10>0,ROUND(H10*I10,0),\" \")","v":" "}]
[null,null,null,"Monatslohn  Partner Netto   (13. Monatslohn siehe unten bei Saldo)",null,null,null,0,12,{"$f":"IF(H11>0,ROUND(H11,1),\" \")","v":" "},{"$f":"IF(H11>0,ROUND(H11*I11,0),0)","v":0}]
[null,null,null,"Steuerfreie Pauschalspesen",null,null,null,0,12,{"$f":"IF(H12>0,ROUND(H12,1),\" \")","v":" "},{"$f":"IF(H12>0,ROUND(H12*I12,0),0)","v":0}]
[null,null,null,"Unterhaltsbeiträge / Alimente",null,null,null,0,12,{"$f":"IF(H13>0,ROUND(H13,1),\" \")","v":" "},{"$f":"IF(H13>0,ROUND(H13*I13,0),0)","v":0}]
[null,null,null,"Nebenverdienste / andere Einnahmen",null,null,null,0,12,{"$f":"IF(H14>0,ROUND(H14,1),\" \")","v":" "},{"$f":"IF(H14>0,ROUND(H14*I14,0),0)","v":0}]
[null,null,null,"Total 'Einkommen'",null,null,null,null,null,{"$f":"ROUNDUP(SUM(J10:J14),0)","v":0},{"$f":"SUM(K10:K14)","v":0}]
[]
[null,null,"Ausgaben"]
[null,null,null,"Monatliche Auslagen"]
[null,null,null,"Wo immer Rechnungen im Rhytmus von einem Monat beglichen werden können - nutzen Sie diese Zahlungsmöglichkeiten, z.B. bei den Krankenkassenprämien oder Steuern. Je weniger Rückstellungen zu machen sind, desto einfacher und übersichtlicher wird das Budget. "]
[]
[null,null,null,"Wohnen / Mietzins ",null,null,null,0,12,{"$f":"IF(H21>0,ROUND(H21,1),\" \")","v":" "},{"$f":"IF(H21>0,ROUND(H21*I21,0),\" \")","v":" "}]
[null,null,null,"Krankenkasse (Versicherungsprämien)",null,null,null,0,12," "," "]
[null,null,null,"Unterhaltsbeiträge / Alimente",null,null,null,0,12," "," "]
[null,null,null,"Lebensmittel, Getränke",null,null,null,0,12," "," "]
[null,null,null,"Berufsbedingte auswärtige Verpflegung Mann / Frau",null,null,null,0,12," "," "]
[null,null,null,"Auswärtige Verpflegung Kinder / Jugendliche",null,null,null,0,12," "," "]
[null,null,null,"Nebenkosten Non-Food (Körperpflege, Putzmittel, Entsorgung)",null,null,null,0,12," "," "]
[null,null,null,"Kleider, Schuhe Mann",null,null,null,0,12," "," "]
[null,null,null,"Kleider, Schuhe Frau",null,null,null,0,12," "," "]
[null,null,null,"Kleider, Schuhe Kinder / Jugendliche",null,null,null,0,12," "," "]
[null,null,null,"Freizeit, Kultur, Rauchen, Coiffeur Mann",null,null,null,0,12," "," "]
[null,null,null,"Freizeit, Kultur, Rauchen, Coiffeur Frau",null,null,null,0,12," "," "]
[null,null,null,"Taschengeld Kinder / Jugendliche, Babysitter",null,null,null,0,12," "," "]
[null,null,null,"Telefon, Handy, Internet",null,null,null,0,12," "," "]
[null,null,null,"Tram, Bus, Bahn",null,null,null,0,12," "," "]
[null,null,null,"Auto: monatliche Kosten wie Benzin, Parkplatz etc. ",null,null,null,0,12," "," "]
[null,null,null,"Haustier: Futter, Tierarzt",null,null,null,0,12,{"$f":"IF(H37>0,ROUND(H37,1),\" \")","v":" "},{"$f":"IF(H37>0,ROUND(H37*I37,0),\" \")","v":" "}]
[null,null,null,"Total 'Monatliche Auslagen'",null,null,null,null,null,{"$f":"ROUNDUP(SUM(J21:J37),0)","v":0},{"$f":"SUM(K21:K37)","v":0}]
[]
[null,null,null,"Rückstellungen (für Quartals- oder Jahresrechnungen)"]
[null,null,null,"Nicht alles ist planbar und vorhersehbar wie z.B. Zahnarzt oder Reparaturen. Bilden Sie deshalb Reserven für ihre finanzielle Sicherheit. \nSparen Sie z.B. den 13. Monatslohn für Unvorhergesehenes auf."]
[]
[null,null,null,"Elektrizität, Gas",null,null,null,0,3,{"$f":"IF(H43>0,ROUND(H43*I43/12,1),\" \")","v":" "},{"$f":"IF(H43>0,ROUND(H43*I43,0),\" \")","v":" "}]
[null,null,null,"Heizkosten",null,null,null,0,1," "," "]
[null,null,null,"Hausrat-, Haftpflichtversicherung",null,null,null,0,1," "," "]
[null,null,null,"Krankenkasse Selbstbehalte, Franchise, Zahnarzt, Optiker, Therapie",null,null,null,0,1," "," "]
[null,null,null,"Laufende Steuern (Bund, Kanton, Gemeinde)",null,null,null,0,1," "," "]
[null,null,null,"Radio-, Fernseh-, Kabelgebühren",null,null,null,0,4," "," "]
[null,null,null,"Zeitungen, Zeitschriften, Vereins- und Verbandsbeiträge ",null,null,null,0,1," "," "]
[null,null,null,"Verkehrsauslagen: 1/2-Tax Abo SBB, Velo- / Mofaunterhalt",null,null,null,0,1," "," "]
[null,null,null,"Auto: Versicherung, Steuern, Vignette, Unterhalt, Service",null,null,null,0,1," "," "]
[null,null,null,"Unvorhergesehenes / Anschaffungen",null,null,null,0,1," "," "]
[null,null,null,"Geschenke / Spenden",null,null,null,0,12," "," "]
[null,null,null,"Ferien / Schullager / Ausflüge",null,null,null,0,1," "," "]
[null,null,null,"Aus- und Weiterbildung",null,null,null,0,1," "," "]
[null,null,null,"Lebensversicherung, 3. Säule",null,null,null,0,4," "," "]
[null,null,null,null,null,null,null,0,null," "," "]
[null,null,null,null,null,null,null,0,null,{"$f":"IF(H58>0,ROUND(H58*I58/12,1),\" \")","v":" "},{"$f":"IF(H58>0,ROUND(H58*I58,0),\" \")","v":" "}]
[null,null,null,"Total 'Rückstellungen'",null,null,null,null,null,{"$f":"ROUNDUP(SUM(J43:J58),0)","v":0},{"$f":"SUM(K43:K58)","v":0}]
[]
[]
[]
[null,null,null,"Bezahlen von Schulden"]
[null,null,null,"Als Schulden sind zu zählen: Krankenkassen Prämienausstände, Steuerrückstände, Offene Rechnungen, Pfändungsrate Betreibungsamt, Kredit- und Leasingraten etc."]
[]
[null,null,null,null,null,null,null,"Betrag","Häufigkeit \nim Jahr","Betrag \npro Monat","Betrag \npro Jahr"]
[null,null,null,"Hypothek Haus",null,null,null,0,12,{"$f":"IF(H67>0,ROUND(H67*I67/12,1),\" \")","v":" "},{"$f":"IF(H67>0,ROUND(H67*I67,0),\" \")","v":" "}]
[null,null,null,null,null,null,null,0,12," "," "]
[null,null,null,null,null,null,null,0,12," "," "]
[null,null,null,null,null,null,null,0,12," "," "]
[null,null,null,null,null,null,null,0,12," "," "]
[null,null,null,null,null,null,null,0,12," "," "]
[null,null,null,null,null,null,null,0,12," "," "]
[null,null,null,null,null,null,null,0,12,{"$f":"IF(H74>0,ROUND(H74*I74/12,1),\" \")","v":" "},{"$f":"IF(H74>0,ROUND(H74*I74,0),\" \")","v":" "}]
[null,null,null,"Total 'Bezahlen von Schulden'",null,null,null,null,null,{"$f":"ROUNDUP(SUM(J67:J74),0)","v":0},{"$f":"ROUNDUP(SUM(K67:K74),0)","v":0}]
[]
[]
[]
[]
[null,null,"Saldo (Einkommen - Ausgaben)"]
[null,null,null,null,null,null,null,"Betrag","Betrag\naus Budget","Subtotal \nAusgaben","Saldo\npro Monat"]
[null,null,null,"Einnahmen","13. Monatslohn:",null,null,0,{"$f":"J15","v":0},null,{"$f":"IF(H82>0,I82+(ROUNDDOWN(H82/12,0)),IF(I82>0,I82,0))","v":0}]
[null,null,null,"Laufende monatliche Auslagen",null,null,null,null,{"$f":"J38","v":0},{"$f":"IF(I83>0,I83,\" \")","v":" "},{"$f":"IF(SUM(J83)<>0,K82-J83,\" \")","v":" "}]
[null,null,null,"Rückstellungen",null,null,null,null,{"$f":"J59","v":0},{"$f":"IF(SUM(I84)>0,I83+I84,\" \")","v":" "},{"$f":"(IF(SUM(J84)<>0,K82-J84,\" \"))","v":" "}]
[null,null,null,"Bezahlen von Schulden",null,null,null,null,{"$f":"J75","v":0},{"$f":"IF(SUM(I85)>0,I83+I84+I85,\" \")","v":" "},{"$f":"(IF(SUM(J85)>0,K82-J85,\" \"))","v":" "}]
[null,null,null,"Einnahmeüberschuss / Ausgabenüberschuss (monatlich)",null,null,null,null,null,null,{"$f":"IF(SUM(K82:K85)<>0,K82-SUM(I83:I85),\" \")","v":" "}]
[]
[]
[null,null,null,"Saldo (jährlich)"]
[null,null,null,null,null,null,null,null,null,"Betrag \npro Monat","Saldo \npro Jahr"]
[null,null,null,"Total Einnahmen inkl. 13. Monatslohn",null,null,null,null,null,{"$f":"IF(SUM(K82)<>0,K82,\" \")","v":" "},{"$f":"IF(SUM(K82)<>0,12*J91,\" \")","v":" "}]
[null,null,null,"Total Ausgaben",null,null,null,null,null,{"$f":"IF(SUM(K82-J38+J59+J75)<>0,J38+J59+J75,\" \")","v":" "},{"$f":"IF(SUM(K82-J38+J59+J75)<>0,12*J92,\" \")","v":" "}]
[null,null,null,"Einnahmenüberschuss / Ausgabenüberschuss (jährlich)",null,null,null,null,null,{"$f":"IF(SUM(K82:K85)<>0,SUM(K86),\" \")","v":" "},{"$f":"K91-K92","v":{"$error":"#VALUE!"}}]

{"sheet":"Erwerbseinkommen","index":3,"n_rows":71,"n_cols":15,"rows_kept":71,"cut":false,"hidden":false,"merged":[]}
[]
[]
[]
[null,null,"Erwerbseinkommen / Steuerausscheidung"]
[]
[]
[null,null,"Erwerbseinkommen"]
[]
[null,null,"Erwerbseinkommen pro Jahr",null,null,null,null,null,{"$f":"'Monatliches Budget'!K10+'Monatliches Budget'!K11","v":{"$error":"#VALUE!"}}]
[]
[null,null,"Gratifikation / Boni",null,null,null,null,null,{"$f":"'Monatliches Budget'!H82","v":0}]
[]
[null,null,"Steuerfreie Pauschalspesen",null,null,null,null,null,{"$f":"'Monatliches Budget'!K12","v":0}]
[]
[null,null,"Unterhaltsbeiträge / Alimente",null,null,null,null,null,{"$f":"'Monatliches Budget'!K13","v":0}]
[]
[null,null,"Nebenverdienste / andere Erträge",null,null,null,null,null,{"$f":"'Monatliches Budget'!K14","v":0}]
[]
[]
[null,null,"Total Einkünfte",null,null,null,null,null,{"$f":"SUM(I9:I17)","v":{"$error":"#VALUE!"}},null,"erwarteter Zuwachs pro Jahr in % ",null,null,0]
[]
[]
[null,null,"Steuerliche Abzüge gemäss Steuererklärung (ohne Einkäufe in Vorsorgeeinrichtungen)"]
[]
[null,null,"Berufsauslagen bei unselbständiger Erwerbstätigkeit"]
[]
[null,null,"Unterhaltsbeiträge und Rentenleistungen",null,null,null,null,null,null,null," "]
[]
[null,null,"Versicherungsbeiträge und Zinsen Sparkapitalien"]
[]
[null,null,"Sonderabzug bei Erwerbstätigkeit beider Ehegatten"]
[]
[null,null,"Krankheits-. Unfall-, und Invaliditätskosten"]
[]
[null,null,"Vermögensverwaltungskosten"]
[]
[null,null,"Gemeinnützige Zuwendungen"]
[]
[null,null,"Sozialabzüge (Kinder und unterstützungsbedürftige Personen)"]
[]
[null,null,"Weitere Abzüge"]
[]
[]
[null,null,"Total steuerbares Nettoerwerbseinkommen",null,null,null,null,null,{"$f":"I9+I11+I15+I17-I25-I27-I29-I31-I33-I35-I37-I39-I41","v":{"$error":"#VALUE!"}}]
[]
[]
[]
[null,null,"Steuerbares Einkommen gemäss Steuererklärung",null,null,null,null,null,null,null,"Total Steuern gemäss Steuererklärung",null,null,null,{"$f":"'Monatliches Budget'!K47","v":" "}]
[]
[null,null,"Durchschnittssteuersatz in %",null,null,null,null,null,{"$f":"I54/I48*100","v":{"$error":"#VALUE!"}},null," "]
[]
[null,null,"Grenzsteuersatz in %",null,null,null,null,null,null,null,"(auf steuerbarem Einkommen gerechnet, Berechnung z.B. auf www.pax.ch oder www.ubs.com)"]
[]
[null,null,"Steuern aktuell gemäss Steuererklärung",null,null,null,null,null,{"$f":"'Monatliches Budget'!K47","v":" "},null,"Staats- und Gemeindesteuer plus direkte Bundessteuer)"]
[]
[]
[]
[]
[]
[]
[]
[]
[]
[]
[]
[]
[null,"Erwerbseinkommen pro Jahr",null,null,null,null,null,{"$f":"I9","v":{"$error":"#VALUE!"}}]
[null,"Gratifikation / Boni",null,null,null,null,null,{"$f":"I11","v":0}]
[null,"Steuerfreie Pauschalspesen",null,null,null,null,null,{"$f":"I13","v":0}]
[null,"Unterhaltsbeiträge / Alimente",null,null,null,null,null,{"$f":"I15","v":0}]
[null,"Nebenverdienste / andere Erträge",null,null,null,null,null,{"$f":"I17","v":0}]

{"sheet":"Vermögensstruktur","index":4,"n_rows":53,"n_cols":14,"rows_kept":53,"cut":false,"hidden":false,"merged":[]}
[]
[]
[null,"Vermögensübersicht"]
[]
[null,"(alle Werte sind positiv einzugeben)"]
[]
[]
[]
[null,"Total Vermögen heute (Zeitpunkt t0), ohne Immobilien",null,null,null,null,{"$f":"SUM(G13:G22)","v":0}]
[]
[null,"Vermögensstruktur:"]
[]
[null,null,"Liquide Mittel",null,null,null,null,null,"Ertrag auf liquide Mittel in %"]
[]
[null,null,"Aktien resp. Aktienfonds",null,null,null,null,null,"Erwartete durchschnittliche Dividendenrendite in %"]
[null,null,null,null,null,null,null,null,"Erwarteter durchschnittlicher Kursgewinn in %"]
[]
[null,null,"Obligationen resp. Obligationenfonds",null,null,null,null,null,"Erwartete durchschnittlicher Ertrag in %"]
[]
[null,null,"Derivate, Strukturierte Produkte",null,null,null,null,null,"Erwartete durchschnittliche Rendite in %"]
[]
[null,null,"Alternative Anlagen (Rohstoffe etc)",null,null,null,null,null,"Erwartete durchschnittliche Rendite in %"]
[]
[]
[null,"Wert Immobili(en) per heute",null,null,null,null,null,null,"Erwarteter Wertveränderung über Zeit in %"]
[null,null,null,null,null,null,null,null,"(kann auch negativ sein)"]
[null,null,null,null,null,null,null,null,"Steuern auf Anlageertrag",null,null,null,null,{"$f":"'Hilfstabelle Vermögen'!L15","v":{"$error":"#VALUE!"}}]
[]
[]
[]
[null,"Total Schulden heute (Zeitpunkt t0)",null,null,null,null,{"$f":"SUM(G35:G41)","v":0}]
[]
[null,"Schuldenstruktur:"]
[]
[null,null,"Hypothek(en)",null,null,null,null,null,"Jährliche Amortisation",null,null,null,"Schuldzinsen in %"]
[]
[null,null,"Langfristige Darlehen ",null,null,null,null,null,"Jährliche Amortisation",null,null,null,"Schuldzinsen in %"]
[]
[null,null,"Kurzfristige Konsumkredite",null,null,null,null,null,"Jährliche Amortisation",null,null,null,"Schuldzinsen in %"]
[]
[null,null,"Sonstige Schulden",null,null,null,null,null,"Jährliche Amortisation",null,null,null,"Schuldzinsen in %"]
[null,null,null,null,null,null,null,null," "]
[null,null,null,null,null,null,null,null,"Steuereffekt der Schuldzinsen",null,null,null,null,{"$f":"'Hilfstabelle Vermögen'!L23","v":{"$error":"#VALUE!"}}]
[]
[]
[]
[]
[]
[null,"Total Nettovermögen heute (Zeitpunkt t0), ohne Immobilien:",null,null,null,null,{"$f":"G9-G31","v":0}]
[]
[null,"plus Immobilien",null,null,null,null,{"$f":"G25","v":0}]
[]
[null,"Total Nettovermögen per heute, inkl. Immobilien",null,null,null,null,{"$f":"G49+G51","v":0}]

{"sheet":"Projektplanung","index":5,"n_rows":42,"n_cols":12,"rows_kept":42,"cut":false,"hidden":false,"merged":[[39,3,39,5],[14,3,14,5],[19,3,19,5],[24,3,24,5],[29,3,29,5],[34,3,34,5]]}
[]
[]
[null,null,"Projektplanung"]
[]
[]
[]
[]
[]
[null,null,"Jahressaldo der Budgetrechnung per heute (Zeitpunkt t0)",null,null,null,null,{"$f":"'Monatliches Budget'!K93","v":{"$error":"#VALUE!"}}]
[]
[]
[null,null,"Langfristige Projektplanung (z.B. Kauf Auto, Ausbildung etc.)"]
[]
[null,null,"Projekt 1"]
[null,null,"Name",null,null,null,"Betrag",null,null,"Mehrmals ab Jahr",null,"bis Jahr "]
[]
[null,null,null,null,null,null,null,null,null,"Einmalig im Jahr"]
[]
[null,null,"Projekt 2"]
[null,null,"Name",null,null,null,"Betrag",null,null,"Mehrmals ab Jahr",null,"bis Jahr "]
[]
[null,null,null,null,null,null,null,null,null,"Einmalig im Jahr"]
[]
[null,null,"Projekt 3"]
[null,null,"Name",null,null,null,"Betrag",null,null,"Mehrmals ab Jahr",null,"bis Jahr "]
[]
[null,null,null,null,null,null,null,null,null,"Einmalig im Jahr"]
[]
[null,null,"Projekt 4"]
[null,null,"Name",null,null,null,"Betrag",null,null,"Mehrmals ab Jahr",null,"bis Jahr "]
[]
[null,null,null,null,null,null,null,null,null,"Einmalig im Jahr"]
[]
[null,null,"Projekt 5"]
[null,null,"Name",null,null,null,"Betrag",null,null,"Mehrmals ab Jahr",null,"bis Jahr "]
[]
[null,null,null,null,null,null,null,null,null,"Einmalig im Jahr"]
[]
[null,null,"Projekt 6"]
[null,null,"Name",null,null,null,"Betrag",null,null,"Mehrmals ab Jahr",null,"bis Jahr "]
[]
[null,null,null,null,null,null,null,null,null,"Einmalig im Jahr"]

{"sheet":"Vorsorge","index":6,"n_rows":47,"n_cols":19,"rows_kept":47,"cut":false,"hidden":false,"merged":[]}
[]
[]
[]
[null,null,"Vorsorge"]
[]
[]
[null,null,"Gebundene Vorsorge Säule 3a (Bank- und Versicherungslösungen)"]
[]
[null,null,"Jährliche Einzahlung",null,null,null,null,"Jahr",null,null,"bis Jahr",null,null,"Steuerersparnis",null,{"$f":"Erwerbseinkommen!$I$52/100*Vorsorge!F9*'Hilfstabelle Steuern'!F17","v":0}]
[null,null,null,null,null,null,null,null,null,null,null,null,null," "]
[null,null,"Auszahlungsbetrag",null,null,null,null,"Jahr",null,null,null,null,null,"Steuern auf Auszahlung ",null,null,"Berechnung siehe www.ubs.ch"]
[null,null,null,null,null,null,null,null,null,null,null,null,null,"(reduzierter Satz!)",null,null,"Wealth Management/Vorsorge- und Finanzplanung/"]
[null,null,null,null,null,null,null,null,null,null,null,null,null,null,null," "," Finanzberatungstools)"]
[]
[null,null,"Pensionskasse (Säule 2a)"]
[]
[null,null,"Einzahlung 1 Pensionkasse",null,null,null,null,"Jahr",null,null,null,"Steuerersparnis",null,{"$f":"Erwerbseinkommen!$I$52/100*Vorsorge!F17*'Hilfstabelle Steuern'!$F$17","v":0},null,"bei Verwendung des aktuellen Grenzsteuersatzes"]
[]
[null,null,"Einzahlung 2 Pensionkasse",null,null,null,null,"Jahr",null,null,null,"Steuerersparnis",null,{"$f":"Erwerbseinkommen!$I$52/100*Vorsorge!F19*'Hilfstabelle Steuern'!$F$17","v":0},null,"bei Verwendung des aktuellen Grenzsteuersatzes"]
[]
[null,null,"Einzahlung 3 Pensionskasse",null,null,null,null,"Jahr",null,null,null,"Steuerersparnis",null,{"$f":"Erwerbseinkommen!$I$52/100*Vorsorge!F21*'Hilfstabelle Steuern'!$F$17","v":0},null,"bei Verwendung des aktuellen Grenzsteuersatzes"]
[]
[null,null,"Einzahlung 4 Pensionskasse",null,null,null,null,"Jahr",null,null,null,"Steuerersparnis",null,{"$f":"Erwerbseinkommen!$I$52/100*Vorsorge!F23*'Hilfstabelle Steuern'!$F$17","v":0},null,"bei Verwendung des aktuellen Grenzsteuersatzes"]
[]
[null,null,"Einzahlung 5 Pensionskasse",null,null,null,null,"Jahr",null,null,null,"Steuerersparnis",null,{"$f":"Erwerbseinkommen!$I$52/100*Vorsorge!F25*'Hilfstabelle Steuern'!$F$17","v":0},null,"bei Verwendung des aktuellen Grenzsteuersatzes"]
[]
[null,null,"Auszahlung der Pensionkasse",null,null,null,null,"Jahr",null,null,null,"(bei teilweiser oder vollständiger Kapitalauszahlung) ",null,null,null,null,"Steuern auf Auszahlung"]
[null,null,null,null,null,null,null,null,null,null,null,null,null,null,null,null,"(www.ubs.com - "]
[null,null,null,null,null,null,null,null,null,null,null,null,null,null,null,null,"Wealth Management/Vorsorge- und Finanzplanung/"]
[null,null,"Rentenzahlung aus beruflicher Vorsorge",null,null,null,null,"ab Jahr",null,null,null,"(gemäss Pensionskassenausweis)",null,null,null,null," Finanzberatungstools)"]
[]
[null,null,"Freie Vorsorge (Säule 3b)"]
[]
[null,null,"Einzahlung in Versicherung",null,null,null,null,"ab Jahr",null,null,"bis Jahr "]
[null,null," "]
[null,null," ",null,null,null,null,"einmalig im"]
[]
[null,null," "]
[null,null," Auszahlung der Versicherung",null,null,null,null,"ab Jahr",null,null," ",null,null,"Leibrente j/n",null,null,"Steuern auf Leibrente",null,{"$f":"IF(O39=\"j\",F39*Erwerbseinkommen!I50/100*0.4*'Hilfstabelle Steuern'!F17,0)","v":0}]
[]
[null,null,null,null,null,null,null,"einmalig im",null,null," "]
[null,null,null,null,null,null,null,null,null,null,null," "]
[]
[null,null,"AHV (Säule 1a)"]
[]
[null,null,"Voraussichtlicher jährlicher Rentenbetrag ",null,null,null,null,"ab Jahr",null,{"$f":"'Persönliche Daten'!G20","v":0}]
[null,null,"(min. 12000, max. 24000)"]

{"sheet":"Vermögensprojektion","index":7,"n_rows":114,"n_cols":38,"rows_kept":114,"cut":false,"hidden":false,"merged":[]}
[]
[]
[null,{"$f":"CONCATENATE(\"Persönliche Finanzplanung von \",'Persönliche Daten'!E9,\" \",'Persönliche Daten'!E7)","v":"Persönliche Finanzplanung von  "}]
[]
[null,{"$f":"'Persönliche Daten'!E11","v":0}]
[null," "]
[]
[null,null,"Einkommens- und Vermögensprojektion"]
[]
["  ","  ","  ","  ","  ","  ","  ",{"$f":"'Persönliche Daten'!G18","v":0},{"$f":"IF(H10<'Persönliche Daten'!$I$18,H10+1,\"\")","v":""},{"$f":"IF(I10<'Persönliche Daten'!$I$18,I10+1,\"\")","v":""},{"$f":"IF(J10<'Persönliche Daten'!$I$18,J10+1,\"\")","v":""},{"$f":"IF(K10<'Persönliche Daten'!$I$18,K10+1,\"\")","v":""},{"$f":"IF(L10<'Persönliche Daten'!$I$18,L10+1,\"\")","v":""},{"$f":"IF(M10<'Persönliche Daten'!$I$18,M10+1,\"\")","v":""},{"$f":"IF(N10<'Persönliche Daten'!$I$18,N10+1,\"\")","v":""},{"$f":"IF(O10<'Persönliche Daten'!$I$18,O10+1,\"\")","v":""},{"$f":"IF(P10<'Persönliche Daten'!$I$18,P10+1,\"\")","v":""},{"$f":"IF(Q10<'Persönliche Daten'!$I$18,Q10+1,\"\")","v":""},{"$f":"IF(R10<'Persönliche Daten'!$I$18,R10+1,\"\")","v":""},{"$f":"IF(S10<'Persönliche Daten'!$I$18,S10+1,\"\")","v":""},{"$f":"IF(T10<'Persönliche Daten'!$I$18,T10+1,\"\")","v":""},{"$f":"IF(U10<'Persönliche Daten'!$I$18,U10+1,\"\")","v":""},{"$f":"IF(V10<'Persönliche Daten'!$I$18,V10+1,\"\")","v":""},{"$f":"IF(W10<'Persönliche Daten'!$I$18,W10+1,\"\")","v":""},{"$f":"IF(X10<'Persönliche Daten'!$I$18,X10+1,\"\")","v":""},{"$f":"IF(Y10<'Persönliche Daten'!$I$18,Y10+1,\"\")","v":""},{"$f":"IF(Z10<'Persönliche Daten'!$I$18,Z10+1,\"\")","v":""},{"$f":"IF(AA10<'Persönliche Daten'!$I$18,AA10+1,\"\")","v":""},{"$f":"IF(AB10<'Persönliche Daten'!$I$18,AB10+1,\"\")","v":""},{"$f":"IF(AC10<'Persönliche Daten'!$I$18,AC10+1,\"\")","v":""},{"$f":"IF(AD10<'Persönliche Daten'!$I$18,AD10+1,\"\")","v":""},{"$f":"IF(AE10<'Persönliche Daten'!$I$18,AE10+1,\"\")","v":""},{"$f":"IF(AF10<'Persönliche Daten'!$I$18,AF10+1,\"\")","v":""},{"$f":"IF(AG10<'Persönliche Daten'!$I$18,AG10+1,\"\")","v":""},{"$f":"IF(AH10<'Persönliche Daten'!$I$18,AH10+1,\"\")","v":""},{"$f":"IF(AI10<'Persönliche Daten'!$I$18,AI10+1,\"\")","v":""},{"$f":"IF(AJ10<'Persönliche Daten'!$I$18,AJ10+1,\"\")","v":""}," "]
[null,null,null,null,null,null,null,"Jahr 1","Jahr 2","Jahr 3","Jahr 4  ","Jahr 5","Jahr 6","Jahr 7","Jahr 8","Jahr 9","Jahr 10","Jahr 11","Jahr 12","Jahr 13","Jahr 14","Jahr15","Jahr16","Jahr 17","Jahr 18","Jahr 19","Jahr 20","Jahr 21","Jahr  22","Jahr 23","Jahr 24","Jahr 25","Jahr 26","Jahr 27","Jahr 28","Jahr 29","Jahr 30"]
[]
[null,null,"Nettovermögen zu Beginn von",null,null,null," ",{"$f":"HilfstabelleProjektion!G$11","v":0},{"$f":"HilfstabelleProjektion!H$11","v":{"$error":"#VALUE!"}},{"$f":"HilfstabelleProjektion!I$11","v":{"$error":"#VALUE!"}},{"$f":"HilfstabelleProjektion!J$11","v":{"$error":"#VALUE!"}},{"$f":"HilfstabelleProjektion!K$11","v":{"$error":"#VALUE!"}},{"$f":"HilfstabelleProjektion!L$11","v":{"$error":"#VALUE!"}},{"$f":"HilfstabelleProjektion!M$11","v":{"$error":"#VALUE!"}},{"$f":"HilfstabelleProjektion!N$11","v":{"$error":"#VALUE!"}},{"$f":"HilfstabelleProjektion!O$11","v":{"$error":"#VALUE!"}},{"$f":"HilfstabelleProjektion!P$11","v":{"$error":"#VALUE!"}},{"$f":"HilfstabelleProjektion!Q$11","v":{"$error":"#VALUE!"}},{"$f":"HilfstabelleProjektion!R$11","v":{"$error":"#VALUE!"}},{"$f":"HilfstabelleProjektion!S$11","v":{"$error":"#VALUE!"}},{"$f":"HilfstabelleProjektion!T$11","v":{"$error":"#VALUE!"}},{"$f":"HilfstabelleProjektion!U$11","v":{"$error":"#VALUE!"}},{"$f":"HilfstabelleProjektion!V$11","v":{"$error":"#VALUE!"}},{"$f":"HilfstabelleProjektion!W$11","v":{"$error":"#VALUE!"}},{"$f":"HilfstabelleProjektion!X$11","v":{"$error":"#VALUE!"}},{"$f":"HilfstabelleProjektion!Y$11","v":{"$error":"#VALUE!"}},{"$f":"HilfstabelleProjektion!Z$11","v":{"$error":"#VALUE!"}},{"$f":"HilfstabelleProjektion!AA$11","v":{"$error":"#VALUE!"}},{"$f":"HilfstabelleProjektion!AB$11","v":{"$error":"#VALUE!"}},{"$f":"HilfstabelleProjektion!AC$11","v":{"$error":"#VALUE!"}},{"$f":"HilfstabelleProjektion!AD$11","v":{"$error":"#VALUE!"}},{"$f":"HilfstabelleProjektion!AE$11","v":{"$error":"#VALUE!"}},{"$f":"HilfstabelleProjektion!AF$11","v":{"$error":"#VALUE!"}},{"$f":"HilfstabelleProjektion!AG$11","v":{"$error":"#VALUE!"}},{"$f":"HilfstabelleProjektion!AH$11","v":{"$error":"#VALUE!"}},{"$f":"HilfstabelleProjektion!AI$11","v":{"$error":"#VALUE!"}},{"$f":"HilfstabelleProjektion!AJ$11","v":{"$error":"#VALUE!"}}]
[]
[null,null,null,"Anlagevermögen zu Beginn von",null,null," ",{"$f":"HilfstabelleProjektion!G13","v":0},{"$f":"HilfstabelleProjektion!H13","v":{"$error":"#VALUE!"}},{"$f":"HilfstabelleProjektion!I13","v":{"$error":"#VALUE!"}},{"$f":"HilfstabelleProjektion!J13","v":{"$error":"#VALUE!"}},{"$f":"HilfstabelleProjektion!K13","v":{"$error":"#VALUE!"}},{"$f":"HilfstabelleProjektion!L13","v":{"$error":"#VALUE!"}},{"$f":"HilfstabelleProjektion!M13","v":{"$error":"#VALUE!"}},{"$f":"HilfstabelleProjektion!N13","v":{"$error":"#VALUE!"}},{"$f":"HilfstabelleProjektion!O13","v":{"$error":"#VALUE!"}},{"$f":"HilfstabelleProjektion!P13","v":{"$error":"#VALUE!"}},{"$f":"HilfstabelleProjektion!Q13","v":{"$error":"#VALUE!"}},{"$f":"HilfstabelleProjektion!R13","v":{"$error":"#VALUE!"}},{"$f":"HilfstabelleProjektion!S13","v":{"$error":"#VALUE!"}},{"$f":"HilfstabelleProjektion!T13","v":{"$error":"#VALUE!"}},{"$f":"HilfstabelleProjektion!U13","v":{"$error":"#VALUE!"}},{"$f":"HilfstabelleProjektion!V13","v":{"$error":"#VALUE!"}},{"$f":"HilfstabelleProjektion!W13","v":{"$error":"#VALUE!"}},{"$f":"HilfstabelleProjektion!X13","v":{"$error":"#VALUE!"}},{"$f":"HilfstabelleProjektion!Y13","v":{"$error":"#VALUE!"}},{"$f":"HilfstabelleProjektion!Z13","v":{"$error":"#VALUE!"}},{"$f":"HilfstabelleProjektion!AA13","v":{"$error":"#VALUE!"}},{"$f":"HilfstabelleProjektion!AB13","v":{"$error":"#VALUE!"}},{"$f":"HilfstabelleProjektion!AC13","v":{"$error":"#VALUE!"}},{"$f":"HilfstabelleProjektion!AD13","v":{"$error":"#VALUE!"}},{"$f":"HilfstabelleProjektion!AE13","v":{"$error":"#VALUE!"}},{"$f":"HilfstabelleProjektion!AF13","v":{"$error":"#VALUE!"}},{"$f":"HilfstabelleProjektion!AG13","v":{"$error":"#VALUE!"}},{"$f":"HilfstabelleProjektion!AH13","v":{"$error":"#VALUE!"}},{"$f":"HilfstabelleProjektion!AI13","v":{"$error":"#VALUE!"}},{"$f":"HilfstabelleProjektion!AJ13","v":{"$error":"#VALUE!"}}]
[]
[null,null,null,"  Nettolohn (aus monatlichem Budget)",null,null," ",{"$f":"HilfstabelleProjektion!G35","v":0},{"$f":"HilfstabelleProjektion!H35","v":0},{"$f":"HilfstabelleProjektion!I35","v":0},{"$f":"HilfstabelleProjektion!J35","v":0},{"$f":"HilfstabelleProjektion!K35","v":0},{"$f":"HilfstabelleProjektion!L35","v":0},{"$f":"HilfstabelleProjektion!M35","v":0},{"$f":"HilfstabelleProjektion!N35","v":0},{"$f":"HilfstabelleProjektion!O35","v":0},{"$f":"HilfstabelleProjektion!P35","v":0},{"$f":"HilfstabelleProjektion!Q35","v":0},{"$f":"HilfstabelleProjektion!R35","v":0},{"$f":"HilfstabelleProjektion!S35","v":0},{"$f":"HilfstabelleProjektion!T35","v":0},{"$f":"HilfstabelleProjektion!U35","v":0},{"$f":"HilfstabelleProjektion!V35","v":0},{"$f":"HilfstabelleProjektion!W35","v":0},{"$f":"HilfstabelleProjektion!X35","v":0},{"$f":"HilfstabelleProjektion!Y35","v":0},{"$f":"HilfstabelleProjektion!Z35","v":0},{"$f":"HilfstabelleProjektion!AA35","v":0},{"$f":"HilfstabelleProjektion!AB35","v":0},{"$f":"HilfstabelleProjektion!AC35","v":0},{"$f":"HilfstabelleProjektion!AD35","v":0},{"$f":"HilfstabelleProjektion!AE35","v":0},{"$f":"HilfstabelleProjektion!AF35","v":0},{"$f":"HilfstabelleProjektion!AG35","v":0},{"$f":"HilfstabelleProjektion!AH35","v":0},{"$f":"HilfstabelleProjektion!AI35","v":0},{"$f":"HilfstabelleProjektion!AJ35","v":0}]
[]
[null,null,null,"  Steuern auf Nettoerwerbseinkommen",null,null," ",{"$f":"IF(H10<'Persönliche Daten'!$G$20,('Hilfstabelle Steuern'!$H$8+HilfstabelleProjektion!G38),0)","v":0},{"$f":"IF(I10<'Persönliche Daten'!$G$20,('Hilfstabelle Steuern'!$H$8+HilfstabelleProjektion!H38),0)","v":0},{"$f":"IF(J10<'Persönliche Daten'!$G$20,('Hilfstabelle Steuern'!$H$8+HilfstabelleProjektion!I38),0)","v":0},{"$f":"IF(K10<'Persönliche Daten'!$G$20,('Hilfstabelle Steuern'!$H$8+HilfstabelleProjektion!J38),0)","v":0},{"$f":"IF(L10<'Persönliche Daten'!$G$20,('Hilfstabelle Steuern'!$H$8+HilfstabelleProjektion!K38),0)","v":0},{"$f":"IF(M10<'Persönliche Daten'!$G$20,('Hilfstabelle Steuern'!$H$8+HilfstabelleProjektion!L38),0)","v":0},{"$f":"IF(N10<'Persönliche Daten'!$G$20,('Hilfstabelle Steuern'!$H$8+HilfstabelleProjektion!M38),0)","v":0},{"$f":"IF(O10<'Persönliche Daten'!$G$20,('Hilfstabelle Steuern'!$H$8+HilfstabelleProjektion!N38),0)","v":0},{"$f":"IF(P10<'Persönliche Daten'!$G$20,('Hilfstabelle Steuern'!$H$8+HilfstabelleProjektion!O38),0)","v":0},{"$f":"IF(Q10<'Persönliche Daten'!$G$20,('Hilfstabelle Steuern'!$H$8+HilfstabelleProjektion!P38),0)","v":0},{"$f":"IF(R10<'Persönliche Daten'!$G$20,('Hilfstabelle Steuern'!$H$8+HilfstabelleProjektion!Q38),0)","v":0},{"$f":"IF(S10<'Persönliche Daten'!$G$20,('Hilfstabelle Steuern'!$H$8+HilfstabelleProjektion!R38),0)","v":0},{"$f":"IF(T10<'Persönliche Daten'!$G$20,('Hilfstabelle Steuern'!$H$8+HilfstabelleProjektion!S38),0)","v":0},{"$f":"IF(U10<'Persönliche Daten'!$G$20,('Hilfstabelle Steuern'!$H$8+HilfstabelleProjektion!T38),0)","v":0},{"$f":"IF(V10<'Persönliche Daten'!$G$20,('Hilfstabelle Steuern'!$H$8+HilfstabelleProjektion!U38),0)","v":0},{"$f":"IF(W10<'Persönliche Daten'!$G$20,('Hilfstabelle Steuern'!$H$8+HilfstabelleProjektion!V38),0)","v":0},{"$f":"IF(X10<'Persönliche Daten'!$G$20,('Hilfstabelle Steuern'!$H$8+HilfstabelleProjektion!W38),0)","v":0},{"$f":"IF(Y10<'Persönliche Daten'!$G$20,('Hilfstabelle Steuern'!$H$8+HilfstabelleProjektion!X38),0)","v":0},{"$f":"IF(Z10<'Persönliche Daten'!$G$20,('Hilfstabelle Steuern'!$H$8+HilfstabelleProjektion!Y38),0)","v":0},{"$f":"IF(AA10<'Persönliche Daten'!$G$20,('Hilfstabelle Steuern'!$H$8+HilfstabelleProjektion!Z38),0)","v":0},{"$f":"IF(AB10<'Persönliche Daten'!$G$20,('Hilfstabelle Steuern'!$H$8+HilfstabelleProjektion!AA38),0)","v":0},{"$f":"IF(AC10<'Persönliche Daten'!$G$20,('Hilfstabelle Steuern'!$H$8+HilfstabelleProjektion!AB38),0)","v":0},{"$f":"IF(AD10<'Persönliche Daten'!$G$20,('Hilfstabelle Steuern'!$H$8+HilfstabelleProjektion!AC38),0)","v":0},{"$f":"IF(AE10<'Persönliche Daten'!$G$20,('Hilfstabelle Steuern'!$H$8+HilfstabelleProjektion!AD38),0)","v":0},{"$f":"IF(AF10<'Persönliche Daten'!$G$20,('Hilfstabelle Steuern'!$F$8+HilfstabelleProjektion!AE38),0)","v":0},{"$f":"IF(AG10<'Persönliche Daten'!$G$20,('Hilfstabelle Steuern'!$F$8+HilfstabelleProjektion!AF38),0)","v":0},{"$f":"IF(AH10<'Persönliche Daten'!$G$20,('Hilfstabelle Steuern'!$F$8+HilfstabelleProjektion!AG38),0)","v":0},{"$f":"IF(AI10<'Persönliche Daten'!$G$20,('Hilfstabelle Steuern'!$F$8+HilfstabelleProjektion!AH38),0)","v":0},{"$f":"IF(AJ10<'Persönliche Daten'!$G$20,('Hilfstabelle Steuern'!$F$8+HilfstabelleProjektion!AI38),0)","v":0},{"$f":"IF(AK10<'Persönliche Daten'!$G$20,('Hilfstabelle Steuern'!$F$8+HilfstabelleProjektion!AJ38),0)","v":0}]
[]
[null,null,null,"  Saldo Lebensunterhalt",null,null," ",{"$f":"HilfstabelleProjektion!G39","v":{"$error":"#VALUE!"}},{"$f":"HilfstabelleProjektion!H39","v":{"$error":"#VALUE!"}},{"$f":"HilfstabelleProjektion!I39","v":{"$error":"#VALUE!"}},{"$f":"HilfstabelleProjektion!J39","v":{"$error":"#VALUE!"}},{"$f":"HilfstabelleProjektion!K39","v":{"$error":"#VALUE!"}},{"$f":"HilfstabelleProjektion!L39","v":{"$error":"#VALUE!"}},{"$f":"HilfstabelleProjektion!M39","v":{"$error":"#VALUE!"}},{"$f":"HilfstabelleProjektion!N39","v":{"$error":"#VALUE!"}},{"$f":"HilfstabelleProjektion!O39","v":{"$error":"#VALUE!"}},{"$f":"HilfstabelleProjektion!P39","v":{"$error":"#VALUE!"}},{"$f":"HilfstabelleProjektion!Q39","v":{"$error":"#VALUE!"}},{"$f":"HilfstabelleProjektion!R39","v":{"$error":"#VALUE!"}},{"$f":"HilfstabelleProjektion!S39","v":{"$error":"#VALUE!"}},{"$f":"HilfstabelleProjektion!T39","v":{"$error":"#VALUE!"}},{"$f":"HilfstabelleProjektion!U39","v":{"$error":"#VALUE!"}},{"$f":"HilfstabelleProjektion!V39","v":{"$error":"#VALUE!"}},{"$f":"HilfstabelleProjektion!W39","v":{"$error":"#VALUE!"}},{"$f":"HilfstabelleProjektion!X39","v":{"$error":"#VALUE!"}},{"$f":"HilfstabelleProjektion!Y39","v":{"$error":"#VALUE!"}},{"$f":"HilfstabelleProjektion!Z39","v":{"$error":"#VALUE!"}},{"$f":"HilfstabelleProjektion!AA39","v":{"$error":"#VALUE!"}},{"$f":"HilfstabelleProjektion!AB39","v":{"$error":"#VALUE!"}},{"$f":"HilfstabelleProjektion!AC39","v":{"$error":"#VALUE!"}},{"$f":"HilfstabelleProjektion!AD39","v":{"$error":"#VALUE!"}},{"$f":"HilfstabelleProjektion!AE39","v":{"$error":"#VALUE!"}},{"$f":"HilfstabelleProjektion!AF39","v":{"$error":"#VALUE!"}},{"$f":"HilfstabelleProjektion!AG39","v":{"$error":"#VALUE!"}},{"$f":"HilfstabelleProjektion!AH39","v":{"$error":"#VALUE!"}},{"$f":"HilfstabelleProjektion!AI39","v":{"$error":"#VALUE!"}},{"$f":"HilfstabelleProjektion!AJ39","v":{"$error":"#VALUE!"}}]
[]
[]
[null,null,null,"  Anlageertrag",null,null," ",{"$f":"HilfstabelleProjektion!G41","v":0},{"$f":"HilfstabelleProjektion!H41","v":{"$error":"#VALUE!"}},{"$f":"HilfstabelleProjektion!I41","v":{"$error":"#VALUE!"}},{"$f":"HilfstabelleProjektion!J41","v":{"$error":"#VALUE!"}},{"$f":"HilfstabelleProjektion!K41","v":{"$error":"#VALUE!"}},{"$f":"HilfstabelleProjektion!L41","v":{"$error":"#VALUE!"}},{"$f":"HilfstabelleProjektion!M41","v":{"$error":"#VALUE!"}},{"$f":"HilfstabelleProjektion!N41","v":{"$error":"#VALUE!"}},{"$f":"HilfstabelleProjektion!O41","v":{"$error":"#VALUE!"}},{"$f":"HilfstabelleProjektion!P41","v":{"$error":"#VALUE!"}},{"$f":"HilfstabelleProjektion!Q41","v":{"$error":"#VALUE!"}},{"$f":"HilfstabelleProjektion!R41","v":{"$error":"#VALUE!"}},{"$f":"HilfstabelleProjektion!S41","v":{"$error":"#VALUE!"}},{"$f":"HilfstabelleProjektion!T41","v":{"$error":"#VALUE!"}},{"$f":"HilfstabelleProjektion!U41","v":{"$error":"#VALUE!"}},{"$f":"HilfstabelleProjektion!V41","v":{"$error":"#VALUE!"}},{"$f":"HilfstabelleProjektion!W41","v":{"$error":"#VALUE!"}},{"$f":"HilfstabelleProjektion!X41","v":{"$error":"#VALUE!"}},{"$f":"HilfstabelleProjektion!Y41","v":{"$error":"#VALUE!"}},{"$f":"HilfstabelleProjektion!Z41","v":{"$error":"#VALUE!"}},{"$f":"HilfstabelleProjektion!AA41","v":{"$error":"#VALUE!"}},{"$f":"HilfstabelleProjektion!AB41","v":{"$error":"#VALUE!"}},{"$f":"HilfstabelleProjektion!AC41","v":{"$error":"#VALUE!"}},{"$f":"HilfstabelleProjektion!AD41","v":{"$error":"#VALUE!"}},{"$f":"HilfstabelleProjektion!AE41","v":{"$error":"#VALUE!"}},{"$f":"HilfstabelleProjektion!AF41","v":{"$error":"#VALUE!"}},{"$f":"HilfstabelleProjektion!AG41","v":{"$error":"#VALUE!"}},{"$f":"HilfstabelleProjektion!AH41","v":{"$error":"#VALUE!"}},{"$f":"HilfstabelleProjektion!AI41","v":{"$error":"#VALUE!"}},{"$f":"HilfstabelleProjektion!AJ41","v":{"$error":"#VALUE!"}}]
[]
[null,null,null,"  Steuern auf Anlagen",null,null," ",{"$f":"HilfstabelleProjektion!G43","v":{"$error":"#VALUE!"}},{"$f":"HilfstabelleProjektion!H43","v":{"$error":"#VALUE!"}},{"$f":"HilfstabelleProjektion!I43","v":{"$error":"#VALUE!"}},{"$f":"HilfstabelleProjektion!J43","v":{"$error":"#VALUE!"}},{"$f":"HilfstabelleProjektion!K43","v":{"$error":"#VALUE!"}},{"$f":"HilfstabelleProjektion!L43","v":{"$error":"#VALUE!"}},{"$f":"HilfstabelleProjektion!M43","v":{"$error":"#VALUE!"}},{"$f":"HilfstabelleProjektion!N43","v":{"$error":"#VALUE!"}},{"$f":"HilfstabelleProjektion!O43","v":{"$error":"#VALUE!"}},{"$f":"HilfstabelleProjektion!P43","v":{"$error":"#VALUE!"}},{"$f":"HilfstabelleProjektion!Q43","v":{"$error":"#VALUE!"}},{"$f":"HilfstabelleProjektion!R43","v":{"$error":"#VALUE!"}},{"$f":"HilfstabelleProjektion!S43","v":{"$error":"#VALUE!"}},{"$f":"HilfstabelleProjektion!T43","v":{"$error":"#VALUE!"}},{"$f":"HilfstabelleProjektion!U43","v":{"$error":"#VALUE!"}},{"$f":"HilfstabelleProjektion!V43","v":{"$error":"#VALUE!"}},{"$f":"HilfstabelleProjektion!W43","v":{"$error":"#VALUE!"}},{"$f":"HilfstabelleProjektion!X43","v":{"$error":"#VALUE!"}},{"$f":"HilfstabelleProjektion!Y43","v":{"$error":"#VALUE!"}},{"$f":"HilfstabelleProjektion!Z43","v":{"$error":"#VALUE!"}},{"$f":"HilfstabelleProjektion!AA43","v":{"$error":"#VALUE!"}},{"$f":"HilfstabelleProjektion!AB43","v":{"$error":"#VALUE!"}},{"$f":"HilfstabelleProjektion!AC43","v":{"$error":"#VALUE!"}},{"$f":"HilfstabelleProjektion!AD43","v":{"$error":"#VALUE!"}},{"$f":"HilfstabelleProjektion!AE43","v":{"$error":"#VALUE!"}},{"$f":"HilfstabelleProjektion!AF43","v":{"$error":"#VALUE!"}},{"$f":"HilfstabelleProjektion!AG43","v":{"$error":"#VALUE!"}},{"$f":"HilfstabelleProjektion!AH43","v":{"$error":"#VALUE!"}},{"$f":"HilfstabelleProjektion!AI43","v":{"$error":"#VALUE!"}},{"$f":"HilfstabelleProjektion!AJ43","v":{"$error":"#VALUE!"}}]
[]
[null,null,null,"  Total Schuldzinsen",null,null," ",{"$f":"HilfstabelleProjektion!G66","v":0},{"$f":"HilfstabelleProjektion!H66","v":0},{"$f":"HilfstabelleProjektion!I66","v":0},{"$f":"HilfstabelleProjektion!J66","v":0},{"$f":"HilfstabelleProjektion!K66","v":0},{"$f":"HilfstabelleProjektion!L66","v":0},{"$f":"HilfstabelleProjektion!M66","v":0},{"$f":"HilfstabelleProjektion!N66","v":0},{"$f":"HilfstabelleProjektion!O66","v":0},{"$f":"HilfstabelleProjektion!P66","v":0},{"$f":"HilfstabelleProjektion!Q66","v":0},{"$f":"HilfstabelleProjektion!R66","v":0},{"$f":"HilfstabelleProjektion!S66","v":0},{"$f":"HilfstabelleProjektion!T66","v":0},{"$f":"HilfstabelleProjektion!U66","v":0},{"$f":"HilfstabelleProjektion!V66","v":0},{"$f":"HilfstabelleProjektion!W66","v":0},{"$f":"HilfstabelleProjektion!X66","v":0},{"$f":"HilfstabelleProjektion!Y66","v":0},{"$f":"HilfstabelleProjektion!Z66","v":0},{"$f":"HilfstabelleProjektion!AA66","v":0},{"$f":"HilfstabelleProjektion!AB66","v":0},{"$f":"HilfstabelleProjektion!AC66","v":0},{"$f":"HilfstabelleProjektion!AD66","v":0},{"$f":"HilfstabelleProjektion!AE66","v":0},{"$f":"HilfstabelleProjektion!AF66","v":0},{"$f":"HilfstabelleProjektion!AG66","v":0},{"$f":"HilfstabelleProjektion!AH66","v":0},{"$f":"HilfstabelleProjektion!AI66","v":0},{"$f":"HilfstabelleProjektion!AJ66","v":0}]
[]
[null,null,null,"  Total Schuldentilgung/Amortisation Hypothek",null,null," ",{"$f":"(HilfstabelleProjektion!G53+HilfstabelleProjektion!G55+HilfstabelleProjektion!G57+HilfstabelleProjektion!G59)*-1","v":0},{"$f":"(HilfstabelleProjektion!H53+HilfstabelleProjektion!H55+HilfstabelleProjektion!H57+HilfstabelleProjektion!H59)*-1","v":0},{"$f":"(HilfstabelleProjektion!I53+HilfstabelleProjektion!I55+HilfstabelleProjektion!I57+HilfstabelleProjektion!I59)*-1","v":0},{"$f":"(HilfstabelleProjektion!J53+HilfstabelleProjektion!J55+HilfstabelleProjektion!J57+HilfstabelleProjektion!J59)*-1","v":0},{"$f":"(HilfstabelleProjektion!K53+HilfstabelleProjektion!K55+HilfstabelleProjektion!K57+HilfstabelleProjektion!K59)*-1","v":0},{"$f":"(HilfstabelleProjektion!L53+HilfstabelleProjektion!L55+HilfstabelleProjektion!L57+HilfstabelleProjektion!L59)*-1","v":0},{"$f":"(HilfstabelleProjektion!M53+HilfstabelleProjektion!M55+HilfstabelleProjektion!M57+HilfstabelleProjektion!M59)*-1","v":0},{"$f":"(HilfstabelleProjektion!N53+HilfstabelleProjektion!N55+HilfstabelleProjektion!N57+HilfstabelleProjektion!N59)*-1","v":0},{"$f":"(HilfstabelleProjektion!O53+HilfstabelleProjektion!O55+HilfstabelleProjektion!O57+HilfstabelleProjektion!O59)*-1","v":0},{"$f":"(HilfstabelleProjektion!P53+HilfstabelleProjektion!P55+HilfstabelleProjektion!P57+HilfstabelleProjektion!P59)*-1","v":0},{"$f":"(HilfstabelleProjektion!Q53+HilfstabelleProjektion!Q55+HilfstabelleProjektion!Q57+HilfstabelleProjektion!Q59)*-1","v":0},{"$f":"(HilfstabelleProjektion!R53+HilfstabelleProjektion!R55+HilfstabelleProjektion!R57+HilfstabelleProjektion!R59)*-1","v":0},{"$f":"(HilfstabelleProjektion!S53+HilfstabelleProjektion!S55+HilfstabelleProjektion!S57+HilfstabelleProjektion!S59)*-1","v":0},{"$f":"(HilfstabelleProjektion!T53+HilfstabelleProjektion!T55+HilfstabelleProjektion!T57+HilfstabelleProjektion!T59)*-1","v":0},{"$f":"(HilfstabelleProjektion!U53+HilfstabelleProjektion!U55+HilfstabelleProjektion!U57+HilfstabelleProjektion!U59)*-1","v":0},{"$f":"(HilfstabelleProjektion!V53+HilfstabelleProjektion!V55+HilfstabelleProjektion!V57+HilfstabelleProjektion!V59)*-1","v":0},{"$f":"(HilfstabelleProjektion!W53+HilfstabelleProjektion!W55+HilfstabelleProjektion!W57+HilfstabelleProjektion!W59)*-1","v":0},{"$f":"(HilfstabelleProjektion!X53+HilfstabelleProjektion!X55+HilfstabelleProjektion!X57+HilfstabelleProjektion!X59)*-1","v":0},{"$f":"(HilfstabelleProjektion!Y53+HilfstabelleProjektion!Y55+HilfstabelleProjektion!Y57+HilfstabelleProjektion!Y59)*-1","v":0},{"$f":"(HilfstabelleProjektion!Z53+HilfstabelleProjektion!Z55+HilfstabelleProjektion!Z57+HilfstabelleProjektion!Z59)*-1","v":0},{"$f":"(HilfstabelleProjektion!AA53+HilfstabelleProjektion!AA55+HilfstabelleProjektion!AA57+HilfstabelleProjektion!AA59)*-1","v":0},{"$f":"(HilfstabelleProjektion!AB53+HilfstabelleProjektion!AB55+HilfstabelleProjektion!AB57+HilfstabelleProjektion!AB59)*-1","v":0},{"$f":"(HilfstabelleProjektion!AC53+HilfstabelleProjektion!AC55+HilfstabelleProjektion!AC57+HilfstabelleProjektion!AC59)*-1","v":0},{"$f":"(HilfstabelleProjektion!AD53+HilfstabelleProjektion!AD55+HilfstabelleProjektion!AD57+HilfstabelleProjektion!AD59)*-1","v":0},{"$f":"(HilfstabelleProjektion!AE53+HilfstabelleProjektion!AE55+HilfstabelleProjektion!AE57+HilfstabelleProjektion!AE59)*-1","v":0},{"$f":"(HilfstabelleProjektion!AF53+HilfstabelleProjektion!AF55+HilfstabelleProjektion!AF57+HilfstabelleProjektion!AF59)*-1","v":0},{"$f":"(HilfstabelleProjektion!AG53+HilfstabelleProjektion!AG55+HilfstabelleProjektion!AG57+HilfstabelleProjektion!AG59)*-1","v":0},{"$f":"(HilfstabelleProjektion!AH53+HilfstabelleProjektion!AH55+HilfstabelleProjektion!AH57+HilfstabelleProjektion!AH59)*-1","v":0},{"$f":"(HilfstabelleProjektion!AI53+HilfstabelleProjektion!AI55+HilfstabelleProjektion!AI57+HilfstabelleProjektion!AI59)*-1","v":0},{"$f":"(HilfstabelleProjektion!AJ53+HilfstabelleProjektion!AJ55+HilfstabelleProjektion!AJ57+HilfstabelleProjektion!AJ59)*-1","v":0}]
[]
[null,null,null,"  Steuereffekt Schuldzinsen",null,null,"  ",{"$f":"HilfstabelleProjektion!G68","v":{"$error":"#VALUE!"}},{"$f":"HilfstabelleProjektion!H68","v":{"$error":"#VALUE!"}},{"$f":"HilfstabelleProjektion!I68","v":{"$error":"#VALUE!"}},{"$f":"HilfstabelleProjektion!J68","v":{"$error":"#VALUE!"}},{"$f":"HilfstabelleProjektion!K68","v":{"$error":"#VALUE!"}},{"$f":"HilfstabelleProjektion!L68","v":{"$error":"#VALUE!"}},{"$f":"HilfstabelleProjektion!M68","v":{"$error":"#VALUE!"}},{"$f":"HilfstabelleProjektion!N68","v":{"$error":"#VALUE!"}},{"$f":"HilfstabelleProjektion!O68","v":{"$error":"#VALUE!"}},{"$f":"HilfstabelleProjektion!P68","v":{"$error":"#VALUE!"}},{"$f":"HilfstabelleProjektion!Q68","v":{"$error":"#VALUE!"}},{"$f":"HilfstabelleProjektion!R68","v":{"$error":"#VALUE!"}},{"$f":"HilfstabelleProjektion!S68","v":{"$error":"#VALUE!"}},{"$f":"HilfstabelleProjektion!T68","v":{"$error":"#VALUE!"}},{"$f":"HilfstabelleProjektion!U68","v":{"$error":"#VALUE!"}},{"$f":"HilfstabelleProjektion!V68","v":{"$error":"#VALUE!"}},{"$f":"HilfstabelleProjektion!W68","v":{"$error":"#VALUE!"}},{"$f":"HilfstabelleProjektion!X68","v":{"$error":"#VALUE!"}},{"$f":"HilfstabelleProjektion!Y68","v":{"$error":"#VALUE!"}},{"$f":"HilfstabelleProjektion!Z68","v":{"$error":"#VALUE!"}},{"$f":"HilfstabelleProjektion!AA68","v":{"$error":"#VALUE!"}},{"$f":"HilfstabelleProjektion!AB68","v":{"$error":"#VALUE!"}},{"$f":"HilfstabelleProjektion!AC68","v":{"$error":"#VALUE!"}},{"$f":"HilfstabelleProjektion!AD68","v":{"$error":"#VALUE!"}},{"$f":"HilfstabelleProjektion!AE68","v":{"$error":"#VALUE!"}},{"$f":"HilfstabelleProjektion!AF68","v":{"$error":"#VALUE!"}},{"$f":"HilfstabelleProjektion!AG68","v":{"$error":"#VALUE!"}},{"$f":"HilfstabelleProjektion!AH68","v":{"$error":"#VALUE!"}},{"$f":"HilfstabelleProjektion!AI68","v":{"$error":"#VALUE!"}},{"$f":"HilfstabelleProjektion!AJ68","v":{"$error":"#VALUE!"}}]
[]
[null,null,null,"  Projekt 1",{"$f":"Projektplanung!D15","v":0},null,{"$f":"Projektplanung!$D$15","v":0},{"$f":"IF(OR(H$10=Projektplanung!$K$17,AND(H$10>=Projektplanung!$K$15,H$10<=Projektplanung!$M$15)),Projektplanung!$H$15,0)*-1","v":0},{"$f":"IF(OR(I$10=Projektplanung!$K$17,AND(I$10>=Projektplanung!$K$15,I$10<=Projektplanung!$M$15)),Projektplanung!$H$15,0)*-1","v":0},{"$f":"IF(OR(J$10=Projektplanung!$K$17,AND(J$10>=Projektplanung!$K$15,J$10<=Projektplanung!$M$15)),Projektplanung!$H$15,0)*-1","v":0},{"$f":"IF(OR(K$10=Projektplanung!$K$17,AND(K$10>=Projektplanung!$K$15,K$10<=Projektplanung!$M$15)),Projektplanung!$H$15,0)*-1","v":0},{"$f":"IF(OR(L$10=Projektplanung!$K$17,AND(L$10>=Projektplanung!$K$15,L$10<=Projektplanung!$M$15)),Projektplanung!$H$15,0)*-1","v":0},{"$f":"IF(OR(M$10=Projektplanung!$K$17,AND(M$10>=Projektplanung!$K$15,M$10<=Projektplanung!$M$15)),Projektplanung!$H$15,0)*-1","v":0},{"$f":"IF(OR(N$10=Projektplanung!$K$17,AND(N$10>=Projektplanung!$K$15,N$10<=Projektplanung!$M$15)),Projektplanung!$H$15,0)*-1","v":0},{"$f":"IF(OR(O$10=Projektplanung!$K$17,AND(O$10>=Projektplanung!$K$15,O$10<=Projektplanung!$M$15)),Projektplanung!$H$15,0)*-1","v":0},{"$f":"IF(OR(P$10=Projektplanung!$K$17,AND(P$10>=Projektplanung!$K$15,P$10<=Projektplanung!$M$15)),Projektplanung!$H$15,0)*-1","v":0},{"$f":"IF(OR(Q$10=Projektplanung!$K$17,AND(Q$10>=Projektplanung!$K$15,Q$10<=Projektplanung!$M$15)),Projektplanung!$H$15,0)*-1","v":0},{"$f":"IF(OR(R$10=Projektplanung!$K$17,AND(R$10>=Projektplanung!$K$15,R$10<=Projektplanung!$M$15)),Projektplanung!$H$15,0)*-1","v":0},{"$f":"IF(OR(S$10=Projektplanung!$K$17,AND(S$10>=Projektplanung!$K$15,S$10<=Projektplanung!$M$15)),Projektplanung!$H$15,0)*-1","v":0},{"$f":"IF(OR(T$10=Projektplanung!$K$17,AND(T$10>=Projektplanung!$K$15,T$10<=Projektplanung!$M$15)),Projektplanung!$H$15,0)*-1","v":0},{"$f":"IF(OR(U$10=Projektplanung!$K$17,AND(U$10>=Projektplanung!$K$15,U$10<=Projektplanung!$M$15)),Projektplanung!$H$15,0)*-1","v":0},{"$f":"IF(OR(V$10=Projektplanung!$K$17,AND(V$10>=Projektplanung!$K$15,V$10<=Projektplanung!$M$15)),Projektplanung!$H$15,0)*-1","v":0},{"$f":"IF(OR(W$10=Projektplanung!$K$17,AND(W$10>=Projektplanung!$K$15,W$10<=Projektplanung!$M$15)),Projektplanung!$H$15,0)*-1","v":0},{"$f":"IF(OR(X$10=Projektplanung!$K$17,AND(X$10>=Projektplanung!$K$15,X$10<=Projektplanung!$M$15)),Projektplanung!$H$15,0)*-1","v":0},{"$f":"IF(OR(Y$10=Projektplanung!$K$17,AND(Y$10>=Projektplanung!$K$15,Y$10<=Projektplanung!$M$15)),Projektplanung!$H$15,0)*-1","v":0},{"$f":"IF(OR(Z$10=Projektplanung!$K$17,AND(Z$10>=Projektplanung!$K$15,Z$10<=Projektplanung!$M$15)),Projektplanung!$H$15,0)*-1","v":0},{"$f":"IF(OR(AA$10=Projektplanung!$K$17,AND(AA$10>=Projektplanung!$K$15,AA$10<=Projektplanung!$M$15)),Projektplanung!$H$15,0)*-1","v":0},{"$f":"IF(OR(AB$10=Projektplanung!$K$17,AND(AB$10>=Projektplanung!$K$15,AB$10<=Projektplanung!$M$15)),Projektplanung!$H$15,0)*-1","v":0},{"$f":"IF(OR(AC$10=Projektplanung!$K$17,AND(AC$10>=Projektplanung!$K$15,AC$10<=Projektplanung!$M$15)),Projektplanung!$H$15,0)*-1","v":0},{"$f":"IF(OR(AD$10=Projektplanung!$K$17,AND(AD$10>=Projektplanung!$K$15,AD$10<=Projektplanung!$M$15)),Projektplanung!$H$15,0)*-1","v":0},{"$f":"IF(OR(AE$10=Projektplanung!$K$17,AND(AE$10>=Projektplanung!$K$15,AE$10<=Projektplanung!$M$15)),Projektplanung!$H$15,0)*-1","v":0},{"$f":"IF(OR(AF$10=Projektplanung!$K$17,AND(AF$10>=Projektplanung!$K$15,AF$10<=Projektplanung!$M$15)),Projektplanung!$H$15,0)*-1","v":0},{"$f":"IF(OR(AG$10=Projektplanung!$K$17,AND(AG$10>=Projektplanung!$K$15,AG$10<=Projektplanung!$M$15)),Projektplanung!$H$15,0)*-1","v":0},{"$f":"IF(OR(AH$10=Projektplanung!$K$17,AND(AH$10>=Projektplanung!$K$15,AH$10<=Projektplanung!$M$15)),Projektplanung!$H$15,0)*-1","v":0},{"$f":"IF(OR(AI$10=Projektplanung!$K$17,AND(AI$10>=Projektplanung!$K$15,AI$10<=Projektplanung!$M$15)),Projektplanung!$H$15,0)*-1","v":0},{"$f":"IF(OR(AJ$10=Projektplanung!$K$17,AND(AJ$10>=Projektplanung!$K$15,AJ$10<=Projektplanung!$M$15)),Projektplanung!$H$15,0)*-1","v":0},{"$f":"IF(OR(AK$10=Projektplanung!$K$17,AND(AK$10>=Projektplanung!$K$15,AK$10<=Projektplanung!$M$15)),Projektplanung!$H$15,0)*-1","v":0}]
[null,null,null,null,null,null,null,0]
[null,null,null,"  Projekt 2",{"$f":"Projektplanung!D20","v":0},null,{"$f":"Projektplanung!$D$20","v":0},{"$f":"IF(OR(H$10=Projektplanung!$K$22,AND(H$10>=Projektplanung!$K$20,H$10<=Projektplanung!$M$20)),Projektplanung!$H$20,0)*-1","v":0},{"$f":"IF(OR(I$10=Projektplanung!$K$22,AND(I$10>=Projektplanung!$K$20,I$10<=Projektplanung!$M$20)),Projektplanung!$H$20,0)*-1","v":0},{"$f":"IF(OR(J$10=Projektplanung!$K$22,AND(J$10>=Projektplanung!$K$20,J$10<=Projektplanung!$M$20)),Projektplanung!$H$20,0)*-1","v":0},{"$f":"IF(OR(K$10=Projektplanung!$K$22,AND(K$10>=Projektplanung!$K$20,K$10<=Projektplanung!$M$20)),Projektplanung!$H$20,0)*-1","v":0},{"$f":"IF(OR(L$10=Projektplanung!$K$22,AND(L$10>=Projektplanung!$K$20,L$10<=Projektplanung!$M$20)),Projektplanung!$H$20,0)*-1","v":0},{"$f":"IF(OR(M$10=Projektplanung!$K$22,AND(M$10>=Projektplanung!$K$20,M$10<=Projektplanung!$M$20)),Projektplanung!$H$20,0)*-1","v":0},{"$f":"IF(OR(N$10=Projektplanung!$K$22,AND(N$10>=Projektplanung!$K$20,N$10<=Projektplanung!$M$20)),Projektplanung!$H$20,0)*-1","v":0},{"$f":"IF(OR(O$10=Projektplanung!$K$22,AND(O$10>=Projektplanung!$K$20,O$10<=Projektplanung!$M$20)),Projektplanung!$H$20,0)*-1","v":0},{"$f":"IF(OR(P$10=Projektplanung!$K$22,AND(P$10>=Projektplanung!$K$20,P$10<=Projektplanung!$M$20)),Projektplanung!$H$20,0)*-1","v":0},{"$f":"IF(OR(Q$10=Projektplanung!$K$22,AND(Q$10>=Projektplanung!$K$20,Q$10<=Projektplanung!$M$20)),Projektplanung!$H$20,0)*-1","v":0},{"$f":"IF(OR(R$10=Projektplanung!$K$22,AND(R$10>=Projektplanung!$K$20,R$10<=Projektplanung!$M$20)),Projektplanung!$H$20,0)*-1","v":0},{"$f":"IF(OR(S$10=Projektplanung!$K$22,AND(S$10>=Projektplanung!$K$20,S$10<=Projektplanung!$M$20)),Projektplanung!$H$20,0)*-1","v":0},{"$f":"IF(OR(T$10=Projektplanung!$K$22,AND(T$10>=Projektplanung!$K$20,T$10<=Projektplanung!$M$20)),Projektplanung!$H$20,0)*-1","v":0},{"$f":"IF(OR(U$10=Projektplanung!$K$22,AND(U$10>=Projektplanung!$K$20,U$10<=Projektplanung!$M$20)),Projektplanung!$H$20,0)*-1","v":0},{"$f":"IF(OR(V$10=Projektplanung!$K$22,AND(V$10>=Projektplanung!$K$20,V$10<=Projektplanung!$M$20)),Projektplanung!$H$20,0)*-1","v":0},{"$f":"IF(OR(W$10=Projektplanung!$K$22,AND(W$10>=Projektplanung!$K$20,W$10<=Projektplanung!$M$20)),Projektplanung!$H$20,0)*-1","v":0},{"$f":"IF(OR(X$10=Projektplanung!$K$22,AND(X$10>=Projektplanung!$K$20,X$10<=Projektplanung!$M$20)),Projektplanung!$H$20,0)*-1","v":0},{"$f":"IF(OR(Y$10=Projektplanung!$K$22,AND(Y$10>=Projektplanung!$K$20,Y$10<=Projektplanung!$M$20)),Projektplanung!$H$20,0)*-1","v":0},{"$f":"IF(OR(Z$10=Projektplanung!$K$22,AND(Z$10>=Projektplanung!$K$20,Z$10<=Projektplanung!$M$20)),Projektplanung!$H$20,0)*-1","v":0},{"$f":"IF(OR(AA$10=Projektplanung!$K$22,AND(AA$10>=Projektplanung!$K$20,AA$10<=Projektplanung!$M$20)),Projektplanung!$H$20,0)*-1","v":0},{"$f":"IF(OR(AB$10=Projektplanung!$K$22,AND(AB$10>=Projektplanung!$K$20,AB$10<=Projektplanung!$M$20)),Projektplanung!$H$20,0)*-1","v":0},{"$f":"IF(OR(AC$10=Projektplanung!$K$22,AND(AC$10>=Projektplanung!$K$20,AC$10<=Projektplanung!$M$20)),Projektplanung!$H$20,0)*-1","v":0},{"$f":"IF(OR(AD$10=Projektplanung!$K$22,AND(AD$10>=Projektplanung!$K$20,AD$10<=Projektplanung!$M$20)),Projektplanung!$H$20,0)*-1","v":0},{"$f":"IF(OR(AE$10=Projektplanung!$K$22,AND(AE$10>=Projektplanung!$K$20,AE$10<=Projektplanung!$M$20)),Projektplanung!$H$20,0)*-1","v":0},{"$f":"IF(OR(AF$10=Projektplanung!$K$22,AND(AF$10>=Projektplanung!$K$20,AF$10<=Projektplanung!$M$20)),Projektplanung!$H$20,0)*-1","v":0},{"$f":"IF(OR(AG$10=Projektplanung!$K$22,AND(AG$10>=Projektplanung!$K$20,AG$10<=Projektplanung!$M$20)),Projektplanung!$H$20,0)*-1","v":0},{"$f":"IF(OR(AH$10=Projektplanung!$K$22,AND(AH$10>=Projektplanung!$K$20,AH$10<=Projektplanung!$M$20)),Projektplanung!$H$20,0)*-1","v":0},{"$f":"IF(OR(AI$10=Projektplanung!$K$22,AND(AI$10>=Projektplanung!$K$20,AI$10<=Projektplanung!$M$20)),Projektplanung!$H$20,0)*-1","v":0},{"$f":"IF(OR(AJ$10=Projektplanung!$K$22,AND(AJ$10>=Projektplanung!$K$20,AJ$10<=Projektplanung!$M$20)),Projektplanung!$H$20,0)*-1","v":0},{"$f":"IF(OR(AK$10=Projektplanung!$K$22,AND(AK$10>=Projektplanung!$K$20,AK$10<=Projektplanung!$M$20)),Projektplanung!$H$20,0)*-1","v":0}]
[null,null,null,null,null,null,null,0]
[" ",null,null,"  Projekt 3",{"$f":"Projektplanung!D25","v":0},null,{"$f":"Projektplanung!$D$25","v":0},{"$f":"IF(OR(H$10=Projektplanung!$K$27,AND(H$10>=Projektplanung!$K$25,H$10<=Projektplanung!$M$25)),Projektplanung!$H$25,0)*-1","v":0},{"$f":"IF(OR(I$10=Projektplanung!$K$27,AND(I$10>=Projektplanung!$K$25,I$10<=Projektplanung!$M$25)),Projektplanung!$H$25,0)*-1","v":0},{"$f":"IF(OR(J$10=Projektplanung!$K$27,AND(J$10>=Projektplanung!$K$25,J$10<=Projektplanung!$M$25)),Projektplanung!$H$25,0)*-1","v":0},{"$f":"IF(OR(K$10=Projektplanung!$K$27,AND(K$10>=Projektplanung!$K$25,K$10<=Projektplanung!$M$25)),Projektplanung!$H$25,0)*-1","v":0},{"$f":"IF(OR(L$10=Projektplanung!$K$27,AND(L$10>=Projektplanung!$K$25,L$10<=Projektplanung!$M$25)),Projektplanung!$H$25,0)*-1","v":0},{"$f":"IF(OR(M$10=Projektplanung!$K$27,AND(M$10>=Projektplanung!$K$25,M$10<=Projektplanung!$M$25)),Projektplanung!$H$25,0)*-1","v":0},{"$f":"IF(OR(N$10=Projektplanung!$K$27,AND(N$10>=Projektplanung!$K$25,N$10<=Projektplanung!$M$25)),Projektplanung!$H$25,0)*-1","v":0},{"$f":"IF(OR(O$10=Projektplanung!$K$27,AND(O$10>=Projektplanung!$K$25,O$10<=Projektplanung!$M$25)),Projektplanung!$H$25,0)*-1","v":0},{"$f":"IF(OR(P$10=Projektplanung!$K$27,AND(P$10>=Projektplanung!$K$25,P$10<=Projektplanung!$M$25)),Projektplanung!$H$25,0)*-1","v":0},{"$f":"IF(OR(Q$10=Projektplanung!$K$27,AND(Q$10>=Projektplanung!$K$25,Q$10<=Projektplanung!$M$25)),Projektplanung!$H$25,0)*-1","v":0},{"$f":"IF(OR(R$10=Projektplanung!$K$27,AND(R$10>=Projektplanung!$K$25,R$10<=Projektplanung!$M$25)),Projektplanung!$H$25,0)*-1","v":0},{"$f":"IF(OR(S$10=Projektplanung!$K$27,AND(S$10>=Projektplanung!$K$25,S$10<=Projektplanung!$M$25)),Projektplanung!$H$25,0)*-1","v":0},{"$f":"IF(OR(T$10=Projektplanung!$K$27,AND(T$10>=Projektplanung!$K$25,T$10<=Projektplanung!$M$25)),Projektplanung!$H$25,0)*-1","v":0},{"$f":"IF(OR(U$10=Projektplanung!$K$27,AND(U$10>=Projektplanung!$K$25,U$10<=Projektplanung!$M$25)),Projektplanung!$H$25,0)*-1","v":0},{"$f":"IF(OR(V$10=Projektplanung!$K$27,AND(V$10>=Projektplanung!$K$25,V$10<=Projektplanung!$M$25)),Projektplanung!$H$25,0)*-1","v":0},{"$f":"IF(OR(W$10=Projektplanung!$K$27,AND(W$10>=Projektplanung!$K$25,W$10<=Projektplanung!$M$25)),Projektplanung!$H$25,0)*-1","v":0},{"$f":"IF(OR(X$10=Projektplanung!$K$27,AND(X$10>=Projektplanung!$K$25,X$10<=Projektplanung!$M$25)),Projektplanung!$H$25,0)*-1","v":0},{"$f":"IF(OR(Y$10=Projektplanung!$K$27,AND(Y$10>=Projektplanung!$K$25,Y$10<=Projektplanung!$M$25)),Projektplanung!$H$25,0)*-1","v":0},{"$f":"IF(OR(Z$10=Projektplanung!$K$27,AND(Z$10>=Projektplanung!$K$25,Z$10<=Projektplanung!$M$25)),Projektplanung!$H$25,0)*-1","v":0},{"$f":"IF(OR(AA$10=Projektplanung!$K$27,AND(AA$10>=Projektplanung!$K$25,AA$10<=Projektplanung!$M$25)),Projektplanung!$H$25,0)*-1","v":0},{"$f":"IF(OR(AB$10=Projektplanung!$K$27,AND(AB$10>=Projektplanung!$K$25,AB$10<=Projektplanung!$M$25)),Projektplanung!$H$25,0)*-1","v":0},{"$f":"IF(OR(AC$10=Projektplanung!$K$27,AND(AC$10>=Projektplanung!$K$25,AC$10<=Projektplanung!$M$25)),Projektplanung!$H$25,0)*-1","v":0},{"$f":"IF(OR(AD$10=Projektplanung!$K$27,AND(AD$10>=Projektplanung!$K$25,AD$10<=Projektplanung!$M$25)),Projektplanung!$H$25,0)*-1","v":0},{"$f":"IF(OR(AE$10=Projektplanung!$K$27,AND(AE$10>=Projektplanung!$K$25,AE$10<=Projektplanung!$M$25)),Projektplanung!$H$25,0)*-1","v":0},{"$f":"IF(OR(AF$10=Projektplanung!$K$27,AND(AF$10>=Projektplanung!$K$25,AF$10<=Projektplanung!$M$25)),Projektplanung!$H$25,0)*-1","v":0},{"$f":"IF(OR(AG$10=Projektplanung!$K$27,AND(AG$10>=Projektplanung!$K$25,AG$10<=Projektplanung!$M$25)),Projektplanung!$H$25,0)*-1","v":0},{"$f":"IF(OR(AH$10=Projektplanung!$K$27,AND(AH$10>=Projektplanung!$K$25,AH$10<=Projektplanung!$M$25)),Projektplanung!$H$25,0)*-1","v":0},{"$f":"IF(OR(AI$10=Projektplanung!$K$27,AND(AI$10>=Projektplanung!$K$25,AI$10<=Projektplanung!$M$25)),Projektplanung!$H$25,0)*-1","v":0},{"$f":"IF(OR(AJ$10=Projektplanung!$K$27,AND(AJ$10>=Projektplanung!$K$25,AJ$10<=Projektplanung!$M$25)),Projektplanung!$H$25,0)*-1","v":0},{"$f":"IF(OR(AK$10=Projektplanung!$K$27,AND(AK$10>=Projektplanung!$K$25,AK$10<=Projektplanung!$M$25)),Projektplanung!$H$25,0)*-1","v":0}]
[null,null,null,null,null,null,null,0]
[null,null,null,"  Projekt 4",{"$f":"Projektplanung!D30","v":0},null,{"$f":"Projektplanung!$D$30","v":0},{"$f":"IF(OR(H$10=Projektplanung!$K$32,AND(H$10>=Projektplanung!$K$30,H$10<=Projektplanung!$M$30)),Projektplanung!$H$30,0)*-1","v":0},{"$f":"IF(OR(I$10=Projektplanung!$K$32,AND(I$10>=Projektplanung!$K$30,I$10<=Projektplanung!$M$30)),Projektplanung!$H$30,0)*-1","v":0},{"$f":"IF(OR(J$10=Projektplanung!$K$32,AND(J$10>=Projektplanung!$K$30,J$10<=Projektplanung!$M$30)),Projektplanung!$H$30,0)*-1","v":0},{"$f":"IF(OR(K$10=Projektplanung!$K$32,AND(K$10>=Projektplanung!$K$30,K$10<=Projektplanung!$M$30)),Projektplanung!$H$30,0)*-1","v":0},{"$f":"IF(OR(L$10=Projektplanung!$K$32,AND(L$10>=Projektplanung!$K$30,L$10<=Projektplanung!$M$30)),Projektplanung!$H$30,0)*-1","v":0},{"$f":"IF(OR(M$10=Projektplanung!$K$32,AND(M$10>=Projektplanung!$K$30,M$10<=Projektplanung!$M$30)),Projektplanung!$H$30,0)*-1","v":0},{"$f":"IF(OR(N$10=Projektplanung!$K$32,AND(N$10>=Projektplanung!$K$30,N$10<=Projektplanung!$M$30)),Projektplanung!$H$30,0)*-1","v":0},{"$f":"IF(OR(O$10=Projektplanung!$K$32,AND(O$10>=Projektplanung!$K$30,O$10<=Projektplanung!$M$30)),Projektplanung!$H$30,0)*-1","v":0},{"$f":"IF(OR(P$10=Projektplanung!$K$32,AND(P$10>=Projektplanung!$K$30,P$10<=Projektplanung!$M$30)),Projektplanung!$H$30,0)*-1","v":0},{"$f":"IF(OR(Q$10=Projektplanung!$K$32,AND(Q$10>=Projektplanung!$K$30,Q$10<=Projektplanung!$M$30)),Projektplanung!$H$30,0)*-1","v":0},{"$f":"IF(OR(R$10=Projektplanung!$K$32,AND(R$10>=Projektplanung!$K$30,R$10<=Projektplanung!$M$30)),Projektplanung!$H$30,0)*-1","v":0},{"$f":"IF(OR(S$10=Projektplanung!$K$32,AND(S$10>=Projektplanung!$K$30,S$10<=Projektplanung!$M$30)),Projektplanung!$H$30,0)*-1","v":0},{"$f":"IF(OR(T$10=Projektplanung!$K$32,AND(T$10>=Projektplanung!$K$30,T$10<=Projektplanung!$M$30)),Projektplanung!$H$30,0)*-1","v":0},{"$f":"IF(OR(U$10=Projektplanung!$K$32,AND(U$10>=Projektplanung!$K$30,U$10<=Projektplanung!$M$30)),Projektplanung!$H$30,0)*-1","v":0},{"$f":"IF(OR(V$10=Projektplanung!$K$32,AND(V$10>=Projektplanung!$K$30,V$10<=Projektplanung!$M$30)),Projektplanung!$H$30,0)*-1","v":0},{"$f":"IF(OR(W$10=Projektplanung!$K$32,AND(W$10>=Projektplanung!$K$30,W$10<=Projektplanung!$M$30)),Projektplanung!$H$30,0)*-1","v":0},{"$f":"IF(OR(X$10=Projektplanung!$K$32,AND(X$10>=Projektplanung!$K$30,X$10<=Projektplanung!$M$30)),Projektplanung!$H$30,0)*-1","v":0},{"$f":"IF(OR(Y$10=Projektplanung!$K$32,AND(Y$10>=Projektplanung!$K$30,Y$10<=Projektplanung!$M$30)),Projektplanung!$H$30,0)*-1","v":0},{"$f":"IF(OR(Z$10=Projektplanung!$K$32,AND(Z$10>=Projektplanung!$K$30,Z$10<=Projektplanung!$M$30)),Projektplanung!$H$30,0)*-1","v":0},{"$f":"IF(OR(AA$10=Projektplanung!$K$32,AND(AA$10>=Projektplanung!$K$30,AA$10<=Projektplanung!$M$30)),Projektplanung!$H$30,0)*-1","v":0},{"$f":"IF(OR(AB$10=Projektplanung!$K$32,AND(AB$10>=Projektplanung!$K$30,AB$10<=Projektplanung!$M$30)),Projektplanung!$H$30,0)*-1","v":0},{"$f":"IF(OR(AC$10=Projektplanung!$K$32,AND(AC$10>=Projektplanung!$K$30,AC$10<=Projektplanung!$M$30)),Projektplanung!$H$30,0)*-1","v":0},{"$f":"IF(OR(AD$10=Projektplanung!$K$32,AND(AD$10>=Projektplanung!$K$30,AD$10<=Projektplanung!$M$30)),Projektplanung!$H$30,0)*-1","v":0},{"$f":"IF(OR(AE$10=Projektplanung!$K$32,AND(AE$10>=Projektplanung!$K$30,AE$10<=Projektplanung!$M$30)),Projektplanung!$H$30,0)*-1","v":0},{"$f":"IF(OR(AF$10=Projektplanung!$K$32,AND(AF$10>=Projektplanung!$K$30,AF$10<=Projektplanung!$M$30)),Projektplanung!$H$30,0)*-1","v":0},{"$f":"IF(OR(AG$10=Projektplanung!$K$32,AND(AG$10>=Projektplanung!$K$30,AG$10<=Projektplanung!$M$30)),Projektplanung!$H$30,0)*-1","v":0},{"$f":"IF(OR(AH$10=Projektplanung!$K$32,AND(AH$10>=Projektplanung!$K$30,AH$10<=Projektplanung!$M$30)),Projektplanung!$H$30,0)*-1","v":0},{"$f":"IF(OR(AI$10=Projektplanung!$K$32,AND(AI$10>=Projektplanung!$K$30,AI$10<=Projektplanung!$M$30)),Projektplanung!$H$30,0)*-1","v":0},{"$f":"IF(OR(AJ$10=Projektplanung!$K$32,AND(AJ$10>=Projektplanung!$K$30,AJ$10<=Projektplanung!$M$30)),Projektplanung!$H$30,0)*-1","v":0},{"$f":"IF(OR(AK$10=Projektplanung!$K$32,AND(AK$10>=Projektplanung!$K$30,AK$10<=Projektplanung!$M$30)),Projektplanung!$H$30,0)*-1","v":0}]
[null,null,null,null,null,null,null,0]
[null,null,null,"  Projekt 5",{"$f":"Projektplanung!D35","v":0},null,{"$f":"Projektplanung!$D$35","v":0},{"$f":"IF(OR(H$10=Projektplanung!$K$37,AND(H$10>=Projektplanung!$K$35,H$10<=Projektplanung!$M$35)),Projektplanung!$H$35,0)*-1","v":0},{"$f":"IF(OR(I$10=Projektplanung!$K$37,AND(I$10>=Projektplanung!$K$35,I$10<=Projektplanung!$M$35)),Projektplanung!$H$35,0)*-1","v":0},{"$f":"IF(OR(J$10=Projektplanung!$K$37,AND(J$10>=Projektplanung!$K$35,J$10<=Projektplanung!$M$35)),Projektplanung!$H$35,0)*-1","v":0},{"$f":"IF(OR(K$10=Projektplanung!$K$37,AND(K$10>=Projektplanung!$K$35,K$10<=Projektplanung!$M$35)),Projektplanung!$H$35,0)*-1","v":0},{"$f":"IF(OR(L$10=Projektplanung!$K$37,AND(L$10>=Projektplanung!$K$35,L$10<=Projektplanung!$M$35)),Projektplanung!$H$35,0)*-1","v":0},{"$f":"IF(OR(M$10=Projektplanung!$K$37,AND(M$10>=Projektplanung!$K$35,M$10<=Projektplanung!$M$35)),Projektplanung!$H$35,0)*-1","v":0},{"$f":"IF(OR(N$10=Projektplanung!$K$37,AND(N$10>=Projektplanung!$K$35,N$10<=Projektplanung!$M$35)),Projektplanung!$H$35,0)*-1","v":0},{"$f":"IF(OR(O$10=Projektplanung!$K$37,AND(O$10>=Projektplanung!$K$35,O$10<=Projektplanung!$M$35)),Projektplanung!$H$35,0)*-1","v":0},{"$f":"IF(OR(P$10=Projektplanung!$K$37,AND(P$10>=Projektplanung!$K$35,P$10<=Projektplanung!$M$35)),Projektplanung!$H$35,0)*-1","v":0},{"$f":"IF(OR(Q$10=Projektplanung!$K$37,AND(Q$10>=Projektplanung!$K$35,Q$10<=Projektplanung!$M$35)),Projektplanung!$H$35,0)*-1","v":0},{"$f":"IF(OR(R$10=Projektplanung!$K$37,AND(R$10>=Projektplanung!$K$35,R$10<=Projektplanung!$M$35)),Projektplanung!$H$35,0)*-1","v":0},{"$f":"IF(OR(S$10=Projektplanung!$K$37,AND(S$10>=Projektplanung!$K$35,S$10<=Projektplanung!$M$35)),Projektplanung!$H$35,0)*-1","v":0},{"$f":"IF(OR(T$10=Projektplanung!$K$37,AND(T$10>=Projektplanung!$K$35,T$10<=Projektplanung!$M$35)),Projektplanung!$H$35,0)*-1","v":0},{"$f":"IF(OR(U$10=Projektplanung!$K$37,AND(U$10>=Projektplanung!$K$35,U$10<=Projektplanung!$M$35)),Projektplanung!$H$35,0)*-1","v":0},{"$f":"IF(OR(V$10=Projektplanung!$K$37,AND(V$10>=Projektplanung!$K$35,V$10<=Projektplanung!$M$35)),Projektplanung!$H$35,0)*-1","v":0},{"$f":"IF(OR(W$10=Projektplanung!$K$37,AND(W$10>=Projektplanung!$K$35,W$10<=Projektplanung!$M$35)),Projektplanung!$H$35,0)*-1","v":0},{"$f":"IF(OR(X$10=Projektplanung!$K$37,AND(X$10>=Projektplanung!$K$35,X$10<=Projektplanung!$M$35)),Projektplanung!$H$35,0)*-1","v":0},{"$f":"IF(OR(Y$10=Projektplanung!$K$37,AND(Y$10>=Projektplanung!$K$35,Y$10<=Projektplanung!$M$35)),Projektplanung!$H$35,0)*-1","v":0},{"$f":"IF(OR(Z$10=Projektplanung!$K$37,AND(Z$10>=Projektplanung!$K$35,Z$10<=Projektplanung!$M$35)),Projektplanung!$H$35,0)*-1","v":0},{"$f":"IF(OR(AA$10=Projektplanung!$K$37,AND(AA$10>=Projektplanung!$K$35,AA$10<=Projektplanung!$M$35)),Projektplanung!$H$35,0)*-1","v":0},{"$f":"IF(OR(AB$10=Projektplanung!$K$37,AND(AB$10>=Projektplanung!$K$35,AB$10<=Projektplanung!$M$35)),Projektplanung!$H$35,0)*-1","v":0},{"$f":"IF(OR(AC$10=Projektplanung!$K$37,AND(AC$10>=Projektplanung!$K$35,AC$10<=Projektplanung!$M$35)),Projektplanung!$H$35,0)*-1","v":0},{"$f":"IF(OR(AD$10=Projektplanung!$K$37,AND(AD$10>=Projektplanung!$K$35,AD$10<=Projektplanung!$M$35)),Projektplanung!$H$35,0)*-1","v":0},{"$f":"IF(OR(AE$10=Projektplanung!$K$37,AND(AE$10>=Projektplanung!$K$35,AE$10<=Projektplanung!$M$35)),Projektplanung!$H$35,0)*-1","v":0},{"$f":"IF(OR(AF$10=Projektplanung!$K$37,AND(AF$10>=Projektplanung!$K$35,AF$10<=Projektplanung!$M$35)),Projektplanung!$H$35,0)*-1","v":0},{"$f":"IF(OR(AG$10=Projektplanung!$K$37,AND(AG$10>=Projektplanung!$K$35,AG$10<=Projektplanung!$M$35)),Projektplanung!$H$35,0)*-1","v":0},{"$f":"IF(OR(AH$10=Projektplanung!$K$37,AND(AH$10>=Projektplanung!$K$35,AH$10<=Projektplanung!$M$35)),Projektplanung!$H$35,0)*-1","v":0},{"$f":"IF(OR(AI$10=Projektplanung!$K$37,AND(AI$10>=Projektplanung!$K$35,AI$10<=Projektplanung!$M$35)),Projektplanung!$H$35,0)*-1","v":0},{"$f":"IF(OR(AJ$10=Projektplanung!$K$37,AND(AJ$10>=Projektplanung!$K$35,AJ$10<=Projektplanung!$M$35)),Projektplanung!$H$35,0)*-1","v":0},{"$f":"IF(OR(AK$10=Projektplanung!$K$37,AND(AK$10>=Projektplanung!$K$35,AK$10<=Projektplanung!$M$35)),Projektplanung!$H$35,0)*-1","v":0}]
[null,null,null,null,null,null,null,0]
[null,null,null,"  Projekt 6",{"$f":"Projektplanung!D40","v":0},null,{"$f":"Projektplanung!$D$40","v":0},{"$f":"IF(OR(H$10=Projektplanung!$K$42,AND(H$10>=Projektplanung!$K$40,H$10<=Projektplanung!$M$40)),Projektplanung!$H$40,0)*-1","v":0},{"$f":"IF(OR(I$10=Projektplanung!$K$42,AND(I$10>=Projektplanung!$K$40,I$10<=Projektplanung!$M$40)),Projektplanung!$H$40,0)*-1","v":0},{"$f":"IF(OR(J$10=Projektplanung!$K$42,AND(J$10>=Projektplanung!$K$40,J$10<=Projektplanung!$M$40)),Projektplanung!$H$40,0)*-1","v":0},{"$f":"IF(OR(K$10=Projektplanung!$K$42,AND(K$10>=Projektplanung!$K$40,K$10<=Projektplanung!$M$40)),Projektplanung!$H$40,0)*-1","v":0},{"$f":"IF(OR(L$10=Projektplanung!$K$42,AND(L$10>=Projektplanung!$K$40,L$10<=Projektplanung!$M$40)),Projektplanung!$H$40,0)*-1","v":0},{"$f":"IF(OR(M$10=Projektplanung!$K$42,AND(M$10>=Projektplanung!$K$40,M$10<=Projektplanung!$M$40)),Projektplanung!$H$40,0)*-1","v":0},{"$f":"IF(OR(N$10=Projektplanung!$K$42,AND(N$10>=Projektplanung!$K$40,N$10<=Projektplanung!$M$40)),Projektplanung!$H$40,0)*-1","v":0},{"$f":"IF(OR(O$10=Projektplanung!$K$42,AND(O$10>=Projektplanung!$K$40,O$10<=Projektplanung!$M$40)),Projektplanung!$H$40,0)*-1","v":0},{"$f":"IF(OR(P$10=Projektplanung!$K$42,AND(P$10>=Projektplanung!$K$40,P$10<=Projektplanung!$M$40)),Projektplanung!$H$40,0)*-1","v":0},{"$f":"IF(OR(Q$10=Projektplanung!$K$42,AND(Q$10>=Projektplanung!$K$40,Q$10<=Projektplanung!$M$40)),Projektplanung!$H$40,0)*-1","v":0},{"$f":"IF(OR(R$10=Projektplanung!$K$42,AND(R$10>=Projektplanung!$K$40,R$10<=Projektplanung!$M$40)),Projektplanung!$H$40,0)*-1","v":0},{"$f":"IF(OR(S$10=Projektplanung!$K$42,AND(S$10>=Projektplanung!$K$40,S$10<=Projektplanung!$M$40)),Projektplanung!$H$40,0)*-1","v":0},{"$f":"IF(OR(T$10=Projektplanung!$K$42,AND(T$10>=Projektplanung!$K$40,T$10<=Projektplanung!$M$40)),Projektplanung!$H$40,0)*-1","v":0},{"$f":"IF(OR(U$10=Projektplanung!$K$42,AND(U$10>=Projektplanung!$K$40,U$10<=Projektplanung!$M$40)),Projektplanung!$H$40,0)*-1","v":0},{"$f":"IF(OR(V$10=Projektplanung!$K$42,AND(V$10>=Projektplanung!$K$40,V$10<=Projektplanung!$M$40)),Projektplanung!$H$40,0)*-1","v":0},{"$f":"IF(OR(W$10=Projektplanung!$K$42,AND(W$10>=Projektplanung!$K$40,W$10<=Projektplanung!$M$40)),Projektplanung!$H$40,0)*-1","v":0},{"$f":"IF(OR(X$10=Projektplanung!$K$42,AND(X$10>=Projektplanung!$K$40,X$10<=Projektplanung!$M$40)),Projektplanung!$H$40,0)*-1","v":0},{"$f":"IF(OR(Y$10=Projektplanung!$K$42,AND(Y$10>=Projektplanung!$K$40,Y$10<=Projektplanung!$M$40)),Projektplanung!$H$40,0)*-1","v":0},{"$f":"IF(OR(Z$10=Projektplanung!$K$42,AND(Z$10>=Projektplanung!$K$40,Z$10<=Projektplanung!$M$40)),Projektplanung!$H$40,0)*-1","v":0},{"$f":"IF(OR(AA$10=Projektplanung!$K$42,AND(AA$10>=Projektplanung!$K$40,AA$10<=Projektplanung!$M$40)),Projektplanung!$H$40,0)*-1","v":0},{"$f":"IF(OR(AB$10=Projektplanung!$K$42,AND(AB$10>=Projektplanung!$K$40,AB$10<=Projektplanung!$M$40)),Projektplanung!$H$40,0)*-1","v":0},{"$f":"IF(OR(AC$10=Projektplanung!$K$42,AND(AC$10>=Projektplanung!$K$40,AC$10<=Projektplanung!$M$40)),Projektplanung!$H$40,0)*-1","v":0},{"$f":"IF(OR(AD$10=Projektplanung!$K$42,AND(AD$10>=Projektplanung!$K$40,AD$10<=Projektplanung!$M$40)),Projektplanung!$H$40,0)*-1","v":0},{"$f":"IF(OR(AE$10=Projektplanung!$K$42,AND(AE$10>=Projektplanung!$K$40,AE$10<=Projektplanung!$M$40)),Projektplanung!$H$40,0)*-1","v":0},{"$f":"IF(OR(AF$10=Projektplanung!$K$42,AND(AF$10>=Projektplanung!$K$40,AF$10<=Projektplanung!$M$40)),Projektplanung!$H$40,0)*-1","v":0},{"$f":"IF(OR(AG$10=Projektplanung!$K$42,AND(AG$10>=Projektplanung!$K$40,AG$10<=Projektplanung!$M$40)),Projektplanung!$H$40,0)*-1","v":0},{"$f":"IF(OR(AH$10=Projektplanung!$K$42,AND(AH$10>=Projektplanung!$K$40,AH$10<=Projektplanung!$M$40)),Projektplanung!$H$40,0)*-1","v":0},{"$f":"IF(OR(AI$10=Projektplanung!$K$42,AND(AI$10>=Projektplanung!$K$40,AI$10<=Projektplanung!$M$40)),Projektplanung!$H$40,0)*-1","v":0},{"$f":"IF(OR(AJ$10=Projektplanung!$K$42,AND(AJ$10>=Projektplanung!$K$40,AJ$10<=Projektplanung!$M$40)),Projektplanung!$H$40,0)*-1","v":0},{"$f":"IF(OR(AK$10=Projektplanung!$K$42,AND(AK$10>=Projektplanung!$K$40,AK$10<=Projektplanung!$M$40)),Projektplanung!$H$40,0)*-1","v":0}]
[]
[null,null,null,null,null,null,null,0]
[null,null,null,"  Einzahlung 1 Pensionkasse",null,null,{"$f":"Vorsorge!$J$17","v":0},{"$f":"IF(H$10=Vorsorge!$J$17,Vorsorge!$F$17,0)*-1","v":0},{"$f":"IF(I$10=Vorsorge!$J$17,Vorsorge!$F$17,0)*-1","v":0},{"$f":"IF(J$10=Vorsorge!$J$17,Vorsorge!$F$17,0)*-1","v":0},{"$f":"IF(K$10=Vorsorge!$J$17,Vorsorge!$F$17,0)*-1","v":0},{"$f":"IF(L$10=Vorsorge!$J$17,Vorsorge!$F$17,0)*-1","v":0},{"$f":"IF(M$10=Vorsorge!$J$17,Vorsorge!$F$17,0)*-1","v":0},{"$f":"IF(N$10=Vorsorge!$J$17,Vorsorge!$F$17,0)*-1","v":0},{"$f":"IF(O$10=Vorsorge!$J$17,Vorsorge!$F$17,0)*-1","v":0},{"$f":"IF(P$10=Vorsorge!$J$17,Vorsorge!$F$17,0)*-1","v":0},{"$f":"IF(Q$10=Vorsorge!$J$17,Vorsorge!$F$17,0)*-1","v":0},{"$f":"IF(R$10=Vorsorge!$J$17,Vorsorge!$F$17,0)*-1","v":0},{"$f":"IF(S$10=Vorsorge!$J$17,Vorsorge!$F$17,0)*-1","v":0},{"$f":"IF(T$10=Vorsorge!$J$17,Vorsorge!$F$17,0)*-1","v":0},{"$f":"IF(U$10=Vorsorge!$J$17,Vorsorge!$F$17,0)*-1","v":0},{"$f":"IF(V$10=Vorsorge!$J$17,Vorsorge!$F$17,0)*-1","v":0},{"$f":"IF(W$10=Vorsorge!$J$17,Vorsorge!$F$17,0)*-1","v":0},{"$f":"IF(X$10=Vorsorge!$J$17,Vorsorge!$F$17,0)*-1","v":0},{"$f":"IF(Y$10=Vorsorge!$J$17,Vorsorge!$F$17,0)*-1","v":0},{"$f":"IF(Z$10=Vorsorge!$J$17,Vorsorge!$F$17,0)*-1","v":0},{"$f":"IF(AA$10=Vorsorge!$J$17,Vorsorge!$F$17,0)*-1","v":0},{"$f":"IF(AB$10=Vorsorge!$J$17,Vorsorge!$F$17,0)*-1","v":0},{"$f":"IF(AC$10=Vorsorge!$J$17,Vorsorge!$F$17,0)*-1","v":0},{"$f":"IF(AD$10=Vorsorge!$J$17,Vorsorge!$F$17,0)*-1","v":0},{"$f":"IF(AE$10=Vorsorge!$J$17,Vorsorge!$F$17,0)*-1","v":0},{"$f":"IF(AF$10=Vorsorge!$J$17,Vorsorge!$F$17,0)*-1","v":0},{"$f":"IF(AG$10=Vorsorge!$J$17,Vorsorge!$F$17,0)*-1","v":0},{"$f":"IF(AH$10=Vorsorge!$J$17,Vorsorge!$F$17,0)*-1","v":0},{"$f":"IF(AI$10=Vorsorge!$J$17,Vorsorge!$F$17,0)*-1","v":0},{"$f":"IF(AJ$10=Vorsorge!$J$17,Vorsorge!$F$17,0)*-1","v":0},{"$f":"IF(AK$10=Vorsorge!$J$17,Vorsorge!$F$17,0)*-1","v":0}]
[null,null,null," ",null,null,null,0]
[null,null,null,"     Steuereffekt",null,null,{"$f":"Vorsorge!$N$17","v":0},{"$f":"IF(H$10=Vorsorge!$J$17,Vorsorge!$N$17,0)","v":0},{"$f":"IF(I$10=Vorsorge!$J$17,Vorsorge!$N$17,0)","v":0},{"$f":"IF(J$10=Vorsorge!$J$17,Vorsorge!$N$17,0)","v":0},{"$f":"IF(K$10=Vorsorge!$J$17,Vorsorge!$N$17,0)","v":0},{"$f":"IF(L$10=Vorsorge!$J$17,Vorsorge!$N$17,0)","v":0},{"$f":"IF(M$10=Vorsorge!$J$17,Vorsorge!$N$17,0)","v":0},{"$f":"IF(N$10=Vorsorge!$J$17,Vorsorge!$N$17,0)","v":0},{"$f":"IF(O$10=Vorsorge!$J$17,Vorsorge!$N$17,0)","v":0},{"$f":"IF(P$10=Vorsorge!$J$17,Vorsorge!$N$17,0)","v":0},{"$f":"IF(Q$10=Vorsorge!$J$17,Vorsorge!$N$17,0)","v":0},{"$f":"IF(R$10=Vorsorge!$J$17,Vorsorge!$N$17,0)","v":0},{"$f":"IF(S$10=Vorsorge!$J$17,Vorsorge!$N$17,0)","v":0},{"$f":"IF(T$10=Vorsorge!$J$17,Vorsorge!$N$17,0)","v":0},{"$f":"IF(U$10=Vorsorge!$J$17,Vorsorge!$N$17,0)","v":0},{"$f":"IF(V$10=Vorsorge!$J$17,Vorsorge!$N$17,0)","v":0},{"$f":"IF(W$10=Vorsorge!$J$17,Vorsorge!$N$17,0)","v":0},{"$f":"IF(X$10=Vorsorge!$J$17,Vorsorge!$N$17,0)","v":0},{"$f":"IF(Y$10=Vorsorge!$J$17,Vorsorge!$N$17,0)","v":0},{"$f":"IF(Z$10=Vorsorge!$J$17,Vorsorge!$N$17,0)","v":0},{"$f":"IF(AA$10=Vorsorge!$J$17,Vorsorge!$N$17,0)","v":0},{"$f":"IF(AB$10=Vorsorge!$J$17,Vorsorge!$N$17,0)","v":0},{"$f":"IF(AC$10=Vorsorge!$J$17,Vorsorge!$N$17,0)","v":0},{"$f":"IF(AD$10=Vorsorge!$J$17,Vorsorge!$N$17,0)","v":0},{"$f":"IF(AE$10=Vorsorge!$J$17,Vorsorge!$N$17,0)","v":0},{"$f":"IF(AF$10=Vorsorge!$J$17,Vorsorge!$N$17,0)","v":0},{"$f":"IF(AG$10=Vorsorge!$J$17,Vorsorge!$N$17,0)","v":0},{"$f":"IF(AH$10=Vorsorge!$J$17,Vorsorge!$N$17,0)","v":0},{"$f":"IF(AI$10=Vorsorge!$J$17,Vorsorge!$N$17,0)","v":0},{"$f":"IF(AJ$10=Vorsorge!$J$17,Vorsorge!$N$17,0)","v":0},{"$f":"IF(AK$10=Vorsorge!$J$17,Vorsorge!$N$17,0)","v":0}]
[null,null,null,null,null,null,null,0]
[null,null,null,"  Einzahlung 2 Pensionkasse",null,null,{"$f":"Vorsorge!$J$19","v":0},{"$f":"IF(H$10=Vorsorge!$J$19,Vorsorge!$F$19,0)*-1","v":0},{"$f":"IF(I$10=Vorsorge!$J$19,Vorsorge!$F$19,0)*-1","v":0},{"$f":"IF(J$10=Vorsorge!$J$19,Vorsorge!$F$19,0)*-1","v":0},{"$f":"IF(K$10=Vorsorge!$J$19,Vorsorge!$F$19,0)*-1","v":0},{"$f":"IF(L$10=Vorsorge!$J$19,Vorsorge!$F$19,0)*-1","v":0},{"$f":"IF(M$10=Vorsorge!$J$19,Vorsorge!$F$19,0)*-1","v":0},{"$f":"IF(N$10=Vorsorge!$J$19,Vorsorge!$F$19,0)*-1","v":0},{"$f":"IF(O$10=Vorsorge!$J$19,Vorsorge!$F$19,0)*-1","v":0},{"$f":"IF(P$10=Vorsorge!$J$19,Vorsorge!$F$19,0)*-1","v":0},{"$f":"IF(Q$10=Vorsorge!$J$19,Vorsorge!$F$19,0)*-1","v":0},{"$f":"IF(R$10=Vorsorge!$J$19,Vorsorge!$F$19,0)*-1","v":0},{"$f":"IF(S$10=Vorsorge!$J$19,Vorsorge!$F$19,0)*-1","v":0},{"$f":"IF(T$10=Vorsorge!$J$19,Vorsorge!$F$19,0)*-1","v":0},{"$f":"IF(U$10=Vorsorge!$J$19,Vorsorge!$F$19,0)*-1","v":0},{"$f":"IF(V$10=Vorsorge!$J$19,Vorsorge!$F$19,0)*-1","v":0},{"$f":"IF(W$10=Vorsorge!$J$19,Vorsorge!$F$19,0)*-1","v":0},{"$f":"IF(X$10=Vorsorge!$J$19,Vorsorge!$F$19,0)*-1","v":0},{"$f":"IF(Y$10=Vorsorge!$J$19,Vorsorge!$F$19,0)*-1","v":0},{"$f":"IF(Z$10=Vorsorge!$J$19,Vorsorge!$F$19,0)*-1","v":0},{"$f":"IF(AA$10=Vorsorge!$J$19,Vorsorge!$F$19,0)*-1","v":0},{"$f":"IF(AB$10=Vorsorge!$J$19,Vorsorge!$F$19,0)*-1","v":0},{"$f":"IF(AC$10=Vorsorge!$J$19,Vorsorge!$F$19,0)*-1","v":0},{"$f":"IF(AD$10=Vorsorge!$J$19,Vorsorge!$F$19,0)*-1","v":0},{"$f":"IF(AE$10=Vorsorge!$J$19,Vorsorge!$F$19,0)*-1","v":0},{"$f":"IF(AF$10=Vorsorge!$J$19,Vorsorge!$F$19,0)*-1","v":0},{"$f":"IF(AG$10=Vorsorge!$J$19,Vorsorge!$F$19,0)*-1","v":0},{"$f":"IF(AH$10=Vorsorge!$J$19,Vorsorge!$F$19,0)*-1","v":0},{"$f":"IF(AI$10=Vorsorge!$J$19,Vorsorge!$F$19,0)*-1","v":0},{"$f":"IF(AJ$10=Vorsorge!$J$19,Vorsorge!$F$19,0)*-1","v":0},{"$f":"IF(AK$10=Vorsorge!$J$19,Vorsorge!$F$19,0)*-1","v":0}]
[null,null,null,null,null,null,null,0]
[null,null,null,"     Steuereffekt",null,null,{"$f":"Vorsorge!$N$19","v":0},{"$f":"IF(H$10=Vorsorge!$J$19,Vorsorge!$N$19,0)","v":0},{"$f":"IF(I$10=Vorsorge!$J$19,Vorsorge!$N$19,0)","v":0},{"$f":"IF(J$10=Vorsorge!$J$19,Vorsorge!$N$19,0)","v":0},{"$f":"IF(K$10=Vorsorge!$J$19,Vorsorge!$N$19,0)","v":0},{"$f":"IF(L$10=Vorsorge!$J$19,Vorsorge!$N$19,0)","v":0},{"$f":"IF(M$10=Vorsorge!$J$19,Vorsorge!$N$19,0)","v":0},{"$f":"IF(N$10=Vorsorge!$J$19,Vorsorge!$N$19,0)","v":0},{"$f":"IF(O$10=Vorsorge!$J$19,Vorsorge!$N$19,0)","v":0},{"$f":"IF(P$10=Vorsorge!$J$19,Vorsorge!$N$19,0)","v":0},{"$f":"IF(Q$10=Vorsorge!$J$19,Vorsorge!$N$19,0)","v":0},{"$f":"IF(R$10=Vorsorge!$J$19,Vorsorge!$N$19,0)","v":0},{"$f":"IF(S$10=Vorsorge!$J$19,Vorsorge!$N$19,0)","v":0},{"$f":"IF(T$10=Vorsorge!$J$19,Vorsorge!$N$19,0)","v":0},{"$f":"IF(U$10=Vorsorge!$J$19,Vorsorge!$N$19,0)","v":0},{"$f":"IF(V$10=Vorsorge!$J$19,Vorsorge!$N$19,0)","v":0},{"$f":"IF(W$10=Vorsorge!$J$19,Vorsorge!$N$19,0)","v":0},{"$f":"IF(X$10=Vorsorge!$J$19,Vorsorge!$N$19,0)","v":0},{"$f":"IF(Y$10=Vorsorge!$J$19,Vorsorge!$N$19,0)","v":0},{"$f":"IF(Z$10=Vorsorge!$J$19,Vorsorge!$N$19,0)","v":0},{"$f":"IF(AA$10=Vorsorge!$J$19,Vorsorge!$N$19,0)","v":0},{"$f":"IF(AB$10=Vorsorge!$J$19,Vorsorge!$N$19,0)","v":0},{"$f":"IF(AC$10=Vorsorge!$J$19,Vorsorge!$N$19,0)","v":0},{"$f":"IF(AD$10=Vorsorge!$J$19,Vorsorge!$N$19,0)","v":0},{"$f":"IF(AE$10=Vorsorge!$J$19,Vorsorge!$N$19,0)","v":0},{"$f":"IF(AF$10=Vorsorge!$J$19,Vorsorge!$N$19,0)","v":0},{"$f":"IF(AG$10=Vorsorge!$J$19,Vorsorge!$N$19,0)","v":0},{"$f":"IF(AH$10=Vorsorge!$J$19,Vorsorge!$N$19,0)","v":0},{"$f":"IF(AI$10=Vorsorge!$J$19,Vorsorge!$N$19,0)","v":0},{"$f":"IF(AJ$10=Vorsorge!$J$19,Vorsorge!$N$19,0)","v":0},{"$f":"IF(AK$10=Vorsorge!$J$19,Vorsorge!$N$19,0)","v":0}]
[null,null,null,null,null,null,null,0]
[null,null,null,"  Einzahlung 3 Pensionskasse",null,null,{"$f":"Vorsorge!$J$21","v":0},{"$f":"IF(H$10=Vorsorge!$J$21,Vorsorge!$F$21,0)*-1","v":0},{"$f":"IF(I$10=Vorsorge!$J$21,Vorsorge!$F$21,0)*-1","v":0},{"$f":"IF(J$10=Vorsorge!$J$21,Vorsorge!$F$21,0)*-1","v":0},{"$f":"IF(K$10=Vorsorge!$J$21,Vorsorge!$F$21,0)*-1","v":0},{"$f":"IF(L$10=Vorsorge!$J$21,Vorsorge!$F$21,0)*-1","v":0},{"$f":"IF(M$10=Vorsorge!$J$21,Vorsorge!$F$21,0)*-1","v":0},{"$f":"IF(N$10=Vorsorge!$J$21,Vorsorge!$F$21,0)*-1","v":0},{"$f":"IF(O$10=Vorsorge!$J$21,Vorsorge!$F$21,0)*-1","v":0},{"$f":"IF(P$10=Vorsorge!$J$21,Vorsorge!$F$21,0)*-1","v":0},{"$f":"IF(Q$10=Vorsorge!$J$21,Vorsorge!$F$21,0)*-1","v":0},{"$f":"IF(R$10=Vorsorge!$J$21,Vorsorge!$F$21,0)*-1","v":0},{"$f":"IF(S$10=Vorsorge!$J$21,Vorsorge!$F$21,0)*-1","v":0},{"$f":"IF(T$10=Vorsorge!$J$21,Vorsorge!$F$21,0)*-1","v":0},{"$f":"IF(U$10=Vorsorge!$J$21,Vorsorge!$F$21,0)*-1","v":0},{"$f":"IF(V$10=Vorsorge!$J$21,Vorsorge!$F$21,0)*-1","v":0},{"$f":"IF(W$10=Vorsorge!$J$21,Vorsorge!$F$21,0)*-1","v":0},{"$f":"IF(X$10=Vorsorge!$J$21,Vorsorge!$F$21,0)*-1","v":0},{"$f":"IF(Y$10=Vorsorge!$J$21,Vorsorge!$F$21,0)*-1","v":0},{"$f":"IF(Z$10=Vorsorge!$J$21,Vorsorge!$F$21,0)*-1","v":0},{"$f":"IF(AA$10=Vorsorge!$J$21,Vorsorge!$F$21,0)*-1","v":0},{"$f":"IF(AB$10=Vorsorge!$J$21,Vorsorge!$F$21,0)*-1","v":0},{"$f":"IF(AC$10=Vorsorge!$J$21,Vorsorge!$F$21,0)*-1","v":0},{"$f":"IF(AD$10=Vorsorge!$J$21,Vorsorge!$F$21,0)*-1","v":0},{"$f":"IF(AE$10=Vorsorge!$J$21,Vorsorge!$F$21,0)*-1","v":0},{"$f":"IF(AF$10=Vorsorge!$J$21,Vorsorge!$F$21,0)*-1","v":0},{"$f":"IF(AG$10=Vorsorge!$J$21,Vorsorge!$F$21,0)*-1","v":0},{"$f":"IF(AH$10=Vorsorge!$J$21,Vorsorge!$F$21,0)*-1","v":0},{"$f":"IF(AI$10=Vorsorge!$J$21,Vorsorge!$F$21,0)*-1","v":0},{"$f":"IF(AJ$10=Vorsorge!$J$21,Vorsorge!$F$21,0)*-1","v":0},{"$f":"IF(AK$10=Vorsorge!$J$21,Vorsorge!$F$21,0)*-1","v":0}]
[null,null,null,null,null,null,null,0]
[null,null,null,"     Steuereffekt",null,null,{"$f":"Vorsorge!$N$21","v":0},{"$f":"IF(H$10=Vorsorge!$J$21,Vorsorge!$N$21,0)","v":0},{"$f":"IF(I$10=Vorsorge!$J$21,Vorsorge!$N$21,0)","v":0},{"$f":"IF(J$10=Vorsorge!$J$21,Vorsorge!$N$21,0)","v":0},{"$f":"IF(K$10=Vorsorge!$J$21,Vorsorge!$N$21,0)","v":0},{"$f":"IF(L$10=Vorsorge!$J$21,Vorsorge!$N$21,0)","v":0},{"$f":"IF(M$10=Vorsorge!$J$21,Vorsorge!$N$21,0)","v":0},{"$f":"IF(N$10=Vorsorge!$J$21,Vorsorge!$N$21,0)","v":0},{"$f":"IF(O$10=Vorsorge!$J$21,Vorsorge!$N$21,0)","v":0},{"$f":"IF(P$10=Vorsorge!$J$21,Vorsorge!$N$21,0)","v":0},{"$f":"IF(Q$10=Vorsorge!$J$21,Vorsorge!$N$21,0)","v":0},{"$f":"IF(R$10=Vorsorge!$J$21,Vorsorge!$N$21,0)","v":0},{"$f":"IF(S$10=Vorsorge!$J$21,Vorsorge!$N$21,0)","v":0},{"$f":"IF(T$10=Vorsorge!$J$21,Vorsorge!$N$21,0)","v":0},{"$f":"IF(U$10=Vorsorge!$J$21,Vorsorge!$N$21,0)","v":0},{"$f":"IF(V$10=Vorsorge!$J$21,Vorsorge!$N$21,0)","v":0},{"$f":"IF(W$10=Vorsorge!$J$21,Vorsorge!$N$21,0)","v":0},{"$f":"IF(X$10=Vorsorge!$J$21,Vorsorge!$N$21,0)","v":0},{"$f":"IF(Y$10=Vorsorge!$J$21,Vorsorge!$N$21,0)","v":0},{"$f":"IF(Z$10=Vorsorge!$J$21,Vorsorge!$N$21,0)","v":0},{"$f":"IF(AA$10=Vorsorge!$J$21,Vorsorge!$N$21,0)","v":0},{"$f":"IF(AB$10=Vorsorge!$J$21,Vorsorge!$N$21,0)","v":0},{"$f":"IF(AC$10=Vorsorge!$J$21,Vorsorge!$N$21,0)","v":0},{"$f":"IF(AD$10=Vorsorge!$J$21,Vorsorge!$N$21,0)","v":0},{"$f":"IF(AE$10=Vorsorge!$J$21,Vorsorge!$N$21,0)","v":0},{"$f":"IF(AF$10=Vorsorge!$J$21,Vorsorge!$N$21,0)","v":0},{"$f":"IF(AG$10=Vorsorge!$J$21,Vorsorge!$N$21,0)","v":0},{"$f":"IF(AH$10=Vorsorge!$J$21,Vorsorge!$N$21,0)","v":0},{"$f":"IF(AI$10=Vorsorge!$J$21,Vorsorge!$N$21,0)","v":0},{"$f":"IF(AJ$10=Vorsorge!$J$21,Vorsorge!$N$21,0)","v":0},{"$f":"IF(AK$10=Vorsorge!$J$21,Vorsorge!$N$21,0)","v":0}]
[null,null,null,null,null,null,null,0]
[null,null,null,"  Einzahlung 4 Pensionskasse",null,null,{"$f":"Vorsorge!$J$23","v":0},{"$f":"IF(H$10=Vorsorge!$J$23,Vorsorge!$F$23,0)*-1","v":0},{"$f":"IF(I$10=Vorsorge!$J$23,Vorsorge!$F$23,0)*-1","v":0},{"$f":"IF(J$10=Vorsorge!$J$23,Vorsorge!$F$23,0)*-1","v":0},{"$f":"IF(K$10=Vorsorge!$J$23,Vorsorge!$F$23,0)*-1","v":0},{"$f":"IF(L$10=Vorsorge!$J$23,Vorsorge!$F$23,0)*-1","v":0},{"$f":"IF(M$10=Vorsorge!$J$23,Vorsorge!$F$23,0)*-1","v":0},{"$f":"IF(N$10=Vorsorge!$J$23,Vorsorge!$F$23,0)*-1","v":0},{"$f":"IF(O$10=Vorsorge!$J$23,Vorsorge!$F$23,0)*-1","v":0},{"$f":"IF(P$10=Vorsorge!$J$23,Vorsorge!$F$23,0)*-1","v":0},{"$f":"IF(Q$10=Vorsorge!$J$23,Vorsorge!$F$23,0)*-1","v":0},{"$f":"IF(R$10=Vorsorge!$J$23,Vorsorge!$F$23,0)*-1","v":0},{"$f":"IF(S$10=Vorsorge!$J$23,Vorsorge!$F$23,0)*-1","v":0},{"$f":"IF(T$10=Vorsorge!$J$23,Vorsorge!$F$23,0)*-1","v":0},{"$f":"IF(U$10=Vorsorge!$J$23,Vorsorge!$F$23,0)*-1","v":0},{"$f":"IF(V$10=Vorsorge!$J$23,Vorsorge!$F$23,0)*-1","v":0},{"$f":"IF(W$10=Vorsorge!$J$23,Vorsorge!$F$23,0)*-1","v":0},{"$f":"IF(X$10=Vorsorge!$J$23,Vorsorge!$F$23,0)*-1","v":0},{"$f":"IF(Y$10=Vorsorge!$J$23,Vorsorge!$F$23,0)*-1","v":0},{"$f":"IF(Z$10=Vorsorge!$J$23,Vorsorge!$F$23,0)*-1","v":0},{"$f":"IF(AA$10=Vorsorge!$J$23,Vorsorge!$F$23,0)*-1","v":0},{"$f":"IF(AB$10=Vorsorge!$J$23,Vorsorge!$F$23,0)*-1","v":0},{"$f":"IF(AC$10=Vorsorge!$J$23,Vorsorge!$F$23,0)*-1","v":0},{"$f":"IF(AD$10=Vorsorge!$J$23,Vorsorge!$F$23,0)*-1","v":0},{"$f":"IF(AE$10=Vorsorge!$J$23,Vorsorge!$F$23,0)*-1","v":0},{"$f":"IF(AF$10=Vorsorge!$J$23,Vorsorge!$F$23,0)*-1","v":0},{"$f":"IF(AG$10=Vorsorge!$J$23,Vorsorge!$F$23,0)*-1","v":0},{"$f":"IF(AH$10=Vorsorge!$J$23,Vorsorge!$F$23,0)*-1","v":0},{"$f":"IF(AI$10=Vorsorge!$J$23,Vorsorge!$F$23,0)*-1","v":0},{"$f":"IF(AJ$10=Vorsorge!$J$23,Vorsorge!$F$23,0)*-1","v":0},{"$f":"IF(AK$10=Vorsorge!$J$23,Vorsorge!$F$23,0)*-1","v":0}]
[null,null,null,null,null,null,null,0]
[null,null,null,"     Steuereffekt",null,null,{"$f":"Vorsorge!$N$23","v":0},{"$f":"IF(H$10=Vorsorge!$J$23,Vorsorge!$N$23,0)","v":0},{"$f":"IF(I$10=Vorsorge!$J$23,Vorsorge!$N$23,0)","v":0},{"$f":"IF(J$10=Vorsorge!$J$23,Vorsorge!$N$23,0)","v":0},{"$f":"IF(K$10=Vorsorge!$J$23,Vorsorge!$N$23,0)","v":0},{"$f":"IF(L$10=Vorsorge!$J$23,Vorsorge!$N$23,0)","v":0},{"$f":"IF(M$10=Vorsorge!$J$23,Vorsorge!$N$23,0)","v":0},{"$f":"IF(N$10=Vorsorge!$J$23,Vorsorge!$N$23,0)","v":0},{"$f":"IF(O$10=Vorsorge!$J$23,Vorsorge!$N$23,0)","v":0},{"$f":"IF(P$10=Vorsorge!$J$23,Vorsorge!$N$23,0)","v":0},{"$f":"IF(Q$10=Vorsorge!$J$23,Vorsorge!$N$23,0)","v":0},{"$f":"IF(R$10=Vorsorge!$J$23,Vorsorge!$N$23,0)","v":0},{"$f":"IF(S$10=Vorsorge!$J$23,Vorsorge!$N$23,0)","v":0},{"$f":"IF(T$10=Vorsorge!$J$23,Vorsorge!$N$23,0)","v":0},{"$f":"IF(U$10=Vorsorge!$J$23,Vorsorge!$N$23,0)","v":0},{"$f":"IF(V$10=Vorsorge!$J$23,Vorsorge!$N$23,0)","v":0},{"$f":"IF(W$10=Vorsorge!$J$23,Vorsorge!$N$23,0)","v":0},{"$f":"IF(X$10=Vorsorge!$J$23,Vorsorge!$N$23,0)","v":0},{"$f":"IF(Y$10=Vorsorge!$J$23,Vorsorge!$N$23,0)","v":0},{"$f":"IF(Z$10=Vorsorge!$J$23,Vorsorge!$N$23,0)","v":0},{"$f":"IF(AA$10=Vorsorge!$J$23,Vorsorge!$N$23,0)","v":0},{"$f":"IF(AB$10=Vorsorge!$J$23,Vorsorge!$N$23,0)","v":0},{"$f":"IF(AC$10=Vorsorge!$J$23,Vorsorge!$N$23,0)","v":0},{"$f":"IF(AD$10=Vorsorge!$J$23,Vorsorge!$N$23,0)","v":0},{"$f":"IF(AE$10=Vorsorge!$J$23,Vorsorge!$N$23,0)","v":0},{"$f":"IF(AF$10=Vorsorge!$J$23,Vorsorge!$N$23,0)","v":0},{"$f":"IF(AG$10=Vorsorge!$J$23,Vorsorge!$N$23,0)","v":0},{"$f":"IF(AH$10=Vorsorge!$J$23,Vorsorge!$N$23,0)","v":0},{"$f":"IF(AI$10=Vorsorge!$J$23,Vorsorge!$N$23,0)","v":0},{"$f":"IF(AJ$10=Vorsorge!$J$23,Vorsorge!$N$23,0)","v":0},{"$f":"IF(AK$10=Vorsorge!$J$23,Vorsorge!$N$23,0)","v":0}]
[null,null,null,null,null,null,null,0]
[null,null,null,"  Einzahlung 5 Pensionskasse",null,null,{"$f":"Vorsorge!$J$25","v":0},{"$f":"IF(H$10=Vorsorge!$J$25,Vorsorge!$F$25,0)*-1","v":0},{"$f":"IF(I$10=Vorsorge!$J$25,Vorsorge!$F$25,0)*-1","v":0},{"$f":"IF(J$10=Vorsorge!$J$25,Vorsorge!$F$25,0)*-1","v":0},{"$f":"IF(K$10=Vorsorge!$J$25,Vorsorge!$F$25,0)*-1","v":0},{"$f":"IF(L$10=Vorsorge!$J$25,Vorsorge!$F$25,0)*-1","v":0},{"$f":"IF(M$10=Vorsorge!$J$25,Vorsorge!$F$25,0)*-1","v":0},{"$f":"IF(N$10=Vorsorge!$J$25,Vorsorge!$F$25,0)*-1","v":0},{"$f":"IF(O$10=Vorsorge!$J$25,Vorsorge!$F$25,0)*-1","v":0},{"$f":"IF(P$10=Vorsorge!$J$25,Vorsorge!$F$25,0)*-1","v":0},{"$f":"IF(Q$10=Vorsorge!$J$25,Vorsorge!$F$25,0)*-1","v":0},{"$f":"IF(R$10=Vorsorge!$J$25,Vorsorge!$F$25,0)*-1","v":0},{"$f":"IF(S$10=Vorsorge!$J$25,Vorsorge!$F$25,0)*-1","v":0},{"$f":"IF(T$10=Vorsorge!$J$25,Vorsorge!$F$25,0)*-1","v":0},{"$f":"IF(U$10=Vorsorge!$J$25,Vorsorge!$F$25,0)*-1","v":0},{"$f":"IF(V$10=Vorsorge!$J$25,Vorsorge!$F$25,0)*-1","v":0},{"$f":"IF(W$10=Vorsorge!$J$25,Vorsorge!$F$25,0)*-1","v":0},{"$f":"IF(X$10=Vorsorge!$J$25,Vorsorge!$F$25,0)*-1","v":0},{"$f":"IF(Y$10=Vorsorge!$J$25,Vorsorge!$F$25,0)*-1","v":0},{"$f":"IF(Z$10=Vorsorge!$J$25,Vorsorge!$F$25,0)*-1","v":0},{"$f":"IF(AA$10=Vorsorge!$J$25,Vorsorge!$F$25,0)*-1","v":0},{"$f":"IF(AB$10=Vorsorge!$J$25,Vorsorge!$F$25,0)*-1","v":0},{"$f":"IF(AC$10=Vorsorge!$J$25,Vorsorge!$F$25,0)*-1","v":0},{"$f":"IF(AD$10=Vorsorge!$J$25,Vorsorge!$F$25,0)*-1","v":0},{"$f":"IF(AE$10=Vorsorge!$J$25,Vorsorge!$F$25,0)*-1","v":0},{"$f":"IF(AF$10=Vorsorge!$J$25,Vorsorge!$F$25,0)*-1","v":0},{"$f":"IF(AG$10=Vorsorge!$J$25,Vorsorge!$F$25,0)*-1","v":0},{"$f":"IF(AH$10=Vorsorge!$J$25,Vorsorge!$F$25,0)*-1","v":0},{"$f":"IF(AI$10=Vorsorge!$J$25,Vorsorge!$F$25,0)*-1","v":0},{"$f":"IF(AJ$10=Vorsorge!$J$25,Vorsorge!$F$25,0)*-1","v":0},{"$f":"IF(AK$10=Vorsorge!$J$25,Vorsorge!$F$25,0)*-1","v":0}]
[null,null,null,null,null,null,null,0]
[null,null,null,"     Steuereffekt",null,null,{"$f":"Vorsorge!$N$25","v":0},{"$f":"IF(H$10=Vorsorge!$J$25,Vorsorge!$N$25,0)","v":0},{"$f":"IF(I$10=Vorsorge!$J$25,Vorsorge!$N$25,0)","v":0},{"$f":"IF(J$10=Vorsorge!$J$25,Vorsorge!$N$25,0)","v":0},{"$f":"IF(K$10=Vorsorge!$J$25,Vorsorge!$N$25,0)","v":0},{"$f":"IF(L$10=Vorsorge!$J$25,Vorsorge!$N$25,0)","v":0},{"$f":"IF(M$10=Vorsorge!$J$25,Vorsorge!$N$25,0)","v":0},{"$f":"IF(N$10=Vorsorge!$J$25,Vorsorge!$N$25,0)","v":0},{"$f":"IF(O$10=Vorsorge!$J$25,Vorsorge!$N$25,0)","v":0},{"$f":"IF(P$10=Vorsorge!$J$25,Vorsorge!$N$25,0)","v":0},{"$f":"IF(Q$10=Vorsorge!$J$25,Vorsorge!$N$25,0)","v":0},{"$f":"IF(R$10=Vorsorge!$J$25,Vorsorge!$N$25,0)","v":0},{"$f":"IF(S$10=Vorsorge!$J$25,Vorsorge!$N$25,0)","v":0},{"$f":"IF(T$10=Vorsorge!$J$25,Vorsorge!$N$25,0)","v":0},{"$f":"IF(U$10=Vorsorge!$J$25,Vorsorge!$N$25,0)","v":0},{"$f":"IF(V$10=Vorsorge!$J$25,Vorsorge!$N$25,0)","v":0},{"$f":"IF(W$10=Vorsorge!$J$25,Vorsorge!$N$25,0)","v":0},{"$f":"IF(X$10=Vorsorge!$J$25,Vorsorge!$N$25,0)","v":0},{"$f":"IF(Y$10=Vorsorge!$J$25,Vorsorge!$N$25,0)","v":0},{"$f":"IF(Z$10=Vorsorge!$J$25,Vorsorge!$N$25,0)","v":0},{"$f":"IF(AA$10=Vorsorge!$J$25,Vorsorge!$N$25,0)","v":0},{"$f":"IF(AB$10=Vorsorge!$J$25,Vorsorge!$N$25,0)","v":0},{"$f":"IF(AC$10=Vorsorge!$J$25,Vorsorge!$N$25,0)","v":0},{"$f":"IF(AD$10=Vorsorge!$J$25,Vorsorge!$N$25,0)","v":0},{"$f":"IF(AE$10=Vorsorge!$J$25,Vorsorge!$N$25,0)","v":0},{"$f":"IF(AF$10=Vorsorge!$J$25,Vorsorge!$N$25,0)","v":0},{"$f":"IF(AG$10=Vorsorge!$J$25,Vorsorge!$N$25,0)","v":0},{"$f":"IF(AH$10=Vorsorge!$J$25,Vorsorge!$N$25,0)","v":0},{"$f":"IF(AI$10=Vorsorge!$J$25,Vorsorge!$N$25,0)","v":0},{"$f":"IF(AJ$10=Vorsorge!$J$25,Vorsorge!$N$25,0)","v":0},{"$f":"IF(AK$10=Vorsorge!$J$25,Vorsorge!$N$25,0)","v":0}]
[null,null,null,null,null,null,null,0]
[null,null,null,"  Auszahlung der Pensionkasse",null,null,{"$f":"Vorsorge!$J$27","v":0},{"$f":"IF(H$10=Vorsorge!$J$27,Vorsorge!$F$27,0)","v":0},{"$f":"IF(I$10=Vorsorge!$J$27,Vorsorge!$F$27,0)","v":0},{"$f":"IF(J$10=Vorsorge!$J$27,Vorsorge!$F$27,0)","v":0},{"$f":"IF(K$10=Vorsorge!$J$27,Vorsorge!$F$27,0)","v":0},{"$f":"IF(L$10=Vorsorge!$J$27,Vorsorge!$F$27,0)","v":0},{"$f":"IF(M$10=Vorsorge!$J$27,Vorsorge!$F$27,0)","v":0},{"$f":"IF(N$10=Vorsorge!$J$27,Vorsorge!$F$27,0)","v":0},{"$f":"IF(O$10=Vorsorge!$J$27,Vorsorge!$F$27,0)","v":0},{"$f":"IF(P$10=Vorsorge!$J$27,Vorsorge!$F$27,0)","v":0},{"$f":"IF(Q$10=Vorsorge!$J$27,Vorsorge!$F$27,0)","v":0},{"$f":"IF(R$10=Vorsorge!$J$27,Vorsorge!$F$27,0)","v":0},{"$f":"IF(S$10=Vorsorge!$J$27,Vorsorge!$F$27,0)","v":0},{"$f":"IF(T$10=Vorsorge!$J$27,Vorsorge!$F$27,0)","v":0},{"$f":"IF(U$10=Vorsorge!$J$27,Vorsorge!$F$27,0)","v":0},{"$f":"IF(V$10=Vorsorge!$J$27,Vorsorge!$F$27,0)","v":0},{"$f":"IF(W$10=Vorsorge!$J$27,Vorsorge!$F$27,0)","v":0},{"$f":"IF(X$10=Vorsorge!$J$27,Vorsorge!$F$27,0)","v":0},{"$f":"IF(Y$10=Vorsorge!$J$27,Vorsorge!$F$27,0)","v":0},{"$f":"IF(Z$10=Vorsorge!$J$27,Vorsorge!$F$27,0)","v":0},{"$f":"IF(AA$10=Vorsorge!$J$27,Vorsorge!$F$27,0)","v":0},{"$f":"IF(AB$10=Vorsorge!$J$27,Vorsorge!$F$27,0)","v":0},{"$f":"IF(AC$10=Vorsorge!$J$27,Vorsorge!$F$27,0)","v":0},{"$f":"IF(AD$10=Vorsorge!$J$27,Vorsorge!$F$27,0)","v":0},{"$f":"IF(AE$10=Vorsorge!$J$27,Vorsorge!$F$27,0)","v":0},{"$f":"IF(AF$10=Vorsorge!$J$27,Vorsorge!$F$27,0)","v":0},{"$f":"IF(AG$10=Vorsorge!$J$27,Vorsorge!$F$27,0)","v":0},{"$f":"IF(AH$10=Vorsorge!$J$27,Vorsorge!$F$27,0)","v":0},{"$f":"IF(AI$10=Vorsorge!$J$27,Vorsorge!$F$27,0)","v":0},{"$f":"IF(AJ$10=Vorsorge!$J$27,Vorsorge!$F$27,0)","v":0},{"$f":"IF(AK$10=Vorsorge!$J$27,Vorsorge!$F$27,0)","v":0}]
[null,null,null,null,null,null,null,0]
[null,null,null,"     Steuereffekt",null,null,{"$f":"Vorsorge!$S$27","v":0},{"$f":"IF(H$10=Vorsorge!$J$27,Vorsorge!$S$27,0)*-1","v":0},{"$f":"IF(I$10=Vorsorge!$J$27,Vorsorge!$S$27,0)*-1","v":0},{"$f":"IF(J$10=Vorsorge!$J$27,Vorsorge!$S$27,0)*-1","v":0},{"$f":"IF(K$10=Vorsorge!$J$27,Vorsorge!$S$27,0)*-1","v":0},{"$f":"IF(L$10=Vorsorge!$J$27,Vorsorge!$S$27,0)*-1","v":0},{"$f":"IF(M$10=Vorsorge!$J$27,Vorsorge!$S$27,0)*-1","v":0},{"$f":"IF(N$10=Vorsorge!$J$27,Vorsorge!$S$27,0)*-1","v":0},{"$f":"IF(O$10=Vorsorge!$J$27,Vorsorge!$S$27,0)*-1","v":0},{"$f":"IF(P$10=Vorsorge!$J$27,Vorsorge!$S$27,0)*-1","v":0},{"$f":"IF(Q$10=Vorsorge!$J$27,Vorsorge!$S$27,0)*-1","v":0},{"$f":"IF(R$10=Vorsorge!$J$27,Vorsorge!$S$27,0)*-1","v":0},{"$f":"IF(S$10=Vorsorge!$J$27,Vorsorge!$S$27,0)*-1","v":0},{"$f":"IF(T$10=Vorsorge!$J$27,Vorsorge!$S$27,0)*-1","v":0},{"$f":"IF(U$10=Vorsorge!$J$27,Vorsorge!$S$27,0)*-1","v":0},{"$f":"IF(V$10=Vorsorge!$J$27,Vorsorge!$S$27,0)*-1","v":0},{"$f":"IF(W$10=Vorsorge!$J$27,Vorsorge!$S$27,0)*-1","v":0},{"$f":"IF(X$10=Vorsorge!$J$27,Vorsorge!$S$27,0)*-1","v":0},{"$f":"IF(Y$10=Vorsorge!$J$27,Vorsorge!$S$27,0)*-1","v":0},{"$f":"IF(Z$10=Vorsorge!$J$27,Vorsorge!$S$27,0)*-1","v":0},{"$f":"IF(AA$10=Vorsorge!$J$27,Vorsorge!$S$27,0)*-1","v":0},{"$f":"IF(AB$10=Vorsorge!$J$27,Vorsorge!$S$27,0)*-1","v":0},{"$f":"IF(AC$10=Vorsorge!$J$27,Vorsorge!$S$27,0)*-1","v":0},{"$f":"IF(AD$10=Vorsorge!$J$27,Vorsorge!$S$27,0)*-1","v":0},{"$f":"IF(AE$10=Vorsorge!$J$27,Vorsorge!$S$27,0)*-1","v":0},{"$f":"IF(AF$10=Vorsorge!$J$27,Vorsorge!$S$27,0)*-1","v":0},{"$f":"IF(AG$10=Vorsorge!$J$27,Vorsorge!$S$27,0)*-1","v":0},{"$f":"IF(AH$10=Vorsorge!$J$27,Vorsorge!$S$27,0)*-1","v":0},{"$f":"IF(AI$10=Vorsorge!$J$27,Vorsorge!$S$27,0)*-1","v":0},{"$f":"IF(AJ$10=Vorsorge!$J$27,Vorsorge!$S$27,0)*-1","v":0},{"$f":"IF(AK$10=Vorsorge!$J$27,Vorsorge!$S$27,0)*-1","v":0}]
[null,null,null,null,null,null,null,0]
[null,null,null,"  Einzahlung gebundene Vorsorge Säule 3a",null,null,{"$f":"Vorsorge!$J$9","v":0},{"$f":"IF(OR(AND(H$10>=Vorsorge!$J$9,H$10<=Vorsorge!$L$9)),Vorsorge!$F$9,0)*-1","v":0},{"$f":"IF(OR(AND(I$10>=Vorsorge!$J$9,I$10<=Vorsorge!$L$9)),Vorsorge!$F$9,0)*-1","v":0},{"$f":"IF(OR(AND(J$10>=Vorsorge!$J$9,J$10<=Vorsorge!$L$9)),Vorsorge!$F$9,0)*-1","v":0},{"$f":"IF(OR(AND(K$10>=Vorsorge!$J$9,K$10<=Vorsorge!$L$9)),Vorsorge!$F$9,0)*-1","v":0},{"$f":"IF(OR(AND(L$10>=Vorsorge!$J$9,L$10<=Vorsorge!$L$9)),Vorsorge!$F$9,0)*-1","v":0},{"$f":"IF(OR(AND(M$10>=Vorsorge!$J$9,M$10<=Vorsorge!$L$9)),Vorsorge!$F$9,0)*-1","v":0},{"$f":"IF(OR(AND(N$10>=Vorsorge!$J$9,N$10<=Vorsorge!$L$9)),Vorsorge!$F$9,0)*-1","v":0},{"$f":"IF(OR(AND(O$10>=Vorsorge!$J$9,O$10<=Vorsorge!$L$9)),Vorsorge!$F$9,0)*-1","v":0},{"$f":"IF(OR(AND(P$10>=Vorsorge!$J$9,P$10<=Vorsorge!$L$9)),Vorsorge!$F$9,0)*-1","v":0},{"$f":"IF(OR(AND(Q$10>=Vorsorge!$J$9,Q$10<=Vorsorge!$L$9)),Vorsorge!$F$9,0)*-1","v":0},{"$f":"IF(OR(AND(R$10>=Vorsorge!$J$9,R$10<=Vorsorge!$L$9)),Vorsorge!$F$9,0)*-1","v":0},{"$f":"IF(OR(AND(S$10>=Vorsorge!$J$9,S$10<=Vorsorge!$L$9)),Vorsorge!$F$9,0)*-1","v":0},{"$f":"IF(OR(AND(T$10>=Vorsorge!$J$9,T$10<=Vorsorge!$L$9)),Vorsorge!$F$9,0)*-1","v":0},{"$f":"IF(OR(AND(U$10>=Vorsorge!$J$9,U$10<=Vorsorge!$L$9)),Vorsorge!$F$9,0)*-1","v":0},{"$f":"IF(OR(AND(V$10>=Vorsorge!$J$9,V$10<=Vorsorge!$L$9)),Vorsorge!$F$9,0)*-1","v":0},{"$f":"IF(OR(AND(W$10>=Vorsorge!$J$9,W$10<=Vorsorge!$L$9)),Vorsorge!$F$9,0)*-1","v":0},{"$f":"IF(OR(AND(X$10>=Vorsorge!$J$9,X$10<=Vorsorge!$L$9)),Vorsorge!$F$9,0)*-1","v":0},{"$f":"IF(OR(AND(Y$10>=Vorsorge!$J$9,Y$10<=Vorsorge!$L$9)),Vorsorge!$F$9,0)*-1","v":0},{"$f":"IF(OR(AND(Z$10>=Vorsorge!$J$9,Z$10<=Vorsorge!$L$9)),Vorsorge!$F$9,0)*-1","v":0},{"$f":"IF(OR(AND(AA$10>=Vorsorge!$J$9,AA$10<=Vorsorge!$L$9)),Vorsorge!$F$9,0)*-1","v":0},{"$f":"IF(OR(AND(AB$10>=Vorsorge!$J$9,AB$10<=Vorsorge!$L$9)),Vorsorge!$F$9,0)*-1","v":0},{"$f":"IF(OR(AND(AC$10>=Vorsorge!$J$9,AC$10<=Vorsorge!$L$9)),Vorsorge!$F$9,0)*-1","v":0},{"$f":"IF(OR(AND(AD$10>=Vorsorge!$J$9,AD$10<=Vorsorge!$L$9)),Vorsorge!$F$9,0)*-1","v":0},{"$f":"IF(OR(AND(AE$10>=Vorsorge!$J$9,AE$10<=Vorsorge!$L$9)),Vorsorge!$F$9,0)*-1","v":0},{"$f":"IF(OR(AND(AF$10>=Vorsorge!$J$9,AF$10<=Vorsorge!$L$9)),Vorsorge!$F$9,0)*-1","v":0},{"$f":"IF(OR(AND(AG$10>=Vorsorge!$J$9,AG$10<=Vorsorge!$L$9)),Vorsorge!$F$9,0)*-1","v":0},{"$f":"IF(OR(AND(AH$10>=Vorsorge!$J$9,AH$10<=Vorsorge!$L$9)),Vorsorge!$F$9,0)*-1","v":0},{"$f":"IF(OR(AND(AI$10>=Vorsorge!$J$9,AI$10<=Vorsorge!$L$9)),Vorsorge!$F$9,0)*-1","v":0},{"$f":"IF(OR(AND(AJ$10>=Vorsorge!$J$9,AJ$10<=Vorsorge!$L$9)),Vorsorge!$F$9,0)*-1","v":0},{"$f":"IF(OR(AND(AK$10>=Vorsorge!$J$9,AK$10<=Vorsorge!$L$9)),Vorsorge!$F$9,0)*-1","v":0}]
[null,null,null,null,null,null,null,0]
[null,null,null,"     Steuereffekt",null,null,{"$f":"Vorsorge!$P$9","v":0},{"$f":"HilfstabelleProjektion!G110","v":0},{"$f":"HilfstabelleProjektion!H110","v":0},{"$f":"HilfstabelleProjektion!I110","v":0},{"$f":"HilfstabelleProjektion!J110","v":0},{"$f":"HilfstabelleProjektion!K110","v":0},{"$f":"HilfstabelleProjektion!L110","v":0},{"$f":"HilfstabelleProjektion!M110","v":0},{"$f":"HilfstabelleProjektion!N110","v":0},{"$f":"HilfstabelleProjektion!O110","v":0},{"$f":"HilfstabelleProjektion!P110","v":0},{"$f":"HilfstabelleProjektion!Q110","v":0},{"$f":"HilfstabelleProjektion!R110","v":0},{"$f":"HilfstabelleProjektion!S110","v":0},{"$f":"HilfstabelleProjektion!T110","v":0},{"$f":"HilfstabelleProjektion!U110","v":0},{"$f":"HilfstabelleProjektion!V110","v":0},{"$f":"HilfstabelleProjektion!W110","v":0},{"$f":"HilfstabelleProjektion!X110","v":0},{"$f":"HilfstabelleProjektion!Y110","v":0},{"$f":"HilfstabelleProjektion!Z110","v":0},{"$f":"HilfstabelleProjektion!AA110","v":0},{"$f":"HilfstabelleProjektion!AB110","v":0},{"$f":"HilfstabelleProjektion!AC110","v":0},{"$f":"HilfstabelleProjektion!AD110","v":0},{"$f":"IF(AND(Vorsorge!$T$9=\"n\",AND(AF$10>=Vorsorge!$J$9,AF$10<=Vorsorge!$L$9)),Vorsorge!$P$9,0)","v":0},{"$f":"IF(AND(Vorsorge!$T$9=\"n\",AND(AG$10>=Vorsorge!$J$9,AG$10<=Vorsorge!$L$9)),Vorsorge!$P$9,0)","v":0},{"$f":"IF(AND(Vorsorge!$T$9=\"n\",AND(AH$10>=Vorsorge!$J$9,AH$10<=Vorsorge!$L$9)),Vorsorge!$P$9,0)","v":0},{"$f":"IF(AND(Vorsorge!$T$9=\"n\",AND(AI$10>=Vorsorge!$J$9,AI$10<=Vorsorge!$L$9)),Vorsorge!$P$9,0)","v":0},{"$f":"IF(AND(Vorsorge!$T$9=\"n\",AND(AJ$10>=Vorsorge!$J$9,AJ$10<=Vorsorge!$L$9)),Vorsorge!$P$9,0)","v":0},{"$f":"IF(AND(Vorsorge!$T$9=\"n\",AND(AK$10>=Vorsorge!$J$9,AK$10<=Vorsorge!$L$9)),Vorsorge!$P$9,0)","v":0}]
[null,null,null,null,null,null,null,0]
[null,null,null,"  Auszahlung der gebundenen Vorsorge Säule 3a",null,null,{"$f":"Vorsorge!$J$11","v":0},{"$f":"IF(H$10=Vorsorge!$J$11,Vorsorge!$F$11,0)","v":0},{"$f":"IF(I$10=Vorsorge!$J$11,Vorsorge!$F$11,0)","v":0},{"$f":"IF(J$10=Vorsorge!$J$11,Vorsorge!$F$11,0)","v":0},{"$f":"IF(K$10=Vorsorge!$J$11,Vorsorge!$F$11,0)","v":0},{"$f":"IF(L$10=Vorsorge!$J$11,Vorsorge!$F$11,0)","v":0},{"$f":"IF(M$10=Vorsorge!$J$11,Vorsorge!$F$11,0)","v":0},{"$f":"IF(N$10=Vorsorge!$J$11,Vorsorge!$F$11,0)","v":0},{"$f":"IF(O$10=Vorsorge!$J$11,Vorsorge!$F$11,0)","v":0},{"$f":"IF(P$10=Vorsorge!$J$11,Vorsorge!$F$11,0)","v":0},{"$f":"IF(Q$10=Vorsorge!$J$11,Vorsorge!$F$11,0)","v":0},{"$f":"IF(R$10=Vorsorge!$J$11,Vorsorge!$F$11,0)","v":0},{"$f":"IF(S$10=Vorsorge!$J$11,Vorsorge!$F$11,0)","v":0},{"$f":"IF(T$10=Vorsorge!$J$11,Vorsorge!$F$11,0)","v":0},{"$f":"IF(U$10=Vorsorge!$J$11,Vorsorge!$F$11,0)","v":0},{"$f":"IF(V$10=Vorsorge!$J$11,Vorsorge!$F$11,0)","v":0},{"$f":"IF(W$10=Vorsorge!$J$11,Vorsorge!$F$11,0)","v":0},{"$f":"IF(X$10=Vorsorge!$J$11,Vorsorge!$F$11,0)","v":0},{"$f":"IF(Y$10=Vorsorge!$J$11,Vorsorge!$F$11,0)","v":0},{"$f":"IF(Z$10=Vorsorge!$J$11,Vorsorge!$F$11,0)","v":0},{"$f":"IF(AA$10=Vorsorge!$J$11,Vorsorge!$F$11,0)","v":0},{"$f":"IF(AB$10=Vorsorge!$J$11,Vorsorge!$F$11,0)","v":0},{"$f":"IF(AC$10=Vorsorge!$J$11,Vorsorge!$F$11,0)","v":0},{"$f":"IF(AD$10=Vorsorge!$J$11,Vorsorge!$F$11,0)","v":0},{"$f":"IF(AE$10=Vorsorge!$J$11,Vorsorge!$F$11,0)","v":0},{"$f":"IF(AF$10=Vorsorge!$J$11,Vorsorge!$F$11,0)","v":0},{"$f":"IF(AG$10=Vorsorge!$J$11,Vorsorge!$F$11,0)","v":0},{"$f":"IF(AH$10=Vorsorge!$J$11,Vorsorge!$F$11,0)","v":0},{"$f":"IF(AI$10=Vorsorge!$J$11,Vorsorge!$F$11,0)","v":0},{"$f":"IF(AJ$10=Vorsorge!$J$11,Vorsorge!$F$11,0)","v":0},{"$f":"IF(AK$10=Vorsorge!$J$11,Vorsorge!$F$11,0)","v":0}]
[null,null,null,null,null,null,null,0]
[null,null,null,"     Steuereffekt",null,null,{"$f":"Vorsorge!$P$11","v":0},{"$f":"HilfstabelleProjektion!G114","v":0},{"$f":"HilfstabelleProjektion!H114","v":0},{"$f":"HilfstabelleProjektion!I114","v":0},{"$f":"HilfstabelleProjektion!J114","v":0},{"$f":"HilfstabelleProjektion!K114","v":0},{"$f":"HilfstabelleProjektion!L114","v":0},{"$f":"HilfstabelleProjektion!M114","v":0},{"$f":"HilfstabelleProjektion!N114","v":0},{"$f":"HilfstabelleProjektion!O114","v":0},{"$f":"HilfstabelleProjektion!P114","v":0},{"$f":"HilfstabelleProjektion!Q114","v":0},{"$f":"HilfstabelleProjektion!R114","v":0},{"$f":"HilfstabelleProjektion!S114","v":0},{"$f":"HilfstabelleProjektion!T114","v":0},{"$f":"HilfstabelleProjektion!U114","v":0},{"$f":"HilfstabelleProjektion!V114","v":0},{"$f":"HilfstabelleProjektion!W114","v":0},{"$f":"HilfstabelleProjektion!X114","v":0},{"$f":"HilfstabelleProjektion!Y114","v":0},{"$f":"HilfstabelleProjektion!Z114","v":0},{"$f":"HilfstabelleProjektion!AA114","v":0},{"$f":"HilfstabelleProjektion!AB114","v":0},{"$f":"HilfstabelleProjektion!AC114","v":0},{"$f":"HilfstabelleProjektion!AD114","v":0},{"$f":"HilfstabelleProjektion!AE114","v":0},{"$f":"HilfstabelleProjektion!AF114","v":0},{"$f":"HilfstabelleProjektion!AG114","v":0},{"$f":"HilfstabelleProjektion!AH114","v":0},{"$f":"HilfstabelleProjektion!AI114","v":0},{"$f":"HilfstabelleProjektion!AJ114","v":0}]
[null,null,null,null,null,null,null,0]
[null,null,null,"  Einzahlung Lebensversicherung Säule 3b",null,null,{"$f":"Vorsorge!F34","v":0},{"$f":"IF(OR(H$10=Vorsorge!$J$36,AND(H$10>=Vorsorge!$J$34,H$10<=Vorsorge!$L$34)),Vorsorge!$F$34,0)*-1","v":0},{"$f":"IF(OR(I$10=Vorsorge!$J$36,AND(I$10>=Vorsorge!$J$34,I$10<=Vorsorge!$L$34)),Vorsorge!$F$34,0)*-1","v":0},{"$f":"IF(OR(J$10=Vorsorge!$J$36,AND(J$10>=Vorsorge!$J$34,J$10<=Vorsorge!$L$34)),Vorsorge!$F$34,0)*-1","v":0},{"$f":"IF(OR(K$10=Vorsorge!$J$36,AND(K$10>=Vorsorge!$J$34,K$10<=Vorsorge!$L$34)),Vorsorge!$F$34,0)*-1","v":0},{"$f":"IF(OR(L$10=Vorsorge!$J$36,AND(L$10>=Vorsorge!$J$34,L$10<=Vorsorge!$L$34)),Vorsorge!$F$34,0)*-1","v":0},{"$f":"IF(OR(M$10=Vorsorge!$J$36,AND(M$10>=Vorsorge!$J$34,M$10<=Vorsorge!$L$34)),Vorsorge!$F$34,0)*-1","v":0},{"$f":"IF(OR(N$10=Vorsorge!$J$36,AND(N$10>=Vorsorge!$J$34,N$10<=Vorsorge!$L$34)),Vorsorge!$F$34,0)*-1","v":0},{"$f":"IF(OR(O$10=Vorsorge!$J$36,AND(O$10>=Vorsorge!$J$34,O$10<=Vorsorge!$L$34)),Vorsorge!$F$34,0)*-1","v":0},{"$f":"IF(OR(P$10=Vorsorge!$J$36,AND(P$10>=Vorsorge!$J$34,P$10<=Vorsorge!$L$34)),Vorsorge!$F$34,0)*-1","v":0},{"$f":"IF(OR(Q$10=Vorsorge!$J$36,AND(Q$10>=Vorsorge!$J$34,Q$10<=Vorsorge!$L$34)),Vorsorge!$F$34,0)*-1","v":0},{"$f":"IF(OR(R$10=Vorsorge!$J$36,AND(R$10>=Vorsorge!$J$34,R$10<=Vorsorge!$L$34)),Vorsorge!$F$34,0)*-1","v":0},{"$f":"IF(OR(S$10=Vorsorge!$J$36,AND(S$10>=Vorsorge!$J$34,S$10<=Vorsorge!$L$34)),Vorsorge!$F$34,0)*-1","v":0},{"$f":"IF(OR(T$10=Vorsorge!$J$36,AND(T$10>=Vorsorge!$J$34,T$10<=Vorsorge!$L$34)),Vorsorge!$F$34,0)*-1","v":0},{"$f":"IF(OR(U$10=Vorsorge!$J$36,AND(U$10>=Vorsorge!$J$34,U$10<=Vorsorge!$L$34)),Vorsorge!$F$34,0)*-1","v":0},{"$f":"IF(OR(V$10=Vorsorge!$J$36,AND(V$10>=Vorsorge!$J$34,V$10<=Vorsorge!$L$34)),Vorsorge!$F$34,0)*-1","v":0},{"$f":"IF(OR(W$10=Vorsorge!$J$36,AND(W$10>=Vorsorge!$J$34,W$10<=Vorsorge!$L$34)),Vorsorge!$F$34,0)*-1","v":0},{"$f":"IF(OR(X$10=Vorsorge!$J$36,AND(X$10>=Vorsorge!$J$34,X$10<=Vorsorge!$L$34)),Vorsorge!$F$34,0)*-1","v":0},{"$f":"IF(OR(Y$10=Vorsorge!$J$36,AND(Y$10>=Vorsorge!$J$34,Y$10<=Vorsorge!$L$34)),Vorsorge!$F$34,0)*-1","v":0},{"$f":"IF(OR(Z$10=Vorsorge!$J$36,AND(Z$10>=Vorsorge!$J$34,Z$10<=Vorsorge!$L$34)),Vorsorge!$F$34,0)*-1","v":0},{"$f":"IF(OR(AA$10=Vorsorge!$J$36,AND(AA$10>=Vorsorge!$J$34,AA$10<=Vorsorge!$L$34)),Vorsorge!$F$34,0)*-1","v":0},{"$f":"IF(OR(AB$10=Vorsorge!$J$36,AND(AB$10>=Vorsorge!$J$34,AB$10<=Vorsorge!$L$34)),Vorsorge!$F$34,0)*-1","v":0},{"$f":"IF(OR(AC$10=Vorsorge!$J$36,AND(AC$10>=Vorsorge!$J$34,AC$10<=Vorsorge!$L$34)),Vorsorge!$F$34,0)*-1","v":0},{"$f":"IF(OR(AD$10=Vorsorge!$J$36,AND(AD$10>=Vorsorge!$J$34,AD$10<=Vorsorge!$L$34)),Vorsorge!$F$34,0)*-1","v":0},{"$f":"IF(OR(AE$10=Vorsorge!$J$36,AND(AE$10>=Vorsorge!$J$34,AE$10<=Vorsorge!$L$34)),Vorsorge!$F$34,0)*-1","v":0},{"$f":"IF(OR(AF$10=Vorsorge!$J$36,AND(AF$10>=Vorsorge!$J$34,AF$10<=Vorsorge!$L$34)),Vorsorge!$F$34,0)*-1","v":0},{"$f":"IF(OR(AG$10=Vorsorge!$J$36,AND(AG$10>=Vorsorge!$J$34,AG$10<=Vorsorge!$L$34)),Vorsorge!$F$34,0)*-1","v":0},{"$f":"IF(OR(AH$10=Vorsorge!$J$36,AND(AH$10>=Vorsorge!$J$34,AH$10<=Vorsorge!$L$34)),Vorsorge!$F$34,0)*-1","v":0},{"$f":"IF(OR(AI$10=Vorsorge!$J$36,AND(AI$10>=Vorsorge!$J$34,AI$10<=Vorsorge!$L$34)),Vorsorge!$F$34,0)*-1","v":0},{"$f":"IF(OR(AJ$10=Vorsorge!$J$36,AND(AJ$10>=Vorsorge!$J$34,AJ$10<=Vorsorge!$L$34)),Vorsorge!$F$34,0)*-1","v":0},{"$f":"IF(OR(AK$10=Vorsorge!$J$36,AND(AK$10>=Vorsorge!$J$34,AK$10<=Vorsorge!$L$34)),Vorsorge!$F$34,0)*-1","v":0}]
[]
[null,null,null,"  Auszahlung freie Vorsorge Säule 3b (einmalig)",null,null,{"$f":"Vorsorge!F39","v":0}]
[]
[null,null,null,"  Auszahlung Leibrente aus Säule 3b",null,null,{"$f":"Vorsorge!J39","v":0},{"$f":"HilfstabelleProjektion!G118","v":0},{"$f":"HilfstabelleProjektion!H118","v":0},{"$f":"HilfstabelleProjektion!I118","v":0},{"$f":"HilfstabelleProjektion!J118","v":0},{"$f":"HilfstabelleProjektion!K118","v":0},{"$f":"HilfstabelleProjektion!L118","v":0},{"$f":"HilfstabelleProjektion!M118","v":0},{"$f":"HilfstabelleProjektion!N118","v":0},{"$f":"HilfstabelleProjektion!O118","v":0},{"$f":"HilfstabelleProjektion!P118","v":0},{"$f":"HilfstabelleProjektion!Q118","v":0},{"$f":"HilfstabelleProjektion!R118","v":0},{"$f":"HilfstabelleProjektion!S118","v":0},{"$f":"HilfstabelleProjektion!T118","v":0},{"$f":"HilfstabelleProjektion!U118","v":0},{"$f":"HilfstabelleProjektion!V118","v":0},{"$f":"HilfstabelleProjektion!W118","v":0},{"$f":"HilfstabelleProjektion!X118","v":0},{"$f":"HilfstabelleProjektion!Y118","v":0},{"$f":"HilfstabelleProjektion!Z118","v":0},{"$f":"HilfstabelleProjektion!AA118","v":0},{"$f":"HilfstabelleProjektion!AB118","v":0},{"$f":"HilfstabelleProjektion!AC118","v":0},{"$f":"HilfstabelleProjektion!AD118","v":0},{"$f":"HilfstabelleProjektion!AE118","v":0},{"$f":"HilfstabelleProjektion!AF118","v":0},{"$f":"HilfstabelleProjektion!AG118","v":0},{"$f":"HilfstabelleProjektion!AH118","v":0},{"$f":"HilfstabelleProjektion!AI118","v":0},{"$f":"HilfstabelleProjektion!AJ118","v":0}]
[]
[null,null,null,"   Steuern auf Leibrente",null,null,{"$f":"Vorsorge!J39","v":0},{"$f":"HilfstabelleProjektion!G119","v":0},{"$f":"HilfstabelleProjektion!H119","v":0},{"$f":"HilfstabelleProjektion!I119","v":0},{"$f":"HilfstabelleProjektion!J119","v":0},{"$f":"HilfstabelleProjektion!K119","v":0},{"$f":"HilfstabelleProjektion!L119","v":0},{"$f":"HilfstabelleProjektion!M119","v":0},{"$f":"HilfstabelleProjektion!N119","v":0},{"$f":"HilfstabelleProjektion!O119","v":0},{"$f":"HilfstabelleProjektion!P119","v":0},{"$f":"HilfstabelleProjektion!Q119","v":0},{"$f":"HilfstabelleProjektion!R119","v":0},{"$f":"HilfstabelleProjektion!S119","v":0},{"$f":"HilfstabelleProjektion!T119","v":0},{"$f":"HilfstabelleProjektion!U119","v":0},{"$f":"HilfstabelleProjektion!V119","v":0},{"$f":"HilfstabelleProjektion!W119","v":0},{"$f":"HilfstabelleProjektion!X119","v":0},{"$f":"HilfstabelleProjektion!Y119","v":0},{"$f":"HilfstabelleProjektion!Z119","v":0},{"$f":"HilfstabelleProjektion!AA119","v":0},{"$f":"HilfstabelleProjektion!AB119","v":0},{"$f":"HilfstabelleProjektion!AC119","v":0},{"$f":"HilfstabelleProjektion!AD119","v":0},{"$f":"HilfstabelleProjektion!AE119","v":0},{"$f":"HilfstabelleProjektion!AF119","v":0},{"$f":"HilfstabelleProjektion!AG119","v":0},{"$f":"HilfstabelleProjektion!AH119","v":0},{"$f":"HilfstabelleProjektion!AI119","v":0},{"$f":"HilfstabelleProjektion!AJ119","v":0}]
[null,null,null," ",null,null,null,0]
[null,null,null,"  Auszahlung freie Vorsorge Säule 3b",null,null,{"$f":"Vorsorge!$J$39","v":0},{"$f":"HilfstabelleProjektion!G120","v":0},{"$f":"HilfstabelleProjektion!H120","v":0},{"$f":"HilfstabelleProjektion!I120","v":0},{"$f":"HilfstabelleProjektion!J120","v":0},{"$f":"HilfstabelleProjektion!K120","v":0},{"$f":"HilfstabelleProjektion!L120","v":0},{"$f":"HilfstabelleProjektion!M120","v":0},{"$f":"HilfstabelleProjektion!N120","v":0},{"$f":"HilfstabelleProjektion!O120","v":0},{"$f":"HilfstabelleProjektion!P120","v":0},{"$f":"HilfstabelleProjektion!Q120","v":0},{"$f":"HilfstabelleProjektion!R120","v":0},{"$f":"HilfstabelleProjektion!S120","v":0},{"$f":"HilfstabelleProjektion!T120","v":0},{"$f":"HilfstabelleProjektion!U120","v":0},{"$f":"HilfstabelleProjektion!V120","v":0},{"$f":"HilfstabelleProjektion!W120","v":0},{"$f":"HilfstabelleProjektion!X120","v":0},{"$f":"HilfstabelleProjektion!Y120","v":0},{"$f":"HilfstabelleProjektion!Z120","v":0},{"$f":"HilfstabelleProjektion!AA120","v":0},{"$f":"HilfstabelleProjektion!AB120","v":0},{"$f":"HilfstabelleProjektion!AC120","v":0},{"$f":"HilfstabelleProjektion!AD120","v":0},{"$f":"HilfstabelleProjektion!AE120","v":0},{"$f":"HilfstabelleProjektion!AF120","v":0},{"$f":"HilfstabelleProjektion!AG120","v":0},{"$f":"HilfstabelleProjektion!AH120","v":0},{"$f":"HilfstabelleProjektion!AI120","v":0},{"$f":"HilfstabelleProjektion!AJ120","v":0}]
[null,null,null,null,null,null,null,0]
[null,null,null,"  AHV - Voraussichtlicher jährlicher Rentenbetrag ",null,null,{"$f":"Vorsorge!F46","v":0},{"$f":"HilfstabelleProjektion!G123","v":0},{"$f":"HilfstabelleProjektion!H123","v":0},{"$f":"HilfstabelleProjektion!I123","v":0},{"$f":"HilfstabelleProjektion!J123","v":0},{"$f":"HilfstabelleProjektion!K123","v":0},{"$f":"HilfstabelleProjektion!L123","v":0},{"$f":"HilfstabelleProjektion!M123","v":0},{"$f":"HilfstabelleProjektion!N123","v":0},{"$f":"HilfstabelleProjektion!O123","v":0},{"$f":"HilfstabelleProjektion!P123","v":0},{"$f":"HilfstabelleProjektion!Q123","v":0},{"$f":"HilfstabelleProjektion!R123","v":0},{"$f":"HilfstabelleProjektion!S123","v":0},{"$f":"HilfstabelleProjektion!T123","v":0},{"$f":"HilfstabelleProjektion!U123","v":0},{"$f":"HilfstabelleProjektion!V123","v":0},{"$f":"HilfstabelleProjektion!W123","v":0},{"$f":"HilfstabelleProjektion!X123","v":0},{"$f":"HilfstabelleProjektion!Y123","v":0},{"$f":"HilfstabelleProjektion!Z123","v":0},{"$f":"HilfstabelleProjektion!AA123","v":0},{"$f":"HilfstabelleProjektion!AB123","v":0},{"$f":"HilfstabelleProjektion!AC123","v":0},{"$f":"HilfstabelleProjektion!AD123","v":0},{"$f":"HilfstabelleProjektion!AE123","v":0},{"$f":"HilfstabelleProjektion!AF123","v":0},{"$f":"HilfstabelleProjektion!AG123","v":0},{"$f":"HilfstabelleProjektion!AH123","v":0},{"$f":"HilfstabelleProjektion!AI123","v":0},{"$f":"HilfstabelleProjektion!AJ123","v":0}]
[null,null,null,"  (min. 12000, max. 24000, siehe Rentenausweis)"]
[]
[null,null,null,"  Rentenzahlung aus beruflicher Vorsorge",null,null,{"$f":"Vorsorge!$F$30","v":0},{"$f":"HilfstabelleProjektion!G126","v":0},{"$f":"HilfstabelleProjektion!H126","v":0},{"$f":"HilfstabelleProjektion!I126","v":0},{"$f":"HilfstabelleProjektion!J126","v":0},{"$f":"HilfstabelleProjektion!K126","v":0},{"$f":"HilfstabelleProjektion!L126","v":0},{"$f":"HilfstabelleProjektion!M126","v":0},{"$f":"HilfstabelleProjektion!N126","v":0},{"$f":"HilfstabelleProjektion!O126","v":0},{"$f":"HilfstabelleProjektion!P126","v":0},{"$f":"HilfstabelleProjektion!Q126","v":0},{"$f":"HilfstabelleProjektion!R126","v":0},{"$f":"HilfstabelleProjektion!S126","v":0},{"$f":"HilfstabelleProjektion!T126","v":0},{"$f":"HilfstabelleProjektion!U126","v":0},{"$f":"HilfstabelleProjektion!V126","v":0},{"$f":"HilfstabelleProjektion!W126","v":0},{"$f":"HilfstabelleProjektion!X126","v":0},{"$f":"HilfstabelleProjektion!Y126","v":0},{"$f":"HilfstabelleProjektion!Z126","v":0},{"$f":"HilfstabelleProjektion!AA126","v":0},{"$f":"HilfstabelleProjektion!AB126","v":0},{"$f":"HilfstabelleProjektion!AC126","v":0},{"$f":"HilfstabelleProjektion!AD126","v":0},{"$f":"HilfstabelleProjektion!AE126","v":0},{"$f":"HilfstabelleProjektion!AF126","v":0},{"$f":"HilfstabelleProjektion!AG126","v":0},{"$f":"HilfstabelleProjektion!AH126","v":0},{"$f":"HilfstabelleProjektion!AI126","v":0},{"$f":"HilfstabelleProjektion!AJ126","v":0}]
[null,null,null," "]
[null,null,null,"  Steuern auf Rentenzahlungen (AHV&BVG)",null,null,{"$f":"Vorsorge!$F$30","v":0},{"$f":"HilfstabelleProjektion!G128","v":{"$error":"#VALUE!"}},{"$f":"HilfstabelleProjektion!H128","v":{"$error":"#VALUE!"}},{"$f":"HilfstabelleProjektion!I128","v":{"$error":"#VALUE!"}},{"$f":"HilfstabelleProjektion!J128","v":{"$error":"#VALUE!"}},{"$f":"HilfstabelleProjektion!K128","v":{"$error":"#VALUE!"}},{"$f":"HilfstabelleProjektion!L128","v":{"$error":"#VALUE!"}},{"$f":"HilfstabelleProjektion!M128","v":{"$error":"#VALUE!"}},{"$f":"HilfstabelleProjektion!N128","v":{"$error":"#VALUE!"}},{"$f":"HilfstabelleProjektion!O128","v":{"$error":"#VALUE!"}},{"$f":"HilfstabelleProjektion!P128","v":{"$error":"#VALUE!"}},{"$f":"HilfstabelleProjektion!Q128","v":{"$error":"#VALUE!"}},{"$f":"HilfstabelleProjektion!R128","v":{"$error":"#VALUE!"}},{"$f":"HilfstabelleProjektion!S128","v":{"$error":"#VALUE!"}},{"$f":"HilfstabelleProjektion!T128","v":{"$error":"#VALUE!"}},{"$f":"HilfstabelleProjektion!U128","v":{"$error":"#VALUE!"}},{"$f":"HilfstabelleProjektion!V128","v":{"$error":"#VALUE!"}},{"$f":"HilfstabelleProjektion!W128","v":{"$error":"#VALUE!"}},{"$f":"HilfstabelleProjektion!X128","v":{"$error":"#VALUE!"}},{"$f":"HilfstabelleProjektion!Y128","v":{"$error":"#VALUE!"}},{"$f":"HilfstabelleProjektion!Z128","v":{"$error":"#VALUE!"}},{"$f":"HilfstabelleProjektion!AA128","v":{"$error":"#VALUE!"}},{"$f":"HilfstabelleProjektion!AB128","v":{"$error":"#VALUE!"}},{"$f":"HilfstabelleProjektion!AC128","v":{"$error":"#VALUE!"}},{"$f":"HilfstabelleProjektion!AD128","v":{"$error":"#VALUE!"}},{"$f":"HilfstabelleProjektion!AE128","v":{"$error":"#VALUE!"}},{"$f":"HilfstabelleProjektion!AF128","v":{"$error":"#VALUE!"}},{"$f":"HilfstabelleProjektion!AG128","v":{"$error":"#VALUE!"}},{"$f":"HilfstabelleProjektion!AH128","v":{"$error":"#VALUE!"}},{"$f":"HilfstabelleProjektion!AI128","v":{"$error":"#VALUE!"}},{"$f":"HilfstabelleProjektion!AJ128","v":{"$error":"#VALUE!"}}]
[]
[null,null,null,"Total Anlagen Ende Jahr (ohne Immobilien)",null,null,null,{"$f":"HilfstabelleProjektion!G45","v":{"$error":"#VALUE!"}},{"$f":"HilfstabelleProjektion!H45","v":{"$error":"#VALUE!"}},{"$f":"HilfstabelleProjektion!I45","v":{"$error":"#VALUE!"}},{"$f":"HilfstabelleProjektion!J45","v":{"$error":"#VALUE!"}},{"$f":"HilfstabelleProjektion!K45","v":{"$error":"#VALUE!"}},{"$f":"HilfstabelleProjektion!L45","v":{"$error":"#VALUE!"}},{"$f":"HilfstabelleProjektion!M45","v":{"$error":"#VALUE!"}},{"$f":"HilfstabelleProjektion!N45","v":{"$error":"#VALUE!"}},{"$f":"HilfstabelleProjektion!O45","v":{"$error":"#VALUE!"}},{"$f":"HilfstabelleProjektion!P45","v":{"$error":"#VALUE!"}},{"$f":"HilfstabelleProjektion!Q45","v":{"$error":"#VALUE!"}},{"$f":"HilfstabelleProjektion!R45","v":{"$error":"#VALUE!"}},{"$f":"HilfstabelleProjektion!S45","v":{"$error":"#VALUE!"}},{"$f":"HilfstabelleProjektion!T45","v":{"$error":"#VALUE!"}},{"$f":"HilfstabelleProjektion!U45","v":{"$error":"#VALUE!"}},{"$f":"HilfstabelleProjektion!V45","v":{"$error":"#VALUE!"}},{"$f":"HilfstabelleProjektion!W45","v":{"$error":"#VALUE!"}},{"$f":"HilfstabelleProjektion!X45","v":{"$error":"#VALUE!"}},{"$f":"HilfstabelleProjektion!Y45","v":{"$error":"#VALUE!"}},{"$f":"HilfstabelleProjektion!Z45","v":{"$error":"#VALUE!"}},{"$f":"HilfstabelleProjektion!AA45","v":{"$error":"#VALUE!"}},{"$f":"HilfstabelleProjektion!AB45","v":{"$error":"#VALUE!"}},{"$f":"HilfstabelleProjektion!AC45","v":{"$error":"#VALUE!"}},{"$f":"HilfstabelleProjektion!AD45","v":{"$error":"#VALUE!"}},{"$f":"HilfstabelleProjektion!AE45","v":{"$error":"#VALUE!"}},{"$f":"HilfstabelleProjektion!AF45","v":{"$error":"#VALUE!"}},{"$f":"HilfstabelleProjektion!AG45","v":{"$error":"#VALUE!"}},{"$f":"HilfstabelleProjektion!AH45","v":{"$error":"#VALUE!"}},{"$f":"HilfstabelleProjektion!AI45","v":{"$error":"#VALUE!"}},{"$f":"HilfstabelleProjektion!AJ45","v":{"$error":"#VALUE!"}}]
[]
[null,null,null,"  Immobilie(n) Wert Ende Jahr",null,null,{"$f":"Vermögensstruktur!G25","v":0},{"$f":"HilfstabelleProjektion!G49","v":0},{"$f":"HilfstabelleProjektion!H49","v":0},{"$f":"HilfstabelleProjektion!I49","v":0},{"$f":"HilfstabelleProjektion!J49","v":0},{"$f":"HilfstabelleProjektion!K49","v":0},{"$f":"HilfstabelleProjektion!L49","v":0},{"$f":"HilfstabelleProjektion!M49","v":0},{"$f":"HilfstabelleProjektion!N49","v":0},{"$f":"HilfstabelleProjektion!O49","v":0},{"$f":"HilfstabelleProjektion!P49","v":0},{"$f":"HilfstabelleProjektion!Q49","v":0},{"$f":"HilfstabelleProjektion!R49","v":0},{"$f":"HilfstabelleProjektion!S49","v":0},{"$f":"HilfstabelleProjektion!T49","v":0},{"$f":"HilfstabelleProjektion!U49","v":0},{"$f":"HilfstabelleProjektion!V49","v":0},{"$f":"HilfstabelleProjektion!W49","v":0},{"$f":"HilfstabelleProjektion!X49","v":0},{"$f":"HilfstabelleProjektion!Y49","v":0},{"$f":"HilfstabelleProjektion!Z49","v":0},{"$f":"HilfstabelleProjektion!AA49","v":0},{"$f":"HilfstabelleProjektion!AB49","v":0},{"$f":"HilfstabelleProjektion!AC49","v":0},{"$f":"HilfstabelleProjektion!AD49","v":0},{"$f":"HilfstabelleProjektion!AE49","v":0},{"$f":"HilfstabelleProjektion!AF49","v":0},{"$f":"HilfstabelleProjektion!AG49","v":0},{"$f":"HilfstabelleProjektion!AH49","v":0},{"$f":"HilfstabelleProjektion!AI49","v":0},{"$f":"HilfstabelleProjektion!AJ49","v":0}]
[]
[null,null,null,"  Schulden Ende Jahr",null,null,{"$f":"HilfstabelleProjektion!G60","v":0},{"$f":"HilfstabelleProjektion!G60","v":0},{"$f":"HilfstabelleProjektion!H60","v":0},{"$f":"HilfstabelleProjektion!I60","v":0},{"$f":"HilfstabelleProjektion!J60","v":0},{"$f":"HilfstabelleProjektion!K60","v":0},{"$f":"HilfstabelleProjektion!L60","v":0},{"$f":"HilfstabelleProjektion!M60","v":0},{"$f":"HilfstabelleProjektion!N60","v":0},{"$f":"HilfstabelleProjektion!O60","v":0},{"$f":"HilfstabelleProjektion!P60","v":0},{"$f":"HilfstabelleProjektion!Q60","v":0},{"$f":"HilfstabelleProjektion!R60","v":0},{"$f":"HilfstabelleProjektion!S60","v":0},{"$f":"HilfstabelleProjektion!T60","v":0},{"$f":"HilfstabelleProjektion!U60","v":0},{"$f":"HilfstabelleProjektion!V60","v":0},{"$f":"HilfstabelleProjektion!W60","v":0},{"$f":"HilfstabelleProjektion!X60","v":0},{"$f":"HilfstabelleProjektion!Y60","v":0},{"$f":"HilfstabelleProjektion!Z60","v":0},{"$f":"HilfstabelleProjektion!AA60","v":0},{"$f":"HilfstabelleProjektion!AB60","v":0},{"$f":"HilfstabelleProjektion!AC60","v":0},{"$f":"HilfstabelleProjektion!AD60","v":0},{"$f":"HilfstabelleProjektion!AE60","v":0},{"$f":"HilfstabelleProjektion!AF60","v":0},{"$f":"HilfstabelleProjektion!AG60","v":0},{"$f":"HilfstabelleProjektion!AH60","v":0},{"$f":"HilfstabelleProjektion!AI60","v":0},{"$f":"HilfstabelleProjektion!AJ60","v":0}]
[]
[]
[null,null,"Vermögen am Ende von ",null,null,null,"  ",{"$f":"HilfstabelleProjektion!G140","v":{"$error":"#VALUE!"}},{"$f":"HilfstabelleProjektion!H140","v":{"$error":"#VALUE!"}},{"$f":"HilfstabelleProjektion!I140","v":{"$error":"#VALUE!"}},{"$f":"HilfstabelleProjektion!J140","v":{"$error":"#VALUE!"}},{"$f":"HilfstabelleProjektion!K140","v":{"$error":"#VALUE!"}},{"$f":"HilfstabelleProjektion!L140","v":{"$error":"#VALUE!"}},{"$f":"HilfstabelleProjektion!M140","v":{"$error":"#VALUE!"}},{"$f":"HilfstabelleProjektion!N140","v":{"$error":"#VALUE!"}},{"$f":"HilfstabelleProjektion!O140","v":{"$error":"#VALUE!"}},{"$f":"HilfstabelleProjektion!P140","v":{"$error":"#VALUE!"}},{"$f":"HilfstabelleProjektion!Q140","v":{"$error":"#VALUE!"}},{"$f":"HilfstabelleProjektion!R140","v":{"$error":"#VALUE!"}},{"$f":"HilfstabelleProjektion!S140","v":{"$error":"#VALUE!"}},{"$f":"HilfstabelleProjektion!T140","v":{"$error":"#VALUE!"}},{"$f":"HilfstabelleProjektion!U140","v":{"$error":"#VALUE!"}},{"$f":"HilfstabelleProjektion!V140","v":{"$error":"#VALUE!"}},{"$f":"HilfstabelleProjektion!W140","v":{"$error":"#VALUE!"}},{"$f":"HilfstabelleProjektion!X140","v":{"$error":"#VALUE!"}},{"$f":"HilfstabelleProjektion!Y140","v":{"$error":"#VALUE!"}},{"$f":"HilfstabelleProjektion!Z140","v":{"$error":"#VALUE!"}},{"$f":"HilfstabelleProjektion!AA140","v":{"$error":"#VALUE!"}},{"$f":"HilfstabelleProjektion!AB140","v":{"$error":"#VALUE!"}},{"$f":"HilfstabelleProjektion!AC140","v":{"$error":"#VALUE!"}},{"$f":"HilfstabelleProjektion!AD140","v":{"$error":"#VALUE!"}},{"$f":"HilfstabelleProjektion!AE140","v":{"$error":"#VALUE!"}},{"$f":"HilfstabelleProjektion!AF140","v":{"$error":"#VALUE!"}},{"$f":"HilfstabelleProjektion!AG140","v":{"$error":"#VALUE!"}},{"$f":"HilfstabelleProjektion!AH140","v":{"$error":"#VALUE!"}},{"$f":"HilfstabelleProjektion!AI140","v":{"$error":"#VALUE!"}},{"$f":"HilfstabelleProjektion!AJ140","v":{"$error":"#VALUE!"}}]
[]
[]
[]
[]
[]
[null,null,null,"Nachweis liquide Mittel"]
[]
[null,null,null,"Liquide Mittel Anfang Jahr",null,null,null,{"$f":"HilfstabelleProjektion!G15","v":0},{"$f":"HilfstabelleProjektion!H15","v":{"$error":"#VALUE!"}},{"$f":"HilfstabelleProjektion!I15","v":{"$error":"#VALUE!"}},{"$f":"HilfstabelleProjektion!J15","v":{"$error":"#VALUE!"}},{"$f":"HilfstabelleProjektion!K15","v":{"$error":"#VALUE!"}},{"$f":"HilfstabelleProjektion!L15","v":{"$error":"#VALUE!"}},{"$f":"HilfstabelleProjektion!M15","v":{"$error":"#VALUE!"}},{"$f":"HilfstabelleProjektion!N15","v":{"$error":"#VALUE!"}},{"$f":"HilfstabelleProjektion!O15","v":{"$error":"#VALUE!"}},{"$f":"HilfstabelleProjektion!P15","v":{"$error":"#VALUE!"}},{"$f":"HilfstabelleProjektion!Q15","v":{"$error":"#VALUE!"}},{"$f":"HilfstabelleProjektion!R15","v":{"$error":"#VALUE!"}},{"$f":"HilfstabelleProjektion!S15","v":{"$error":"#VALUE!"}},{"$f":"HilfstabelleProjektion!T15","v":{"$error":"#VALUE!"}},{"$f":"HilfstabelleProjektion!U15","v":{"$error":"#VALUE!"}},{"$f":"HilfstabelleProjektion!V15","v":{"$error":"#VALUE!"}},{"$f":"HilfstabelleProjektion!W15","v":{"$error":"#VALUE!"}},{"$f":"HilfstabelleProjektion!X15","v":{"$error":"#VALUE!"}},{"$f":"HilfstabelleProjektion!Y15","v":{"$error":"#VALUE!"}},{"$f":"HilfstabelleProjektion!Z15","v":{"$error":"#VALUE!"}},{"$f":"HilfstabelleProjektion!AA15","v":{"$error":"#VALUE!"}},{"$f":"HilfstabelleProjektion!AB15","v":{"$error":"#VALUE!"}},{"$f":"HilfstabelleProjektion!AC15","v":{"$error":"#VALUE!"}},{"$f":"HilfstabelleProjektion!AD15","v":{"$error":"#VALUE!"}},{"$f":"HilfstabelleProjektion!AE15","v":{"$error":"#VALUE!"}},{"$f":"HilfstabelleProjektion!AF15","v":{"$error":"#VALUE!"}},{"$f":"HilfstabelleProjektion!AG15","v":{"$error":"#VALUE!"}},{"$f":"HilfstabelleProjektion!AH15","v":{"$error":"#VALUE!"}},{"$f":"HilfstabelleProjektion!AI15","v":{"$error":"#VALUE!"}},{"$f":"HilfstabelleProjektion!AJ15","v":{"$error":"#VALUE!"}}]
[null,null,null,"Veränderung liquide Mittel",null,null,null,{"$f":"(H17+H19+H21+H26+HilfstabelleProjektion!G16+HilfstabelleProjektion!G21+HilfstabelleProjektion!G26+HilfstabelleProjektion!G29)+SUM(Vermögensprojektion!H28:H94)","v":{"$error":"#VALUE!"}},{"$f":"(I17+I19+I21+I26+HilfstabelleProjektion!H16+HilfstabelleProjektion!H21+HilfstabelleProjektion!H26+HilfstabelleProjektion!H29)+SUM(Vermögensprojektion!I28:I94)","v":{"$error":"#VALUE!"}},{"$f":"(J17+J19+J21+J26+HilfstabelleProjektion!I16+HilfstabelleProjektion!I21+HilfstabelleProjektion!I26+HilfstabelleProjektion!I29)+SUM(Vermögensprojektion!J28:J94)","v":{"$error":"#VALUE!"}},{"$f":"(K17+K19+K21+K26+HilfstabelleProjektion!J16+HilfstabelleProjektion!J21+HilfstabelleProjektion!J26+HilfstabelleProjektion!J29)+SUM(Vermögensprojektion!K28:K94)","v":{"$error":"#VALUE!"}},{"$f":"(L17+L19+L21+L26+HilfstabelleProjektion!K16+HilfstabelleProjektion!K21+HilfstabelleProjektion!K26+HilfstabelleProjektion!K29)+SUM(Vermögensprojektion!L28:L94)","v":{"$error":"#VALUE!"}},{"$f":"(M17+M19+M21+M26+HilfstabelleProjektion!L16+HilfstabelleProjektion!L21+HilfstabelleProjektion!L26+HilfstabelleProjektion!L29)+SUM(Vermögensprojektion!M28:M94)","v":{"$error":"#VALUE!"}},{"$f":"(N17+N19+N21+N26+HilfstabelleProjektion!M16+HilfstabelleProjektion!M21+HilfstabelleProjektion!M26+HilfstabelleProjektion!M29)+SUM(Vermögensprojektion!N28:N94)","v":{"$error":"#VALUE!"}},{"$f":"(O17+O19+O21+O26+HilfstabelleProjektion!N16+HilfstabelleProjektion!N21+HilfstabelleProjektion!N26+HilfstabelleProjektion!N29)+SUM(Vermögensprojektion!O28:O94)","v":{"$error":"#VALUE!"}},{"$f":"(P17+P19+P21+P26+HilfstabelleProjektion!O16+HilfstabelleProjektion!O21+HilfstabelleProjektion!O26+HilfstabelleProjektion!O29)+SUM(Vermögensprojektion!P28:P94)","v":{"$error":"#VALUE!"}},{"$f":"(Q17+Q19+Q21+Q26+HilfstabelleProjektion!P16+HilfstabelleProjektion!P21+HilfstabelleProjektion!P26+HilfstabelleProjektion!P29)+SUM(Vermögensprojektion!Q28:Q94)","v":{"$error":"#VALUE!"}},{"$f":"(R17+R19+R21+R26+HilfstabelleProjektion!Q16+HilfstabelleProjektion!Q21+HilfstabelleProjektion!Q26+HilfstabelleProjektion!Q29)+SUM(Vermögensprojektion!R28:R94)","v":{"$error":"#VALUE!"}},{"$f":"(S17+S19+S21+S26+HilfstabelleProjektion!R16+HilfstabelleProjektion!R21+HilfstabelleProjektion!R26+HilfstabelleProjektion!R29)+SUM(Vermögensprojektion!S28:S94)","v":{"$error":"#VALUE!"}},{"$f":"(T17+T19+T21+T26+HilfstabelleProjektion!S16+HilfstabelleProjektion!S21+HilfstabelleProjektion!S26+HilfstabelleProjektion!S29)+SUM(Vermögensprojektion!T28:T94)","v":{"$error":"#VALUE!"}},{"$f":"(U17+U19+U21+U26+HilfstabelleProjektion!T16+HilfstabelleProjektion!T21+HilfstabelleProjektion!T26+HilfstabelleProjektion!T29)+SUM(Vermögensprojektion!U28:U94)","v":{"$error":"#VALUE!"}},{"$f":"(V17+V19+V21+V26+HilfstabelleProjektion!U16+HilfstabelleProjektion!U21+HilfstabelleProjektion!U26+HilfstabelleProjektion!U29)+SUM(Vermögensprojektion!V28:V94)","v":{"$error":"#VALUE!"}},{"$f":"(W17+W19+W21+W26+HilfstabelleProjektion!V16+HilfstabelleProjektion!V21+HilfstabelleProjektion!V26+HilfstabelleProjektion!V29)+SUM(Vermögensprojektion!W28:W94)","v":{"$error":"#VALUE!"}},{"$f":"(X17+X19+X21+X26+HilfstabelleProjektion!W16+HilfstabelleProjektion!W21+HilfstabelleProjektion!W26+HilfstabelleProjektion!W29)+SUM(Vermögensprojektion!X28:X94)","v":{"$error":"#VALUE!"}},{"$f":"(Y17+Y19+Y21+Y26+HilfstabelleProjektion!X16+HilfstabelleProjektion!X21+HilfstabelleProjektion!X26+HilfstabelleProjektion!X29)+SUM(Vermögensprojektion!Y28:Y94)","v":{"$error":"#VALUE!"}},{"$f":"(Z17+Z19+Z21+Z26+HilfstabelleProjektion!Y16+HilfstabelleProjektion!Y21+HilfstabelleProjektion!Y26+HilfstabelleProjektion!Y29)+SUM(Vermögensprojektion!Z28:Z94)","v":{"$error":"#VALUE!"}},{"$f":"(AA17+AA19+AA21+AA26+HilfstabelleProjektion!Z16+HilfstabelleProjektion!Z21+HilfstabelleProjektion!Z26+HilfstabelleProjektion!Z29)+SUM(Vermögensprojektion!AA28:AA94)","v":{"$error":"#VALUE!"}},{"$f":"(AB17+AB19+AB21+AB26+HilfstabelleProjektion!AA16+HilfstabelleProjektion!AA21+HilfstabelleProjektion!AA26+HilfstabelleProjektion!AA29)+SUM(Vermögensprojektion!AB28:AB94)","v":{"$error":"#VALUE!"}},{"$f":"(AC17+AC19+AC21+AC26+HilfstabelleProjektion!AB16+HilfstabelleProjektion!AB21+HilfstabelleProjektion!AB26+HilfstabelleProjektion!AB29)+SUM(Vermögensprojektion!AC28:AC94)","v":{"$error":"#VALUE!"}},{"$f":"(AD17+AD19+AD21+AD26+HilfstabelleProjektion!AC16+HilfstabelleProjektion!AC21+HilfstabelleProjektion!AC26+HilfstabelleProjektion!AC29)+SUM(Vermögensprojektion!AD28:AD94)","v":{"$error":"#VALUE!"}},{"$f":"(AE17+AE19+AE21+AE26+HilfstabelleProjektion!AD16+HilfstabelleProjektion!AD21+HilfstabelleProjektion!AD26+HilfstabelleProjektion!AD29)+SUM(Vermögensprojektion!AE28:AE94)","v":{"$error":"#VALUE!"}},{"$f":"(AF17+AF19+AF21+AF26+HilfstabelleProjektion!AE16+HilfstabelleProjektion!AE21+HilfstabelleProjektion!AE26+HilfstabelleProjektion!AE29)+SUM(Vermögensprojektion!AF28:AF94)","v":{"$error":"#VALUE!"}},{"$f":"(AG17+AG19+AG21+AG26+HilfstabelleProjektion!AF16+HilfstabelleProjektion!AF21+HilfstabelleProjektion!AF26+HilfstabelleProjektion!AF29)+SUM(Vermögensprojektion!AG28:AG94)","v":{"$error":"#VALUE!"}},{"$f":"(AH17+AH19+AH21+AH26+HilfstabelleProjektion!AG16+HilfstabelleProjektion!AG21+HilfstabelleProjektion!AG26+HilfstabelleProjektion!AG29)+SUM(Vermögensprojektion!AH28:AH94)","v":{"$error":"#VALUE!"}},{"$f":"(AI17+AI19+AI21+AI26+HilfstabelleProjektion!AH16+HilfstabelleProjektion!AH21+HilfstabelleProjektion!AH26+HilfstabelleProjektion!AH29)+SUM(Vermögensprojektion!AI28:AI94)","v":{"$error":"#VALUE!"}},{"$f":"(AJ17+AJ19+AJ21+AJ26+HilfstabelleProjektion!AI16+HilfstabelleProjektion!AI21+HilfstabelleProjektion!AI26+HilfstabelleProjektion!AI29)+SUM(Vermögensprojektion!AJ28:AJ94)","v":{"$error":"#VALUE!"}},{"$f":"(AK17+AK19+AK21+AK26+HilfstabelleProjektion!AJ16+HilfstabelleProjektion!AJ21+HilfstabelleProjektion!AJ26+HilfstabelleProjektion!AJ29)+SUM(Vermögensprojektion!AK28:AK94)","v":{"$error":"#VALUE!"}}]
[null,null,null,"Verkauf Obligationen",null,null,null,{"$f":"HilfstabelleProjektion!G19*-1","v":{"$error":"#VALUE!"}},{"$f":"HilfstabelleProjektion!H19*-1","v":{"$error":"#VALUE!"}},{"$f":"HilfstabelleProjektion!I19*-1","v":{"$error":"#VALUE!"}},{"$f":"HilfstabelleProjektion!J19*-1","v":{"$error":"#VALUE!"}},{"$f":"HilfstabelleProjektion!K19*-1","v":{"$error":"#VALUE!"}},{"$f":"HilfstabelleProjektion!L19*-1","v":{"$error":"#VALUE!"}},{"$f":"HilfstabelleProjektion!M19*-1","v":{"$error":"#VALUE!"}},{"$f":"HilfstabelleProjektion!N19*-1","v":{"$error":"#VALUE!"}},{"$f":"HilfstabelleProjektion!O19*-1","v":{"$error":"#VALUE!"}},{"$f":"HilfstabelleProjektion!P19*-1","v":{"$error":"#VALUE!"}},{"$f":"HilfstabelleProjektion!Q19*-1","v":{"$error":"#VALUE!"}},{"$f":"HilfstabelleProjektion!R19*-1","v":{"$error":"#VALUE!"}},{"$f":"HilfstabelleProjektion!S19*-1","v":{"$error":"#VALUE!"}},{"$f":"HilfstabelleProjektion!T19*-1","v":{"$error":"#VALUE!"}},{"$f":"HilfstabelleProjektion!U19*-1","v":{"$error":"#VALUE!"}},{"$f":"HilfstabelleProjektion!V19*-1","v":{"$error":"#VALUE!"}},{"$f":"HilfstabelleProjektion!W19*-1","v":{"$error":"#VALUE!"}},{"$f":"HilfstabelleProjektion!X19*-1","v":{"$error":"#VALUE!"}},{"$f":"HilfstabelleProjektion!Y19*-1","v":{"$error":"#VALUE!"}},{"$f":"HilfstabelleProjektion!Z19*-1","v":{"$error":"#VALUE!"}},{"$f":"HilfstabelleProjektion!AA19*-1","v":{"$error":"#VALUE!"}},{"$f":"HilfstabelleProjektion!AB19*-1","v":{"$error":"#VALUE!"}},{"$f":"HilfstabelleProjektion!AC19*-1","v":{"$error":"#VALUE!"}},{"$f":"HilfstabelleProjektion!AD19*-1","v":{"$error":"#VALUE!"}},{"$f":"HilfstabelleProjektion!AE19*-1","v":{"$error":"#VALUE!"}},{"$f":"HilfstabelleProjektion!AF19*-1","v":{"$error":"#VALUE!"}},{"$f":"HilfstabelleProjektion!AG19*-1","v":{"$error":"#VALUE!"}},{"$f":"HilfstabelleProjektion!AH19*-1","v":{"$error":"#VALUE!"}},{"$f":"HilfstabelleProjektion!AI19*-1","v":{"$error":"#VALUE!"}},{"$f":"HilfstabelleProjektion!AJ19*-1","v":{"$error":"#VALUE!"}}]
[null,null,null,"Liquide Mittel Ende Jahr",null,null,null,{"$f":"HilfstabelleProjektion!G137","v":{"$error":"#VALUE!"}},{"$f":"HilfstabelleProjektion!H137","v":{"$error":"#VALUE!"}},{"$f":"HilfstabelleProjektion!I137","v":{"$error":"#VALUE!"}},{"$f":"HilfstabelleProjektion!J137","v":{"$error":"#VALUE!"}},{"$f":"HilfstabelleProjektion!K137","v":{"$error":"#VALUE!"}},{"$f":"HilfstabelleProjektion!L137","v":{"$error":"#VALUE!"}},{"$f":"HilfstabelleProjektion!M137","v":{"$error":"#VALUE!"}},{"$f":"HilfstabelleProjektion!N137","v":{"$error":"#VALUE!"}},{"$f":"HilfstabelleProjektion!O137","v":{"$error":"#VALUE!"}},{"$f":"HilfstabelleProjektion!P137","v":{"$error":"#VALUE!"}},{"$f":"HilfstabelleProjektion!Q137","v":{"$error":"#VALUE!"}},{"$f":"HilfstabelleProjektion!R137","v":{"$error":"#VALUE!"}},{"$f":"HilfstabelleProjektion!S137","v":{"$error":"#VALUE!"}},{"$f":"HilfstabelleProjektion!T137","v":{"$error":"#VALUE!"}},{"$f":"HilfstabelleProjektion!U137","v":{"$error":"#VALUE!"}},{"$f":"HilfstabelleProjektion!V137","v":{"$error":"#VALUE!"}},{"$f":"HilfstabelleProjektion!W137","v":{"$error":"#VALUE!"}},{"$f":"HilfstabelleProjektion!X137","v":{"$error":"#VALUE!"}},{"$f":"HilfstabelleProjektion!Y137","v":{"$error":"#VALUE!"}},{"$f":"HilfstabelleProjektion!Z137","v":{"$error":"#VALUE!"}},{"$f":"HilfstabelleProjektion!AA137","v":{"$error":"#VALUE!"}},{"$f":"HilfstabelleProjektion!AB137","v":{"$error":"#VALUE!"}},{"$f":"HilfstabelleProjektion!AC137","v":{"$error":"#VALUE!"}},{"$f":"HilfstabelleProjektion!AD137","v":{"$error":"#VALUE!"}},{"$f":"HilfstabelleProjektion!AE137","v":{"$error":"#VALUE!"}},{"$f":"HilfstabelleProjektion!AF137","v":{"$error":"#VALUE!"}},{"$f":"HilfstabelleProjektion!AG137","v":{"$error":"#VALUE!"}},{"$f":"HilfstabelleProjektion!AH137","v":{"$error":"#VALUE!"}},{"$f":"HilfstabelleProjektion!AI137","v":{"$error":"#VALUE!"}},{"$f":"HilfstabelleProjektion!AJ137","v":{"$error":"#VALUE!"}}]

{"sheet":"Graphik Vermögensprojektion","index":8,"n_rows":0,"n_cols":0,"rows_kept":0,"cut":false,"hidden":false,"merged":[]}

{"sheet":"Hilfstabelle Vermögen","index":9,"n_rows":26,"n_cols":22,"rows_kept":26,"cut":false,"hidden":false,"merged":[]}
[]
[]
[]
[null,null,null,null,null,null,null,null,null,null,"Steuerbarer Ertrag"]
[null,null,"Total Vermögen heute (Zeitpunkt t0), ohne Immobilien",null,null,null,null,{"$f":"SUM(H7:H11)","v":0},"in%"]
[null,null,"Vermögensstruktur in CHF"]
[null,null,null,"Liquide Mittel",null,null,null,{"$f":"Vermögensstruktur!G13","v":0},{"$f":"H7/$H$5","v":{"$error":"#DIV/0!"}},null,{"$f":"Vermögensstruktur!N13/100","v":0},{"$f":"H7*K7","v":0}]
[null,null,null,"Aktien resp. Aktienfonds ",null,null,null,{"$f":"Vermögensstruktur!G15","v":0},{"$f":"H8/$H$5","v":{"$error":"#DIV/0!"}},null,{"$f":"Vermögensstruktur!N15/100","v":0},{"$f":"H8*K8","v":0}]
[null,null,null,"Obligationen resp. Obligationenfonds",null,null,null,{"$f":"Vermögensstruktur!G18","v":0},{"$f":"H9/$H$5","v":{"$error":"#DIV/0!"}},null,{"$f":"Vermögensstruktur!N18/100","v":0},{"$f":"H9*K9","v":0},null,"nicht steuerbar"]
[null,null,null,"Derivate, Strukturierte Produkte",null,null,null,{"$f":"Vermögensstruktur!G20","v":0},{"$f":"H10/$H$5","v":{"$error":"#DIV/0!"}},null,null,null,{"$f":"Vermögensstruktur!N20/100","v":0},{"$f":"H10*M10","v":0}]
[null,null,null,"Alternative Anlagen (Rohstoffe etc)",null,null,null,{"$f":"Vermögensstruktur!G22","v":0},{"$f":"H11/$H$5","v":{"$error":"#DIV/0!"}},null,null,null,{"$f":"Vermögensstruktur!N22/100","v":0},{"$f":"H11*M11","v":0}]
[]
[null,null," ","Wert Immobili(en) per heute",null,null,null,{"$f":"Vermögensstruktur!G25","v":0},null,null,{"$f":"Vermögensstruktur!N25/100","v":0},null,"Jährl. Wertveränderung",null,null,{"$f":"H13*K13","v":0}]
[null,null,"Total Vermögen",null,null,null,null,{"$f":"SUM(H7:H13)","v":0}," ",null,"Total",{"$f":"SUM(L7:L13)","v":0}]
[null,null,null,null,null,null,null,null,null,"Steuern auf Anlageertrag",null,{"$f":"(SUM(L7:L9)*Erwerbseinkommen!I50/100)*-1","v":{"$error":"#VALUE!"}}]
[]
[null,null,"Hypothek(en)",null,null,null,null,{"$f":"(Vermögensstruktur!G35)*-1","v":0},{"$f":"H17/$H$21","v":{"$error":"#DIV/0!"}},null,{"$f":"Vermögensstruktur!N35/100","v":0},{"$f":"H17*K17","v":0},null,"Amortisation",{"$f":"Vermögensstruktur!K35","v":0}]
[null,null,"Langfristige Darlehen ",null,null,null,null,{"$f":"(Vermögensstruktur!G37)*-1","v":0},{"$f":"H18/$H$21","v":{"$error":"#DIV/0!"}},null,{"$f":"Vermögensstruktur!N37/100","v":0},{"$f":"H18*K18","v":0},null,null,{"$f":"Vermögensstruktur!K37","v":0}]
[null,null,"Kurzfristige Konsumkredite",null,null,null,null,{"$f":"(Vermögensstruktur!G39)*-1","v":0},{"$f":"H19/$H$21","v":{"$error":"#DIV/0!"}},null,{"$f":"Vermögensstruktur!N39/100","v":0},{"$f":"H19*K19","v":0},null,null,{"$f":"Vermögensstruktur!K39","v":0}]
[null,null,"Sonstige Schulden",null,null,null,null,{"$f":"(Vermögensstruktur!G41)*-1","v":0},{"$f":"H20/$H$21","v":{"$error":"#DIV/0!"}},null,{"$f":"Vermögensstruktur!N41/100","v":0},{"$f":"H20*K20","v":0},null,null,{"$f":"Vermögensstruktur!K41","v":0}]
[null,null,"Total Schulden",null,null,null,null,{"$f":"SUM(H17:H20)","v":0},null,null,"Total",{"$f":"SUM(L17:L20)","v":0},null,"Total",{"$f":"SUM(O17:O20)","v":0}]
[]
[null,null,"Total Nettovermögen",null,null,null,null,{"$f":"H14+H21","v":0},null,"Steuern auf Schuldzinsen",null,{"$f":"(SUM(L17:L20)*Erwerbseinkommen!I50/-100)","v":{"$error":"#VALUE!"}}]
[]
[]
[null,null,1,2,3,4,5,6,7,8,9,10,11,12,13,14,15,16,17,18,19,20]

{"sheet":"HilfstabelleProjektion","index":10,"n_rows":140,"n_cols":37,"rows_kept":140,"cut":false,"hidden":false,"merged":[]}
[]
[]
[]
[]
[null,null,"Einkommens- und Vermögensprojektion"]
[]
[null,null,null,null,null,null,{"$f":"'Persönliche Daten'!G18","v":0},{"$f":"IF(G7<'Persönliche Daten'!$I$18,G7+1,\"\")","v":""},{"$f":"IF(H7<'Persönliche Daten'!$I$18,H7+1,\"\")","v":""},{"$f":"IF(I7<'Persönliche Daten'!$I$18,I7+1,\"\")","v":""},{"$f":"IF(J7<'Persönliche Daten'!$I$18,J7+1,\"\")","v":""},{"$f":"IF(K7<'Persönliche Daten'!$I$18,K7+1,\"\")","v":""},{"$f":"IF(L7<'Persönliche Daten'!$I$18,L7+1,\"\")","v":""},{"$f":"IF(M7<'Persönliche Daten'!$I$18,M7+1,\"\")","v":""},{"$f":"IF(N7<'Persönliche Daten'!$I$18,N7+1,\"\")","v":""},{"$f":"IF(O7<'Persönliche Daten'!$I$18,O7+1,\"\")","v":""},{"$f":"IF(P7<'Persönliche Daten'!$I$18,P7+1,\"\")","v":""},{"$f":"IF(Q7<'Persönliche Daten'!$I$18,Q7+1,\" \")","v":" "},{"$f":"IF(R7<'Persönliche Daten'!$I$18,R7+1,\" \")","v":" "},{"$f":"IF(S7<'Persönliche Daten'!$I$18,S7+1,\" \")","v":" "},{"$f":"IF(T7<'Persönliche Daten'!$I$18,T7+1,\" \")","v":" "},{"$f":"IF(U7<'Persönliche Daten'!$I$18,U7+1,\" \")","v":" "},{"$f":"IF(V7<'Persönliche Daten'!$I$18,V7+1,\" \")","v":" "},{"$f":"IF(W7<'Persönliche Daten'!$I$18,W7+1,\" \")","v":" "},{"$f":"IF(X7<'Persönliche Daten'!$I$18,X7+1,\" \")","v":" "},{"$f":"IF(Y7<'Persönliche Daten'!$I$18,Y7+1,\"\")","v":""},{"$f":"IF(Z7<'Persönliche Daten'!$I$18,Z7+1,\"\")","v":""},{"$f":"IF(AA7<'Persönliche Daten'!$I$18,AA7+1,\"\")","v":""},{"$f":"IF(AB7<'Persönliche Daten'!$I$18,AB7+1,\"\")","v":""},{"$f":"IF(AC7<'Persönliche Daten'!$I$18,AC7+1,\"\")","v":""},{"$f":"IF(AD7<'Persönliche Daten'!$I$18,AD7+1,\"\")","v":""},{"$f":"IF(AE7<'Persönliche Daten'!$I$18,AE7+1,\"\")","v":""},{"$f":"IF(AF7<'Persönliche Daten'!$I$18,AF7+1,\"\")","v":""},{"$f":"IF(AG7<'Persönliche Daten'!$I$18,AG7+1,\"\")","v":""},{"$f":"IF(AH7<'Persönliche Daten'!$I$18,AH7+1,\"\")","v":""},{"$f":"IF(AI7<'Persönliche Daten'!$I$18,AI7+1,\"\")","v":""}]
[null,null,null,null,null,null,"Jahr 1","Jahr 2","Jahr 3","Jahr 4  ","Jahr 5","Jahr 6","Jahr 7","Jahr 8","Jahr 9","Jahr 10","Jahr 11","Jahr 12","Jahr 13","Jahr 14","Jahr15","Jahr16","Jahr 17","Jahr 18","Jahr 19","Jahr 20","Jahr 21","Jahr 22","Jahr 23","Jahr 24","Jahr 25","Jahr 26","Jahr 27","Jahr 28","Jahr 29","Jahr 30"," "]
[null,null,null,null,null,null,1,2,3,4,5,6,7,8,9,10,11,12,13,14,15,16,17,18,19,20,21,22,23,24,25,26,27,28,29,30]
[]
[null,null,"Nettovermögen zu Beginn von",null,null,null,{"$f":"'Hilfstabelle Vermögen'!H23","v":0},{"$f":"G140","v":{"$error":"#VALUE!"}},{"$f":"H140","v":{"$error":"#VALUE!"}},{"$error":"#VALUE!"},{"$error":"#VALUE!"},{"$error":"#VALUE!"},{"$error":"#VALUE!"},{"$error":"#VALUE!"},{"$error":"#VALUE!"},{"$error":"#VALUE!"},{"$error":"#VALUE!"},{"$error":"#VALUE!"},{"$error":"#VALUE!"},{"$error":"#VALUE!"},{"$error":"#VALUE!"},{"$error":"#VALUE!"},{"$error":"#VALUE!"},{"$error":"#VALUE!"},{"$error":"#VALUE!"},{"$error":"#VALUE!"},{"$f":"Z140","v":{"$error":"#VALUE!"}},{"$f":"AA140","v":{"$error":"#VALUE!"}},{"$f":"AB140","v":{"$error":"#VALUE!"}},{"$f":"AC140","v":{"$error":"#VALUE!"}},{"$f":"AD140","v":{"$error":"#VALUE!"}},{"$f":"AE140","v":{"$error":"#VALUE!"}},{"$f":"AF140","v":{"$error":"#VALUE!"}},{"$f":"AG140","v":{"$error":"#VALUE!"}},{"$f":"AH140","v":{"$error":"#VALUE!"}},{"$f":"AI140","v":{"$error":"#VALUE!"}}]
[]
[null,null,"Anlagevermögen zu Beginn von",null,null,null,{"$f":"Vermögensstruktur!G9","v":0},{"$f":"G45","v":{"$error":"#VALUE!"}},{"$f":"H45","v":{"$error":"#VALUE!"}},{"$error":"#VALUE!"},{"$error":"#VALUE!"},{"$error":"#VALUE!"},{"$error":"#VALUE!"},{"$error":"#VALUE!"},{"$error":"#VALUE!"},{"$error":"#VALUE!"},{"$error":"#VALUE!"},{"$error":"#VALUE!"},{"$error":"#VALUE!"},{"$error":"#VALUE!"},{"$error":"#VALUE!"},{"$error":"#VALUE!"},{"$error":"#VALUE!"},{"$error":"#VALUE!"},{"$error":"#VALUE!"},{"$error":"#VALUE!"},{"$f":"Z45","v":{"$error":"#VALUE!"}},{"$f":"AA45","v":{"$error":"#VALUE!"}},{"$f":"AB45","v":{"$error":"#VALUE!"}},{"$f":"AC45","v":{"$error":"#VALUE!"}},{"$f":"AD45","v":{"$error":"#VALUE!"}},{"$f":"AE45","v":{"$error":"#VALUE!"}},{"$f":"AF45","v":{"$error":"#VALUE!"}},{"$f":"AG45","v":{"$error":"#VALUE!"}},{"$f":"AH45","v":{"$error":"#VALUE!"}},{"$f":"AI45","v":{"$error":"#VALUE!"}}]
[]
[null,null,"Liquide Mittel Anfang Jahr",null,null,null,{"$f":"'Hilfstabelle Vermögen'!H7","v":0},{"$f":"G137","v":{"$error":"#VALUE!"}},{"$f":"H137","v":{"$error":"#VALUE!"}},{"$error":"#VALUE!"},{"$error":"#VALUE!"},{"$error":"#VALUE!"},{"$error":"#VALUE!"},{"$error":"#VALUE!"},{"$error":"#VALUE!"},{"$error":"#VALUE!"},{"$error":"#VALUE!"},{"$error":"#VALUE!"},{"$error":"#VALUE!"},{"$error":"#VALUE!"},{"$error":"#VALUE!"},{"$error":"#VALUE!"},{"$error":"#VALUE!"},{"$error":"#VALUE!"},{"$error":"#VALUE!"},{"$error":"#VALUE!"},{"$f":"Z137","v":{"$error":"#VALUE!"}},{"$f":"AA137","v":{"$error":"#VALUE!"}},{"$f":"AB137","v":{"$error":"#VALUE!"}},{"$f":"AC137","v":{"$error":"#VALUE!"}},{"$f":"AD137","v":{"$error":"#VALUE!"}},{"$f":"AE137","v":{"$error":"#VALUE!"}},{"$f":"AF137","v":{"$error":"#VALUE!"}},{"$f":"AG137","v":{"$error":"#VALUE!"}},{"$f":"AH137","v":{"$error":"#VALUE!"}},{"$f":"AI137","v":{"$error":"#VALUE!"}}]
[null,null,"Zinsen (liquid, steuerbar)",null,null,null,{"$f":"G15*'Hilfstabelle Vermögen'!K7","v":0},{"$f":"H15*'Hilfstabelle Vermögen'!$K$7","v":{"$error":"#VALUE!"}},{"$f":"I15*'Hilfstabelle Vermögen'!$K$7","v":{"$error":"#VALUE!"}},{"$f":"J15*'Hilfstabelle Vermögen'!$K$7","v":{"$error":"#VALUE!"}},{"$f":"K15*'Hilfstabelle Vermögen'!$K$7","v":{"$error":"#VALUE!"}},{"$f":"L15*'Hilfstabelle Vermögen'!$K$7","v":{"$error":"#VALUE!"}},{"$f":"M15*'Hilfstabelle Vermögen'!$K$7","v":{"$error":"#VALUE!"}},{"$f":"N15*'Hilfstabelle Vermögen'!$K$7","v":{"$error":"#VALUE!"}},{"$f":"O15*'Hilfstabelle Vermögen'!$K$7","v":{"$error":"#VALUE!"}},{"$f":"P15*'Hilfstabelle Vermögen'!$K$7","v":{"$error":"#VALUE!"}},{"$f":"Q15*'Hilfstabelle Vermögen'!$K$7","v":{"$error":"#VALUE!"}},{"$f":"R15*'Hilfstabelle Vermögen'!$K$7","v":{"$error":"#VALUE!"}},{"$f":"S15*'Hilfstabelle Vermögen'!$K$7","v":{"$error":"#VALUE!"}},{"$f":"T15*'Hilfstabelle Vermögen'!$K$7","v":{"$error":"#VALUE!"}},{"$f":"U15*'Hilfstabelle Vermögen'!$K$7","v":{"$error":"#VALUE!"}},{"$f":"V15*'Hilfstabelle Vermögen'!$K$7","v":{"$error":"#VALUE!"}},{"$f":"W15*'Hilfstabelle Vermögen'!$K$7","v":{"$error":"#VALUE!"}},{"$f":"X15*'Hilfstabelle Vermögen'!$K$7","v":{"$error":"#VALUE!"}},{"$f":"Y15*'Hilfstabelle Vermögen'!$K$7","v":{"$error":"#VALUE!"}},{"$f":"Z15*'Hilfstabelle Vermögen'!$K$7","v":{"$error":"#VALUE!"}},{"$f":"AA15*'Hilfstabelle Vermögen'!$K$7","v":{"$error":"#VALUE!"}},{"$f":"AB15*'Hilfstabelle Vermögen'!$K$7","v":{"$error":"#VALUE!"}},{"$f":"AC15*'Hilfstabelle Vermögen'!$K$7","v":{"$error":"#VALUE!"}},{"$f":"AD15*'Hilfstabelle Vermögen'!$K$7","v":{"$error":"#VALUE!"}},{"$f":"AE15*'Hilfstabelle Vermögen'!$K$7","v":{"$error":"#VALUE!"}},{"$f":"AF15*'Hilfstabelle Vermögen'!$K$7","v":{"$error":"#VALUE!"}},{"$f":"AG15*'Hilfstabelle Vermögen'!$K$7","v":{"$error":"#VALUE!"}},{"$f":"AH15*'Hilfstabelle Vermögen'!$K$7","v":{"$error":"#VALUE!"}},{"$f":"AI15*'Hilfstabelle Vermögen'!$K$7","v":{"$error":"#VALUE!"}},{"$f":"AJ15*'Hilfstabelle Vermögen'!$K$7","v":{"$error":"#VALUE!"}}]
[]
[null,null,"Obligationen",null,null,null,{"$f":"'Hilfstabelle Vermögen'!H9","v":0},{"$f":"G20","v":{"$error":"#VALUE!"}},{"$f":"H20","v":{"$error":"#VALUE!"}},{"$error":"#VALUE!"},{"$error":"#VALUE!"},{"$error":"#VALUE!"},{"$error":"#VALUE!"},{"$error":"#VALUE!"},{"$error":"#VALUE!"},{"$error":"#VALUE!"},{"$error":"#VALUE!"},{"$error":"#VALUE!"},{"$error":"#VALUE!"},{"$error":"#VALUE!"},{"$error":"#VALUE!"},{"$error":"#VALUE!"},{"$error":"#VALUE!"},{"$error":"#VALUE!"},{"$error":"#VALUE!"},{"$error":"#VALUE!"},{"$f":"Z20","v":{"$error":"#VALUE!"}},{"$f":"AA20","v":{"$error":"#VALUE!"}},{"$f":"AB20","v":{"$error":"#VALUE!"}},{"$f":"AC20","v":{"$error":"#VALUE!"}},{"$f":"AD20","v":{"$error":"#VALUE!"}},{"$f":"AE20","v":{"$error":"#VALUE!"}},{"$f":"AF20","v":{"$error":"#VALUE!"}},{"$f":"AG20","v":{"$error":"#VALUE!"}},{"$f":"AH20","v":{"$error":"#VALUE!"}},{"$f":"AI20","v":{"$error":"#VALUE!"}}]
[null,null,"Auflösen (liquid)",null,null,null,{"$f":"IF(G136<0,G136,0)","v":{"$error":"#VALUE!"}},{"$f":"IF(H136<0,H136,0)","v":{"$error":"#VALUE!"}},{"$f":"IF(I136<0,I136,0)","v":{"$error":"#VALUE!"}},{"$error":"#VALUE!"},{"$error":"#VALUE!"},{"$error":"#VALUE!"},{"$error":"#VALUE!"},{"$error":"#VALUE!"},{"$error":"#VALUE!"},{"$error":"#VALUE!"},{"$error":"#VALUE!"},{"$error":"#VALUE!"},{"$error":"#VALUE!"},{"$error":"#VALUE!"},{"$error":"#VALUE!"},{"$error":"#VALUE!"},{"$error":"#VALUE!"},{"$error":"#VALUE!"},{"$error":"#VALUE!"},{"$error":"#VALUE!"},{"$f":"IF(AA136<0,AA136,0)","v":{"$error":"#VALUE!"}},{"$error":"#VALUE!"},{"$error":"#VALUE!"},{"$error":"#VALUE!"},{"$error":"#VALUE!"},{"$error":"#VALUE!"},{"$error":"#VALUE!"},{"$error":"#VALUE!"},{"$error":"#VALUE!"},{"$error":"#VALUE!"}]
[null,null,"Total Ende Jahr",null,null,null,{"$f":"SUM(G18:G19)","v":{"$error":"#VALUE!"}},{"$f":"SUM(H18:H19)","v":{"$error":"#VALUE!"}},{"$error":"#VALUE!"},{"$error":"#VALUE!"},{"$error":"#VALUE!"},{"$error":"#VALUE!"},{"$error":"#VALUE!"},{"$error":"#VALUE!"},{"$error":"#VALUE!"},{"$error":"#VALUE!"},{"$error":"#VALUE!"},{"$error":"#VALUE!"},{"$error":"#VALUE!"},{"$error":"#VALUE!"},{"$error":"#VALUE!"},{"$error":"#VALUE!"},{"$error":"#VALUE!"},{"$error":"#VALUE!"},{"$error":"#VALUE!"},{"$error":"#VALUE!"},{"$f":"SUM(AA18:AA19)","v":{"$error":"#VALUE!"}},{"$error":"#VALUE!"},{"$error":"#VALUE!"},{"$error":"#VALUE!"},{"$error":"#VALUE!"},{"$error":"#VALUE!"},{"$error":"#VALUE!"},{"$error":"#VALUE!"},{"$error":"#VALUE!"},{"$error":"#VALUE!"}]
[null,null,"Zinsen (liquid, steuerbar)",null,null,null,{"$f":"G18*'Hilfstabelle Vermögen'!$K$9","v":0},{"$f":"H18*'Hilfstabelle Vermögen'!$K$9","v":{"$error":"#VALUE!"}},{"$f":"I18*'Hilfstabelle Vermögen'!$K$9","v":{"$error":"#VALUE!"}},{"$f":"J18*'Hilfstabelle Vermögen'!$K$9","v":{"$error":"#VALUE!"}},{"$f":"K18*'Hilfstabelle Vermögen'!$K$9","v":{"$error":"#VALUE!"}},{"$f":"L18*'Hilfstabelle Vermögen'!$K$9","v":{"$error":"#VALUE!"}},{"$f":"M18*'Hilfstabelle Vermögen'!$K$9","v":{"$error":"#VALUE!"}},{"$f":"N18*'Hilfstabelle Vermögen'!$K$9","v":{"$error":"#VALUE!"}},{"$f":"O18*'Hilfstabelle Vermögen'!$K$9","v":{"$error":"#VALUE!"}},{"$f":"P18*'Hilfstabelle Vermögen'!$K$9","v":{"$error":"#VALUE!"}},{"$f":"Q18*'Hilfstabelle Vermögen'!$K$9","v":{"$error":"#VALUE!"}},{"$f":"R18*'Hilfstabelle Vermögen'!$K$9","v":{"$error":"#VALUE!"}},{"$f":"S18*'Hilfstabelle Vermögen'!$K$9","v":{"$error":"#VALUE!"}},{"$f":"T18*'Hilfstabelle Vermögen'!$K$9","v":{"$error":"#VALUE!"}},{"$f":"U18*'Hilfstabelle Vermögen'!$K$9","v":{"$error":"#VALUE!"}},{"$f":"V18*'Hilfstabelle Vermögen'!$K$9","v":{"$error":"#VALUE!"}},{"$f":"W18*'Hilfstabelle Vermögen'!$K$9","v":{"$error":"#VALUE!"}},{"$f":"X18*'Hilfstabelle Vermögen'!$K$9","v":{"$error":"#VALUE!"}},{"$f":"Y18*'Hilfstabelle Vermögen'!$K$9","v":{"$error":"#VALUE!"}},{"$f":"Z18*'Hilfstabelle Vermögen'!$K$9","v":{"$error":"#VALUE!"}},{"$f":"AA18*'Hilfstabelle Vermögen'!$K$9","v":{"$error":"#VALUE!"}},{"$f":"AB18*'Hilfstabelle Vermögen'!$K$9","v":{"$error":"#VALUE!"}},{"$f":"AC18*'Hilfstabelle Vermögen'!$K$9","v":{"$error":"#VALUE!"}},{"$f":"AD18*'Hilfstabelle Vermögen'!$K$9","v":{"$error":"#VALUE!"}},{"$f":"AE18*'Hilfstabelle Vermögen'!$K$9","v":{"$error":"#VALUE!"}},{"$f":"AF18*'Hilfstabelle Vermögen'!$K$9","v":{"$error":"#VALUE!"}},{"$f":"AG18*'Hilfstabelle Vermögen'!$K$9","v":{"$error":"#VALUE!"}},{"$f":"AH18*'Hilfstabelle Vermögen'!$K$9","v":{"$error":"#VALUE!"}},{"$f":"AI18*'Hilfstabelle Vermögen'!$K$9","v":{"$error":"#VALUE!"}},{"$f":"AJ18*'Hilfstabelle Vermögen'!$K$9","v":{"$error":"#VALUE!"}}]
[]
[null,null,"Aktien",null,null,null,{"$f":"'Hilfstabelle Vermögen'!H8","v":0},{"$f":"G25","v":0},{"$f":"H25","v":0},0,0,0,0,0,0,0,0,0,0,0,0,0,0,0,0,0,{"$f":"Z25","v":0},{"$f":"AA25","v":0},{"$f":"AB25","v":0},{"$f":"AC25","v":0},{"$f":"AD25","v":0},{"$f":"AE25","v":0},{"$f":"AF25","v":0},{"$f":"AG25","v":0},{"$f":"AH25","v":0},{"$f":"AI25","v":0}]
[null,null,"Kurssteigerung",null,null,null,{"$f":"G23*(Vermögensstruktur!$N$16/100)","v":0},{"$f":"H23*(Vermögensstruktur!$N$16/100)","v":0},{"$f":"I23*(Vermögensstruktur!$N$16/100)","v":0},{"$f":"J23*(Vermögensstruktur!$N$16/100)","v":0},{"$f":"K23*(Vermögensstruktur!$N$16/100)","v":0},{"$f":"L23*(Vermögensstruktur!$N$16/100)","v":0},{"$f":"M23*(Vermögensstruktur!$N$16/100)","v":0},{"$f":"N23*(Vermögensstruktur!$N$16/100)","v":0},{"$f":"O23*(Vermögensstruktur!$N$16/100)","v":0},{"$f":"P23*(Vermögensstruktur!$N$16/100)","v":0},{"$f":"Q23*(Vermögensstruktur!$N$16/100)","v":0},{"$f":"R23*(Vermögensstruktur!$N$16/100)","v":0},{"$f":"S23*(Vermögensstruktur!$N$16/100)","v":0},{"$f":"T23*(Vermögensstruktur!$N$16/100)","v":0},{"$f":"U23*(Vermögensstruktur!$N$16/100)","v":0},{"$f":"V23*(Vermögensstruktur!$N$16/100)","v":0},{"$f":"W23*(Vermögensstruktur!$N$16/100)","v":0},{"$f":"X23*(Vermögensstruktur!$N$16/100)","v":0},{"$f":"Y23*(Vermögensstruktur!$N$16/100)","v":0},{"$f":"Z23*(Vermögensstruktur!$N$16/100)","v":0},{"$f":"AA23*(Vermögensstruktur!$N$16/100)","v":0},{"$f":"AB23*(Vermögensstruktur!$N$16/100)","v":0},{"$f":"AC23*(Vermögensstruktur!$N$16/100)","v":0},{"$f":"AD23*(Vermögensstruktur!$N$16/100)","v":0},{"$f":"AE23*(Vermögensstruktur!$N$16/100)","v":0},{"$f":"AF23*(Vermögensstruktur!$N$16/100)","v":0},{"$f":"AG23*(Vermögensstruktur!$N$16/100)","v":0},{"$f":"AH23*(Vermögensstruktur!$N$16/100)","v":0},{"$f":"AI23*(Vermögensstruktur!$N$16/100)","v":0},{"$f":"AJ23*(Vermögensstruktur!$N$16/100)","v":0}]
[null,null,"Total Ende Jahr",null,null,null,{"$f":"SUM(G23:G24)","v":0},{"$f":"SUM(H23:H24)","v":0},0,0,0,0,0,0,0,0,0,0,0,0,0,0,0,0,0,0,{"$f":"SUM(AA23:AA24)","v":0},0,0,0,0,0,0,0,0,0]
[null,null,"Dividende (liquid, steuerbar)",null,null,null,{"$f":"G23*'Hilfstabelle Vermögen'!$K$8","v":0},{"$f":"H23*'Hilfstabelle Vermögen'!$K$8","v":0},{"$f":"I23*'Hilfstabelle Vermögen'!$K$8","v":0},{"$f":"J23*'Hilfstabelle Vermögen'!$K$8","v":0},{"$f":"K23*'Hilfstabelle Vermögen'!$K$8","v":0},{"$f":"L23*'Hilfstabelle Vermögen'!$K$8","v":0},{"$f":"M23*'Hilfstabelle Vermögen'!$K$8","v":0},{"$f":"N23*'Hilfstabelle Vermögen'!$K$8","v":0},{"$f":"O23*'Hilfstabelle Vermögen'!$K$8","v":0},{"$f":"P23*'Hilfstabelle Vermögen'!$K$8","v":0},{"$f":"Q23*'Hilfstabelle Vermögen'!$K$8","v":0},{"$f":"R23*'Hilfstabelle Vermögen'!$K$8","v":0},{"$f":"S23*'Hilfstabelle Vermögen'!$K$8","v":0},{"$f":"T23*'Hilfstabelle Vermögen'!$K$8","v":0},{"$f":"U23*'Hilfstabelle Vermögen'!$K$8","v":0},{"$f":"V23*'Hilfstabelle Vermögen'!$K$8","v":0},{"$f":"W23*'Hilfstabelle Vermögen'!$K$8","v":0},{"$f":"X23*'Hilfstabelle Vermögen'!$K$8","v":0},{"$f":"Y23*'Hilfstabelle Vermögen'!$K$8","v":0},{"$f":"Z23*'Hilfstabelle Vermögen'!$K$8","v":0},{"$f":"AA23*'Hilfstabelle Vermögen'!$K$8","v":0},{"$f":"AB23*'Hilfstabelle Vermögen'!$K$8","v":0},{"$f":"AC23*'Hilfstabelle Vermögen'!$K$8","v":0},{"$f":"AD23*'Hilfstabelle Vermögen'!$K$8","v":0},{"$f":"AE23*'Hilfstabelle Vermögen'!$K$8","v":0},{"$f":"AF23*'Hilfstabelle Vermögen'!$K$8","v":0},{"$f":"AG23*'Hilfstabelle Vermögen'!$K$8","v":0},{"$f":"AH23*'Hilfstabelle Vermögen'!$K$8","v":0},{"$f":"AI23*'Hilfstabelle Vermögen'!$K$8","v":0},{"$f":"AJ23*'Hilfstabelle Vermögen'!$K$8","v":0}]
[]
[null,null,"Derivate, Strukturierte Produkte",null,null,null,{"$f":"'Hilfstabelle Vermögen'!$H$10","v":0},{"$f":"'Hilfstabelle Vermögen'!$H$10","v":0},{"$f":"'Hilfstabelle Vermögen'!$H$10","v":0},{"$f":"'Hilfstabelle Vermögen'!$H$10","v":0},{"$f":"'Hilfstabelle Vermögen'!$H$10","v":0},{"$f":"'Hilfstabelle Vermögen'!$H$10","v":0},{"$f":"'Hilfstabelle Vermögen'!$H$10","v":0},{"$f":"'Hilfstabelle Vermögen'!$H$10","v":0},{"$f":"'Hilfstabelle Vermögen'!$H$10","v":0},{"$f":"'Hilfstabelle Vermögen'!$H$10","v":0},{"$f":"'Hilfstabelle Vermögen'!$H$10","v":0},{"$f":"'Hilfstabelle Vermögen'!$H$10","v":0},{"$f":"'Hilfstabelle Vermögen'!$H$10","v":0},{"$f":"'Hilfstabelle Vermögen'!$H$10","v":0},{"$f":"'Hilfstabelle Vermögen'!$H$10","v":0},{"$f":"'Hilfstabelle Vermögen'!$H$10","v":0},{"$f":"'Hilfstabelle Vermögen'!$H$10","v":0},{"$f":"'Hilfstabelle Vermögen'!$H$10","v":0},{"$f":"'Hilfstabelle Vermögen'!$H$10","v":0},{"$f":"'Hilfstabelle Vermögen'!$H$10","v":0},{"$f":"'Hilfstabelle Vermögen'!$H$10","v":0},{"$f":"'Hilfstabelle Vermögen'!$H$10","v":0},{"$f":"'Hilfstabelle Vermögen'!$H$10","v":0},{"$f":"'Hilfstabelle Vermögen'!$H$10","v":0},{"$f":"'Hilfstabelle Vermögen'!$H$10","v":0},{"$f":"'Hilfstabelle Vermögen'!$H$10","v":0},{"$f":"'Hilfstabelle Vermögen'!$H$10","v":0},{"$f":"'Hilfstabelle Vermögen'!$H$10","v":0},{"$f":"'Hilfstabelle Vermögen'!$H$10","v":0},{"$f":"'Hilfstabelle Vermögen'!$H$10","v":0}]
[null,null,"Ertrag (liquid, nicht steuerbar)",null,null,null,{"$f":"G28*Vermögensstruktur!$N$20/100","v":0},{"$f":"H28*Vermögensstruktur!$N$20/100","v":0},{"$f":"I28*Vermögensstruktur!$N$20/100","v":0},{"$f":"J28*Vermögensstruktur!$N$20/100","v":0},{"$f":"K28*Vermögensstruktur!$N$20/100","v":0},{"$f":"L28*Vermögensstruktur!$N$20/100","v":0},{"$f":"M28*Vermögensstruktur!$N$20/100","v":0},{"$f":"N28*Vermögensstruktur!$N$20/100","v":0},{"$f":"O28*Vermögensstruktur!$N$20/100","v":0},{"$f":"P28*Vermögensstruktur!$N$20/100","v":0},{"$f":"Q28*Vermögensstruktur!$N$20/100","v":0},{"$f":"R28*Vermögensstruktur!$N$20/100","v":0},{"$f":"S28*Vermögensstruktur!$N$20/100","v":0},{"$f":"T28*Vermögensstruktur!$N$20/100","v":0},{"$f":"U28*Vermögensstruktur!$N$20/100","v":0},{"$f":"V28*Vermögensstruktur!$N$20/100","v":0},{"$f":"W28*Vermögensstruktur!$N$20/100","v":0},{"$f":"X28*Vermögensstruktur!$N$20/100","v":0},{"$f":"Y28*Vermögensstruktur!$N$20/100","v":0},{"$f":"Z28*Vermögensstruktur!$N$20/100","v":0},{"$f":"AA28*Vermögensstruktur!$N$20/100","v":0},{"$f":"AB28*Vermögensstruktur!$N$20/100","v":0},{"$f":"AC28*Vermögensstruktur!$N$20/100","v":0},{"$f":"AD28*Vermögensstruktur!$N$20/100","v":0},{"$f":"AE28*Vermögensstruktur!$N$20/100","v":0},{"$f":"AF28*Vermögensstruktur!$N$20/100","v":0},{"$f":"AG28*Vermögensstruktur!$N$20/100","v":0},{"$f":"AH28*Vermögensstruktur!$N$20/100","v":0},{"$f":"AI28*Vermögensstruktur!$N$20/100","v":0},{"$f":"AJ28*Vermögensstruktur!$N$20/100","v":0}]
[]
[null,null,"Alternative Anlagen (Rohstoffe etc.)",null,null,null,{"$f":"'Hilfstabelle Vermögen'!H11","v":0},{"$f":"G33","v":0},{"$f":"H33","v":0},0,0,0,0,0,0,0,0,0,0,0,0,0,0,0,0,0,{"$f":"Z33","v":0},{"$f":"AA33","v":0},{"$f":"AB33","v":0},{"$f":"AC33","v":0},{"$f":"AD33","v":0},{"$f":"AE33","v":0},{"$f":"AF33","v":0},{"$f":"AG33","v":0},{"$f":"AH33","v":0},{"$f":"AI33","v":0}]
[null,null,"Kurssteigerung",null,null,null,{"$f":"G31*'Hilfstabelle Vermögen'!$M$11","v":0},{"$f":"H31*'Hilfstabelle Vermögen'!$M$11","v":0},{"$f":"I31*'Hilfstabelle Vermögen'!$M$11","v":0},{"$f":"J31*'Hilfstabelle Vermögen'!$M$11","v":0},{"$f":"K31*'Hilfstabelle Vermögen'!$M$11","v":0},{"$f":"L31*'Hilfstabelle Vermögen'!$M$11","v":0},{"$f":"M31*'Hilfstabelle Vermögen'!$M$11","v":0},{"$f":"N31*'Hilfstabelle Vermögen'!$M$11","v":0},{"$f":"O31*'Hilfstabelle Vermögen'!$M$11","v":0},{"$f":"P31*'Hilfstabelle Vermögen'!$M$11","v":0},{"$f":"Q31*'Hilfstabelle Vermögen'!$M$11","v":0},{"$f":"R31*'Hilfstabelle Vermögen'!$M$11","v":0},{"$f":"S31*'Hilfstabelle Vermögen'!$M$11","v":0},{"$f":"T31*'Hilfstabelle Vermögen'!$M$11","v":0},{"$f":"U31*'Hilfstabelle Vermögen'!$M$11","v":0},{"$f":"V31*'Hilfstabelle Vermögen'!$M$11","v":0},{"$f":"W31*'Hilfstabelle Vermögen'!$M$11","v":0},{"$f":"X31*'Hilfstabelle Vermögen'!$M$11","v":0},{"$f":"Y31*'Hilfstabelle Vermögen'!$M$11","v":0},{"$f":"Z31*'Hilfstabelle Vermögen'!$M$11","v":0},{"$f":"AA31*'Hilfstabelle Vermögen'!$M$11","v":0},{"$f":"AB31*'Hilfstabelle Vermögen'!$M$11","v":0},{"$f":"AC31*'Hilfstabelle Vermögen'!$M$11","v":0},{"$f":"AD31*'Hilfstabelle Vermögen'!$M$11","v":0},{"$f":"AE31*'Hilfstabelle Vermögen'!$M$11","v":0},{"$f":"AF31*'Hilfstabelle Vermögen'!$M$11","v":0},{"$f":"AG31*'Hilfstabelle Vermögen'!$M$11","v":0},{"$f":"AH31*'Hilfstabelle Vermögen'!$M$11","v":0},{"$f":"AI31*'Hilfstabelle Vermögen'!$M$11","v":0},{"$f":"AJ31*'Hilfstabelle Vermögen'!$M$11","v":0}]
[null,null,"Total (Ende Jahr)",null,null,null,{"$f":"SUM(G31:G32)","v":0},{"$f":"SUM(H31:H32)","v":0},0,0,0,0,0,0,0,0,0,0,0,0,0,0,0,0,0,0,{"$f":"SUM(AA31:AA32)","v":0},0,0,0,0,0,0,0,0,0]
[]
[null,null,"Nettolohn (aus monatlichem Budget)",null,null,null,{"$f":"IF(G7<'Persönliche Daten'!$G$20,'Monatliches Budget'!$K$15,0)","v":0},{"$f":"IF(H7<'Persönliche Daten'!$G$20,'Monatliches Budget'!$K$15,0)","v":0},{"$f":"IF(I7<'Persönliche Daten'!$G$20,'Monatliches Budget'!$K$15,0)","v":0},{"$f":"IF(J7<'Persönliche Daten'!$G$20,'Monatliches Budget'!$K$15,0)","v":0},{"$f":"IF(K7<'Persönliche Daten'!$G$20,'Monatliches Budget'!$K$15,0)","v":0},{"$f":"IF(L7<'Persönliche Daten'!$G$20,'Monatliches Budget'!$K$15,0)","v":0},{"$f":"IF(M7<'Persönliche Daten'!$G$20,'Monatliches Budget'!$K$15,0)","v":0},{"$f":"IF(N7<'Persönliche Daten'!$G$20,'Monatliches Budget'!$K$15,0)","v":0},{"$f":"IF(O7<'Persönliche Daten'!$G$20,'Monatliches Budget'!$K$15,0)","v":0},{"$f":"IF(P7<'Persönliche Daten'!$G$20,'Monatliches Budget'!$K$15,0)","v":0},{"$f":"IF(Q7<'Persönliche Daten'!$G$20,'Monatliches Budget'!$K$15,0)","v":0},{"$f":"IF(R7<'Persönliche Daten'!$G$20,'Monatliches Budget'!$K$15,0)","v":0},{"$f":"IF(S7<'Persönliche Daten'!$G$20,'Monatliches Budget'!$K$15,0)","v":0},{"$f":"IF(T7<'Persönliche Daten'!$G$20,'Monatliches Budget'!$K$15,0)","v":0},{"$f":"IF(U7<'Persönliche Daten'!$G$20,'Monatliches Budget'!$K$15,0)","v":0},{"$f":"IF(V7<'Persönliche Daten'!$G$20,'Monatliches Budget'!$K$15,0)","v":0},{"$f":"IF(W7<'Persönliche Daten'!$G$20,'Monatliches Budget'!$K$15,0)","v":0},{"$f":"IF(X7<'Persönliche Daten'!$G$20,'Monatliches Budget'!$K$15,0)","v":0},{"$f":"IF(Y7<'Persönliche Daten'!$G$20,'Monatliches Budget'!$K$15,0)","v":0},{"$f":"IF(Z7<'Persönliche Daten'!$G$20,'Monatliches Budget'!$K$15,0)","v":0},{"$f":"IF(AA7<'Persönliche Daten'!$G$20,'Monatliches Budget'!$K$15,0)","v":0},{"$f":"IF(AB7<'Persönliche Daten'!$G$20,'Monatliches Budget'!$K$15,0)","v":0},{"$f":"IF(AC7<'Persönliche Daten'!$G$20,'Monatliches Budget'!$K$15,0)","v":0},{"$f":"IF(AD7<'Persönliche Daten'!$G$20,'Monatliches Budget'!$K$15,0)","v":0},{"$f":"IF(AE7<'Persönliche Daten'!$G$20,'Monatliches Budget'!$K$15,0)","v":0},{"$f":"IF(AF7<'Persönliche Daten'!$G$20,'Monatliches Budget'!$K$15,0)","v":0},{"$f":"IF(AG7<'Persönliche Daten'!$G$20,'Monatliches Budget'!$K$15,0)","v":0},{"$f":"IF(AH7<'Persönliche Daten'!$G$20,'Monatliches Budget'!$K$15,0)","v":0},{"$f":"IF(AI7<'Persönliche Daten'!$G$20,'Monatliches Budget'!$K$15,0)","v":0},{"$f":"IF(AJ7<'Persönliche Daten'!$G$20,'Monatliches Budget'!$K$15,0)","v":0}]
[null,null,"  Steuern auf Nettolohn im Jahre 1",null,null,null,{"$f":"IF(G7<'Persönliche Daten'!$G$20,'Hilfstabelle Steuern'!$H$8,0)","v":0},{"$f":"IF(H7<'Persönliche Daten'!$G$20,'Hilfstabelle Steuern'!$H$8,0)","v":0},{"$f":"IF(I7<'Persönliche Daten'!$G$20,'Hilfstabelle Steuern'!$H$8,0)","v":0},{"$f":"IF(J7<'Persönliche Daten'!$G$20,'Hilfstabelle Steuern'!$H$8,0)","v":0},{"$f":"IF(K7<'Persönliche Daten'!$G$20,'Hilfstabelle Steuern'!$H$8,0)","v":0},{"$f":"IF(L7<'Persönliche Daten'!$G$20,'Hilfstabelle Steuern'!$H$8,0)","v":0},{"$f":"IF(M7<'Persönliche Daten'!$G$20,'Hilfstabelle Steuern'!$H$8,0)","v":0},{"$f":"IF(N7<'Persönliche Daten'!$G$20,'Hilfstabelle Steuern'!$H$8,0)","v":0},{"$f":"IF(O7<'Persönliche Daten'!$G$20,'Hilfstabelle Steuern'!$H$8,0)","v":0},{"$f":"IF(P7<'Persönliche Daten'!$G$20,'Hilfstabelle Steuern'!$H$8,0)","v":0},{"$f":"IF(Q7<'Persönliche Daten'!$G$20,'Hilfstabelle Steuern'!$H$8,0)","v":0},{"$f":"IF(R7<'Persönliche Daten'!$G$20,'Hilfstabelle Steuern'!$H$8,0)","v":0},{"$f":"IF(S7<'Persönliche Daten'!$G$20,'Hilfstabelle Steuern'!$H$8,0)","v":0},{"$f":"IF(T7<'Persönliche Daten'!$G$20,'Hilfstabelle Steuern'!$H$8,0)","v":0},{"$f":"IF(U7<'Persönliche Daten'!$G$20,'Hilfstabelle Steuern'!$H$8,0)","v":0},{"$f":"IF(V7<'Persönliche Daten'!$G$20,'Hilfstabelle Steuern'!$H$8,0)","v":0},{"$f":"IF(W7<'Persönliche Daten'!$G$20,'Hilfstabelle Steuern'!$H$8,0)","v":0},{"$f":"IF(X7<'Persönliche Daten'!$G$20,'Hilfstabelle Steuern'!$H$8,0)","v":0},{"$f":"IF(Y7<'Persönliche Daten'!$G$20,'Hilfstabelle Steuern'!$H$8,0)","v":0},{"$f":"IF(Z7<'Persönliche Daten'!$G$20,'Hilfstabelle Steuern'!$H$8,0)","v":0},{"$f":"IF(AA7<'Persönliche Daten'!$G$20,'Hilfstabelle Steuern'!$H$8,0)","v":0},{"$f":"IF(AB7<'Persönliche Daten'!$G$20,'Hilfstabelle Steuern'!$H$8,0)","v":0},{"$f":"IF(AC7<'Persönliche Daten'!$G$20,'Hilfstabelle Steuern'!$H$8,0)","v":0},{"$f":"IF(AD7<'Persönliche Daten'!$G$20,'Hilfstabelle Steuern'!$H$8,0)","v":0},{"$f":"IF(AE7<'Persönliche Daten'!$G$20,'Hilfstabelle Steuern'!$H$8,0)","v":0},{"$f":"IF(AF7<'Persönliche Daten'!$G$20,'Hilfstabelle Steuern'!$H$8,0)","v":0},{"$f":"IF(AG7<'Persönliche Daten'!$G$20,'Hilfstabelle Steuern'!$H$8,0)","v":0},{"$f":"IF(AH7<'Persönliche Daten'!$G$20,'Hilfstabelle Steuern'!$H$8,0)","v":0},{"$f":"IF(AI7<'Persönliche Daten'!$G$20,'Hilfstabelle Steuern'!$H$8,0)","v":0},{"$f":"IF(AJ7<'Persönliche Daten'!$G$20,'Hilfstabelle Steuern'!$H$8,0)","v":0}]
[null,null,"  Lohnsteigerung wirksam im nächsten Jahr",null,null,null,{"$f":"G35*Erwerbseinkommen!$N$20/100","v":0},{"$f":"H35*Erwerbseinkommen!$N$20/100","v":0},{"$f":"I35*Erwerbseinkommen!$N$20/100","v":0},{"$f":"J35*Erwerbseinkommen!$N$20/100","v":0},{"$f":"K35*Erwerbseinkommen!$N$20/100","v":0},{"$f":"L35*Erwerbseinkommen!$N$20/100","v":0},{"$f":"M35*Erwerbseinkommen!$N$20/100","v":0},{"$f":"N35*Erwerbseinkommen!$N$20/100","v":0},{"$f":"O35*Erwerbseinkommen!$N$20/100","v":0},{"$f":"P35*Erwerbseinkommen!$N$20/100","v":0},{"$f":"Q35*Erwerbseinkommen!$N$20/100","v":0},{"$f":"R35*Erwerbseinkommen!$N$20/100","v":0},{"$f":"S35*Erwerbseinkommen!$N$20/100","v":0},{"$f":"T35*Erwerbseinkommen!$N$20/100","v":0},{"$f":"U35*Erwerbseinkommen!$N$20/100","v":0},{"$f":"V35*Erwerbseinkommen!$N$20/100","v":0},{"$f":"W35*Erwerbseinkommen!$N$20/100","v":0},{"$f":"X35*Erwerbseinkommen!$N$20/100","v":0},{"$f":"Y35*Erwerbseinkommen!$N$20/100","v":0},{"$f":"Z35*Erwerbseinkommen!$N$20/100","v":0},{"$f":"AA35*Erwerbseinkommen!$N$20/100","v":0},{"$f":"AB35*Erwerbseinkommen!$N$20/100","v":0},{"$f":"AC35*Erwerbseinkommen!$N$20/100","v":0},{"$f":"AD35*Erwerbseinkommen!$N$20/100","v":0},{"$f":"AE35*Erwerbseinkommen!$N$20/100","v":0},{"$f":"AF35*Erwerbseinkommen!$N$20/100","v":0},{"$f":"AG35*Erwerbseinkommen!$N$20/100","v":0},{"$f":"AH35*Erwerbseinkommen!$N$20/100","v":0},{"$f":"AI35*Erwerbseinkommen!$N$20/100","v":0},{"$f":"AJ35*Erwerbseinkommen!$N$20/100","v":0}]
[null,null,"  Steuern auf kumulative Lohnsteigerung",null,null,null,null,{"$f":"IF(H7<'Persönliche Daten'!$G$20,(H35-$G$35)*Erwerbseinkommen!$I$52/100*'Hilfstabelle Steuern'!$F$17*-1,0)","v":0},{"$f":"IF(I7<'Persönliche Daten'!$G$20,(I35-$G$35)*Erwerbseinkommen!$I$52/100*'Hilfstabelle Steuern'!$F$17*-1,0)","v":0},{"$f":"IF(J7<'Persönliche Daten'!$G$20,(J35-$G$35)*Erwerbseinkommen!$I$52/100*'Hilfstabelle Steuern'!$F$17*-1,0)","v":0},{"$f":"IF(K7<'Persönliche Daten'!$G$20,(K35-$G$35)*Erwerbseinkommen!$I$52/100*'Hilfstabelle Steuern'!$F$17*-1,0)","v":0},{"$f":"IF(L7<'Persönliche Daten'!$G$20,(L35-$G$35)*Erwerbseinkommen!$I$52/100*'Hilfstabelle Steuern'!$F$17*-1,0)","v":0},{"$f":"IF(M7<'Persönliche Daten'!$G$20,(M35-$G$35)*Erwerbseinkommen!$I$52/100*'Hilfstabelle Steuern'!$F$17*-1,0)","v":0},{"$f":"IF(N7<'Persönliche Daten'!$G$20,(N35-$G$35)*Erwerbseinkommen!$I$52/100*'Hilfstabelle Steuern'!$F$17*-1,0)","v":0},{"$f":"IF(O7<'Persönliche Daten'!$G$20,(O35-$G$35)*Erwerbseinkommen!$I$52/100*'Hilfstabelle Steuern'!$F$17*-1,0)","v":0},{"$f":"IF(P7<'Persönliche Daten'!$G$20,(P35-$G$35)*Erwerbseinkommen!$I$52/100*'Hilfstabelle Steuern'!$F$17*-1,0)","v":0},{"$f":"IF(Q7<'Persönliche Daten'!$G$20,(Q35-$G$35)*Erwerbseinkommen!$I$52/100*'Hilfstabelle Steuern'!$F$17*-1,0)","v":0},{"$f":"IF(R7<'Persönliche Daten'!$G$20,(R35-$G$35)*Erwerbseinkommen!$I$52/100*'Hilfstabelle Steuern'!$F$17*-1,0)","v":0},{"$f":"IF(S7<'Persönliche Daten'!$G$20,(S35-$G$35)*Erwerbseinkommen!$I$52/100*'Hilfstabelle Steuern'!$F$17*-1,0)","v":0},{"$f":"IF(T7<'Persönliche Daten'!$G$20,(T35-$G$35)*Erwerbseinkommen!$I$52/100*'Hilfstabelle Steuern'!$F$17*-1,0)","v":0},{"$f":"IF(U7<'Persönliche Daten'!$G$20,(U35-$G$35)*Erwerbseinkommen!$I$52/100*'Hilfstabelle Steuern'!$F$17*-1,0)","v":0},{"$f":"IF(V7<'Persönliche Daten'!$G$20,(V35-$G$35)*Erwerbseinkommen!$I$52/100*'Hilfstabelle Steuern'!$F$17*-1,0)","v":0},{"$f":"IF(W7<'Persönliche Daten'!$G$20,(W35-$G$35)*Erwerbseinkommen!$I$52/100*'Hilfstabelle Steuern'!$F$17*-1,0)","v":0},{"$f":"IF(X7<'Persönliche Daten'!$G$20,(X35-$G$35)*Erwerbseinkommen!$I$52/100*'Hilfstabelle Steuern'!$F$17*-1,0)","v":0},{"$f":"IF(Y7<'Persönliche Daten'!$G$20,(Y35-$G$35)*Erwerbseinkommen!$I$52/100*'Hilfstabelle Steuern'!$F$17*-1,0)","v":0},{"$f":"IF(Z7<'Persönliche Daten'!$G$20,(Z35-$G$35)*Erwerbseinkommen!$I$52/100*'Hilfstabelle Steuern'!$F$17*-1,0)","v":0},{"$f":"IF(AA7<'Persönliche Daten'!$G$20,(AA35-$G$35)*Erwerbseinkommen!$I$52/100*'Hilfstabelle Steuern'!$F$17*-1,0)","v":0},{"$f":"IF(AB7<'Persönliche Daten'!$G$20,(AB35-$G$35)*Erwerbseinkommen!$I$52/100*'Hilfstabelle Steuern'!$F$17*-1,0)","v":0},{"$f":"IF(AC7<'Persönliche Daten'!$G$20,(AC35-$G$35)*Erwerbseinkommen!$I$52/100*'Hilfstabelle Steuern'!$F$17*-1,0)","v":0},{"$f":"IF(AD7<'Persönliche Daten'!$G$20,(AD35-$G$35)*Erwerbseinkommen!$I$52/100*'Hilfstabelle Steuern'!$F$17*-1,0)","v":0},{"$f":"IF(AE7<'Persönliche Daten'!$G$20,(AE35-$G$35)*Erwerbseinkommen!$I$52/100*'Hilfstabelle Steuern'!$F$17*-1,0)","v":0},{"$f":"IF(AF7<'Persönliche Daten'!$G$20,(AF35-$G$35)*Erwerbseinkommen!$I$52/100*'Hilfstabelle Steuern'!$F$17*-1,0)","v":0},{"$f":"IF(AG7<'Persönliche Daten'!$G$20,(AG35-$G$35)*Erwerbseinkommen!$I$52/100*'Hilfstabelle Steuern'!$F$17*-1,0)","v":0},{"$f":"IF(AH7<'Persönliche Daten'!$G$20,(AH35-$G$35)*Erwerbseinkommen!$I$52/100*'Hilfstabelle Steuern'!$F$17*-1,0)","v":0},{"$f":"IF(AI7<'Persönliche Daten'!$G$20,(AI35-$G$35)*Erwerbseinkommen!$I$52/100*'Hilfstabelle Steuern'!$F$17*-1,0)","v":0},{"$f":"IF(AJ7<'Persönliche Daten'!$G$20,(AJ35-$G$35)*Erwerbseinkommen!$I$52/100*'Hilfstabelle Steuern'!$F$17*-1,0)","v":0}]
[null,null,"Saldo Lebensunterhalt (ohne Schulden, Anlagen) aus Budget",null,null,null,{"$f":"('Monatliches Budget'!$K$38+'Monatliches Budget'!$K$59-'Monatliches Budget'!$K$47)*-1","v":{"$error":"#VALUE!"}},{"$f":"('Monatliches Budget'!$K$38+'Monatliches Budget'!$K$59-'Monatliches Budget'!$K$47)*-1","v":{"$error":"#VALUE!"}},{"$f":"('Monatliches Budget'!$K$38+'Monatliches Budget'!$K$59-'Monatliches Budget'!$K$47)*-1","v":{"$error":"#VALUE!"}},{"$f":"('Monatliches Budget'!$K$38+'Monatliches Budget'!$K$59-'Monatliches Budget'!$K$47)*-1","v":{"$error":"#VALUE!"}},{"$f":"('Monatliches Budget'!$K$38+'Monatliches Budget'!$K$59-'Monatliches Budget'!$K$47)*-1","v":{"$error":"#VALUE!"}},{"$f":"('Monatliches Budget'!$K$38+'Monatliches Budget'!$K$59-'Monatliches Budget'!$K$47)*-1","v":{"$error":"#VALUE!"}},{"$f":"('Monatliches Budget'!$K$38+'Monatliches Budget'!$K$59-'Monatliches Budget'!$K$47)*-1","v":{"$error":"#VALUE!"}},{"$f":"('Monatliches Budget'!$K$38+'Monatliches Budget'!$K$59-'Monatliches Budget'!$K$47)*-1","v":{"$error":"#VALUE!"}},{"$f":"('Monatliches Budget'!$K$38+'Monatliches Budget'!$K$59-'Monatliches Budget'!$K$47)*-1","v":{"$error":"#VALUE!"}},{"$f":"('Monatliches Budget'!$K$38+'Monatliches Budget'!$K$59-'Monatliches Budget'!$K$47)*-1","v":{"$error":"#VALUE!"}},{"$f":"('Monatliches Budget'!$K$38+'Monatliches Budget'!$K$59-'Monatliches Budget'!$K$47)*-1","v":{"$error":"#VALUE!"}},{"$f":"('Monatliches Budget'!$K$38+'Monatliches Budget'!$K$59-'Monatliches Budget'!$K$47)*-1","v":{"$error":"#VALUE!"}},{"$f":"('Monatliches Budget'!$K$38+'Monatliches Budget'!$K$59-'Monatliches Budget'!$K$47)*-1","v":{"$error":"#VALUE!"}},{"$f":"('Monatliches Budget'!$K$38+'Monatliches Budget'!$K$59-'Monatliches Budget'!$K$47)*-1","v":{"$error":"#VALUE!"}},{"$f":"('Monatliches Budget'!$K$38+'Monatliches Budget'!$K$59-'Monatliches Budget'!$K$47)*-1","v":{"$error":"#VALUE!"}},{"$f":"('Monatliches Budget'!$K$38+'Monatliches Budget'!$K$59-'Monatliches Budget'!$K$47)*-1","v":{"$error":"#VALUE!"}},{"$f":"('Monatliches Budget'!$K$38+'Monatliches Budget'!$K$59-'Monatliches Budget'!$K$47)*-1","v":{"$error":"#VALUE!"}},{"$f":"('Monatliches Budget'!$K$38+'Monatliches Budget'!$K$59-'Monatliches Budget'!$K$47)*-1","v":{"$error":"#VALUE!"}},{"$f":"('Monatliches Budget'!$K$38+'Monatliches Budget'!$K$59-'Monatliches Budget'!$K$47)*-1","v":{"$error":"#VALUE!"}},{"$f":"('Monatliches Budget'!$K$38+'Monatliches Budget'!$K$59-'Monatliches Budget'!$K$47)*-1","v":{"$error":"#VALUE!"}},{"$f":"('Monatliches Budget'!$K$38+'Monatliches Budget'!$K$59-'Monatliches Budget'!$K$47)*-1","v":{"$error":"#VALUE!"}},{"$f":"('Monatliches Budget'!$K$38+'Monatliches Budget'!$K$59-'Monatliches Budget'!$K$47)*-1","v":{"$error":"#VALUE!"}},{"$f":"('Monatliches Budget'!$K$38+'Monatliches Budget'!$K$59-'Monatliches Budget'!$K$47)*-1","v":{"$error":"#VALUE!"}},{"$f":"('Monatliches Budget'!$K$38+'Monatliches Budget'!$K$59-'Monatliches Budget'!$K$47)*-1","v":{"$error":"#VALUE!"}},{"$f":"('Monatliches Budget'!$K$38+'Monatliches Budget'!$K$59-'Monatliches Budget'!$K$47)*-1","v":{"$error":"#VALUE!"}},{"$f":"('Monatliches Budget'!$K$38+'Monatliches Budget'!$K$59-'Monatliches Budget'!$K$47)*-1","v":{"$error":"#VALUE!"}},{"$f":"('Monatliches Budget'!$K$38+'Monatliches Budget'!$K$59-'Monatliches Budget'!$K$47)*-1","v":{"$error":"#VALUE!"}},{"$f":"('Monatliches Budget'!$K$38+'Monatliches Budget'!$K$59-'Monatliches Budget'!$K$47)*-1","v":{"$error":"#VALUE!"}},{"$f":"('Monatliches Budget'!$K$38+'Monatliches Budget'!$K$59-'Monatliches Budget'!$K$47)*-1","v":{"$error":"#VALUE!"}},{"$f":"('Monatliches Budget'!$K$38+'Monatliches Budget'!$K$59-'Monatliches Budget'!$K$47)*-1","v":{"$error":"#VALUE!"}}]
[]
[null,null,"Anlageertrag",null,null,null,{"$f":"G16+G21+G24+G26+G29+G32","v":0},{"$f":"H16+H21+H24+H26+H29+H32","v":{"$error":"#VALUE!"}},{"$error":"#VALUE!"},{"$error":"#VALUE!"},{"$error":"#VALUE!"},{"$error":"#VALUE!"},{"$error":"#VALUE!"},{"$error":"#VALUE!"},{"$error":"#VALUE!"},{"$error":"#VALUE!"},{"$error":"#VALUE!"},{"$error":"#VALUE!"},{"$error":"#VALUE!"},{"$error":"#VALUE!"},{"$error":"#VALUE!"},{"$error":"#VALUE!"},{"$error":"#VALUE!"},{"$error":"#VALUE!"},{"$error":"#VALUE!"},{"$error":"#VALUE!"},{"$f":"AA16+AA21+AA24+AA26+AA29+AA32","v":{"$error":"#VALUE!"}},{"$error":"#VALUE!"},{"$error":"#VALUE!"},{"$error":"#VALUE!"},{"$error":"#VALUE!"},{"$error":"#VALUE!"},{"$error":"#VALUE!"},{"$error":"#VALUE!"},{"$error":"#VALUE!"},{"$error":"#VALUE!"}]
[]
[null,null,"Steuern auf Anlagen",null,null,null,{"$f":"(G16+G21+G26)*Erwerbseinkommen!$I$50/100*'Hilfstabelle Steuern'!$F$17*-1","v":{"$error":"#VALUE!"}},{"$f":"(H16+H21+H26)*Erwerbseinkommen!$I$50/100*'Hilfstabelle Steuern'!$F$17*-1","v":{"$error":"#VALUE!"}},{"$f":"(I16+I21+I26)*Erwerbseinkommen!$I$50/100*'Hilfstabelle Steuern'!$F$17*-1","v":{"$error":"#VALUE!"}},{"$f":"(J16+J21+J26)*Erwerbseinkommen!$I$50/100*'Hilfstabelle Steuern'!$F$17*-1","v":{"$error":"#VALUE!"}},{"$f":"(K16+K21+K26)*Erwerbseinkommen!$I$50/100*'Hilfstabelle Steuern'!$F$17*-1","v":{"$error":"#VALUE!"}},{"$f":"(L16+L21+L26)*Erwerbseinkommen!$I$50/100*'Hilfstabelle Steuern'!$F$17*-1","v":{"$error":"#VALUE!"}},{"$f":"(M16+M21+M26)*Erwerbseinkommen!$I$50/100*'Hilfstabelle Steuern'!$F$17*-1","v":{"$error":"#VALUE!"}},{"$f":"(N16+N21+N26)*Erwerbseinkommen!$I$50/100*'Hilfstabelle Steuern'!$F$17*-1","v":{"$error":"#VALUE!"}},{"$f":"(O16+O21+O26)*Erwerbseinkommen!$I$50/100*'Hilfstabelle Steuern'!$F$17*-1","v":{"$error":"#VALUE!"}},{"$f":"(P16+P21+P26)*Erwerbseinkommen!$I$50/100*'Hilfstabelle Steuern'!$F$17*-1","v":{"$error":"#VALUE!"}},{"$f":"(Q16+Q21+Q26)*Erwerbseinkommen!$I$50/100*'Hilfstabelle Steuern'!$F$17*-1","v":{"$error":"#VALUE!"}},{"$f":"(R16+R21+R26)*Erwerbseinkommen!$I$50/100*'Hilfstabelle Steuern'!$F$17*-1","v":{"$error":"#VALUE!"}},{"$f":"(S16+S21+S26)*Erwerbseinkommen!$I$50/100*'Hilfstabelle Steuern'!$F$17*-1","v":{"$error":"#VALUE!"}},{"$f":"(T16+T21+T26)*Erwerbseinkommen!$I$50/100*'Hilfstabelle Steuern'!$F$17*-1","v":{"$error":"#VALUE!"}},{"$f":"(U16+U21+U26)*Erwerbseinkommen!$I$50/100*'Hilfstabelle Steuern'!$F$17*-1","v":{"$error":"#VALUE!"}},{"$f":"(V16+V21+V26)*Erwerbseinkommen!$I$50/100*'Hilfstabelle Steuern'!$F$17*-1","v":{"$error":"#VALUE!"}},{"$f":"(W16+W21+W26)*Erwerbseinkommen!$I$50/100*'Hilfstabelle Steuern'!$F$17*-1","v":{"$error":"#VALUE!"}},{"$f":"(X16+X21+X26)*Erwerbseinkommen!$I$50/100*'Hilfstabelle Steuern'!$F$17*-1","v":{"$error":"#VALUE!"}},{"$f":"(Y16+Y21+Y26)*Erwerbseinkommen!$I$50/100*'Hilfstabelle Steuern'!$F$17*-1","v":{"$error":"#VALUE!"}},{"$f":"(Z16+Z21+Z26)*Erwerbseinkommen!$I$50/100*'Hilfstabelle Steuern'!$F$17*-1","v":{"$error":"#VALUE!"}},{"$f":"(AA16+AA21+AA26)*Erwerbseinkommen!$I$50/100*'Hilfstabelle Steuern'!$F$17*-1","v":{"$error":"#VALUE!"}},{"$f":"(AB16+AB21+AB26)*Erwerbseinkommen!$I$50/100*'Hilfstabelle Steuern'!$F$17*-1","v":{"$error":"#VALUE!"}},{"$f":"(AC16+AC21+AC26)*Erwerbseinkommen!$I$50/100*'Hilfstabelle Steuern'!$F$17*-1","v":{"$error":"#VALUE!"}},{"$f":"(AD16+AD21+AD26)*Erwerbseinkommen!$I$50/100*'Hilfstabelle Steuern'!$F$17*-1","v":{"$error":"#VALUE!"}},{"$f":"(AE16+AE21+AE26)*Erwerbseinkommen!$I$50/100*'Hilfstabelle Steuern'!$F$17*-1","v":{"$error":"#VALUE!"}},{"$f":"(AF16+AF21+AF26)*Erwerbseinkommen!$I$50/100*'Hilfstabelle Steuern'!$F$17*-1","v":{"$error":"#VALUE!"}},{"$f":"(AG16+AG21+AG26)*Erwerbseinkommen!$I$50/100*'Hilfstabelle Steuern'!$F$17*-1","v":{"$error":"#VALUE!"}},{"$f":"(AH16+AH21+AH26)*Erwerbseinkommen!$I$50/100*'Hilfstabelle Steuern'!$F$17*-1","v":{"$error":"#VALUE!"}},{"$f":"(AI16+AI21+AI26)*Erwerbseinkommen!$I$50/100*'Hilfstabelle Steuern'!$F$17*-1","v":{"$error":"#VALUE!"}},{"$f":"(AJ16+AJ21+AJ26)*Erwerbseinkommen!$I$50/100*'Hilfstabelle Steuern'!$F$17*-1","v":{"$error":"#VALUE!"}}]
[]
[null,null,"Total Anlagen Ende Jahr (ohne Immobilien)",null,null,null,{"$f":"G20+G25+G28+G33+G137","v":{"$error":"#VALUE!"}},{"$error":"#VALUE!"},{"$error":"#VALUE!"},{"$error":"#VALUE!"},{"$error":"#VALUE!"},{"$error":"#VALUE!"},{"$error":"#VALUE!"},{"$error":"#VALUE!"},{"$error":"#VALUE!"},{"$error":"#VALUE!"},{"$error":"#VALUE!"},{"$error":"#VALUE!"},{"$error":"#VALUE!"},{"$error":"#VALUE!"},{"$error":"#VALUE!"},{"$error":"#VALUE!"},{"$error":"#VALUE!"},{"$error":"#VALUE!"},{"$error":"#VALUE!"},{"$error":"#VALUE!"},{"$f":"AA20+AA25+AA28+AA33+AA137","v":{"$error":"#VALUE!"}},{"$error":"#VALUE!"},{"$error":"#VALUE!"},{"$error":"#VALUE!"},{"$error":"#VALUE!"},{"$error":"#VALUE!"},{"$error":"#VALUE!"},{"$error":"#VALUE!"},{"$error":"#VALUE!"},{"$error":"#VALUE!"}]
[]
[null,null,"Immobilien Wert Anfang Jahr",null,null,null,{"$f":"'Hilfstabelle Vermögen'!H13","v":0},{"$f":"G49","v":0},{"$f":"H49","v":0},0,0,0,0,0,0,0,0,0,0,0,0,0,0,0,0,0,{"$f":"Z49","v":0},{"$f":"AA49","v":0},{"$f":"AB49","v":0},{"$f":"AC49","v":0},{"$f":"AD49","v":0},{"$f":"AE49","v":0},{"$f":"AF49","v":0},{"$f":"AG49","v":0},{"$f":"AH49","v":0},{"$f":"AI49","v":0}]
[null,null,"Wertveränderung",null,null,null,{"$f":"G47*'Hilfstabelle Vermögen'!$K$13","v":0},{"$f":"H47*'Hilfstabelle Vermögen'!$K$13","v":0},{"$f":"I47*'Hilfstabelle Vermögen'!$K$13","v":0},{"$f":"J47*'Hilfstabelle Vermögen'!$K$13","v":0},{"$f":"K47*'Hilfstabelle Vermögen'!$K$13","v":0},{"$f":"L47*'Hilfstabelle Vermögen'!$K$13","v":0},{"$f":"M47*'Hilfstabelle Vermögen'!$K$13","v":0},{"$f":"N47*'Hilfstabelle Vermögen'!$K$13","v":0},{"$f":"O47*'Hilfstabelle Vermögen'!$K$13","v":0},{"$f":"P47*'Hilfstabelle Vermögen'!$K$13","v":0},{"$f":"Q47*'Hilfstabelle Vermögen'!$K$13","v":0},{"$f":"R47*'Hilfstabelle Vermögen'!$K$13","v":0},{"$f":"S47*'Hilfstabelle Vermögen'!$K$13","v":0},{"$f":"T47*'Hilfstabelle Vermögen'!$K$13","v":0},{"$f":"U47*'Hilfstabelle Vermögen'!$K$13","v":0},{"$f":"V47*'Hilfstabelle Vermögen'!$K$13","v":0},{"$f":"W47*'Hilfstabelle Vermögen'!$K$13","v":0},{"$f":"X47*'Hilfstabelle Vermögen'!$K$13","v":0},{"$f":"Y47*'Hilfstabelle Vermögen'!$K$13","v":0},{"$f":"Z47*'Hilfstabelle Vermögen'!$K$13","v":0},{"$f":"AA47*'Hilfstabelle Vermögen'!$K$13","v":0},{"$f":"AB47*'Hilfstabelle Vermögen'!$K$13","v":0},{"$f":"AC47*'Hilfstabelle Vermögen'!$K$13","v":0},{"$f":"AD47*'Hilfstabelle Vermögen'!$K$13","v":0},{"$f":"AE47*'Hilfstabelle Vermögen'!$K$13","v":0},{"$f":"AF47*'Hilfstabelle Vermögen'!$K$13","v":0},{"$f":"AG47*'Hilfstabelle Vermögen'!$K$13","v":0},{"$f":"AH47*'Hilfstabelle Vermögen'!$K$13","v":0},{"$f":"AI47*'Hilfstabelle Vermögen'!$K$13","v":0},{"$f":"AJ47*'Hilfstabelle Vermögen'!$K$13","v":0}]
[null,null,"Immobilien Wert Ende Jahr",null,null,null,{"$f":"SUM(G47:G48)","v":0},{"$f":"SUM(H47:H48)","v":0},0,0,0,0,0,0,0,0,0,0,0,0,0,0,0,0,0,0,{"$f":"SUM(AA47:AA48)","v":0},0,0,0,0,0,0,0,0,0]
[]
[]
[null,null,"Schulden Hypothek",null,null,null,{"$f":"'Hilfstabelle Vermögen'!$H$17","v":0},{"$f":"SUM(G52:G53)","v":0},{"$f":"SUM(H52:H53)","v":0},0,0,0,0,0,0,0,0,0,0,0,0,0,0,0,0,0,{"$f":"SUM(Z52:Z53)","v":0},{"$f":"SUM(AA52:AA53)","v":0},{"$f":"SUM(AB52:AB53)","v":0},{"$f":"SUM(AC52:AC53)","v":0},{"$f":"SUM(AD52:AD53)","v":0},{"$f":"SUM(AE52:AE53)","v":0},{"$f":"SUM(AF52:AF53)","v":0},{"$f":"SUM(AG52:AG53)","v":0},{"$f":"SUM(AH52:AH53)","v":0},{"$f":"SUM(AI52:AI53)","v":0}]
[null,null,"   AmortisationHypothek (liquid)",null,null,null,{"$f":"'Hilfstabelle Vermögen'!$O$17","v":0},{"$f":"IF(SUM(G52:G53)<0,'Hilfstabelle Vermögen'!$O$17,0)","v":0},{"$f":"IF(SUM(H52:H53)<0,'Hilfstabelle Vermögen'!$O$17,0)","v":0},{"$f":"IF(SUM(I52:I53)<0,'Hilfstabelle Vermögen'!$O$17,0)","v":0},{"$f":"IF(SUM(J52:J53)<0,'Hilfstabelle Vermögen'!$O$17,0)","v":0},{"$f":"IF(SUM(K52:K53)<0,'Hilfstabelle Vermögen'!$O$17,0)","v":0},{"$f":"IF(SUM(L52:L53)<0,'Hilfstabelle Vermögen'!$O$17,0)","v":0},{"$f":"IF(SUM(M52:M53)<0,'Hilfstabelle Vermögen'!$O$17,0)","v":0},{"$f":"IF(SUM(N52:N53)<0,'Hilfstabelle Vermögen'!$O$17,0)","v":0},{"$f":"IF(SUM(O52:O53)<0,'Hilfstabelle Vermögen'!$O$17,0)","v":0},{"$f":"IF(SUM(P52:P53)<0,'Hilfstabelle Vermögen'!$O$17,0)","v":0},{"$f":"IF(SUM(Q52:Q53)<0,'Hilfstabelle Vermögen'!$O$17,0)","v":0},{"$f":"IF(SUM(R52:R53)<0,'Hilfstabelle Vermögen'!$O$17,0)","v":0},{"$f":"IF(SUM(S52:S53)<0,'Hilfstabelle Vermögen'!$O$17,0)","v":0},{"$f":"IF(SUM(T52:T53)<0,'Hilfstabelle Vermögen'!$O$17,0)","v":0},{"$f":"IF(SUM(U52:U53)<0,'Hilfstabelle Vermögen'!$O$17,0)","v":0},{"$f":"IF(SUM(V52:V53)<0,'Hilfstabelle Vermögen'!$O$17,0)","v":0},{"$f":"IF(SUM(W52:W53)<0,'Hilfstabelle Vermögen'!$O$17,0)","v":0},{"$f":"IF(SUM(X52:X53)<0,'Hilfstabelle Vermögen'!$O$17,0)","v":0},{"$f":"IF(SUM(Y52:Y53)<0,'Hilfstabelle Vermögen'!$O$17,0)","v":0},{"$f":"IF(SUM(Z52:Z53)<0,'Hilfstabelle Vermögen'!$O$17,0)","v":0},{"$f":"IF(SUM(AA52:AA53)<0,'Hilfstabelle Vermögen'!$O$17,0)","v":0},{"$f":"IF(SUM(AB52:AB53)<0,'Hilfstabelle Vermögen'!$O$17,0)","v":0},{"$f":"IF(SUM(AC52:AC53)<0,'Hilfstabelle Vermögen'!$O$17,0)","v":0},{"$f":"IF(SUM(AD52:AD53)<0,'Hilfstabelle Vermögen'!$O$17,0)","v":0},{"$f":"IF(SUM(AE52:AE53)<0,'Hilfstabelle Vermögen'!$O$17,0)","v":0},{"$f":"IF(SUM(AF52:AF53)<0,'Hilfstabelle Vermögen'!$O$17,0)","v":0},{"$f":"IF(SUM(AG52:AG53)<0,'Hilfstabelle Vermögen'!$O$17,0)","v":0},{"$f":"IF(SUM(AH52:AH53)<0,'Hilfstabelle Vermögen'!$O$17,0)","v":0},{"$f":"IF(SUM(AI52:AI53)<0,'Hilfstabelle Vermögen'!$O$17,0)","v":0}]
[null,null,"Schulden Darlehen",null,null,null,{"$f":"'Hilfstabelle Vermögen'!$H$18","v":0},{"$f":"SUM(G54:G55)","v":0},0,0,0,0,0,0,0,0,0,0,0,0,0,0,0,0,0,0,{"$f":"SUM(Z54:Z55)","v":0},{"$f":"SUM(AA54:AA55)","v":0},{"$f":"SUM(AB54:AB55)","v":0},{"$f":"SUM(AC54:AC55)","v":0},{"$f":"SUM(AD54:AD55)","v":0},{"$f":"SUM(AE54:AE55)","v":0},{"$f":"SUM(AF54:AF55)","v":0},{"$f":"SUM(AG54:AG55)","v":0},{"$f":"SUM(AH54:AH55)","v":0},{"$f":"SUM(AI54:AI55)","v":0}]
[null,null,"   Amortisation Darlehen (liquid)",null,null,null,{"$f":"'Hilfstabelle Vermögen'!$O$18","v":0},{"$f":"IF(SUM(G54:G55)<0,'Hilfstabelle Vermögen'!$O$18,0)","v":0},{"$f":"IF(SUM(H54:H55)<0,'Hilfstabelle Vermögen'!$O$18,0)","v":0},{"$f":"IF(SUM(I54:I55)<0,'Hilfstabelle Vermögen'!$O$18,0)","v":0},{"$f":"IF(SUM(J54:J55)<0,'Hilfstabelle Vermögen'!$O$18,0)","v":0},{"$f":"IF(SUM(K54:K55)<0,'Hilfstabelle Vermögen'!$O$18,0)","v":0},{"$f":"IF(SUM(L54:L55)<0,'Hilfstabelle Vermögen'!$O$18,0)","v":0},{"$f":"IF(SUM(M54:M55)<0,'Hilfstabelle Vermögen'!$O$18,0)","v":0},{"$f":"IF(SUM(N54:N55)<0,'Hilfstabelle Vermögen'!$O$18,0)","v":0},{"$f":"IF(SUM(O54:O55)<0,'Hilfstabelle Vermögen'!$O$18,0)","v":0},{"$f":"IF(SUM(P54:P55)<0,'Hilfstabelle Vermögen'!$O$18,0)","v":0},{"$f":"IF(SUM(Q54:Q55)<0,'Hilfstabelle Vermögen'!$O$18,0)","v":0},{"$f":"IF(SUM(R54:R55)<0,'Hilfstabelle Vermögen'!$O$18,0)","v":0},{"$f":"IF(SUM(S54:S55)<0,'Hilfstabelle Vermögen'!$O$18,0)","v":0},{"$f":"IF(SUM(T54:T55)<0,'Hilfstabelle Vermögen'!$O$18,0)","v":0},{"$f":"IF(SUM(U54:U55)<0,'Hilfstabelle Vermögen'!$O$18,0)","v":0},{"$f":"IF(SUM(V54:V55)<0,'Hilfstabelle Vermögen'!$O$18,0)","v":0},{"$f":"IF(SUM(W54:W55)<0,'Hilfstabelle Vermögen'!$O$18,0)","v":0},{"$f":"IF(SUM(X54:X55)<0,'Hilfstabelle Vermögen'!$O$18,0)","v":0},{"$f":"IF(SUM(Y54:Y55)<0,'Hilfstabelle Vermögen'!$O$18,0)","v":0},{"$f":"IF(SUM(Z54:Z55)<0,'Hilfstabelle Vermögen'!$O$18,0)","v":0},{"$f":"IF(SUM(AA54:AA55)<0,'Hilfstabelle Vermögen'!$O$18,0)","v":0},{"$f":"IF(SUM(AB54:AB55)<0,'Hilfstabelle Vermögen'!$O$18,0)","v":0},{"$f":"IF(SUM(AC54:AC55)<0,'Hilfstabelle Vermögen'!$O$18,0)","v":0},{"$f":"IF(SUM(AD54:AD55)<0,'Hilfstabelle Vermögen'!$O$18,0)","v":0},{"$f":"IF(SUM(AE54:AE55)<0,'Hilfstabelle Vermögen'!$O$18,0)","v":0},{"$f":"IF(SUM(AF54:AF55)<0,'Hilfstabelle Vermögen'!$O$18,0)","v":0},{"$f":"IF(SUM(AG54:AG55)<0,'Hilfstabelle Vermögen'!$O$18,0)","v":0},{"$f":"IF(SUM(AH54:AH55)<0,'Hilfstabelle Vermögen'!$O$18,0)","v":0},{"$f":"IF(SUM(AI54:AI55)<0,'Hilfstabelle Vermögen'!$O$18,0)","v":0}]
[null,null,"Schulden Konsumkredit",null,null,null,{"$f":"'Hilfstabelle Vermögen'!$H$19","v":0},{"$f":"SUM(G56:G57)","v":0},0,0,0,0,0,0,0,0,0,0,0,0,0,0,0,0,0,0,{"$f":"SUM(Z56:Z57)","v":0},{"$f":"SUM(AA56:AA57)","v":0},{"$f":"SUM(AB56:AB57)","v":0},{"$f":"SUM(AC56:AC57)","v":0},{"$f":"SUM(AD56:AD57)","v":0},{"$f":"SUM(AE56:AE57)","v":0},{"$f":"SUM(AF56:AF57)","v":0},{"$f":"SUM(AG56:AG57)","v":0},{"$f":"SUM(AH56:AH57)","v":0},{"$f":"SUM(AI56:AI57)","v":0}]
[null,null,"   Amortisation Konsumkredit (liquid)",null,null,null,{"$f":"'Hilfstabelle Vermögen'!$O$19","v":0},{"$f":"IF(SUM(G56:G57)<0,'Hilfstabelle Vermögen'!$O$19,0)","v":0},{"$f":"IF(SUM(H56:H57)<0,'Hilfstabelle Vermögen'!$O$19,0)","v":0},{"$f":"IF(SUM(I56:I57)<0,'Hilfstabelle Vermögen'!$O$19,0)","v":0},{"$f":"IF(SUM(J56:J57)<0,'Hilfstabelle Vermögen'!$O$19,0)","v":0},{"$f":"IF(SUM(K56:K57)<0,'Hilfstabelle Vermögen'!$O$19,0)","v":0},{"$f":"IF(SUM(L56:L57)<0,'Hilfstabelle Vermögen'!$O$19,0)","v":0},{"$f":"IF(SUM(M56:M57)<0,'Hilfstabelle Vermögen'!$O$19,0)","v":0},{"$f":"IF(SUM(N56:N57)<0,'Hilfstabelle Vermögen'!$O$19,0)","v":0},{"$f":"IF(SUM(O56:O57)<0,'Hilfstabelle Vermögen'!$O$19,0)","v":0},{"$f":"IF(SUM(P56:P57)<0,'Hilfstabelle Vermögen'!$O$19,0)","v":0},{"$f":"IF(SUM(Q56:Q57)<0,'Hilfstabelle Vermögen'!$O$19,0)","v":0},{"$f":"IF(SUM(R56:R57)<0,'Hilfstabelle Vermögen'!$O$19,0)","v":0},{"$f":"IF(SUM(S56:S57)<0,'Hilfstabelle Vermögen'!$O$19,0)","v":0},{"$f":"IF(SUM(T56:T57)<0,'Hilfstabelle Vermögen'!$O$19,0)","v":0},{"$f":"IF(SUM(U56:U57)<0,'Hilfstabelle Vermögen'!$O$19,0)","v":0},{"$f":"IF(SUM(V56:V57)<0,'Hilfstabelle Vermögen'!$O$19,0)","v":0},{"$f":"IF(SUM(W56:W57)<0,'Hilfstabelle Vermögen'!$O$19,0)","v":0},{"$f":"IF(SUM(X56:X57)<0,'Hilfstabelle Vermögen'!$O$19,0)","v":0},{"$f":"IF(SUM(Y56:Y57)<0,'Hilfstabelle Vermögen'!$O$19,0)","v":0},{"$f":"IF(SUM(Z56:Z57)<0,'Hilfstabelle Vermögen'!$O$19,0)","v":0},{"$f":"IF(SUM(AA56:AA57)<0,'Hilfstabelle Vermögen'!$O$19,0)","v":0},{"$f":"IF(SUM(AB56:AB57)<0,'Hilfstabelle Vermögen'!$O$19,0)","v":0},{"$f":"IF(SUM(AC56:AC57)<0,'Hilfstabelle Vermögen'!$O$19,0)","v":0},{"$f":"IF(SUM(AD56:AD57)<0,'Hilfstabelle Vermögen'!$O$19,0)","v":0},{"$f":"IF(SUM(AE56:AE57)<0,'Hilfstabelle Vermögen'!$O$19,0)","v":0},{"$f":"IF(SUM(AF56:AF57)<0,'Hilfstabelle Vermögen'!$O$19,0)","v":0},{"$f":"IF(SUM(AG56:AG57)<0,'Hilfstabelle Vermögen'!$O$19,0)","v":0},{"$f":"IF(SUM(AH56:AH57)<0,'Hilfstabelle Vermögen'!$O$19,0)","v":0},{"$f":"IF(SUM(AI56:AI57)<0,'Hilfstabelle Vermögen'!$O$19,0)","v":0}]
[null,null,"Schulden sonstige",null,null,null,{"$f":"'Hilfstabelle Vermögen'!$H$20","v":0},{"$f":"SUM(G58:G59)","v":0},0,0,0,0,0,0,0,0,0,0,0,0,0,0,0,0,0,0,{"$f":"SUM(Z58:Z59)","v":0},{"$f":"SUM(AA58:AA59)","v":0},{"$f":"SUM(AB58:AB59)","v":0},{"$f":"SUM(AC58:AC59)","v":0},{"$f":"SUM(AD58:AD59)","v":0},{"$f":"SUM(AE58:AE59)","v":0},{"$f":"SUM(AF58:AF59)","v":0},{"$f":"SUM(AG58:AG59)","v":0},{"$f":"SUM(AH58:AH59)","v":0},{"$f":"SUM(AI58:AI59)","v":0}]
[null,null,"   Amortisation sonstige (liquid)",null,null,null,{"$f":"'Hilfstabelle Vermögen'!$O$20","v":0},{"$f":"IF(SUM(G58:G59)<0,'Hilfstabelle Vermögen'!$O$20,0)","v":0},{"$f":"IF(SUM(H58:H59)<0,'Hilfstabelle Vermögen'!$O$20,0)","v":0},{"$f":"IF(SUM(I58:I59)<0,'Hilfstabelle Vermögen'!$O$20,0)","v":0},{"$f":"IF(SUM(J58:J59)<0,'Hilfstabelle Vermögen'!$O$20,0)","v":0},{"$f":"IF(SUM(K58:K59)<0,'Hilfstabelle Vermögen'!$O$20,0)","v":0},{"$f":"IF(SUM(L58:L59)<0,'Hilfstabelle Vermögen'!$O$20,0)","v":0},{"$f":"IF(SUM(M58:M59)<0,'Hilfstabelle Vermögen'!$O$20,0)","v":0},{"$f":"IF(SUM(N58:N59)<0,'Hilfstabelle Vermögen'!$O$20,0)","v":0},{"$f":"IF(SUM(O58:O59)<0,'Hilfstabelle Vermögen'!$O$20,0)","v":0},{"$f":"IF(SUM(P58:P59)<0,'Hilfstabelle Vermögen'!$O$20,0)","v":0},{"$f":"IF(SUM(Q58:Q59)<0,'Hilfstabelle Vermögen'!$O$20,0)","v":0},{"$f":"IF(SUM(R58:R59)<0,'Hilfstabelle Vermögen'!$O$20,0)","v":0},{"$f":"IF(SUM(S58:S59)<0,'Hilfstabelle Vermögen'!$O$20,0)","v":0},{"$f":"IF(SUM(T58:T59)<0,'Hilfstabelle Vermögen'!$O$20,0)","v":0},{"$f":"IF(SUM(U58:U59)<0,'Hilfstabelle Vermögen'!$O$20,0)","v":0},{"$f":"IF(SUM(V58:V59)<0,'Hilfstabelle Vermögen'!$O$20,0)","v":0},{"$f":"IF(SUM(W58:W59)<0,'Hilfstabelle Vermögen'!$O$20,0)","v":0},{"$f":"IF(SUM(X58:X59)<0,'Hilfstabelle Vermögen'!$O$20,0)","v":0},{"$f":"IF(SUM(Y58:Y59)<0,'Hilfstabelle Vermögen'!$O$20,0)","v":0},{"$f":"IF(SUM(Z58:Z59)<0,'Hilfstabelle Vermögen'!$O$20,0)","v":0},{"$f":"IF(SUM(AA58:AA59)<0,'Hilfstabelle Vermögen'!$O$20,0)","v":0},{"$f":"IF(SUM(AB58:AB59)<0,'Hilfstabelle Vermögen'!$O$20,0)","v":0},{"$f":"IF(SUM(AC58:AC59)<0,'Hilfstabelle Vermögen'!$O$20,0)","v":0},{"$f":"IF(SUM(AD58:AD59)<0,'Hilfstabelle Vermögen'!$O$20,0)","v":0},{"$f":"IF(SUM(AE58:AE59)<0,'Hilfstabelle Vermögen'!$O$20,0)","v":0},{"$f":"IF(SUM(AF58:AF59)<0,'Hilfstabelle Vermögen'!$O$20,0)","v":0},{"$f":"IF(SUM(AG58:AG59)<0,'Hilfstabelle Vermögen'!$O$20,0)","v":0},{"$f":"IF(SUM(AH58:AH59)<0,'Hilfstabelle Vermögen'!$O$20,0)","v":0},{"$f":"IF(SUM(AI58:AI59)<0,'Hilfstabelle Vermögen'!$O$20,0)","v":0}]
[null,null,"Total",null,null,null,{"$f":"SUM(G52:G58)","v":0},0,0,0,0,0,0,0,0,0,0,0,0,0,0,0,0,0,0,0,{"$f":"SUM(AA52:AA58)","v":0},0,0,0,0,0,0,0,0,0]
[]
[null,null,"Schuldzinsen Hypothek (liquid, steuerwirksam)",null,null,null,{"$f":"'Hilfstabelle Vermögen'!L17","v":0},{"$f":"H52*'Hilfstabelle Vermögen'!$K$17","v":0},{"$f":"I52*'Hilfstabelle Vermögen'!$K$17","v":0},{"$f":"J52*'Hilfstabelle Vermögen'!$K$17","v":0},{"$f":"K52*'Hilfstabelle Vermögen'!$K$17","v":0},{"$f":"L52*'Hilfstabelle Vermögen'!$K$17","v":0},{"$f":"M52*'Hilfstabelle Vermögen'!$K$17","v":0},{"$f":"N52*'Hilfstabelle Vermögen'!$K$17","v":0},{"$f":"O52*'Hilfstabelle Vermögen'!$K$17","v":0},{"$f":"P52*'Hilfstabelle Vermögen'!$K$17","v":0},{"$f":"Q52*'Hilfstabelle Vermögen'!$K$17","v":0},{"$f":"R52*'Hilfstabelle Vermögen'!$K$17","v":0},{"$f":"S52*'Hilfstabelle Vermögen'!$K$17","v":0},{"$f":"T52*'Hilfstabelle Vermögen'!$K$17","v":0},{"$f":"U52*'Hilfstabelle Vermögen'!$K$17","v":0},{"$f":"V52*'Hilfstabelle Vermögen'!$K$17","v":0},{"$f":"W52*'Hilfstabelle Vermögen'!$K$17","v":0},{"$f":"X52*'Hilfstabelle Vermögen'!$K$17","v":0},{"$f":"Y52*'Hilfstabelle Vermögen'!$K$17","v":0},{"$f":"Z52*'Hilfstabelle Vermögen'!$K$17","v":0},{"$f":"AA52*'Hilfstabelle Vermögen'!$K$17","v":0},{"$f":"AB52*'Hilfstabelle Vermögen'!$K$17","v":0},{"$f":"AC52*'Hilfstabelle Vermögen'!$K$17","v":0},{"$f":"AD52*'Hilfstabelle Vermögen'!$K$17","v":0},{"$f":"AE52*'Hilfstabelle Vermögen'!$K$17","v":0},{"$f":"AF52*'Hilfstabelle Vermögen'!$K$17","v":0},{"$f":"AG52*'Hilfstabelle Vermögen'!$K$17","v":0},{"$f":"AH52*'Hilfstabelle Vermögen'!$K$17","v":0},{"$f":"AI52*'Hilfstabelle Vermögen'!$K$17","v":0},{"$f":"AJ52*'Hilfstabelle Vermögen'!$K$17","v":0}]
[null,null,"Schuldzinsen Darlehen (liquid, steuerwirksam)",null,null,null,{"$f":"'Hilfstabelle Vermögen'!L18","v":0},{"$f":"H54*'Hilfstabelle Vermögen'!$K$18","v":0},{"$f":"I54*'Hilfstabelle Vermögen'!$K$18","v":0},{"$f":"J54*'Hilfstabelle Vermögen'!$K$18","v":0},{"$f":"K54*'Hilfstabelle Vermögen'!$K$18","v":0},{"$f":"L54*'Hilfstabelle Vermögen'!$K$18","v":0},{"$f":"M54*'Hilfstabelle Vermögen'!$K$18","v":0},{"$f":"N54*'Hilfstabelle Vermögen'!$K$18","v":0},{"$f":"O54*'Hilfstabelle Vermögen'!$K$18","v":0},{"$f":"P54*'Hilfstabelle Vermögen'!$K$18","v":0},{"$f":"Q54*'Hilfstabelle Vermögen'!$K$18","v":0},{"$f":"R54*'Hilfstabelle Vermögen'!$K$18","v":0},{"$f":"S54*'Hilfstabelle Vermögen'!$K$18","v":0},{"$f":"T54*'Hilfstabelle Vermögen'!$K$18","v":0},{"$f":"U54*'Hilfstabelle Vermögen'!$K$18","v":0},{"$f":"V54*'Hilfstabelle Vermögen'!$K$18","v":0},{"$f":"W54*'Hilfstabelle Vermögen'!$K$18","v":0},{"$f":"X54*'Hilfstabelle Vermögen'!$K$18","v":0},{"$f":"Y54*'Hilfstabelle Vermögen'!$K$18","v":0},{"$f":"Z54*'Hilfstabelle Vermögen'!$K$18","v":0},{"$f":"AA54*'Hilfstabelle Vermögen'!$K$18","v":0},{"$f":"AB54*'Hilfstabelle Vermögen'!$K$18","v":0},{"$f":"AC54*'Hilfstabelle Vermögen'!$K$18","v":0},{"$f":"AD54*'Hilfstabelle Vermögen'!$K$18","v":0},{"$f":"AE54*'Hilfstabelle Vermögen'!$K$18","v":0},{"$f":"AF54*'Hilfstabelle Vermögen'!$K$18","v":0},{"$f":"AG54*'Hilfstabelle Vermögen'!$K$18","v":0},{"$f":"AH54*'Hilfstabelle Vermögen'!$K$18","v":0},{"$f":"AI54*'Hilfstabelle Vermögen'!$K$18","v":0},{"$f":"AJ54*'Hilfstabelle Vermögen'!$K$18","v":0}]
[null,null,"Schuldzinsen Konsumkredit (liquid, steuerwirksam)",null,null,null,{"$f":"'Hilfstabelle Vermögen'!L19","v":0},{"$f":"H56*'Hilfstabelle Vermögen'!$K$19","v":0},{"$f":"I56*'Hilfstabelle Vermögen'!$K$19","v":0},{"$f":"J56*'Hilfstabelle Vermögen'!$K$19","v":0},{"$f":"K56*'Hilfstabelle Vermögen'!$K$19","v":0},{"$f":"L56*'Hilfstabelle Vermögen'!$K$19","v":0},{"$f":"M56*'Hilfstabelle Vermögen'!$K$19","v":0},{"$f":"N56*'Hilfstabelle Vermögen'!$K$19","v":0},{"$f":"O56*'Hilfstabelle Vermögen'!$K$19","v":0},{"$f":"P56*'Hilfstabelle Vermögen'!$K$19","v":0},{"$f":"Q56*'Hilfstabelle Vermögen'!$K$19","v":0},{"$f":"R56*'Hilfstabelle Vermögen'!$K$19","v":0},{"$f":"S56*'Hilfstabelle Vermögen'!$K$19","v":0},{"$f":"T56*'Hilfstabelle Vermögen'!$K$19","v":0},{"$f":"U56*'Hilfstabelle Vermögen'!$K$19","v":0},{"$f":"V56*'Hilfstabelle Vermögen'!$K$19","v":0},{"$f":"W56*'Hilfstabelle Vermögen'!$K$19","v":0},{"$f":"X56*'Hilfstabelle Vermögen'!$K$19","v":0},{"$f":"Y56*'Hilfstabelle Vermögen'!$K$19","v":0},{"$f":"Z56*'Hilfstabelle Vermögen'!$K$19","v":0},{"$f":"AA56*'Hilfstabelle Vermögen'!$K$19","v":0},{"$f":"AB56*'Hilfstabelle Vermögen'!$K$19","v":0},{"$f":"AC56*'Hilfstabelle Vermögen'!$K$19","v":0},{"$f":"AD56*'Hilfstabelle Vermögen'!$K$19","v":0},{"$f":"AE56*'Hilfstabelle Vermögen'!$K$19","v":0},{"$f":"AF56*'Hilfstabelle Vermögen'!$K$19","v":0},{"$f":"AG56*'Hilfstabelle Vermögen'!$K$19","v":0},{"$f":"AH56*'Hilfstabelle Vermögen'!$K$19","v":0},{"$f":"AI56*'Hilfstabelle Vermögen'!$K$19","v":0},{"$f":"AJ56*'Hilfstabelle Vermögen'!$K$19","v":0}]
[null,null,"Schulden sonstige (liquid, steuerwirksam)",null,null,null,{"$f":"'Hilfstabelle Vermögen'!L20","v":0},{"$f":"H58*'Hilfstabelle Vermögen'!$K$20","v":0},{"$f":"I58*'Hilfstabelle Vermögen'!$K$20","v":0},{"$f":"J58*'Hilfstabelle Vermögen'!$K$20","v":0},{"$f":"K58*'Hilfstabelle Vermögen'!$K$20","v":0},{"$f":"L58*'Hilfstabelle Vermögen'!$K$20","v":0},{"$f":"M58*'Hilfstabelle Vermögen'!$K$20","v":0},{"$f":"N58*'Hilfstabelle Vermögen'!$K$20","v":0},{"$f":"O58*'Hilfstabelle Vermögen'!$K$20","v":0},{"$f":"P58*'Hilfstabelle Vermögen'!$K$20","v":0},{"$f":"Q58*'Hilfstabelle Vermögen'!$K$20","v":0},{"$f":"R58*'Hilfstabelle Vermögen'!$K$20","v":0},{"$f":"S58*'Hilfstabelle Vermögen'!$K$20","v":0},{"$f":"T58*'Hilfstabelle Vermögen'!$K$20","v":0},{"$f":"U58*'Hilfstabelle Vermögen'!$K$20","v":0},{"$f":"V58*'Hilfstabelle Vermögen'!$K$20","v":0},{"$f":"W58*'Hilfstabelle Vermögen'!$K$20","v":0},{"$f":"X58*'Hilfstabelle Vermögen'!$K$20","v":0},{"$f":"Y58*'Hilfstabelle Vermögen'!$K$20","v":0},{"$f":"Z58*'Hilfstabelle Vermögen'!$K$20","v":0},{"$f":"AA58*'Hilfstabelle Vermögen'!$K$20","v":0},{"$f":"AB58*'Hilfstabelle Vermögen'!$K$20","v":0},{"$f":"AC58*'Hilfstabelle Vermögen'!$K$20","v":0},{"$f":"AD58*'Hilfstabelle Vermögen'!$K$20","v":0},{"$f":"AE58*'Hilfstabelle Vermögen'!$K$20","v":0},{"$f":"AF58*'Hilfstabelle Vermögen'!$K$20","v":0},{"$f":"AG58*'Hilfstabelle Vermögen'!$K$20","v":0},{"$f":"AH58*'Hilfstabelle Vermögen'!$K$20","v":0},{"$f":"AI58*'Hilfstabelle Vermögen'!$K$20","v":0},{"$f":"AJ58*'Hilfstabelle Vermögen'!$K$20","v":0}]
[null,null,"Total",null,null,null,{"$f":"SUM(G62:G65)","v":0},0,0,0,0,0,0,0,0,0,0,0,0,0,0,0,0,0,0,0,{"$f":"SUM(AA62:AA65)","v":0},0,0,0,0,0,0,0,0,0]
[]
[null,null,"Steuereffekt Schuldzinsen",null,null,null,{"$f":"G66*Erwerbseinkommen!$I$50/100*'Hilfstabelle Steuern'!$F$17*-1","v":{"$error":"#VALUE!"}},{"$f":"H66*Erwerbseinkommen!$I$50/100*'Hilfstabelle Steuern'!$F$17*-1","v":{"$error":"#VALUE!"}},{"$f":"I66*Erwerbseinkommen!$I$50/100*'Hilfstabelle Steuern'!$F$17*-1","v":{"$error":"#VALUE!"}},{"$f":"J66*Erwerbseinkommen!$I$50/100*'Hilfstabelle Steuern'!$F$17*-1","v":{"$error":"#VALUE!"}},{"$f":"K66*Erwerbseinkommen!$I$50/100*'Hilfstabelle Steuern'!$F$17*-1","v":{"$error":"#VALUE!"}},{"$f":"L66*Erwerbseinkommen!$I$50/100*'Hilfstabelle Steuern'!$F$17*-1","v":{"$error":"#VALUE!"}},{"$f":"M66*Erwerbseinkommen!$I$50/100*'Hilfstabelle Steuern'!$F$17*-1","v":{"$error":"#VALUE!"}},{"$f":"N66*Erwerbseinkommen!$I$50/100*'Hilfstabelle Steuern'!$F$17*-1","v":{"$error":"#VALUE!"}},{"$f":"O66*Erwerbseinkommen!$I$50/100*'Hilfstabelle Steuern'!$F$17*-1","v":{"$error":"#VALUE!"}},{"$f":"P66*Erwerbseinkommen!$I$50/100*'Hilfstabelle Steuern'!$F$17*-1","v":{"$error":"#VALUE!"}},{"$f":"Q66*Erwerbseinkommen!$I$50/100*'Hilfstabelle Steuern'!$F$17*-1","v":{"$error":"#VALUE!"}},{"$f":"R66*Erwerbseinkommen!$I$50/100*'Hilfstabelle Steuern'!$F$17*-1","v":{"$error":"#VALUE!"}},{"$f":"S66*Erwerbseinkommen!$I$50/100*'Hilfstabelle Steuern'!$F$17*-1","v":{"$error":"#VALUE!"}},{"$f":"T66*Erwerbseinkommen!$I$50/100*'Hilfstabelle Steuern'!$F$17*-1","v":{"$error":"#VALUE!"}},{"$f":"U66*Erwerbseinkommen!$I$50/100*'Hilfstabelle Steuern'!$F$17*-1","v":{"$error":"#VALUE!"}},{"$f":"V66*Erwerbseinkommen!$I$50/100*'Hilfstabelle Steuern'!$F$17*-1","v":{"$error":"#VALUE!"}},{"$f":"W66*Erwerbseinkommen!$I$50/100*'Hilfstabelle Steuern'!$F$17*-1","v":{"$error":"#VALUE!"}},{"$f":"X66*Erwerbseinkommen!$I$50/100*'Hilfstabelle Steuern'!$F$17*-1","v":{"$error":"#VALUE!"}},{"$f":"Y66*Erwerbseinkommen!$I$50/100*'Hilfstabelle Steuern'!$F$17*-1","v":{"$error":"#VALUE!"}},{"$f":"Z66*Erwerbseinkommen!$I$50/100*'Hilfstabelle Steuern'!$F$17*-1","v":{"$error":"#VALUE!"}},{"$f":"AA66*Erwerbseinkommen!$I$50/100*'Hilfstabelle Steuern'!$F$17*-1","v":{"$error":"#VALUE!"}},{"$f":"AB66*Erwerbseinkommen!$I$50/100*'Hilfstabelle Steuern'!$F$17*-1","v":{"$error":"#VALUE!"}},{"$f":"AC66*Erwerbseinkommen!$I$50/100*'Hilfstabelle Steuern'!$F$17*-1","v":{"$error":"#VALUE!"}},{"$f":"AD66*Erwerbseinkommen!$I$50/100*'Hilfstabelle Steuern'!$F$17*-1","v":{"$error":"#VALUE!"}},{"$f":"AE66*Erwerbseinkommen!$I$50/100*'Hilfstabelle Steuern'!$F$17*-1","v":{"$error":"#VALUE!"}},{"$f":"AF66*Erwerbseinkommen!$I$50/100*'Hilfstabelle Steuern'!$F$17*-1","v":{"$error":"#VALUE!"}},{"$f":"AG66*Erwerbseinkommen!$I$50/100*'Hilfstabelle Steuern'!$F$17*-1","v":{"$error":"#VALUE!"}},{"$f":"AH66*Erwerbseinkommen!$I$50/100*'Hilfstabelle Steuern'!$F$17*-1","v":{"$error":"#VALUE!"}},{"$f":"AI66*Erwerbseinkommen!$I$50/100*'Hilfstabelle Steuern'!$F$17*-1","v":{"$error":"#VALUE!"}},{"$f":"AJ66*Erwerbseinkommen!$I$50/100*'Hilfstabelle Steuern'!$F$17*-1","v":{"$error":"#VALUE!"}}]
[]
[]
[]
[null,null,"Projekt 1",{"$f":"Projektplanung!D15","v":0},null,null,{"$f":"IF(OR(G$7=Projektplanung!$K$17,AND(G$7>=Projektplanung!$K$15,G$7<=Projektplanung!$M$15)),Projektplanung!$H$15,0)*-1","v":0},{"$f":"IF(OR(H$7=Projektplanung!$K$17,AND(H$7>=Projektplanung!$K$15,H$7<=Projektplanung!$M$15)),Projektplanung!$H$15,0)*-1","v":0},{"$f":"IF(OR(I$7=Projektplanung!$K$17,AND(I$7>=Projektplanung!$K$15,I$7<=Projektplanung!$M$15)),Projektplanung!$H$15,0)*-1","v":0},{"$f":"IF(OR(J$7=Projektplanung!$K$17,AND(J$7>=Projektplanung!$K$15,J$7<=Projektplanung!$M$15)),Projektplanung!$H$15,0)*-1","v":0},{"$f":"IF(OR(K$7=Projektplanung!$K$17,AND(K$7>=Projektplanung!$K$15,K$7<=Projektplanung!$M$15)),Projektplanung!$H$15,0)*-1","v":0},{"$f":"IF(OR(L$7=Projektplanung!$K$17,AND(L$7>=Projektplanung!$K$15,L$7<=Projektplanung!$M$15)),Projektplanung!$H$15,0)*-1","v":0},{"$f":"IF(OR(M$7=Projektplanung!$K$17,AND(M$7>=Projektplanung!$K$15,M$7<=Projektplanung!$M$15)),Projektplanung!$H$15,0)*-1","v":0},{"$f":"IF(OR(N$7=Projektplanung!$K$17,AND(N$7>=Projektplanung!$K$15,N$7<=Projektplanung!$M$15)),Projektplanung!$H$15,0)*-1","v":0},{"$f":"IF(OR(O$7=Projektplanung!$K$17,AND(O$7>=Projektplanung!$K$15,O$7<=Projektplanung!$M$15)),Projektplanung!$H$15,0)*-1","v":0},{"$f":"IF(OR(P$7=Projektplanung!$K$17,AND(P$7>=Projektplanung!$K$15,P$7<=Projektplanung!$M$15)),Projektplanung!$H$15,0)*-1","v":0},{"$f":"IF(OR(Q$7=Projektplanung!$K$17,AND(Q$7>=Projektplanung!$K$15,Q$7<=Projektplanung!$M$15)),Projektplanung!$H$15,0)*-1","v":0},{"$f":"IF(OR(R$7=Projektplanung!$K$17,AND(R$7>=Projektplanung!$K$15,R$7<=Projektplanung!$M$15)),Projektplanung!$H$15,0)*-1","v":0},{"$f":"IF(OR(S$7=Projektplanung!$K$17,AND(S$7>=Projektplanung!$K$15,S$7<=Projektplanung!$M$15)),Projektplanung!$H$15,0)*-1","v":0},{"$f":"IF(OR(T$7=Projektplanung!$K$17,AND(T$7>=Projektplanung!$K$15,T$7<=Projektplanung!$M$15)),Projektplanung!$H$15,0)*-1","v":0},{"$f":"IF(OR(U$7=Projektplanung!$K$17,AND(U$7>=Projektplanung!$K$15,U$7<=Projektplanung!$M$15)),Projektplanung!$H$15,0)*-1","v":0},{"$f":"IF(OR(V$7=Projektplanung!$K$17,AND(V$7>=Projektplanung!$K$15,V$7<=Projektplanung!$M$15)),Projektplanung!$H$15,0)*-1","v":0},{"$f":"IF(OR(W$7=Projektplanung!$K$17,AND(W$7>=Projektplanung!$K$15,W$7<=Projektplanung!$M$15)),Projektplanung!$H$15,0)*-1","v":0},{"$f":"IF(OR(X$7=Projektplanung!$K$17,AND(X$7>=Projektplanung!$K$15,X$7<=Projektplanung!$M$15)),Projektplanung!$H$15,0)*-1","v":0},{"$f":"IF(OR(Y$7=Projektplanung!$K$17,AND(Y$7>=Projektplanung!$K$15,Y$7<=Projektplanung!$M$15)),Projektplanung!$H$15,0)*-1","v":0},{"$f":"IF(OR(Z$7=Projektplanung!$K$17,AND(Z$7>=Projektplanung!$K$15,Z$7<=Projektplanung!$M$15)),Projektplanung!$H$15,0)*-1","v":0},{"$f":"IF(OR(AA$7=Projektplanung!$K$17,AND(AA$7>=Projektplanung!$K$15,AA$7<=Projektplanung!$M$15)),Projektplanung!$H$15,0)*-1","v":0},{"$f":"IF(OR(AB$7=Projektplanung!$K$17,AND(AB$7>=Projektplanung!$K$15,AB$7<=Projektplanung!$M$15)),Projektplanung!$H$15,0)*-1","v":0},{"$f":"IF(OR(AC$7=Projektplanung!$K$17,AND(AC$7>=Projektplanung!$K$15,AC$7<=Projektplanung!$M$15)),Projektplanung!$H$15,0)*-1","v":0},{"$f":"IF(OR(AD$7=Projektplanung!$K$17,AND(AD$7>=Projektplanung!$K$15,AD$7<=Projektplanung!$M$15)),Projektplanung!$H$15,0)*-1","v":0},{"$f":"IF(OR(AE$7=Projektplanung!$K$17,AND(AE$7>=Projektplanung!$K$15,AE$7<=Projektplanung!$M$15)),Projektplanung!$H$15,0)*-1","v":0},{"$f":"IF(OR(AF$7=Projektplanung!$K$17,AND(AF$7>=Projektplanung!$K$15,AF$7<=Projektplanung!$M$15)),Projektplanung!$H$15,0)*-1","v":0},{"$f":"IF(OR(AG$7=Projektplanung!$K$17,AND(AG$7>=Projektplanung!$K$15,AG$7<=Projektplanung!$M$15)),Projektplanung!$H$15,0)*-1","v":0},{"$f":"IF(OR(AH$7=Projektplanung!$K$17,AND(AH$7>=Projektplanung!$K$15,AH$7<=Projektplanung!$M$15)),Projektplanung!$H$15,0)*-1","v":0},{"$f":"IF(OR(AI$7=Projektplanung!$K$17,AND(AI$7>=Projektplanung!$K$15,AI$7<=Projektplanung!$M$15)),Projektplanung!$H$15,0)*-1","v":0},{"$f":"IF(OR(AJ$7=Projektplanung!$K$17,AND(AJ$7>=Projektplanung!$K$15,AJ$7<=Projektplanung!$M$15)),Projektplanung!$H$15,0)*-1","v":0}]
[]
[null,null,"Projekt 2",{"$f":"Projektplanung!D20","v":0},null,null,{"$f":"IF(OR(G$7=Projektplanung!$K$22,AND(G$7>=Projektplanung!$K$20,G$7<=Projektplanung!$M$20)),Projektplanung!$H$20,0)*-1","v":0},{"$f":"IF(OR(H$7=Projektplanung!$K$22,AND(H$7>=Projektplanung!$K$20,H$7<=Projektplanung!$M$20)),Projektplanung!$H$20,0)*-1","v":0},{"$f":"IF(OR(I$7=Projektplanung!$K$22,AND(I$7>=Projektplanung!$K$20,I$7<=Projektplanung!$M$20)),Projektplanung!$H$20,0)*-1","v":0},{"$f":"IF(OR(J$7=Projektplanung!$K$22,AND(J$7>=Projektplanung!$K$20,J$7<=Projektplanung!$M$20)),Projektplanung!$H$20,0)*-1","v":0},{"$f":"IF(OR(K$7=Projektplanung!$K$22,AND(K$7>=Projektplanung!$K$20,K$7<=Projektplanung!$M$20)),Projektplanung!$H$20,0)*-1","v":0},{"$f":"IF(OR(L$7=Projektplanung!$K$22,AND(L$7>=Projektplanung!$K$20,L$7<=Projektplanung!$M$20)),Projektplanung!$H$20,0)*-1","v":0},{"$f":"IF(OR(M$7=Projektplanung!$K$22,AND(M$7>=Projektplanung!$K$20,M$7<=Projektplanung!$M$20)),Projektplanung!$H$20,0)*-1","v":0},{"$f":"IF(OR(N$7=Projektplanung!$K$22,AND(N$7>=Projektplanung!$K$20,N$7<=Projektplanung!$M$20)),Projektplanung!$H$20,0)*-1","v":0},{"$f":"IF(OR(O$7=Projektplanung!$K$22,AND(O$7>=Projektplanung!$K$20,O$7<=Projektplanung!$M$20)),Projektplanung!$H$20,0)*-1","v":0},{"$f":"IF(OR(P$7=Projektplanung!$K$22,AND(P$7>=Projektplanung!$K$20,P$7<=Projektplanung!$M$20)),Projektplanung!$H$20,0)*-1","v":0},{"$f":"IF(OR(Q$7=Projektplanung!$K$22,AND(Q$7>=Projektplanung!$K$20,Q$7<=Projektplanung!$M$20)),Projektplanung!$H$20,0)*-1","v":0},{"$f":"IF(OR(R$7=Projektplanung!$K$22,AND(R$7>=Projektplanung!$K$20,R$7<=Projektplanung!$M$20)),Projektplanung!$H$20,0)*-1","v":0},{"$f":"IF(OR(S$7=Projektplanung!$K$22,AND(S$7>=Projektplanung!$K$20,S$7<=Projektplanung!$M$20)),Projektplanung!$H$20,0)*-1","v":0},{"$f":"IF(OR(T$7=Projektplanung!$K$22,AND(T$7>=Projektplanung!$K$20,T$7<=Projektplanung!$M$20)),Projektplanung!$H$20,0)*-1","v":0},{"$f":"IF(OR(U$7=Projektplanung!$K$22,AND(U$7>=Projektplanung!$K$20,U$7<=Projektplanung!$M$20)),Projektplanung!$H$20,0)*-1","v":0},{"$f":"IF(OR(V$7=Projektplanung!$K$22,AND(V$7>=Projektplanung!$K$20,V$7<=Projektplanung!$M$20)),Projektplanung!$H$20,0)*-1","v":0},{"$f":"IF(OR(W$7=Projektplanung!$K$22,AND(W$7>=Projektplanung!$K$20,W$7<=Projektplanung!$M$20)),Projektplanung!$H$20,0)*-1","v":0},{"$f":"IF(OR(X$7=Projektplanung!$K$22,AND(X$7>=Projektplanung!$K$20,X$7<=Projektplanung!$M$20)),Projektplanung!$H$20,0)*-1","v":0},{"$f":"IF(OR(Y$7=Projektplanung!$K$22,AND(Y$7>=Projektplanung!$K$20,Y$7<=Projektplanung!$M$20)),Projektplanung!$H$20,0)*-1","v":0},{"$f":"IF(OR(Z$7=Projektplanung!$K$22,AND(Z$7>=Projektplanung!$K$20,Z$7<=Projektplanung!$M$20)),Projektplanung!$H$20,0)*-1","v":0},{"$f":"IF(OR(AA$7=Projektplanung!$K$22,AND(AA$7>=Projektplanung!$K$20,AA$7<=Projektplanung!$M$20)),Projektplanung!$H$20,0)*-1","v":0},{"$f":"IF(OR(AB$7=Projektplanung!$K$22,AND(AB$7>=Projektplanung!$K$20,AB$7<=Projektplanung!$M$20)),Projektplanung!$H$20,0)*-1","v":0},{"$f":"IF(OR(AC$7=Projektplanung!$K$22,AND(AC$7>=Projektplanung!$K$20,AC$7<=Projektplanung!$M$20)),Projektplanung!$H$20,0)*-1","v":0},{"$f":"IF(OR(AD$7=Projektplanung!$K$22,AND(AD$7>=Projektplanung!$K$20,AD$7<=Projektplanung!$M$20)),Projektplanung!$H$20,0)*-1","v":0},{"$f":"IF(OR(AE$7=Projektplanung!$K$22,AND(AE$7>=Projektplanung!$K$20,AE$7<=Projektplanung!$M$20)),Projektplanung!$H$20,0)*-1","v":0},{"$f":"IF(OR(AF$7=Projektplanung!$K$22,AND(AF$7>=Projektplanung!$K$20,AF$7<=Projektplanung!$M$20)),Projektplanung!$H$20,0)*-1","v":0},{"$f":"IF(OR(AG$7=Projektplanung!$K$22,AND(AG$7>=Projektplanung!$K$20,AG$7<=Projektplanung!$M$20)),Projektplanung!$H$20,0)*-1","v":0},{"$f":"IF(OR(AH$7=Projektplanung!$K$22,AND(AH$7>=Projektplanung!$K$20,AH$7<=Projektplanung!$M$20)),Projektplanung!$H$20,0)*-1","v":0},{"$f":"IF(OR(AI$7=Projektplanung!$K$22,AND(AI$7>=Projektplanung!$K$20,AI$7<=Projektplanung!$M$20)),Projektplanung!$H$20,0)*-1","v":0},{"$f":"IF(OR(AJ$7=Projektplanung!$K$22,AND(AJ$7>=Projektplanung!$K$20,AJ$7<=Projektplanung!$M$20)),Projektplanung!$H$20,0)*-1","v":0}]
[]
[null,null,"Projekt 3",{"$f":"Projektplanung!D25","v":0},null,null,{"$f":"IF(OR(G$7=Projektplanung!$K$27,AND(G$7>=Projektplanung!$K$25,G$7<=Projektplanung!$M$25)),Projektplanung!$H$25,0)*-1","v":0},{"$f":"IF(OR(H$7=Projektplanung!$K$27,AND(H$7>=Projektplanung!$K$25,H$7<=Projektplanung!$M$25)),Projektplanung!$H$25,0)*-1","v":0},{"$f":"IF(OR(I$7=Projektplanung!$K$27,AND(I$7>=Projektplanung!$K$25,I$7<=Projektplanung!$M$25)),Projektplanung!$H$25,0)*-1","v":0},{"$f":"IF(OR(J$7=Projektplanung!$K$27,AND(J$7>=Projektplanung!$K$25,J$7<=Projektplanung!$M$25)),Projektplanung!$H$25,0)*-1","v":0},{"$f":"IF(OR(K$7=Projektplanung!$K$27,AND(K$7>=Projektplanung!$K$25,K$7<=Projektplanung!$M$25)),Projektplanung!$H$25,0)*-1","v":0},{"$f":"IF(OR(L$7=Projektplanung!$K$27,AND(L$7>=Projektplanung!$K$25,L$7<=Projektplanung!$M$25)),Projektplanung!$H$25,0)*-1","v":0},{"$f":"IF(OR(M$7=Projektplanung!$K$27,AND(M$7>=Projektplanung!$K$25,M$7<=Projektplanung!$M$25)),Projektplanung!$H$25,0)*-1","v":0},{"$f":"IF(OR(N$7=Projektplanung!$K$27,AND(N$7>=Projektplanung!$K$25,N$7<=Projektplanung!$M$25)),Projektplanung!$H$25,0)*-1","v":0},{"$f":"IF(OR(O$7=Projektplanung!$K$27,AND(O$7>=Projektplanung!$K$25,O$7<=Projektplanung!$M$25)),Projektplanung!$H$25,0)*-1","v":0},{"$f":"IF(OR(P$7=Projektplanung!$K$27,AND(P$7>=Projektplanung!$K$25,P$7<=Projektplanung!$M$25)),Projektplanung!$H$25,0)*-1","v":0},{"$f":"IF(OR(Q$7=Projektplanung!$K$27,AND(Q$7>=Projektplanung!$K$25,Q$7<=Projektplanung!$M$25)),Projektplanung!$H$25,0)*-1","v":0},{"$f":"IF(OR(R$7=Projektplanung!$K$27,AND(R$7>=Projektplanung!$K$25,R$7<=Projektplanung!$M$25)),Projektplanung!$H$25,0)*-1","v":0},{"$f":"IF(OR(S$7=Projektplanung!$K$27,AND(S$7>=Projektplanung!$K$25,S$7<=Projektplanung!$M$25)),Projektplanung!$H$25,0)*-1","v":0},{"$f":"IF(OR(T$7=Projektplanung!$K$27,AND(T$7>=Projektplanung!$K$25,T$7<=Projektplanung!$M$25)),Projektplanung!$H$25,0)*-1","v":0},{"$f":"IF(OR(U$7=Projektplanung!$K$27,AND(U$7>=Projektplanung!$K$25,U$7<=Projektplanung!$M$25)),Projektplanung!$H$25,0)*-1","v":0},{"$f":"IF(OR(V$7=Projektplanung!$K$27,AND(V$7>=Projektplanung!$K$25,V$7<=Projektplanung!$M$25)),Projektplanung!$H$25,0)*-1","v":0},{"$f":"IF(OR(W$7=Projektplanung!$K$27,AND(W$7>=Projektplanung!$K$25,W$7<=Projektplanung!$M$25)),Projektplanung!$H$25,0)*-1","v":0},{"$f":"IF(OR(X$7=Projektplanung!$K$27,AND(X$7>=Projektplanung!$K$25,X$7<=Projektplanung!$M$25)),Projektplanung!$H$25,0)*-1","v":0},{"$f":"IF(OR(Y$7=Projektplanung!$K$27,AND(Y$7>=Projektplanung!$K$25,Y$7<=Projektplanung!$M$25)),Projektplanung!$H$25,0)*-1","v":0},{"$f":"IF(OR(Z$7=Projektplanung!$K$27,AND(Z$7>=Projektplanung!$K$25,Z$7<=Projektplanung!$M$25)),Projektplanung!$H$25,0)*-1","v":0},{"$f":"IF(OR(AA$7=Projektplanung!$K$27,AND(AA$7>=Projektplanung!$K$25,AA$7<=Projektplanung!$M$25)),Projektplanung!$H$25,0)*-1","v":0},{"$f":"IF(OR(AB$7=Projektplanung!$K$27,AND(AB$7>=Projektplanung!$K$25,AB$7<=Projektplanung!$M$25)),Projektplanung!$H$25,0)*-1","v":0},{"$f":"IF(OR(AC$7=Projektplanung!$K$27,AND(AC$7>=Projektplanung!$K$25,AC$7<=Projektplanung!$M$25)),Projektplanung!$H$25,0)*-1","v":0},{"$f":"IF(OR(AD$7=Projektplanung!$K$27,AND(AD$7>=Projektplanung!$K$25,AD$7<=Projektplanung!$M$25)),Projektplanung!$H$25,0)*-1","v":0},{"$f":"IF(OR(AE$7=Projektplanung!$K$27,AND(AE$7>=Projektplanung!$K$25,AE$7<=Projektplanung!$M$25)),Projektplanung!$H$25,0)*-1","v":0},{"$f":"IF(OR(AF$7=Projektplanung!$K$27,AND(AF$7>=Projektplanung!$K$25,AF$7<=Projektplanung!$M$25)),Projektplanung!$H$25,0)*-1","v":0},{"$f":"IF(OR(AG$7=Projektplanung!$K$27,AND(AG$7>=Projektplanung!$K$25,AG$7<=Projektplanung!$M$25)),Projektplanung!$H$25,0)*-1","v":0},{"$f":"IF(OR(AH$7=Projektplanung!$K$27,AND(AH$7>=Projektplanung!$K$25,AH$7<=Projektplanung!$M$25)),Projektplanung!$H$25,0)*-1","v":0},{"$f":"IF(OR(AI$7=Projektplanung!$K$27,AND(AI$7>=Projektplanung!$K$25,AI$7<=Projektplanung!$M$25)),Projektplanung!$H$25,0)*-1","v":0},{"$f":"IF(OR(AJ$7=Projektplanung!$K$27,AND(AJ$7>=Projektplanung!$K$25,AJ$7<=Projektplanung!$M$25)),Projektplanung!$H$25,0)*-1","v":0}]
[]
[null,null,"Projekt 4",{"$f":"Projektplanung!D30","v":0},null,null,{"$f":"IF(OR(G$7=Projektplanung!$K$32,AND(G$7>=Projektplanung!$K$30,G$7<=Projektplanung!$M$30)),Projektplanung!$H$30,0)*-1","v":0},{"$f":"IF(OR(H$7=Projektplanung!$K$32,AND(H$7>=Projektplanung!$K$30,H$7<=Projektplanung!$M$30)),Projektplanung!$H$30,0)*-1","v":0},{"$f":"IF(OR(I$7=Projektplanung!$K$32,AND(I$7>=Projektplanung!$K$30,I$7<=Projektplanung!$M$30)),Projektplanung!$H$30,0)*-1","v":0},{"$f":"IF(OR(J$7=Projektplanung!$K$32,AND(J$7>=Projektplanung!$K$30,J$7<=Projektplanung!$M$30)),Projektplanung!$H$30,0)*-1","v":0},{"$f":"IF(OR(K$7=Projektplanung!$K$32,AND(K$7>=Projektplanung!$K$30,K$7<=Projektplanung!$M$30)),Projektplanung!$H$30,0)*-1","v":0},{"$f":"IF(OR(L$7=Projektplanung!$K$32,AND(L$7>=Projektplanung!$K$30,L$7<=Projektplanung!$M$30)),Projektplanung!$H$30,0)*-1","v":0},{"$f":"IF(OR(M$7=Projektplanung!$K$32,AND(M$7>=Projektplanung!$K$30,M$7<=Projektplanung!$M$30)),Projektplanung!$H$30,0)*-1","v":0},{"$f":"IF(OR(N$7=Projektplanung!$K$32,AND(N$7>=Projektplanung!$K$30,N$7<=Projektplanung!$M$30)),Projektplanung!$H$30,0)*-1","v":0},{"$f":"IF(OR(O$7=Projektplanung!$K$32,AND(O$7>=Projektplanung!$K$30,O$7<=Projektplanung!$M$30)),Projektplanung!$H$30,0)*-1","v":0},{"$f":"IF(OR(P$7=Projektplanung!$K$32,AND(P$7>=Projektplanung!$K$30,P$7<=Projektplanung!$M$30)),Projektplanung!$H$30,0)*-1","v":0},{"$f":"IF(OR(Q$7=Projektplanung!$K$32,AND(Q$7>=Projektplanung!$K$30,Q$7<=Projektplanung!$M$30)),Projektplanung!$H$30,0)*-1","v":0},{"$f":"IF(OR(R$7=Projektplanung!$K$32,AND(R$7>=Projektplanung!$K$30,R$7<=Projektplanung!$M$30)),Projektplanung!$H$30,0)*-1","v":0},{"$f":"IF(OR(S$7=Projektplanung!$K$32,AND(S$7>=Projektplanung!$K$30,S$7<=Projektplanung!$M$30)),Projektplanung!$H$30,0)*-1","v":0},{"$f":"IF(OR(T$7=Projektplanung!$K$32,AND(T$7>=Projektplanung!$K$30,T$7<=Projektplanung!$M$30)),Projektplanung!$H$30,0)*-1","v":0},{"$f":"IF(OR(U$7=Projektplanung!$K$32,AND(U$7>=Projektplanung!$K$30,U$7<=Projektplanung!$M$30)),Projektplanung!$H$30,0)*-1","v":0},{"$f":"IF(OR(V$7=Projektplanung!$K$32,AND(V$7>=Projektplanung!$K$30,V$7<=Projektplanung!$M$30)),Projektplanung!$H$30,0)*-1","v":0},{"$f":"IF(OR(W$7=Projektplanung!$K$32,AND(W$7>=Projektplanung!$K$30,W$7<=Projektplanung!$M$30)),Projektplanung!$H$30,0)*-1","v":0},{"$f":"IF(OR(X$7=Projektplanung!$K$32,AND(X$7>=Projektplanung!$K$30,X$7<=Projektplanung!$M$30)),Projektplanung!$H$30,0)*-1","v":0},{"$f":"IF(OR(Y$7=Projektplanung!$K$32,AND(Y$7>=Projektplanung!$K$30,Y$7<=Projektplanung!$M$30)),Projektplanung!$H$30,0)*-1","v":0},{"$f":"IF(OR(Z$7=Projektplanung!$K$32,AND(Z$7>=Projektplanung!$K$30,Z$7<=Projektplanung!$M$30)),Projektplanung!$H$30,0)*-1","v":0},{"$f":"IF(OR(AA$7=Projektplanung!$K$32,AND(AA$7>=Projektplanung!$K$30,AA$7<=Projektplanung!$M$30)),Projektplanung!$H$30,0)*-1","v":0},{"$f":"IF(OR(AB$7=Projektplanung!$K$32,AND(AB$7>=Projektplanung!$K$30,AB$7<=Projektplanung!$M$30)),Projektplanung!$H$30,0)*-1","v":0},{"$f":"IF(OR(AC$7=Projektplanung!$K$32,AND(AC$7>=Projektplanung!$K$30,AC$7<=Projektplanung!$M$30)),Projektplanung!$H$30,0)*-1","v":0},{"$f":"IF(OR(AD$7=Projektplanung!$K$32,AND(AD$7>=Projektplanung!$K$30,AD$7<=Projektplanung!$M$30)),Projektplanung!$H$30,0)*-1","v":0},{"$f":"IF(OR(AE$7=Projektplanung!$K$32,AND(AE$7>=Projektplanung!$K$30,AE$7<=Projektplanung!$M$30)),Projektplanung!$H$30,0)*-1","v":0},{"$f":"IF(OR(AF$7=Projektplanung!$K$32,AND(AF$7>=Projektplanung!$K$30,AF$7<=Projektplanung!$M$30)),Projektplanung!$H$30,0)*-1","v":0},{"$f":"IF(OR(AG$7=Projektplanung!$K$32,AND(AG$7>=Projektplanung!$K$30,AG$7<=Projektplanung!$M$30)),Projektplanung!$H$30,0)*-1","v":0},{"$f":"IF(OR(AH$7=Projektplanung!$K$32,AND(AH$7>=Projektplanung!$K$30,AH$7<=Projektplanung!$M$30)),Projektplanung!$H$30,0)*-1","v":0},{"$f":"IF(OR(AI$7=Projektplanung!$K$32,AND(AI$7>=Projektplanung!$K$30,AI$7<=Projektplanung!$M$30)),Projektplanung!$H$30,0)*-1","v":0},{"$f":"IF(OR(AJ$7=Projektplanung!$K$32,AND(AJ$7>=Projektplanung!$K$30,AJ$7<=Projektplanung!$M$30)),Projektplanung!$H$30,0)*-1","v":0}]
[]
[null,null,"Projekt 5",{"$f":"Projektplanung!D35","v":0},null,null,{"$f":"IF(OR(G$7=Projektplanung!$K$37,AND(G$7>=Projektplanung!$K$35,G$7<=Projektplanung!$M$35)),Projektplanung!$H$35,0)*-1","v":0},{"$f":"IF(OR(H$7=Projektplanung!$K$37,AND(H$7>=Projektplanung!$K$35,H$7<=Projektplanung!$M$35)),Projektplanung!$H$35,0)*-1","v":0},{"$f":"IF(OR(I$7=Projektplanung!$K$37,AND(I$7>=Projektplanung!$K$35,I$7<=Projektplanung!$M$35)),Projektplanung!$H$35,0)*-1","v":0},{"$f":"IF(OR(J$7=Projektplanung!$K$37,AND(J$7>=Projektplanung!$K$35,J$7<=Projektplanung!$M$35)),Projektplanung!$H$35,0)*-1","v":0},{"$f":"IF(OR(K$7=Projektplanung!$K$37,AND(K$7>=Projektplanung!$K$35,K$7<=Projektplanung!$M$35)),Projektplanung!$H$35,0)*-1","v":0},{"$f":"IF(OR(L$7=Projektplanung!$K$37,AND(L$7>=Projektplanung!$K$35,L$7<=Projektplanung!$M$35)),Projektplanung!$H$35,0)*-1","v":0},{"$f":"IF(OR(M$7=Projektplanung!$K$37,AND(M$7>=Projektplanung!$K$35,M$7<=Projektplanung!$M$35)),Projektplanung!$H$35,0)*-1","v":0},{"$f":"IF(OR(N$7=Projektplanung!$K$37,AND(N$7>=Projektplanung!$K$35,N$7<=Projektplanung!$M$35)),Projektplanung!$H$35,0)*-1","v":0},{"$f":"IF(OR(O$7=Projektplanung!$K$37,AND(O$7>=Projektplanung!$K$35,O$7<=Projektplanung!$M$35)),Projektplanung!$H$35,0)*-1","v":0},{"$f":"IF(OR(P$7=Projektplanung!$K$37,AND(P$7>=Projektplanung!$K$35,P$7<=Projektplanung!$M$35)),Projektplanung!$H$35,0)*-1","v":0},{"$f":"IF(OR(Q$7=Projektplanung!$K$37,AND(Q$7>=Projektplanung!$K$35,Q$7<=Projektplanung!$M$35)),Projektplanung!$H$35,0)*-1","v":0},{"$f":"IF(OR(R$7=Projektplanung!$K$37,AND(R$7>=Projektplanung!$K$35,R$7<=Projektplanung!$M$35)),Projektplanung!$H$35,0)*-1","v":0},{"$f":"IF(OR(S$7=Projektplanung!$K$37,AND(S$7>=Projektplanung!$K$35,S$7<=Projektplanung!$M$35)),Projektplanung!$H$35,0)*-1","v":0},{"$f":"IF(OR(T$7=Projektplanung!$K$37,AND(T$7>=Projektplanung!$K$35,T$7<=Projektplanung!$M$35)),Projektplanung!$H$35,0)*-1","v":0},{"$f":"IF(OR(U$7=Projektplanung!$K$37,AND(U$7>=Projektplanung!$K$35,U$7<=Projektplanung!$M$35)),Projektplanung!$H$35,0)*-1","v":0},{"$f":"IF(OR(V$7=Projektplanung!$K$37,AND(V$7>=Projektplanung!$K$35,V$7<=Projektplanung!$M$35)),Projektplanung!$H$35,0)*-1","v":0},{"$f":"IF(OR(W$7=Projektplanung!$K$37,AND(W$7>=Projektplanung!$K$35,W$7<=Projektplanung!$M$35)),Projektplanung!$H$35,0)*-1","v":0},{"$f":"IF(OR(X$7=Projektplanung!$K$37,AND(X$7>=Projektplanung!$K$35,X$7<=Projektplanung!$M$35)),Projektplanung!$H$35,0)*-1","v":0},{"$f":"IF(OR(Y$7=Projektplanung!$K$37,AND(Y$7>=Projektplanung!$K$35,Y$7<=Projektplanung!$M$35)),Projektplanung!$H$35,0)*-1","v":0},{"$f":"IF(OR(Z$7=Projektplanung!$K$37,AND(Z$7>=Projektplanung!$K$35,Z$7<=Projektplanung!$M$35)),Projektplanung!$H$35,0)*-1","v":0},{"$f":"IF(OR(AA$7=Projektplanung!$K$37,AND(AA$7>=Projektplanung!$K$35,AA$7<=Projektplanung!$M$35)),Projektplanung!$H$35,0)*-1","v":0},{"$f":"IF(OR(AB$7=Projektplanung!$K$37,AND(AB$7>=Projektplanung!$K$35,AB$7<=Projektplanung!$M$35)),Projektplanung!$H$35,0)*-1","v":0},{"$f":"IF(OR(AC$7=Projektplanung!$K$37,AND(AC$7>=Projektplanung!$K$35,AC$7<=Projektplanung!$M$35)),Projektplanung!$H$35,0)*-1","v":0},{"$f":"IF(OR(AD$7=Projektplanung!$K$37,AND(AD$7>=Projektplanung!$K$35,AD$7<=Projektplanung!$M$35)),Projektplanung!$H$35,0)*-1","v":0},{"$f":"IF(OR(AE$7=Projektplanung!$K$37,AND(AE$7>=Projektplanung!$K$35,AE$7<=Projektplanung!$M$35)),Projektplanung!$H$35,0)*-1","v":0},{"$f":"IF(OR(AF$7=Projektplanung!$K$37,AND(AF$7>=Projektplanung!$K$35,AF$7<=Projektplanung!$M$35)),Projektplanung!$H$35,0)*-1","v":0},{"$f":"IF(OR(AG$7=Projektplanung!$K$37,AND(AG$7>=Projektplanung!$K$35,AG$7<=Projektplanung!$M$35)),Projektplanung!$H$35,0)*-1","v":0},{"$f":"IF(OR(AH$7=Projektplanung!$K$37,AND(AH$7>=Projektplanung!$K$35,AH$7<=Projektplanung!$M$35)),Projektplanung!$H$35,0)*-1","v":0},{"$f":"IF(OR(AI$7=Projektplanung!$K$37,AND(AI$7>=Projektplanung!$K$35,AI$7<=Projektplanung!$M$35)),Projektplanung!$H$35,0)*-1","v":0},{"$f":"IF(OR(AJ$7=Projektplanung!$K$37,AND(AJ$7>=Projektplanung!$K$35,AJ$7<=Projektplanung!$M$35)),Projektplanung!$H$35,0)*-1","v":0}]
[]
[null,null,"Projekt 6",{"$f":"Projektplanung!D40","v":0},null,null,{"$f":"IF(OR(G$7=Projektplanung!$K$42,AND(G$7>=Projektplanung!$K$40,G$7<=Projektplanung!$M$40)),Projektplanung!$H$40,0)*-1","v":0},{"$f":"IF(OR(H$7=Projektplanung!$K$42,AND(H$7>=Projektplanung!$K$40,H$7<=Projektplanung!$M$40)),Projektplanung!$H$40,0)*-1","v":0},{"$f":"IF(OR(I$7=Projektplanung!$K$42,AND(I$7>=Projektplanung!$K$40,I$7<=Projektplanung!$M$40)),Projektplanung!$H$40,0)*-1","v":0},{"$f":"IF(OR(J$7=Projektplanung!$K$42,AND(J$7>=Projektplanung!$K$40,J$7<=Projektplanung!$M$40)),Projektplanung!$H$40,0)*-1","v":0},{"$f":"IF(OR(K$7=Projektplanung!$K$42,AND(K$7>=Projektplanung!$K$40,K$7<=Projektplanung!$M$40)),Projektplanung!$H$40,0)*-1","v":0},{"$f":"IF(OR(L$7=Projektplanung!$K$42,AND(L$7>=Projektplanung!$K$40,L$7<=Projektplanung!$M$40)),Projektplanung!$H$40,0)*-1","v":0},{"$f":"IF(OR(M$7=Projektplanung!$K$42,AND(M$7>=Projektplanung!$K$40,M$7<=Projektplanung!$M$40)),Projektplanung!$H$40,0)*-1","v":0},{"$f":"IF(OR(N$7=Projektplanung!$K$42,AND(N$7>=Projektplanung!$K$40,N$7<=Projektplanung!$M$40)),Projektplanung!$H$40,0)*-1","v":0},{"$f":"IF(OR(O$7=Projektplanung!$K$42,AND(O$7>=Projektplanung!$K$40,O$7<=Projektplanung!$M$40)),Projektplanung!$H$40,0)*-1","v":0},{"$f":"IF(OR(P$7=Projektplanung!$K$42,AND(P$7>=Projektplanung!$K$40,P$7<=Projektplanung!$M$40)),Projektplanung!$H$40,0)*-1","v":0},{"$f":"IF(OR(Q$7=Projektplanung!$K$42,AND(Q$7>=Projektplanung!$K$40,Q$7<=Projektplanung!$M$40)),Projektplanung!$H$40,0)*-1","v":0},{"$f":"IF(OR(R$7=Projektplanung!$K$42,AND(R$7>=Projektplanung!$K$40,R$7<=Projektplanung!$M$40)),Projektplanung!$H$40,0)*-1","v":0},{"$f":"IF(OR(S$7=Projektplanung!$K$42,AND(S$7>=Projektplanung!$K$40,S$7<=Projektplanung!$M$40)),Projektplanung!$H$40,0)*-1","v":0},{"$f":"IF(OR(T$7=Projektplanung!$K$42,AND(T$7>=Projektplanung!$K$40,T$7<=Projektplanung!$M$40)),Projektplanung!$H$40,0)*-1","v":0},{"$f":"IF(OR(U$7=Projektplanung!$K$42,AND(U$7>=Projektplanung!$K$40,U$7<=Projektplanung!$M$40)),Projektplanung!$H$40,0)*-1","v":0},{"$f":"IF(OR(V$7=Projektplanung!$K$42,AND(V$7>=Projektplanung!$K$40,V$7<=Projektplanung!$M$40)),Projektplanung!$H$40,0)*-1","v":0},{"$f":"IF(OR(W$7=Projektplanung!$K$42,AND(W$7>=Projektplanung!$K$40,W$7<=Projektplanung!$M$40)),Projektplanung!$H$40,0)*-1","v":0},{"$f":"IF(OR(X$7=Projektplanung!$K$42,AND(X$7>=Projektplanung!$K$40,X$7<=Projektplanung!$M$40)),Projektplanung!$H$40,0)*-1","v":0},{"$f":"IF(OR(Y$7=Projektplanung!$K$42,AND(Y$7>=Projektplanung!$K$40,Y$7<=Projektplanung!$M$40)),Projektplanung!$H$40,0)*-1","v":0},{"$f":"IF(OR(Z$7=Projektplanung!$K$42,AND(Z$7>=Projektplanung!$K$40,Z$7<=Projektplanung!$M$40)),Projektplanung!$H$40,0)*-1","v":0},{"$f":"IF(OR(AA$7=Projektplanung!$K$42,AND(AA$7>=Projektplanung!$K$40,AA$7<=Projektplanung!$M$40)),Projektplanung!$H$40,0)*-1","v":0},{"$f":"IF(OR(AB$7=Projektplanung!$K$42,AND(AB$7>=Projektplanung!$K$40,AB$7<=Projektplanung!$M$40)),Projektplanung!$H$40,0)*-1","v":0},{"$f":"IF(OR(AC$7=Projektplanung!$K$42,AND(AC$7>=Projektplanung!$K$40,AC$7<=Projektplanung!$M$40)),Projektplanung!$H$40,0)*-1","v":0},{"$f":"IF(OR(AD$7=Projektplanung!$K$42,AND(AD$7>=Projektplanung!$K$40,AD$7<=Projektplanung!$M$40)),Projektplanung!$H$40,0)*-1","v":0},{"$f":"IF(OR(AE$7=Projektplanung!$K$42,AND(AE$7>=Projektplanung!$K$40,AE$7<=Projektplanung!$M$40)),Projektplanung!$H$40,0)*-1","v":0},{"$f":"IF(OR(AF$7=Projektplanung!$K$42,AND(AF$7>=Projektplanung!$K$40,AF$7<=Projektplanung!$M$40)),Projektplanung!$H$40,0)*-1","v":0},{"$f":"IF(OR(AG$7=Projektplanung!$K$42,AND(AG$7>=Projektplanung!$K$40,AG$7<=Projektplanung!$M$40)),Projektplanung!$H$40,0)*-1","v":0},{"$f":"IF(OR(AH$7=Projektplanung!$K$42,AND(AH$7>=Projektplanung!$K$40,AH$7<=Projektplanung!$M$40)),Projektplanung!$H$40,0)*-1","v":0},{"$f":"IF(OR(AI$7=Projektplanung!$K$42,AND(AI$7>=Projektplanung!$K$40,AI$7<=Projektplanung!$M$40)),Projektplanung!$H$40,0)*-1","v":0},{"$f":"IF(OR(AJ$7=Projektplanung!$K$42,AND(AJ$7>=Projektplanung!$K$40,AJ$7<=Projektplanung!$M$40)),Projektplanung!$H$40,0)*-1","v":0}]
[]
[null,null,"Einzahlung 1 Pensionkasse",null,null,null,{"$f":"IF(G$7=Vorsorge!$J$17,Vorsorge!$F$17,0)*-1","v":0},{"$f":"IF(H$7=Vorsorge!$J$17,Vorsorge!$F$17,0)*-1","v":0},{"$f":"IF(I$7=Vorsorge!$J$17,Vorsorge!$F$17,0)*-1","v":0},{"$f":"IF(J$7=Vorsorge!$J$17,Vorsorge!$F$17,0)*-1","v":0},{"$f":"IF(K$7=Vorsorge!$J$17,Vorsorge!$F$17,0)*-1","v":0},{"$f":"IF(L$7=Vorsorge!$J$17,Vorsorge!$F$17,0)*-1","v":0},{"$f":"IF(M$7=Vorsorge!$J$17,Vorsorge!$F$17,0)*-1","v":0},{"$f":"IF(N$7=Vorsorge!$J$17,Vorsorge!$F$17,0)*-1","v":0},{"$f":"IF(O$7=Vorsorge!$J$17,Vorsorge!$F$17,0)*-1","v":0},{"$f":"IF(P$7=Vorsorge!$J$17,Vorsorge!$F$17,0)*-1","v":0},{"$f":"IF(Q$7=Vorsorge!$J$17,Vorsorge!$F$17,0)*-1","v":0},{"$f":"IF(R$7=Vorsorge!$J$17,Vorsorge!$F$17,0)*-1","v":0},{"$f":"IF(S$7=Vorsorge!$J$17,Vorsorge!$F$17,0)*-1","v":0},{"$f":"IF(T$7=Vorsorge!$J$17,Vorsorge!$F$17,0)*-1","v":0},{"$f":"IF(U$7=Vorsorge!$J$17,Vorsorge!$F$17,0)*-1","v":0},{"$f":"IF(V$7=Vorsorge!$J$17,Vorsorge!$F$17,0)*-1","v":0},{"$f":"IF(W$7=Vorsorge!$J$17,Vorsorge!$F$17,0)*-1","v":0},{"$f":"IF(X$7=Vorsorge!$J$17,Vorsorge!$F$17,0)*-1","v":0},{"$f":"IF(Y$7=Vorsorge!$J$17,Vorsorge!$F$17,0)*-1","v":0},{"$f":"IF(Z$7=Vorsorge!$J$17,Vorsorge!$F$17,0)*-1","v":0},{"$f":"IF(AA$7=Vorsorge!$J$17,Vorsorge!$F$17,0)*-1","v":0},{"$f":"IF(AB$7=Vorsorge!$J$17,Vorsorge!$F$17,0)*-1","v":0},{"$f":"IF(AC$7=Vorsorge!$J$17,Vorsorge!$F$17,0)*-1","v":0},{"$f":"IF(AD$7=Vorsorge!$J$17,Vorsorge!$F$17,0)*-1","v":0},{"$f":"IF(AE$7=Vorsorge!$J$17,Vorsorge!$F$17,0)*-1","v":0},{"$f":"IF(AF$7=Vorsorge!$J$17,Vorsorge!$F$17,0)*-1","v":0},{"$f":"IF(AG$7=Vorsorge!$J$17,Vorsorge!$F$17,0)*-1","v":0},{"$f":"IF(AH$7=Vorsorge!$J$17,Vorsorge!$F$17,0)*-1","v":0},{"$f":"IF(AI$7=Vorsorge!$J$17,Vorsorge!$F$17,0)*-1","v":0},{"$f":"IF(AJ$7=Vorsorge!$J$17,Vorsorge!$F$17,0)*-1","v":0}]
[null,null," "]
[null,null,"   Steuereffekt",null,null,null,{"$f":"IF(G$7=Vorsorge!$J$17,Vorsorge!$N$17,0)","v":0},{"$f":"IF(H$7=Vorsorge!$J$17,Vorsorge!$N$17,0)","v":0},{"$f":"IF(I$7=Vorsorge!$J$17,Vorsorge!$N$17,0)","v":0},{"$f":"IF(J$7=Vorsorge!$J$17,Vorsorge!$N$17,0)","v":0},{"$f":"IF(K$7=Vorsorge!$J$17,Vorsorge!$N$17,0)","v":0},{"$f":"IF(L$7=Vorsorge!$J$17,Vorsorge!$N$17,0)","v":0},{"$f":"IF(M$7=Vorsorge!$J$17,Vorsorge!$N$17,0)","v":0},{"$f":"IF(N$7=Vorsorge!$J$17,Vorsorge!$N$17,0)","v":0},{"$f":"IF(O$7=Vorsorge!$J$17,Vorsorge!$N$17,0)","v":0},{"$f":"IF(P$7=Vorsorge!$J$17,Vorsorge!$N$17,0)","v":0},{"$f":"IF(Q$7=Vorsorge!$J$17,Vorsorge!$N$17,0)","v":0},{"$f":"IF(R$7=Vorsorge!$J$17,Vorsorge!$N$17,0)","v":0},{"$f":"IF(S$7=Vorsorge!$J$17,Vorsorge!$N$17,0)","v":0},{"$f":"IF(T$7=Vorsorge!$J$17,Vorsorge!$N$17,0)","v":0},{"$f":"IF(U$7=Vorsorge!$J$17,Vorsorge!$N$17,0)","v":0},{"$f":"IF(V$7=Vorsorge!$J$17,Vorsorge!$N$17,0)","v":0},{"$f":"IF(W$7=Vorsorge!$J$17,Vorsorge!$N$17,0)","v":0},{"$f":"IF(X$7=Vorsorge!$J$17,Vorsorge!$N$17,0)","v":0},{"$f":"IF(Y$7=Vorsorge!$J$17,Vorsorge!$N$17,0)","v":0},{"$f":"IF(Z$7=Vorsorge!$J$17,Vorsorge!$N$17,0)","v":0},{"$f":"IF(AA$7=Vorsorge!$J$17,Vorsorge!$N$17,0)","v":0},{"$f":"IF(AB$7=Vorsorge!$J$17,Vorsorge!$N$17,0)","v":0},{"$f":"IF(AC$7=Vorsorge!$J$17,Vorsorge!$N$17,0)","v":0},{"$f":"IF(AD$7=Vorsorge!$J$17,Vorsorge!$N$17,0)","v":0},{"$f":"IF(AE$7=Vorsorge!$J$17,Vorsorge!$N$17,0)","v":0},{"$f":"IF(AF$7=Vorsorge!$J$17,Vorsorge!$N$17,0)","v":0},{"$f":"IF(AG$7=Vorsorge!$J$17,Vorsorge!$N$17,0)","v":0},{"$f":"IF(AH$7=Vorsorge!$J$17,Vorsorge!$N$17,0)","v":0},{"$f":"IF(AI$7=Vorsorge!$J$17,Vorsorge!$N$17,0)","v":0},{"$f":"IF(AJ$7=Vorsorge!$J$17,Vorsorge!$N$17,0)","v":0}]
[]
[null,null,"Einzahlung 2 Pensionkasse",null,null,null,{"$f":"IF(G$7=Vorsorge!$J$19,Vorsorge!$F$19,0)*-1","v":0},{"$f":"IF(H$7=Vorsorge!$J$19,Vorsorge!$F$19,0)*-1","v":0},{"$f":"IF(I$7=Vorsorge!$J$19,Vorsorge!$F$19,0)*-1","v":0},{"$f":"IF(J$7=Vorsorge!$J$19,Vorsorge!$F$19,0)*-1","v":0},{"$f":"IF(K$7=Vorsorge!$J$19,Vorsorge!$F$19,0)*-1","v":0},{"$f":"IF(L$7=Vorsorge!$J$19,Vorsorge!$F$19,0)*-1","v":0},{"$f":"IF(M$7=Vorsorge!$J$19,Vorsorge!$F$19,0)*-1","v":0},{"$f":"IF(N$7=Vorsorge!$J$19,Vorsorge!$F$19,0)*-1","v":0},{"$f":"IF(O$7=Vorsorge!$J$19,Vorsorge!$F$19,0)*-1","v":0},{"$f":"IF(P$7=Vorsorge!$J$19,Vorsorge!$F$19,0)*-1","v":0},{"$f":"IF(Q$7=Vorsorge!$J$19,Vorsorge!$F$19,0)*-1","v":0},{"$f":"IF(R$7=Vorsorge!$J$19,Vorsorge!$F$19,0)*-1","v":0},{"$f":"IF(S$7=Vorsorge!$J$19,Vorsorge!$F$19,0)*-1","v":0},{"$f":"IF(T$7=Vorsorge!$J$19,Vorsorge!$F$19,0)*-1","v":0},{"$f":"IF(U$7=Vorsorge!$J$19,Vorsorge!$F$19,0)*-1","v":0},{"$f":"IF(V$7=Vorsorge!$J$19,Vorsorge!$F$19,0)*-1","v":0},{"$f":"IF(W$7=Vorsorge!$J$19,Vorsorge!$F$19,0)*-1","v":0},{"$f":"IF(X$7=Vorsorge!$J$19,Vorsorge!$F$19,0)*-1","v":0},{"$f":"IF(Y$7=Vorsorge!$J$19,Vorsorge!$F$19,0)*-1","v":0},{"$f":"IF(Z$7=Vorsorge!$J$19,Vorsorge!$F$19,0)*-1","v":0},{"$f":"IF(AA$7=Vorsorge!$J$19,Vorsorge!$F$19,0)*-1","v":0},{"$f":"IF(AB$7=Vorsorge!$J$19,Vorsorge!$F$19,0)*-1","v":0},{"$f":"IF(AC$7=Vorsorge!$J$19,Vorsorge!$F$19,0)*-1","v":0},{"$f":"IF(AD$7=Vorsorge!$J$19,Vorsorge!$F$19,0)*-1","v":0},{"$f":"IF(AE$7=Vorsorge!$J$19,Vorsorge!$F$19,0)*-1","v":0},{"$f":"IF(AF$7=Vorsorge!$J$19,Vorsorge!$F$19,0)*-1","v":0},{"$f":"IF(AG$7=Vorsorge!$J$19,Vorsorge!$F$19,0)*-1","v":0},{"$f":"IF(AH$7=Vorsorge!$J$19,Vorsorge!$F$19,0)*-1","v":0},{"$f":"IF(AI$7=Vorsorge!$J$19,Vorsorge!$F$19,0)*-1","v":0},{"$f":"IF(AJ$7=Vorsorge!$J$19,Vorsorge!$F$19,0)*-1","v":0}]
[]
[null,null,"   Steuereffekt",null,null,null,{"$f":"IF(G$7=Vorsorge!$J$19,Vorsorge!$N$19,0)","v":0},{"$f":"IF(H$7=Vorsorge!$J$19,Vorsorge!$N$19,0)","v":0},{"$f":"IF(I$7=Vorsorge!$J$19,Vorsorge!$N$19,0)","v":0},{"$f":"IF(J$7=Vorsorge!$J$19,Vorsorge!$N$19,0)","v":0},{"$f":"IF(K$7=Vorsorge!$J$19,Vorsorge!$N$19,0)","v":0},{"$f":"IF(L$7=Vorsorge!$J$19,Vorsorge!$N$19,0)","v":0},{"$f":"IF(M$7=Vorsorge!$J$19,Vorsorge!$N$19,0)","v":0},{"$f":"IF(N$7=Vorsorge!$J$19,Vorsorge!$N$19,0)","v":0},{"$f":"IF(O$7=Vorsorge!$J$19,Vorsorge!$N$19,0)","v":0},{"$f":"IF(P$7=Vorsorge!$J$19,Vorsorge!$N$19,0)","v":0},{"$f":"IF(Q$7=Vorsorge!$J$19,Vorsorge!$N$19,0)","v":0},{"$f":"IF(R$7=Vorsorge!$J$19,Vorsorge!$N$19,0)","v":0},{"$f":"IF(S$7=Vorsorge!$J$19,Vorsorge!$N$19,0)","v":0},{"$f":"IF(T$7=Vorsorge!$J$19,Vorsorge!$N$19,0)","v":0},{"$f":"IF(U$7=Vorsorge!$J$19,Vorsorge!$N$19,0)","v":0},{"$f":"IF(V$7=Vorsorge!$J$19,Vorsorge!$N$19,0)","v":0},{"$f":"IF(W$7=Vorsorge!$J$19,Vorsorge!$N$19,0)","v":0},{"$f":"IF(X$7=Vorsorge!$J$19,Vorsorge!$N$19,0)","v":0},{"$f":"IF(Y$7=Vorsorge!$J$19,Vorsorge!$N$19,0)","v":0},{"$f":"IF(Z$7=Vorsorge!$J$19,Vorsorge!$N$19,0)","v":0},{"$f":"IF(AA$7=Vorsorge!$J$19,Vorsorge!$N$19,0)","v":0},{"$f":"IF(AB$7=Vorsorge!$J$19,Vorsorge!$N$19,0)","v":0},{"$f":"IF(AC$7=Vorsorge!$J$19,Vorsorge!$N$19,0)","v":0},{"$f":"IF(AD$7=Vorsorge!$J$19,Vorsorge!$N$19,0)","v":0},{"$f":"IF(AE$7=Vorsorge!$J$19,Vorsorge!$N$19,0)","v":0},{"$f":"IF(AF$7=Vorsorge!$J$19,Vorsorge!$N$19,0)","v":0},{"$f":"IF(AG$7=Vorsorge!$J$19,Vorsorge!$N$19,0)","v":0},{"$f":"IF(AH$7=Vorsorge!$J$19,Vorsorge!$N$19,0)","v":0},{"$f":"IF(AI$7=Vorsorge!$J$19,Vorsorge!$N$19,0)","v":0},{"$f":"IF(AJ$7=Vorsorge!$J$19,Vorsorge!$N$19,0)","v":0}]
[]
[null,null,"Einzahlung 3 Pensionskasse",null,null,null,{"$f":"IF(G$7=Vorsorge!$J$21,Vorsorge!$F$21,0)*-1","v":0},{"$f":"IF(H$7=Vorsorge!$J$21,Vorsorge!$F$21,0)*-1","v":0},{"$f":"IF(I$7=Vorsorge!$J$21,Vorsorge!$F$21,0)*-1","v":0},{"$f":"IF(J$7=Vorsorge!$J$21,Vorsorge!$F$21,0)*-1","v":0},{"$f":"IF(K$7=Vorsorge!$J$21,Vorsorge!$F$21,0)*-1","v":0},{"$f":"IF(L$7=Vorsorge!$J$21,Vorsorge!$F$21,0)*-1","v":0},{"$f":"IF(M$7=Vorsorge!$J$21,Vorsorge!$F$21,0)*-1","v":0},{"$f":"IF(N$7=Vorsorge!$J$21,Vorsorge!$F$21,0)*-1","v":0},{"$f":"IF(O$7=Vorsorge!$J$21,Vorsorge!$F$21,0)*-1","v":0},{"$f":"IF(P$7=Vorsorge!$J$21,Vorsorge!$F$21,0)*-1","v":0},{"$f":"IF(Q$7=Vorsorge!$J$21,Vorsorge!$F$21,0)*-1","v":0},{"$f":"IF(R$7=Vorsorge!$J$21,Vorsorge!$F$21,0)*-1","v":0},{"$f":"IF(S$7=Vorsorge!$J$21,Vorsorge!$F$21,0)*-1","v":0},{"$f":"IF(T$7=Vorsorge!$J$21,Vorsorge!$F$21,0)*-1","v":0},{"$f":"IF(U$7=Vorsorge!$J$21,Vorsorge!$F$21,0)*-1","v":0},{"$f":"IF(V$7=Vorsorge!$J$21,Vorsorge!$F$21,0)*-1","v":0},{"$f":"IF(W$7=Vorsorge!$J$21,Vorsorge!$F$21,0)*-1","v":0},{"$f":"IF(X$7=Vorsorge!$J$21,Vorsorge!$F$21,0)*-1","v":0},{"$f":"IF(Y$7=Vorsorge!$J$21,Vorsorge!$F$21,0)*-1","v":0},{"$f":"IF(Z$7=Vorsorge!$J$21,Vorsorge!$F$21,0)*-1","v":0},{"$f":"IF(AA$7=Vorsorge!$J$21,Vorsorge!$F$21,0)*-1","v":0},{"$f":"IF(AB$7=Vorsorge!$J$21,Vorsorge!$F$21,0)*-1","v":0},{"$f":"IF(AC$7=Vorsorge!$J$21,Vorsorge!$F$21,0)*-1","v":0},{"$f":"IF(AD$7=Vorsorge!$J$21,Vorsorge!$F$21,0)*-1","v":0},{"$f":"IF(AE$7=Vorsorge!$J$21,Vorsorge!$F$21,0)*-1","v":0},{"$f":"IF(AF$7=Vorsorge!$J$21,Vorsorge!$F$21,0)*-1","v":0},{"$f":"IF(AG$7=Vorsorge!$J$21,Vorsorge!$F$21,0)*-1","v":0},{"$f":"IF(AH$7=Vorsorge!$J$21,Vorsorge!$F$21,0)*-1","v":0},{"$f":"IF(AI$7=Vorsorge!$J$21,Vorsorge!$F$21,0)*-1","v":0},{"$f":"IF(AJ$7=Vorsorge!$J$21,Vorsorge!$F$21,0)*-1","v":0}]
[]
[null,null,"   Steuereffekt",null,null,null,{"$f":"IF(G$7=Vorsorge!$J$21,Vorsorge!$N$21,0)","v":0},{"$f":"IF(H$7=Vorsorge!$J$21,Vorsorge!$N$21,0)","v":0},{"$f":"IF(I$7=Vorsorge!$J$21,Vorsorge!$N$21,0)","v":0},{"$f":"IF(J$7=Vorsorge!$J$21,Vorsorge!$N$21,0)","v":0},{"$f":"IF(K$7=Vorsorge!$J$21,Vorsorge!$N$21,0)","v":0},{"$f":"IF(L$7=Vorsorge!$J$21,Vorsorge!$N$21,0)","v":0},{"$f":"IF(M$7=Vorsorge!$J$21,Vorsorge!$N$21,0)","v":0},{"$f":"IF(N$7=Vorsorge!$J$21,Vorsorge!$N$21,0)","v":0},{"$f":"IF(O$7=Vorsorge!$J$21,Vorsorge!$N$21,0)","v":0},{"$f":"IF(P$7=Vorsorge!$J$21,Vorsorge!$N$21,0)","v":0},{"$f":"IF(Q$7=Vorsorge!$J$21,Vorsorge!$N$21,0)","v":0},{"$f":"IF(R$7=Vorsorge!$J$21,Vorsorge!$N$21,0)","v":0},{"$f":"IF(S$7=Vorsorge!$J$21,Vorsorge!$N$21,0)","v":0},{"$f":"IF(T$7=Vorsorge!$J$21,Vorsorge!$N$21,0)","v":0},{"$f":"IF(U$7=Vorsorge!$J$21,Vorsorge!$N$21,0)","v":0},{"$f":"IF(V$7=Vorsorge!$J$21,Vorsorge!$N$21,0)","v":0},{"$f":"IF(W$7=Vorsorge!$J$21,Vorsorge!$N$21,0)","v":0},{"$f":"IF(X$7=Vorsorge!$J$21,Vorsorge!$N$21,0)","v":0},{"$f":"IF(Y$7=Vorsorge!$J$21,Vorsorge!$N$21,0)","v":0},{"$f":"IF(Z$7=Vorsorge!$J$21,Vorsorge!$N$21,0)","v":0},{"$f":"IF(AA$7=Vorsorge!$J$21,Vorsorge!$N$21,0)","v":0},{"$f":"IF(AB$7=Vorsorge!$J$21,Vorsorge!$N$21,0)","v":0},{"$f":"IF(AC$7=Vorsorge!$J$21,Vorsorge!$N$21,0)","v":0},{"$f":"IF(AD$7=Vorsorge!$J$21,Vorsorge!$N$21,0)","v":0},{"$f":"IF(AE$7=Vorsorge!$J$21,Vorsorge!$N$21,0)","v":0},{"$f":"IF(AF$7=Vorsorge!$J$21,Vorsorge!$N$21,0)","v":0},{"$f":"IF(AG$7=Vorsorge!$J$21,Vorsorge!$N$21,0)","v":0},{"$f":"IF(AH$7=Vorsorge!$J$21,Vorsorge!$N$21,0)","v":0},{"$f":"IF(AI$7=Vorsorge!$J$21,Vorsorge!$N$21,0)","v":0},{"$f":"IF(AJ$7=Vorsorge!$J$21,Vorsorge!$N$21,0)","v":0}]
[]
[null,null,"Einzahlung 4 Pensionskasse",null,null,null,{"$f":"IF(G$7=Vorsorge!$J$23,Vorsorge!$F$23,0)*-1","v":0},{"$f":"IF(H$7=Vorsorge!$J$23,Vorsorge!$F$23,0)*-1","v":0},{"$f":"IF(I$7=Vorsorge!$J$23,Vorsorge!$F$23,0)*-1","v":0},{"$f":"IF(J$7=Vorsorge!$J$23,Vorsorge!$F$23,0)*-1","v":0},{"$f":"IF(K$7=Vorsorge!$J$23,Vorsorge!$F$23,0)*-1","v":0},{"$f":"IF(L$7=Vorsorge!$J$23,Vorsorge!$F$23,0)*-1","v":0},{"$f":"IF(M$7=Vorsorge!$J$23,Vorsorge!$F$23,0)*-1","v":0},{"$f":"IF(N$7=Vorsorge!$J$23,Vorsorge!$F$23,0)*-1","v":0},{"$f":"IF(O$7=Vorsorge!$J$23,Vorsorge!$F$23,0)*-1","v":0},{"$f":"IF(P$7=Vorsorge!$J$23,Vorsorge!$F$23,0)*-1","v":0},{"$f":"IF(Q$7=Vorsorge!$J$23,Vorsorge!$F$23,0)*-1","v":0},{"$f":"IF(R$7=Vorsorge!$J$23,Vorsorge!$F$23,0)*-1","v":0},{"$f":"IF(S$7=Vorsorge!$J$23,Vorsorge!$F$23,0)*-1","v":0},{"$f":"IF(T$7=Vorsorge!$J$23,Vorsorge!$F$23,0)*-1","v":0},{"$f":"IF(U$7=Vorsorge!$J$23,Vorsorge!$F$23,0)*-1","v":0},{"$f":"IF(V$7=Vorsorge!$J$23,Vorsorge!$F$23,0)*-1","v":0},{"$f":"IF(W$7=Vorsorge!$J$23,Vorsorge!$F$23,0)*-1","v":0},{"$f":"IF(X$7=Vorsorge!$J$23,Vorsorge!$F$23,0)*-1","v":0},{"$f":"IF(Y$7=Vorsorge!$J$23,Vorsorge!$F$23,0)*-1","v":0},{"$f":"IF(Z$7=Vorsorge!$J$23,Vorsorge!$F$23,0)*-1","v":0},{"$f":"IF(AA$7=Vorsorge!$J$23,Vorsorge!$F$23,0)*-1","v":0},{"$f":"IF(AB$7=Vorsorge!$J$23,Vorsorge!$F$23,0)*-1","v":0},{"$f":"IF(AC$7=Vorsorge!$J$23,Vorsorge!$F$23,0)*-1","v":0},{"$f":"IF(AD$7=Vorsorge!$J$23,Vorsorge!$F$23,0)*-1","v":0},{"$f":"IF(AE$7=Vorsorge!$J$23,Vorsorge!$F$23,0)*-1","v":0},{"$f":"IF(AF$7=Vorsorge!$J$23,Vorsorge!$F$23,0)*-1","v":0},{"$f":"IF(AG$7=Vorsorge!$J$23,Vorsorge!$F$23,0)*-1","v":0},{"$f":"IF(AH$7=Vorsorge!$J$23,Vorsorge!$F$23,0)*-1","v":0},{"$f":"IF(AI$7=Vorsorge!$J$23,Vorsorge!$F$23,0)*-1","v":0},{"$f":"IF(AJ$7=Vorsorge!$J$23,Vorsorge!$F$23,0)*-1","v":0}]
[]
[null,null,"   Steuereffekt",null,null,null,{"$f":"IF(G$7=Vorsorge!$J$23,Vorsorge!$N$23,0)","v":0},{"$f":"IF(H$7=Vorsorge!$J$23,Vorsorge!$N$23,0)","v":0},{"$f":"IF(I$7=Vorsorge!$J$23,Vorsorge!$N$23,0)","v":0},{"$f":"IF(J$7=Vorsorge!$J$23,Vorsorge!$N$23,0)","v":0},{"$f":"IF(K$7=Vorsorge!$J$23,Vorsorge!$N$23,0)","v":0},{"$f":"IF(L$7=Vorsorge!$J$23,Vorsorge!$N$23,0)","v":0},{"$f":"IF(M$7=Vorsorge!$J$23,Vorsorge!$N$23,0)","v":0},{"$f":"IF(N$7=Vorsorge!$J$23,Vorsorge!$N$23,0)","v":0},{"$f":"IF(O$7=Vorsorge!$J$23,Vorsorge!$N$23,0)","v":0},{"$f":"IF(P$7=Vorsorge!$J$23,Vorsorge!$N$23,0)","v":0},{"$f":"IF(Q$7=Vorsorge!$J$23,Vorsorge!$N$23,0)","v":0},{"$f":"IF(R$7=Vorsorge!$J$23,Vorsorge!$N$23,0)","v":0},{"$f":"IF(S$7=Vorsorge!$J$23,Vorsorge!$N$23,0)","v":0},{"$f":"IF(T$7=Vorsorge!$J$23,Vorsorge!$N$23,0)","v":0},{"$f":"IF(U$7=Vorsorge!$J$23,Vorsorge!$N$23,0)","v":0},{"$f":"IF(V$7=Vorsorge!$J$23,Vorsorge!$N$23,0)","v":0},{"$f":"IF(W$7=Vorsorge!$J$23,Vorsorge!$N$23,0)","v":0},{"$f":"IF(X$7=Vorsorge!$J$23,Vorsorge!$N$23,0)","v":0},{"$f":"IF(Y$7=Vorsorge!$J$23,Vorsorge!$N$23,0)","v":0},{"$f":"IF(Z$7=Vorsorge!$J$23,Vorsorge!$N$23,0)","v":0},{"$f":"IF(AA$7=Vorsorge!$J$23,Vorsorge!$N$23,0)","v":0},{"$f":"IF(AB$7=Vorsorge!$J$23,Vorsorge!$N$23,0)","v":0},{"$f":"IF(AC$7=Vorsorge!$J$23,Vorsorge!$N$23,0)","v":0},{"$f":"IF(AD$7=Vorsorge!$J$23,Vorsorge!$N$23,0)","v":0},{"$f":"IF(AE$7=Vorsorge!$J$23,Vorsorge!$N$23,0)","v":0},{"$f":"IF(AF$7=Vorsorge!$J$23,Vorsorge!$N$23,0)","v":0},{"$f":"IF(AG$7=Vorsorge!$J$23,Vorsorge!$N$23,0)","v":0},{"$f":"IF(AH$7=Vorsorge!$J$23,Vorsorge!$N$23,0)","v":0},{"$f":"IF(AI$7=Vorsorge!$J$23,Vorsorge!$N$23,0)","v":0},{"$f":"IF(AJ$7=Vorsorge!$J$23,Vorsorge!$N$23,0)","v":0}]
[]
[null,null,"Einzahlung 5 Pensionskasse",null,null,null,{"$f":"IF(G$7=Vorsorge!$J$25,Vorsorge!$F$25,0)*-1","v":0},{"$f":"IF(H$7=Vorsorge!$J$25,Vorsorge!$F$25,0)*-1","v":0},{"$f":"IF(I$7=Vorsorge!$J$25,Vorsorge!$F$25,0)*-1","v":0},{"$f":"IF(J$7=Vorsorge!$J$25,Vorsorge!$F$25,0)*-1","v":0},{"$f":"IF(K$7=Vorsorge!$J$25,Vorsorge!$F$25,0)*-1","v":0},{"$f":"IF(L$7=Vorsorge!$J$25,Vorsorge!$F$25,0)*-1","v":0},{"$f":"IF(M$7=Vorsorge!$J$25,Vorsorge!$F$25,0)*-1","v":0},{"$f":"IF(N$7=Vorsorge!$J$25,Vorsorge!$F$25,0)*-1","v":0},{"$f":"IF(O$7=Vorsorge!$J$25,Vorsorge!$F$25,0)*-1","v":0},{"$f":"IF(P$7=Vorsorge!$J$25,Vorsorge!$F$25,0)*-1","v":0},{"$f":"IF(Q$7=Vorsorge!$J$25,Vorsorge!$F$25,0)*-1","v":0},{"$f":"IF(R$7=Vorsorge!$J$25,Vorsorge!$F$25,0)*-1","v":0},{"$f":"IF(S$7=Vorsorge!$J$25,Vorsorge!$F$25,0)*-1","v":0},{"$f":"IF(T$7=Vorsorge!$J$25,Vorsorge!$F$25,0)*-1","v":0},{"$f":"IF(U$7=Vorsorge!$J$25,Vorsorge!$F$25,0)*-1","v":0},{"$f":"IF(V$7=Vorsorge!$J$25,Vorsorge!$F$25,0)*-1","v":0},{"$f":"IF(W$7=Vorsorge!$J$25,Vorsorge!$F$25,0)*-1","v":0},{"$f":"IF(X$7=Vorsorge!$J$25,Vorsorge!$F$25,0)*-1","v":0},{"$f":"IF(Y$7=Vorsorge!$J$25,Vorsorge!$F$25,0)*-1","v":0},{"$f":"IF(Z$7=Vorsorge!$J$25,Vorsorge!$F$25,0)*-1","v":0},{"$f":"IF(AA$7=Vorsorge!$J$25,Vorsorge!$F$25,0)*-1","v":0},{"$f":"IF(AB$7=Vorsorge!$J$25,Vorsorge!$F$25,0)*-1","v":0},{"$f":"IF(AC$7=Vorsorge!$J$25,Vorsorge!$F$25,0)*-1","v":0},{"$f":"IF(AD$7=Vorsorge!$J$25,Vorsorge!$F$25,0)*-1","v":0},{"$f":"IF(AE$7=Vorsorge!$J$25,Vorsorge!$F$25,0)*-1","v":0},{"$f":"IF(AF$7=Vorsorge!$J$25,Vorsorge!$F$25,0)*-1","v":0},{"$f":"IF(AG$7=Vorsorge!$J$25,Vorsorge!$F$25,0)*-1","v":0},{"$f":"IF(AH$7=Vorsorge!$J$25,Vorsorge!$F$25,0)*-1","v":0},{"$f":"IF(AI$7=Vorsorge!$J$25,Vorsorge!$F$25,0)*-1","v":0},{"$f":"IF(AJ$7=Vorsorge!$J$25,Vorsorge!$F$25,0)*-1","v":0}]
[]
[null,null,"   Steuereffekt",null,null,null,{"$f":"IF(G$7=Vorsorge!$J$25,Vorsorge!$N$25,0)","v":0},{"$f":"IF(H$7=Vorsorge!$J$25,Vorsorge!$N$25,0)","v":0},{"$f":"IF(I$7=Vorsorge!$J$25,Vorsorge!$N$25,0)","v":0},{"$f":"IF(J$7=Vorsorge!$J$25,Vorsorge!$N$25,0)","v":0},{"$f":"IF(K$7=Vorsorge!$J$25,Vorsorge!$N$25,0)","v":0},{"$f":"IF(L$7=Vorsorge!$J$25,Vorsorge!$N$25,0)","v":0},{"$f":"IF(M$7=Vorsorge!$J$25,Vorsorge!$N$25,0)","v":0},{"$f":"IF(N$7=Vorsorge!$J$25,Vorsorge!$N$25,0)","v":0},{"$f":"IF(O$7=Vorsorge!$J$25,Vorsorge!$N$25,0)","v":0},{"$f":"IF(P$7=Vorsorge!$J$25,Vorsorge!$N$25,0)","v":0},{"$f":"IF(Q$7=Vorsorge!$J$25,Vorsorge!$N$25,0)","v":0},{"$f":"IF(R$7=Vorsorge!$J$25,Vorsorge!$N$25,0)","v":0},{"$f":"IF(S$7=Vorsorge!$J$25,Vorsorge!$N$25,0)","v":0},{"$f":"IF(T$7=Vorsorge!$J$25,Vorsorge!$N$25,0)","v":0},{"$f":"IF(U$7=Vorsorge!$J$25,Vorsorge!$N$25,0)","v":0},{"$f":"IF(V$7=Vorsorge!$J$25,Vorsorge!$N$25,0)","v":0},{"$f":"IF(W$7=Vorsorge!$J$25,Vorsorge!$N$25,0)","v":0},{"$f":"IF(X$7=Vorsorge!$J$25,Vorsorge!$N$25,0)","v":0},{"$f":"IF(Y$7=Vorsorge!$J$25,Vorsorge!$N$25,0)","v":0},{"$f":"IF(Z$7=Vorsorge!$J$25,Vorsorge!$N$25,0)","v":0},{"$f":"IF(AA$7=Vorsorge!$J$25,Vorsorge!$N$25,0)","v":0},{"$f":"IF(AB$7=Vorsorge!$J$25,Vorsorge!$N$25,0)","v":0},{"$f":"IF(AC$7=Vorsorge!$J$25,Vorsorge!$N$25,0)","v":0},{"$f":"IF(AD$7=Vorsorge!$J$25,Vorsorge!$N$25,0)","v":0},{"$f":"IF(AE$7=Vorsorge!$J$25,Vorsorge!$N$25,0)","v":0},{"$f":"IF(AF$7=Vorsorge!$J$25,Vorsorge!$N$25,0)","v":0},{"$f":"IF(AG$7=Vorsorge!$J$25,Vorsorge!$N$25,0)","v":0},{"$f":"IF(AH$7=Vorsorge!$J$25,Vorsorge!$N$25,0)","v":0},{"$f":"IF(AI$7=Vorsorge!$J$25,Vorsorge!$N$25,0)","v":0},{"$f":"IF(AJ$7=Vorsorge!$J$25,Vorsorge!$N$25,0)","v":0}]
[]
[null,null,"Auszahlung der Pensionkasse",null,null,null,{"$f":"IF(G$7=Vorsorge!$J$27,Vorsorge!$F$27,0)","v":0},{"$f":"IF(H$7=Vorsorge!$J$27,Vorsorge!$F$27,0)","v":0},{"$f":"IF(I$7=Vorsorge!$J$27,Vorsorge!$F$27,0)","v":0},{"$f":"IF(J$7=Vorsorge!$J$27,Vorsorge!$F$27,0)","v":0},{"$f":"IF(K$7=Vorsorge!$J$27,Vorsorge!$F$27,0)","v":0},{"$f":"IF(L$7=Vorsorge!$J$27,Vorsorge!$F$27,0)","v":0},{"$f":"IF(M$7=Vorsorge!$J$27,Vorsorge!$F$27,0)","v":0},{"$f":"IF(N$7=Vorsorge!$J$27,Vorsorge!$F$27,0)","v":0},{"$f":"IF(O$7=Vorsorge!$J$27,Vorsorge!$F$27,0)","v":0},{"$f":"IF(P$7=Vorsorge!$J$27,Vorsorge!$F$27,0)","v":0},{"$f":"IF(Q$7=Vorsorge!$J$27,Vorsorge!$F$27,0)","v":0},{"$f":"IF(R$7=Vorsorge!$J$27,Vorsorge!$F$27,0)","v":0},{"$f":"IF(S$7=Vorsorge!$J$27,Vorsorge!$F$27,0)","v":0},{"$f":"IF(T$7=Vorsorge!$J$27,Vorsorge!$F$27,0)","v":0},{"$f":"IF(U$7=Vorsorge!$J$27,Vorsorge!$F$27,0)","v":0},{"$f":"IF(V$7=Vorsorge!$J$27,Vorsorge!$F$27,0)","v":0},{"$f":"IF(W$7=Vorsorge!$J$27,Vorsorge!$F$27,0)","v":0},{"$f":"IF(X$7=Vorsorge!$J$27,Vorsorge!$F$27,0)","v":0},{"$f":"IF(Y$7=Vorsorge!$J$27,Vorsorge!$F$27,0)","v":0},{"$f":"IF(Z$7=Vorsorge!$J$27,Vorsorge!$F$27,0)","v":0},{"$f":"IF(AA$7=Vorsorge!$J$27,Vorsorge!$F$27,0)","v":0},{"$f":"IF(AB$7=Vorsorge!$J$27,Vorsorge!$F$27,0)","v":0},{"$f":"IF(AC$7=Vorsorge!$J$27,Vorsorge!$F$27,0)","v":0},{"$f":"IF(AD$7=Vorsorge!$J$27,Vorsorge!$F$27,0)","v":0},{"$f":"IF(AE$7=Vorsorge!$J$27,Vorsorge!$F$27,0)","v":0},{"$f":"IF(AF$7=Vorsorge!$J$27,Vorsorge!$F$27,0)","v":0},{"$f":"IF(AG$7=Vorsorge!$J$27,Vorsorge!$F$27,0)","v":0},{"$f":"IF(AH$7=Vorsorge!$J$27,Vorsorge!$F$27,0)","v":0},{"$f":"IF(AI$7=Vorsorge!$J$27,Vorsorge!$F$27,0)","v":0},{"$f":"IF(AJ$7=Vorsorge!$J$27,Vorsorge!$F$27,0)","v":0}]
[]
[null,null,"   Steuereffekt",null,null,null,{"$f":"IF(G$7=Vorsorge!$J$27,Vorsorge!$S$27*'Hilfstabelle Steuern'!$F$17,0)*-1","v":0},{"$f":"IF(H$7=Vorsorge!$J$27,Vorsorge!$S$27*'Hilfstabelle Steuern'!$F$17,0)*-1","v":0},{"$f":"IF(I$7=Vorsorge!$J$27,Vorsorge!$S$27*'Hilfstabelle Steuern'!$F$17,0)*-1","v":0},{"$f":"IF(J$7=Vorsorge!$J$27,Vorsorge!$S$27*'Hilfstabelle Steuern'!$F$17,0)*-1","v":0},{"$f":"IF(K$7=Vorsorge!$J$27,Vorsorge!$S$27*'Hilfstabelle Steuern'!$F$17,0)*-1","v":0},{"$f":"IF(L$7=Vorsorge!$J$27,Vorsorge!$S$27*'Hilfstabelle Steuern'!$F$17,0)*-1","v":0},{"$f":"IF(M$7=Vorsorge!$J$27,Vorsorge!$S$27*'Hilfstabelle Steuern'!$F$17,0)*-1","v":0},{"$f":"IF(N$7=Vorsorge!$J$27,Vorsorge!$S$27*'Hilfstabelle Steuern'!$F$17,0)*-1","v":0},{"$f":"IF(O$7=Vorsorge!$J$27,Vorsorge!$S$27*'Hilfstabelle Steuern'!$F$17,0)*-1","v":0},{"$f":"IF(P$7=Vorsorge!$J$27,Vorsorge!$S$27*'Hilfstabelle Steuern'!$F$17,0)*-1","v":0},{"$f":"IF(Q$7=Vorsorge!$J$27,Vorsorge!$S$27*'Hilfstabelle Steuern'!$F$17,0)*-1","v":0},{"$f":"IF(R$7=Vorsorge!$J$27,Vorsorge!$S$27*'Hilfstabelle Steuern'!$F$17,0)*-1","v":0},{"$f":"IF(S$7=Vorsorge!$J$27,Vorsorge!$S$27*'Hilfstabelle Steuern'!$F$17,0)*-1","v":0},{"$f":"IF(T$7=Vorsorge!$J$27,Vorsorge!$S$27*'Hilfstabelle Steuern'!$F$17,0)*-1","v":0},{"$f":"IF(U$7=Vorsorge!$J$27,Vorsorge!$S$27*'Hilfstabelle Steuern'!$F$17,0)*-1","v":0},{"$f":"IF(V$7=Vorsorge!$J$27,Vorsorge!$S$27*'Hilfstabelle Steuern'!$F$17,0)*-1","v":0},{"$f":"IF(W$7=Vorsorge!$J$27,Vorsorge!$S$27*'Hilfstabelle Steuern'!$F$17,0)*-1","v":0},{"$f":"IF(X$7=Vorsorge!$J$27,Vorsorge!$S$27*'Hilfstabelle Steuern'!$F$17,0)*-1","v":0},{"$f":"IF(Y$7=Vorsorge!$J$27,Vorsorge!$S$27*'Hilfstabelle Steuern'!$F$17,0)*-1","v":0},{"$f":"IF(Z$7=Vorsorge!$J$27,Vorsorge!$S$27*'Hilfstabelle Steuern'!$F$17,0)*-1","v":0},{"$f":"IF(AA$7=Vorsorge!$J$27,Vorsorge!$S$27*'Hilfstabelle Steuern'!$F$17,0)*-1","v":0},{"$f":"IF(AB$7=Vorsorge!$J$27,Vorsorge!$S$27*'Hilfstabelle Steuern'!$F$17,0)*-1","v":0},{"$f":"IF(AC$7=Vorsorge!$J$27,Vorsorge!$S$27*'Hilfstabelle Steuern'!$F$17,0)*-1","v":0},{"$f":"IF(AD$7=Vorsorge!$J$27,Vorsorge!$S$27*'Hilfstabelle Steuern'!$F$17,0)*-1","v":0},{"$f":"IF(AE$7=Vorsorge!$J$27,Vorsorge!$S$27*'Hilfstabelle Steuern'!$F$17,0)*-1","v":0},{"$f":"IF(AF$7=Vorsorge!$J$27,Vorsorge!$S$27*'Hilfstabelle Steuern'!$F$17,0)*-1","v":0},{"$f":"IF(AG$7=Vorsorge!$J$27,Vorsorge!$S$27*'Hilfstabelle Steuern'!$F$17,0)*-1","v":0},{"$f":"IF(AH$7=Vorsorge!$J$27,Vorsorge!$S$27*'Hilfstabelle Steuern'!$F$17,0)*-1","v":0},{"$f":"IF(AI$7=Vorsorge!$J$27,Vorsorge!$S$27*'Hilfstabelle Steuern'!$F$17,0)*-1","v":0},{"$f":"IF(AJ$7=Vorsorge!$J$27,Vorsorge!$S$27*'Hilfstabelle Steuern'!$F$17,0)*-1","v":0}]
[]
[null,null,"Einzahlung gebundene Vorsorge Säule 3a",null,null,null,{"$f":"IF(OR(AND(G$7>=Vorsorge!$J$9,G$7<=Vorsorge!$L$9)),Vorsorge!$F$9,0)*-1","v":0},{"$f":"IF(OR(AND(H$7>=Vorsorge!$J$9,H$7<=Vorsorge!$L$9)),Vorsorge!$F$9,0)*-1","v":0},{"$f":"IF(OR(AND(I$7>=Vorsorge!$J$9,I$7<=Vorsorge!$L$9)),Vorsorge!$F$9,0)*-1","v":0},{"$f":"IF(OR(AND(J$7>=Vorsorge!$J$9,J$7<=Vorsorge!$L$9)),Vorsorge!$F$9,0)*-1","v":0},{"$f":"IF(OR(AND(K$7>=Vorsorge!$J$9,K$7<=Vorsorge!$L$9)),Vorsorge!$F$9,0)*-1","v":0},{"$f":"IF(OR(AND(L$7>=Vorsorge!$J$9,L$7<=Vorsorge!$L$9)),Vorsorge!$F$9,0)*-1","v":0},{"$f":"IF(OR(AND(M$7>=Vorsorge!$J$9,M$7<=Vorsorge!$L$9)),Vorsorge!$F$9,0)*-1","v":0},{"$f":"IF(OR(AND(N$7>=Vorsorge!$J$9,N$7<=Vorsorge!$L$9)),Vorsorge!$F$9,0)*-1","v":0},{"$f":"IF(OR(AND(O$7>=Vorsorge!$J$9,O$7<=Vorsorge!$L$9)),Vorsorge!$F$9,0)*-1","v":0},{"$f":"IF(OR(AND(P$7>=Vorsorge!$J$9,P$7<=Vorsorge!$L$9)),Vorsorge!$F$9,0)*-1","v":0},{"$f":"IF(OR(AND(Q$7>=Vorsorge!$J$9,Q$7<=Vorsorge!$L$9)),Vorsorge!$F$9,0)*-1","v":0},{"$f":"IF(OR(AND(R$7>=Vorsorge!$J$9,R$7<=Vorsorge!$L$9)),Vorsorge!$F$9,0)*-1","v":0},{"$f":"IF(OR(AND(S$7>=Vorsorge!$J$9,S$7<=Vorsorge!$L$9)),Vorsorge!$F$9,0)*-1","v":0},{"$f":"IF(OR(AND(T$7>=Vorsorge!$J$9,T$7<=Vorsorge!$L$9)),Vorsorge!$F$9,0)*-1","v":0},{"$f":"IF(OR(AND(U$7>=Vorsorge!$J$9,U$7<=Vorsorge!$L$9)),Vorsorge!$F$9,0)*-1","v":0},{"$f":"IF(OR(AND(V$7>=Vorsorge!$J$9,V$7<=Vorsorge!$L$9)),Vorsorge!$F$9,0)*-1","v":0},{"$f":"IF(OR(AND(W$7>=Vorsorge!$J$9,W$7<=Vorsorge!$L$9)),Vorsorge!$F$9,0)*-1","v":0},{"$f":"IF(OR(AND(X$7>=Vorsorge!$J$9,X$7<=Vorsorge!$L$9)),Vorsorge!$F$9,0)*-1","v":0},{"$f":"IF(OR(AND(Y$7>=Vorsorge!$J$9,Y$7<=Vorsorge!$L$9)),Vorsorge!$F$9,0)*-1","v":0},{"$f":"IF(OR(AND(Z$7>=Vorsorge!$J$9,Z$7<=Vorsorge!$L$9)),Vorsorge!$F$9,0)*-1","v":0},{"$f":"IF(OR(AND(AA$7>=Vorsorge!$J$9,AA$7<=Vorsorge!$L$9)),Vorsorge!$F$9,0)*-1","v":0},{"$f":"IF(OR(AND(AB$7>=Vorsorge!$J$9,AB$7<=Vorsorge!$L$9)),Vorsorge!$F$9,0)*-1","v":0},{"$f":"IF(OR(AND(AC$7>=Vorsorge!$J$9,AC$7<=Vorsorge!$L$9)),Vorsorge!$F$9,0)*-1","v":0},{"$f":"IF(OR(AND(AD$7>=Vorsorge!$J$9,AD$7<=Vorsorge!$L$9)),Vorsorge!$F$9,0)*-1","v":0},{"$f":"IF(OR(AND(AE$7>=Vorsorge!$J$9,AE$7<=Vorsorge!$L$9)),Vorsorge!$F$9,0)*-1","v":0},{"$f":"IF(OR(AND(AF$7>=Vorsorge!$J$9,AF$7<=Vorsorge!$L$9)),Vorsorge!$F$9,0)*-1","v":0},{"$f":"IF(OR(AND(AG$7>=Vorsorge!$J$9,AG$7<=Vorsorge!$L$9)),Vorsorge!$F$9,0)*-1","v":0},{"$f":"IF(OR(AND(AH$7>=Vorsorge!$J$9,AH$7<=Vorsorge!$L$9)),Vorsorge!$F$9,0)*-1","v":0},{"$f":"IF(OR(AND(AI$7>=Vorsorge!$J$9,AI$7<=Vorsorge!$L$9)),Vorsorge!$F$9,0)*-1","v":0},{"$f":"IF(OR(AND(AJ$7>=Vorsorge!$J$9,AJ$7<=Vorsorge!$L$9)),Vorsorge!$F$9,0)*-1","v":0}]
[]
[null,null,"   Steuereffekt",null,null,null,{"$f":"IF(AND(G$7>=Vorsorge!$J$9,G$7<=Vorsorge!$L$9),Vorsorge!$P$9,0)","v":0},{"$f":"IF(AND(H$7>=Vorsorge!$J$9,H$7<=Vorsorge!$L$9),Vorsorge!$P$9,0)","v":0},{"$f":"IF(AND(I$7>=Vorsorge!$J$9,I$7<=Vorsorge!$L$9),Vorsorge!$P$9,0)","v":0},{"$f":"IF(AND(J$7>=Vorsorge!$J$9,J$7<=Vorsorge!$L$9),Vorsorge!$P$9,0)","v":0},{"$f":"IF(AND(K$7>=Vorsorge!$J$9,K$7<=Vorsorge!$L$9),Vorsorge!$P$9,0)","v":0},{"$f":"IF(AND(L$7>=Vorsorge!$J$9,L$7<=Vorsorge!$L$9),Vorsorge!$P$9,0)","v":0},{"$f":"IF(AND(M$7>=Vorsorge!$J$9,M$7<=Vorsorge!$L$9),Vorsorge!$P$9,0)","v":0},{"$f":"IF(AND(N$7>=Vorsorge!$J$9,N$7<=Vorsorge!$L$9),Vorsorge!$P$9,0)","v":0},{"$f":"IF(AND(O$7>=Vorsorge!$J$9,O$7<=Vorsorge!$L$9),Vorsorge!$P$9,0)","v":0},{"$f":"IF(AND(P$7>=Vorsorge!$J$9,P$7<=Vorsorge!$L$9),Vorsorge!$P$9,0)","v":0},{"$f":"IF(AND(Q$7>=Vorsorge!$J$9,Q$7<=Vorsorge!$L$9),Vorsorge!$P$9,0)","v":0},{"$f":"IF(AND(R$7>=Vorsorge!$J$9,R$7<=Vorsorge!$L$9),Vorsorge!$P$9,0)","v":0},{"$f":"IF(AND(S$7>=Vorsorge!$J$9,S$7<=Vorsorge!$L$9),Vorsorge!$P$9,0)","v":0},{"$f":"IF(AND(T$7>=Vorsorge!$J$9,T$7<=Vorsorge!$L$9),Vorsorge!$P$9,0)","v":0},{"$f":"IF(AND(U$7>=Vorsorge!$J$9,U$7<=Vorsorge!$L$9),Vorsorge!$P$9,0)","v":0},{"$f":"IF(AND(V$7>=Vorsorge!$J$9,V$7<=Vorsorge!$L$9),Vorsorge!$P$9,0)","v":0},{"$f":"IF(AND(W$7>=Vorsorge!$J$9,W$7<=Vorsorge!$L$9),Vorsorge!$P$9,0)","v":0},{"$f":"IF(AND(X$7>=Vorsorge!$J$9,X$7<=Vorsorge!$L$9),Vorsorge!$P$9,0)","v":0},{"$f":"IF(AND(Y$7>=Vorsorge!$J$9,Y$7<=Vorsorge!$L$9),Vorsorge!$P$9,0)","v":0},{"$f":"IF(AND(Z$7>=Vorsorge!$J$9,Z$7<=Vorsorge!$L$9),Vorsorge!$P$9,0)","v":0},{"$f":"IF(AND(AA$7>=Vorsorge!$J$9,AA$7<=Vorsorge!$L$9),Vorsorge!$P$9,0)","v":0},{"$f":"IF(AND(AB$7>=Vorsorge!$J$9,AB$7<=Vorsorge!$L$9),Vorsorge!$P$9,0)","v":0},{"$f":"IF(AND(AC$7>=Vorsorge!$J$9,AC$7<=Vorsorge!$L$9),Vorsorge!$P$9,0)","v":0},{"$f":"IF(AND(AD$7>=Vorsorge!$J$9,AD$7<=Vorsorge!$L$9),Vorsorge!$P$9,0)","v":0},{"$f":"IF(AND(AE$7>=Vorsorge!$J$9,AE$7<=Vorsorge!$L$9),Vorsorge!$P$9,0)","v":0},{"$f":"IF(AND(AF$7>=Vorsorge!$J$9,AF$7<=Vorsorge!$L$9),Vorsorge!$P$9,0)","v":0},{"$f":"IF(AND(AG$7>=Vorsorge!$J$9,AG$7<=Vorsorge!$L$9),Vorsorge!$P$9,0)","v":0},{"$f":"IF(AND(AH$7>=Vorsorge!$J$9,AH$7<=Vorsorge!$L$9),Vorsorge!$P$9,0)","v":0},{"$f":"IF(AND(AI$7>=Vorsorge!$J$9,AI$7<=Vorsorge!$L$9),Vorsorge!$P$9,0)","v":0},{"$f":"IF(AND(AJ$7>=Vorsorge!$J$9,AJ$7<=Vorsorge!$L$9),Vorsorge!$P$9,0)","v":0}]
[]
[null,null,"Auszahlung der gebundenen Vorsorge Säule 3a",null,null,null,{"$f":"IF(G$7=Vorsorge!$J$11,Vorsorge!$F$11,0)","v":0},{"$f":"IF(H$7=Vorsorge!$J$11,Vorsorge!$F$11,0)","v":0},{"$f":"IF(I$7=Vorsorge!$J$11,Vorsorge!$F$11,0)","v":0},{"$f":"IF(J$7=Vorsorge!$J$11,Vorsorge!$F$11,0)","v":0},{"$f":"IF(K$7=Vorsorge!$J$11,Vorsorge!$F$11,0)","v":0},{"$f":"IF(L$7=Vorsorge!$J$11,Vorsorge!$F$11,0)","v":0},{"$f":"IF(M$7=Vorsorge!$J$11,Vorsorge!$F$11,0)","v":0},{"$f":"IF(N$7=Vorsorge!$J$11,Vorsorge!$F$11,0)","v":0},{"$f":"IF(O$7=Vorsorge!$J$11,Vorsorge!$F$11,0)","v":0},{"$f":"IF(P$7=Vorsorge!$J$11,Vorsorge!$F$11,0)","v":0},{"$f":"IF(Q$7=Vorsorge!$J$11,Vorsorge!$F$11,0)","v":0},{"$f":"IF(R$7=Vorsorge!$J$11,Vorsorge!$F$11,0)","v":0},{"$f":"IF(S$7=Vorsorge!$J$11,Vorsorge!$F$11,0)","v":0},{"$f":"IF(T$7=Vorsorge!$J$11,Vorsorge!$F$11,0)","v":0},{"$f":"IF(U$7=Vorsorge!$J$11,Vorsorge!$F$11,0)","v":0},{"$f":"IF(V$7=Vorsorge!$J$11,Vorsorge!$F$11,0)","v":0},{"$f":"IF(W$7=Vorsorge!$J$11,Vorsorge!$F$11,0)","v":0},{"$f":"IF(X$7=Vorsorge!$J$11,Vorsorge!$F$11,0)","v":0},{"$f":"IF(Y$7=Vorsorge!$J$11,Vorsorge!$F$11,0)","v":0},{"$f":"IF(Z$7=Vorsorge!$J$11,Vorsorge!$F$11,0)","v":0},{"$f":"IF(AA$7=Vorsorge!$J$11,Vorsorge!$F$11,0)","v":0},{"$f":"IF(AB$7=Vorsorge!$J$11,Vorsorge!$F$11,0)","v":0},{"$f":"IF(AC$7=Vorsorge!$J$11,Vorsorge!$F$11,0)","v":0},{"$f":"IF(AD$7=Vorsorge!$J$11,Vorsorge!$F$11,0)","v":0},{"$f":"IF(AE$7=Vorsorge!$J$11,Vorsorge!$F$11,0)","v":0},{"$f":"IF(AF$7=Vorsorge!$J$11,Vorsorge!$F$11,0)","v":0},{"$f":"IF(AG$7=Vorsorge!$J$11,Vorsorge!$F$11,0)","v":0},{"$f":"IF(AH$7=Vorsorge!$J$11,Vorsorge!$F$11,0)","v":0},{"$f":"IF(AI$7=Vorsorge!$J$11,Vorsorge!$F$11,0)","v":0},{"$f":"IF(AJ$7=Vorsorge!$J$11,Vorsorge!$F$11,0)","v":0}]
[]
[null,null,"   Steuereffekt",null,null,null,{"$f":"(IF(G$7=Vorsorge!$J$11,Vorsorge!$P$11*'Hilfstabelle Steuern'!$F$17,0))*-1","v":0},{"$f":"(IF(H$7=Vorsorge!$J$11,Vorsorge!$P$11*'Hilfstabelle Steuern'!$F$17,0))*-1","v":0},{"$f":"(IF(I$7=Vorsorge!$J$11,Vorsorge!$P$11*'Hilfstabelle Steuern'!$F$17,0))*-1","v":0},{"$f":"(IF(J$7=Vorsorge!$J$11,Vorsorge!$P$11*'Hilfstabelle Steuern'!$F$17,0))*-1","v":0},{"$f":"(IF(K$7=Vorsorge!$J$11,Vorsorge!$P$11*'Hilfstabelle Steuern'!$F$17,0))*-1","v":0},{"$f":"(IF(L$7=Vorsorge!$J$11,Vorsorge!$P$11*'Hilfstabelle Steuern'!$F$17,0))*-1","v":0},{"$f":"(IF(M$7=Vorsorge!$J$11,Vorsorge!$P$11*'Hilfstabelle Steuern'!$F$17,0))*-1","v":0},{"$f":"(IF(N$7=Vorsorge!$J$11,Vorsorge!$P$11*'Hilfstabelle Steuern'!$F$17,0))*-1","v":0},{"$f":"(IF(O$7=Vorsorge!$J$11,Vorsorge!$P$11*'Hilfstabelle Steuern'!$F$17,0))*-1","v":0},{"$f":"(IF(P$7=Vorsorge!$J$11,Vorsorge!$P$11*'Hilfstabelle Steuern'!$F$17,0))*-1","v":0},{"$f":"(IF(Q$7=Vorsorge!$J$11,Vorsorge!$P$11*'Hilfstabelle Steuern'!$F$17,0))*-1","v":0},{"$f":"(IF(R$7=Vorsorge!$J$11,Vorsorge!$P$11*'Hilfstabelle Steuern'!$F$17,0))*-1","v":0},{"$f":"(IF(S$7=Vorsorge!$J$11,Vorsorge!$P$11*'Hilfstabelle Steuern'!$F$17,0))*-1","v":0},{"$f":"(IF(T$7=Vorsorge!$J$11,Vorsorge!$P$11*'Hilfstabelle Steuern'!$F$17,0))*-1","v":0},{"$f":"(IF(U$7=Vorsorge!$J$11,Vorsorge!$P$11*'Hilfstabelle Steuern'!$F$17,0))*-1","v":0},{"$f":"(IF(V$7=Vorsorge!$J$11,Vorsorge!$P$11*'Hilfstabelle Steuern'!$F$17,0))*-1","v":0},{"$f":"(IF(W$7=Vorsorge!$J$11,Vorsorge!$P$11*'Hilfstabelle Steuern'!$F$17,0))*-1","v":0},{"$f":"(IF(X$7=Vorsorge!$J$11,Vorsorge!$P$11*'Hilfstabelle Steuern'!$F$17,0))*-1","v":0},{"$f":"(IF(Y$7=Vorsorge!$J$11,Vorsorge!$P$11*'Hilfstabelle Steuern'!$F$17,0))*-1","v":0},{"$f":"(IF(Z$7=Vorsorge!$J$11,Vorsorge!$P$11*'Hilfstabelle Steuern'!$F$17,0))*-1","v":0},{"$f":"(IF(AA$7=Vorsorge!$J$11,Vorsorge!$P$11*'Hilfstabelle Steuern'!$F$17,0))*-1","v":0},{"$f":"(IF(AB$7=Vorsorge!$J$11,Vorsorge!$P$11*'Hilfstabelle Steuern'!$F$17,0))*-1","v":0},{"$f":"(IF(AC$7=Vorsorge!$J$11,Vorsorge!$P$11*'Hilfstabelle Steuern'!$F$17,0))*-1","v":0},{"$f":"(IF(AD$7=Vorsorge!$J$11,Vorsorge!$P$11*'Hilfstabelle Steuern'!$F$17,0))*-1","v":0},{"$f":"(IF(AE$7=Vorsorge!$J$11,Vorsorge!$P$11*'Hilfstabelle Steuern'!$F$17,0))*-1","v":0},{"$f":"(IF(AF$7=Vorsorge!$J$11,Vorsorge!$P$11*'Hilfstabelle Steuern'!$F$17,0))*-1","v":0},{"$f":"(IF(AG$7=Vorsorge!$J$11,Vorsorge!$P$11*'Hilfstabelle Steuern'!$F$17,0))*-1","v":0},{"$f":"(IF(AH$7=Vorsorge!$J$11,Vorsorge!$P$11*'Hilfstabelle Steuern'!$F$17,0))*-1","v":0},{"$f":"(IF(AI$7=Vorsorge!$J$11,Vorsorge!$P$11*'Hilfstabelle Steuern'!$F$17,0))*-1","v":0},{"$f":"(IF(AJ$7=Vorsorge!$J$11,Vorsorge!$P$11*'Hilfstabelle Steuern'!$F$17,0))*-1","v":0}]
[]
[null,null,"Einzahlung Lebensversicherung Säule 3b",null,null,null,{"$f":"IF(OR(G$7=Vorsorge!$J$36,AND(G$7>=Vorsorge!$J$34,G$7<=Vorsorge!$L$34)),Vorsorge!$F$34,0)*-1","v":0},{"$f":"IF(OR(H$7=Vorsorge!$J$36,AND(H$7>=Vorsorge!$J$34,H$7<=Vorsorge!$L$34)),Vorsorge!$F$34,0)*-1","v":0},{"$f":"IF(OR(I$7=Vorsorge!$J$36,AND(I$7>=Vorsorge!$J$34,I$7<=Vorsorge!$L$34)),Vorsorge!$F$34,0)*-1","v":0},{"$f":"IF(OR(J$7=Vorsorge!$J$36,AND(J$7>=Vorsorge!$J$34,J$7<=Vorsorge!$L$34)),Vorsorge!$F$34,0)*-1","v":0},{"$f":"IF(OR(K$7=Vorsorge!$J$36,AND(K$7>=Vorsorge!$J$34,K$7<=Vorsorge!$L$34)),Vorsorge!$F$34,0)*-1","v":0},{"$f":"IF(OR(L$7=Vorsorge!$J$36,AND(L$7>=Vorsorge!$J$34,L$7<=Vorsorge!$L$34)),Vorsorge!$F$34,0)*-1","v":0},{"$f":"IF(OR(M$7=Vorsorge!$J$36,AND(M$7>=Vorsorge!$J$34,M$7<=Vorsorge!$L$34)),Vorsorge!$F$34,0)*-1","v":0},{"$f":"IF(OR(N$7=Vorsorge!$J$36,AND(N$7>=Vorsorge!$J$34,N$7<=Vorsorge!$L$34)),Vorsorge!$F$34,0)*-1","v":0},{"$f":"IF(OR(O$7=Vorsorge!$J$36,AND(O$7>=Vorsorge!$J$34,O$7<=Vorsorge!$L$34)),Vorsorge!$F$34,0)*-1","v":0},{"$f":"IF(OR(P$7=Vorsorge!$J$36,AND(P$7>=Vorsorge!$J$34,P$7<=Vorsorge!$L$34)),Vorsorge!$F$34,0)*-1","v":0},{"$f":"IF(OR(Q$7=Vorsorge!$J$36,AND(Q$7>=Vorsorge!$J$34,Q$7<=Vorsorge!$L$34)),Vorsorge!$F$34,0)*-1","v":0},{"$f":"IF(OR(R$7=Vorsorge!$J$36,AND(R$7>=Vorsorge!$J$34,R$7<=Vorsorge!$L$34)),Vorsorge!$F$34,0)*-1","v":0},{"$f":"IF(OR(S$7=Vorsorge!$J$36,AND(S$7>=Vorsorge!$J$34,S$7<=Vorsorge!$L$34)),Vorsorge!$F$34,0)*-1","v":0},{"$f":"IF(OR(T$7=Vorsorge!$J$36,AND(T$7>=Vorsorge!$J$34,T$7<=Vorsorge!$L$34)),Vorsorge!$F$34,0)*-1","v":0},{"$f":"IF(OR(U$7=Vorsorge!$J$36,AND(U$7>=Vorsorge!$J$34,U$7<=Vorsorge!$L$34)),Vorsorge!$F$34,0)*-1","v":0},{"$f":"IF(OR(V$7=Vorsorge!$J$36,AND(V$7>=Vorsorge!$J$34,V$7<=Vorsorge!$L$34)),Vorsorge!$F$34,0)*-1","v":0},{"$f":"IF(OR(W$7=Vorsorge!$J$36,AND(W$7>=Vorsorge!$J$34,W$7<=Vorsorge!$L$34)),Vorsorge!$F$34,0)*-1","v":0},{"$f":"IF(OR(X$7=Vorsorge!$J$36,AND(X$7>=Vorsorge!$J$34,X$7<=Vorsorge!$L$34)),Vorsorge!$F$34,0)*-1","v":0},{"$f":"IF(OR(Y$7=Vorsorge!$J$36,AND(Y$7>=Vorsorge!$J$34,Y$7<=Vorsorge!$L$34)),Vorsorge!$F$34,0)*-1","v":0},{"$f":"IF(OR(Z$7=Vorsorge!$J$36,AND(Z$7>=Vorsorge!$J$34,Z$7<=Vorsorge!$L$34)),Vorsorge!$F$34,0)*-1","v":0},{"$f":"IF(OR(AA$7=Vorsorge!$J$36,AND(AA$7>=Vorsorge!$J$34,AA$7<=Vorsorge!$L$34)),Vorsorge!$F$34,0)*-1","v":0},{"$f":"IF(OR(AB$7=Vorsorge!$J$36,AND(AB$7>=Vorsorge!$J$34,AB$7<=Vorsorge!$L$34)),Vorsorge!$F$34,0)*-1","v":0},{"$f":"IF(OR(AC$7=Vorsorge!$J$36,AND(AC$7>=Vorsorge!$J$34,AC$7<=Vorsorge!$L$34)),Vorsorge!$F$34,0)*-1","v":0},{"$f":"IF(OR(AD$7=Vorsorge!$J$36,AND(AD$7>=Vorsorge!$J$34,AD$7<=Vorsorge!$L$34)),Vorsorge!$F$34,0)*-1","v":0},{"$f":"IF(OR(AE$7=Vorsorge!$J$36,AND(AE$7>=Vorsorge!$J$34,AE$7<=Vorsorge!$L$34)),Vorsorge!$F$34,0)*-1","v":0},{"$f":"IF(OR(AF$7=Vorsorge!$J$36,AND(AF$7>=Vorsorge!$J$34,AF$7<=Vorsorge!$L$34)),Vorsorge!$F$34,0)*-1","v":0},{"$f":"IF(OR(AG$7=Vorsorge!$J$36,AND(AG$7>=Vorsorge!$J$34,AG$7<=Vorsorge!$L$34)),Vorsorge!$F$34,0)*-1","v":0},{"$f":"IF(OR(AH$7=Vorsorge!$J$36,AND(AH$7>=Vorsorge!$J$34,AH$7<=Vorsorge!$L$34)),Vorsorge!$F$34,0)*-1","v":0},{"$f":"IF(OR(AI$7=Vorsorge!$J$36,AND(AI$7>=Vorsorge!$J$34,AI$7<=Vorsorge!$L$34)),Vorsorge!$F$34,0)*-1","v":0},{"$f":"IF(OR(AJ$7=Vorsorge!$J$36,AND(AJ$7>=Vorsorge!$J$34,AJ$7<=Vorsorge!$L$34)),Vorsorge!$F$34,0)*-1","v":0}]
[null,null," "]
[null,null,"Auszahlung Leibrente",null,null,null,{"$f":"IF(AND(G$7>=Vorsorge!$J$39,G$7<=Vorsorge!$L$39),Vorsorge!$F$39,0)","v":0},{"$f":"IF(AND(H$7>=Vorsorge!$J$39,H$7<=Vorsorge!$L$39),Vorsorge!$F$39,0)","v":0},{"$f":"IF(AND(I$7>=Vorsorge!$J$39,I$7<=Vorsorge!$L$39),Vorsorge!$F$39,0)","v":0},{"$f":"IF(AND(J$7>=Vorsorge!$J$39,J$7<=Vorsorge!$L$39),Vorsorge!$F$39,0)","v":0},{"$f":"IF(AND(K$7>=Vorsorge!$J$39,K$7<=Vorsorge!$L$39),Vorsorge!$F$39,0)","v":0},{"$f":"IF(AND(L$7>=Vorsorge!$J$39,L$7<=Vorsorge!$L$39),Vorsorge!$F$39,0)","v":0},{"$f":"IF(AND(M$7>=Vorsorge!$J$39,M$7<=Vorsorge!$L$39),Vorsorge!$F$39,0)","v":0},{"$f":"IF(AND(N$7>=Vorsorge!$J$39,N$7<=Vorsorge!$L$39),Vorsorge!$F$39,0)","v":0},{"$f":"IF(AND(O$7>=Vorsorge!$J$39,O$7<=Vorsorge!$L$39),Vorsorge!$F$39,0)","v":0},{"$f":"IF(AND(P$7>=Vorsorge!$J$39,P$7<=Vorsorge!$L$39),Vorsorge!$F$39,0)","v":0},{"$f":"IF(AND(Q$7>=Vorsorge!$J$39,Q$7<=Vorsorge!$L$39),Vorsorge!$F$39,0)","v":0},{"$f":"IF(AND(R$7>=Vorsorge!$J$39,R$7<=Vorsorge!$L$39),Vorsorge!$F$39,0)","v":0},{"$f":"IF(AND(S$7>=Vorsorge!$J$39,S$7<=Vorsorge!$L$39),Vorsorge!$F$39,0)","v":0},{"$f":"IF(AND(T$7>=Vorsorge!$J$39,T$7<=Vorsorge!$L$39),Vorsorge!$F$39,0)","v":0},{"$f":"IF(AND(U$7>=Vorsorge!$J$39,U$7<=Vorsorge!$L$39),Vorsorge!$F$39,0)","v":0},{"$f":"IF(AND(V$7>=Vorsorge!$J$39,V$7<=Vorsorge!$L$39),Vorsorge!$F$39,0)","v":0},{"$f":"IF(AND(W$7>=Vorsorge!$J$39,W$7<=Vorsorge!$L$39),Vorsorge!$F$39,0)","v":0},{"$f":"IF(AND(X$7>=Vorsorge!$J$39,X$7<=Vorsorge!$L$39),Vorsorge!$F$39,0)","v":0},{"$f":"IF(AND(Y$7>=Vorsorge!$J$39,Y$7<=Vorsorge!$L$39),Vorsorge!$F$39,0)","v":0},{"$f":"IF(AND(Z$7>=Vorsorge!$J$39,Z$7<=Vorsorge!$L$39),Vorsorge!$F$39,0)","v":0},{"$f":"IF(AND(AA$7>=Vorsorge!$J$39,AA$7<=Vorsorge!$L$39),Vorsorge!$F$39,0)","v":0},{"$f":"IF(AND(AB$7>=Vorsorge!$J$39,AB$7<=Vorsorge!$L$39),Vorsorge!$F$39,0)","v":0},{"$f":"IF(AND(AC$7>=Vorsorge!$J$39,AC$7<=Vorsorge!$L$39),Vorsorge!$F$39,0)","v":0},{"$f":"IF(AND(AD$7>=Vorsorge!$J$39,AD$7<=Vorsorge!$L$39),Vorsorge!$F$39,0)","v":0},{"$f":"IF(AND(AE$7>=Vorsorge!$J$39,AE$7<=Vorsorge!$L$39),Vorsorge!$F$39,0)","v":0},{"$f":"IF(AND(AF$7>=Vorsorge!$J$39,AF$7<=Vorsorge!$L$39),Vorsorge!$F$39,0)","v":0},{"$f":"IF(AND(AG$7>=Vorsorge!$J$39,AG$7<=Vorsorge!$L$39),Vorsorge!$F$39,0)","v":0},{"$f":"IF(AND(AH$7>=Vorsorge!$J$39,AH$7<=Vorsorge!$L$39),Vorsorge!$F$39,0)","v":0},{"$f":"IF(AND(AI$7>=Vorsorge!$J$39,AI$7<=Vorsorge!$L$39),Vorsorge!$F$39,0)","v":0},{"$f":"IF(AND(AJ$7>=Vorsorge!$J$39,AJ$7<=Vorsorge!$L$39),Vorsorge!$F$39,0)","v":0}]
[null,null,"Steuern auf Leibrente",null,null,null,{"$f":"IF(AND(G$7>=Vorsorge!$J$39,G$7<=Vorsorge!$L$39),Vorsorge!$S$39,0)*-1","v":0},{"$f":"IF(AND(H$7>=Vorsorge!$J$39,H$7<=Vorsorge!$L$39),Vorsorge!$S$39,0)*-1","v":0},{"$f":"IF(AND(I$7>=Vorsorge!$J$39,I$7<=Vorsorge!$L$39),Vorsorge!$S$39,0)*-1","v":0},{"$f":"IF(AND(J$7>=Vorsorge!$J$39,J$7<=Vorsorge!$L$39),Vorsorge!$S$39,0)*-1","v":0},{"$f":"IF(AND(K$7>=Vorsorge!$J$39,K$7<=Vorsorge!$L$39),Vorsorge!$S$39,0)*-1","v":0},{"$f":"IF(AND(L$7>=Vorsorge!$J$39,L$7<=Vorsorge!$L$39),Vorsorge!$S$39,0)*-1","v":0},{"$f":"IF(AND(M$7>=Vorsorge!$J$39,M$7<=Vorsorge!$L$39),Vorsorge!$S$39,0)*-1","v":0},{"$f":"IF(AND(N$7>=Vorsorge!$J$39,N$7<=Vorsorge!$L$39),Vorsorge!$S$39,0)*-1","v":0},{"$f":"IF(AND(O$7>=Vorsorge!$J$39,O$7<=Vorsorge!$L$39),Vorsorge!$S$39,0)*-1","v":0},{"$f":"IF(AND(P$7>=Vorsorge!$J$39,P$7<=Vorsorge!$L$39),Vorsorge!$S$39,0)*-1","v":0},{"$f":"IF(AND(Q$7>=Vorsorge!$J$39,Q$7<=Vorsorge!$L$39),Vorsorge!$S$39,0)*-1","v":0},{"$f":"IF(AND(R$7>=Vorsorge!$J$39,R$7<=Vorsorge!$L$39),Vorsorge!$S$39,0)*-1","v":0},{"$f":"IF(AND(S$7>=Vorsorge!$J$39,S$7<=Vorsorge!$L$39),Vorsorge!$S$39,0)*-1","v":0},{"$f":"IF(AND(T$7>=Vorsorge!$J$39,T$7<=Vorsorge!$L$39),Vorsorge!$S$39,0)*-1","v":0},{"$f":"IF(AND(U$7>=Vorsorge!$J$39,U$7<=Vorsorge!$L$39),Vorsorge!$S$39,0)*-1","v":0},{"$f":"IF(AND(V$7>=Vorsorge!$J$39,V$7<=Vorsorge!$L$39),Vorsorge!$S$39,0)*-1","v":0},{"$f":"IF(AND(W$7>=Vorsorge!$J$39,W$7<=Vorsorge!$L$39),Vorsorge!$S$39,0)*-1","v":0},{"$f":"IF(AND(X$7>=Vorsorge!$J$39,X$7<=Vorsorge!$L$39),Vorsorge!$S$39,0)*-1","v":0},{"$f":"IF(AND(Y$7>=Vorsorge!$J$39,Y$7<=Vorsorge!$L$39),Vorsorge!$S$39,0)*-1","v":0},{"$f":"IF(AND(Z$7>=Vorsorge!$J$39,Z$7<=Vorsorge!$L$39),Vorsorge!$S$39,0)*-1","v":0},{"$f":"IF(AND(AA$7>=Vorsorge!$J$39,AA$7<=Vorsorge!$L$39),Vorsorge!$S$39,0)*-1","v":0},{"$f":"IF(AND(AB$7>=Vorsorge!$J$39,AB$7<=Vorsorge!$L$39),Vorsorge!$S$39,0)*-1","v":0},{"$f":"IF(AND(AC$7>=Vorsorge!$J$39,AC$7<=Vorsorge!$L$39),Vorsorge!$S$39,0)*-1","v":0},{"$f":"IF(AND(AD$7>=Vorsorge!$J$39,AD$7<=Vorsorge!$L$39),Vorsorge!$S$39,0)*-1","v":0},{"$f":"IF(AND(AE$7>=Vorsorge!$J$39,AE$7<=Vorsorge!$L$39),Vorsorge!$S$39,0)*-1","v":0},{"$f":"IF(AND(AF$7>=Vorsorge!$J$39,AF$7<=Vorsorge!$L$39),Vorsorge!$S$39,0)*-1","v":0},{"$f":"IF(AND(AG$7>=Vorsorge!$J$39,AG$7<=Vorsorge!$L$39),Vorsorge!$S$39,0)*-1","v":0},{"$f":"IF(AND(AH$7>=Vorsorge!$J$39,AH$7<=Vorsorge!$L$39),Vorsorge!$S$39,0)*-1","v":0},{"$f":"IF(AND(AI$7>=Vorsorge!$J$39,AI$7<=Vorsorge!$L$39),Vorsorge!$S$39,0)*-1","v":0},{"$f":"IF(AND(AJ$7>=Vorsorge!$J$39,AJ$7<=Vorsorge!$L$39),Vorsorge!$S$39,0)*-1","v":0}]
[null,null,"Auszahlung freie Vorsorge einmalig",null,null,null,{"$f":"IF(G$7=Vorsorge!$J$41,Vorsorge!$F$39,0)","v":0},{"$f":"IF(H$7=Vorsorge!$J$41,Vorsorge!$F$39,0)","v":0},{"$f":"IF(I$7=Vorsorge!$J$41,Vorsorge!$F$39,0)","v":0},{"$f":"IF(J$7=Vorsorge!$J$41,Vorsorge!$F$39,0)","v":0},{"$f":"IF(K$7=Vorsorge!$J$41,Vorsorge!$F$39,0)","v":0},{"$f":"IF(L$7=Vorsorge!$J$41,Vorsorge!$F$39,0)","v":0},{"$f":"IF(M$7=Vorsorge!$J$41,Vorsorge!$F$39,0)","v":0},{"$f":"IF(N$7=Vorsorge!$J$41,Vorsorge!$F$39,0)","v":0},{"$f":"IF(O$7=Vorsorge!$J$41,Vorsorge!$F$39,0)","v":0},{"$f":"IF(P$7=Vorsorge!$J$41,Vorsorge!$F$39,0)","v":0},{"$f":"IF(Q$7=Vorsorge!$J$41,Vorsorge!$F$39,0)","v":0},{"$f":"IF(R$7=Vorsorge!$J$41,Vorsorge!$F$39,0)","v":0},{"$f":"IF(S$7=Vorsorge!$J$41,Vorsorge!$F$39,0)","v":0},{"$f":"IF(T$7=Vorsorge!$J$41,Vorsorge!$F$39,0)","v":0},{"$f":"IF(U$7=Vorsorge!$J$41,Vorsorge!$F$39,0)","v":0},{"$f":"IF(V$7=Vorsorge!$J$41,Vorsorge!$F$39,0)","v":0},{"$f":"IF(W$7=Vorsorge!$J$41,Vorsorge!$F$39,0)","v":0},{"$f":"IF(X$7=Vorsorge!$J$41,Vorsorge!$F$39,0)","v":0},{"$f":"IF(Y$7=Vorsorge!$J$41,Vorsorge!$F$39,0)","v":0},{"$f":"IF(Z$7=Vorsorge!$J$41,Vorsorge!$F$39,0)","v":0},{"$f":"IF(AA$7=Vorsorge!$J$41,Vorsorge!$F$39,0)","v":0},{"$f":"IF(AB$7=Vorsorge!$J$41,Vorsorge!$F$39,0)","v":0},{"$f":"IF(AC$7=Vorsorge!$J$41,Vorsorge!$F$39,0)","v":0},{"$f":"IF(AD$7=Vorsorge!$J$41,Vorsorge!$F$39,0)","v":0},{"$f":"IF(AE$7=Vorsorge!$J$41,Vorsorge!$F$39,0)","v":0},{"$f":"IF(AF$7=Vorsorge!$J$41,Vorsorge!$F$39,0)","v":0},{"$f":"IF(AG$7=Vorsorge!$J$41,Vorsorge!$F$39,0)","v":0},{"$f":"IF(AH$7=Vorsorge!$J$41,Vorsorge!$F$39,0)","v":0},{"$f":"IF(AI$7=Vorsorge!$J$41,Vorsorge!$F$39,0)","v":0},{"$f":"IF(AJ$7=Vorsorge!$J$41,Vorsorge!$F$39,0)","v":0}]
[null,null," "]
[]
[null,null,"AHV - Voraussichtlicher jährlicher Rentenbetrag ",null,null,null,{"$f":"IF(AND(G$7>=Vorsorge!$J$46,G$7<='Persönliche Daten'!$I$18),Vorsorge!$F$46,0)","v":0},{"$f":"IF(AND(H$7>=Vorsorge!$J$46,H$7<='Persönliche Daten'!$I$18),Vorsorge!$F$46,0)","v":0},{"$f":"IF(AND(I$7>=Vorsorge!$J$46,I$7<='Persönliche Daten'!$I$18),Vorsorge!$F$46,0)","v":0},{"$f":"IF(AND(J$7>=Vorsorge!$J$46,J$7<='Persönliche Daten'!$I$18),Vorsorge!$F$46,0)","v":0},{"$f":"IF(AND(K$7>=Vorsorge!$J$46,K$7<='Persönliche Daten'!$I$18),Vorsorge!$F$46,0)","v":0},{"$f":"IF(AND(L$7>=Vorsorge!$J$46,L$7<='Persönliche Daten'!$I$18),Vorsorge!$F$46,0)","v":0},{"$f":"IF(AND(M$7>=Vorsorge!$J$46,M$7<='Persönliche Daten'!$I$18),Vorsorge!$F$46,0)","v":0},{"$f":"IF(AND(N$7>=Vorsorge!$J$46,N$7<='Persönliche Daten'!$I$18),Vorsorge!$F$46,0)","v":0},{"$f":"IF(AND(O$7>=Vorsorge!$J$46,O$7<='Persönliche Daten'!$I$18),Vorsorge!$F$46,0)","v":0},{"$f":"IF(AND(P$7>=Vorsorge!$J$46,P$7<='Persönliche Daten'!$I$18),Vorsorge!$F$46,0)","v":0},{"$f":"IF(AND(Q$7>=Vorsorge!$J$46,Q$7<='Persönliche Daten'!$I$18),Vorsorge!$F$46,0)","v":0},{"$f":"IF(AND(R$7>=Vorsorge!$J$46,R$7<='Persönliche Daten'!$I$18),Vorsorge!$F$46,0)","v":0},{"$f":"IF(AND(S$7>=Vorsorge!$J$46,S$7<='Persönliche Daten'!$I$18),Vorsorge!$F$46,0)","v":0},{"$f":"IF(AND(T$7>=Vorsorge!$J$46,T$7<='Persönliche Daten'!$I$18),Vorsorge!$F$46,0)","v":0},{"$f":"IF(AND(U$7>=Vorsorge!$J$46,U$7<='Persönliche Daten'!$I$18),Vorsorge!$F$46,0)","v":0},{"$f":"IF(AND(V$7>=Vorsorge!$J$46,V$7<='Persönliche Daten'!$I$18),Vorsorge!$F$46,0)","v":0},{"$f":"IF(AND(W$7>=Vorsorge!$J$46,W$7<='Persönliche Daten'!$I$18),Vorsorge!$F$46,0)","v":0},{"$f":"IF(AND(X$7>=Vorsorge!$J$46,X$7<='Persönliche Daten'!$I$18),Vorsorge!$F$46,0)","v":0},{"$f":"IF(AND(Y$7>=Vorsorge!$J$46,Y$7<='Persönliche Daten'!$I$18),Vorsorge!$F$46,0)","v":0},{"$f":"IF(AND(Z$7>=Vorsorge!$J$46,Z$7<='Persönliche Daten'!$I$18),Vorsorge!$F$46,0)","v":0},{"$f":"IF(AND(AA$7>=Vorsorge!$J$46,AA$7<='Persönliche Daten'!$I$18),Vorsorge!$F$46,0)","v":0},{"$f":"IF(AND(AB$7>=Vorsorge!$J$46,AB$7<='Persönliche Daten'!$I$18),Vorsorge!$F$46,0)","v":0},{"$f":"IF(AND(AC$7>=Vorsorge!$J$46,AC$7<='Persönliche Daten'!$I$18),Vorsorge!$F$46,0)","v":0},{"$f":"IF(AND(AD$7>=Vorsorge!$J$46,AD$7<='Persönliche Daten'!$I$18),Vorsorge!$F$46,0)","v":0},{"$f":"IF(AND(AE$7>=Vorsorge!$J$46,AE$7<='Persönliche Daten'!$I$18),Vorsorge!$F$46,0)","v":0},{"$f":"IF(AND(AF$7>=Vorsorge!$J$46,AF$7<='Persönliche Daten'!$I$18),Vorsorge!$F$46,0)","v":0},{"$f":"IF(AND(AG$7>=Vorsorge!$J$46,AG$7<='Persönliche Daten'!$I$18),Vorsorge!$F$46,0)","v":0},{"$f":"IF(AND(AH$7>=Vorsorge!$J$46,AH$7<='Persönliche Daten'!$I$18),Vorsorge!$F$46,0)","v":0},{"$f":"IF(AND(AI$7>=Vorsorge!$J$46,AI$7<='Persönliche Daten'!$I$18),Vorsorge!$F$46,0)","v":0},{"$f":"IF(AND(AJ$7>=Vorsorge!$J$46,AJ$7<='Persönliche Daten'!$I$18),Vorsorge!$F$46,0)","v":0}]
[null,null,"(min. 12000, max. 24000, siehe Rentenausweis)"]
[]
[null,null,"Rentenzahlung der Pensionskasse",null,null,null,{"$f":"IF(AND(G$7>=Vorsorge!$J$30,G$7<='Persönliche Daten'!$I$18),Vorsorge!$F$30,0)","v":0},{"$f":"IF(AND(H$7>=Vorsorge!$J$30,H$7<='Persönliche Daten'!$I$18),Vorsorge!$F$30,0)","v":0},{"$f":"IF(AND(I$7>=Vorsorge!$J$30,I$7<='Persönliche Daten'!$I$18),Vorsorge!$F$30,0)","v":0},{"$f":"IF(AND(J$7>=Vorsorge!$J$30,J$7<='Persönliche Daten'!$I$18),Vorsorge!$F$30,0)","v":0},{"$f":"IF(AND(K$7>=Vorsorge!$J$30,K$7<='Persönliche Daten'!$I$18),Vorsorge!$F$30,0)","v":0},{"$f":"IF(AND(L$7>=Vorsorge!$J$30,L$7<='Persönliche Daten'!$I$18),Vorsorge!$F$30,0)","v":0},{"$f":"IF(AND(M$7>=Vorsorge!$J$30,M$7<='Persönliche Daten'!$I$18),Vorsorge!$F$30,0)","v":0},{"$f":"IF(AND(N$7>=Vorsorge!$J$30,N$7<='Persönliche Daten'!$I$18),Vorsorge!$F$30,0)","v":0},{"$f":"IF(AND(O$7>=Vorsorge!$J$30,O$7<='Persönliche Daten'!$I$18),Vorsorge!$F$30,0)","v":0},{"$f":"IF(AND(P$7>=Vorsorge!$J$30,P$7<='Persönliche Daten'!$I$18),Vorsorge!$F$30,0)","v":0},{"$f":"IF(AND(Q$7>=Vorsorge!$J$30,Q$7<='Persönliche Daten'!$I$18),Vorsorge!$F$30,0)","v":0},{"$f":"IF(AND(R$7>=Vorsorge!$J$30,R$7<='Persönliche Daten'!$I$18),Vorsorge!$F$30,0)","v":0},{"$f":"IF(AND(S$7>=Vorsorge!$J$30,S$7<='Persönliche Daten'!$I$18),Vorsorge!$F$30,0)","v":0},{"$f":"IF(AND(T$7>=Vorsorge!$J$30,T$7<='Persönliche Daten'!$I$18),Vorsorge!$F$30,0)","v":0},{"$f":"IF(AND(U$7>=Vorsorge!$J$30,U$7<='Persönliche Daten'!$I$18),Vorsorge!$F$30,0)","v":0},{"$f":"IF(AND(V$7>=Vorsorge!$J$30,V$7<='Persönliche Daten'!$I$18),Vorsorge!$F$30,0)","v":0},{"$f":"IF(AND(W$7>=Vorsorge!$J$30,W$7<='Persönliche Daten'!$I$18),Vorsorge!$F$30,0)","v":0},{"$f":"IF(AND(X$7>=Vorsorge!$J$30,X$7<='Persönliche Daten'!$I$18),Vorsorge!$F$30,0)","v":0},{"$f":"IF(AND(Y$7>=Vorsorge!$J$30,Y$7<='Persönliche Daten'!$I$18),Vorsorge!$F$30,0)","v":0},{"$f":"IF(AND(Z$7>=Vorsorge!$J$30,Z$7<='Persönliche Daten'!$I$18),Vorsorge!$F$30,0)","v":0},{"$f":"IF(AND(AA$7>=Vorsorge!$J$30,AA$7<='Persönliche Daten'!$I$18),Vorsorge!$F$30,0)","v":0},{"$f":"IF(AND(AB$7>=Vorsorge!$J$30,AB$7<='Persönliche Daten'!$I$18),Vorsorge!$F$30,0)","v":0},{"$f":"IF(AND(AC$7>=Vorsorge!$J$30,AC$7<='Persönliche Daten'!$I$18),Vorsorge!$F$30,0)","v":0},{"$f":"IF(AND(AD$7>=Vorsorge!$J$30,AD$7<='Persönliche Daten'!$I$18),Vorsorge!$F$30,0)","v":0},{"$f":"IF(AND(AE$7>=Vorsorge!$J$30,AE$7<='Persönliche Daten'!$I$18),Vorsorge!$F$30,0)","v":0},{"$f":"IF(AND(AF$7>=Vorsorge!$J$30,AF$7<='Persönliche Daten'!$I$18),Vorsorge!$F$30,0)","v":0},{"$f":"IF(AND(AG$7>=Vorsorge!$J$30,AG$7<='Persönliche Daten'!$I$18),Vorsorge!$F$30,0)","v":0},{"$f":"IF(AND(AH$7>=Vorsorge!$J$30,AH$7<='Persönliche Daten'!$I$18),Vorsorge!$F$30,0)","v":0},{"$f":"IF(AND(AI$7>=Vorsorge!$J$30,AI$7<='Persönliche Daten'!$I$18),Vorsorge!$F$30,0)","v":0},{"$f":"IF(AND(AJ$7>=Vorsorge!$J$30,AJ$7<='Persönliche Daten'!$I$18),Vorsorge!$F$30,0)","v":0}]
[]
[null,null,"Steuern auf Rentenzahlungen aus Pensionskasse & AHV",null,null,null,{"$f":"(SUM(G123:G126))*Erwerbseinkommen!$I$50/-100*'Hilfstabelle Steuern'!$F$17","v":{"$error":"#VALUE!"}},{"$f":"(SUM(H123:H126))*Erwerbseinkommen!$I$50/-100*'Hilfstabelle Steuern'!$F$17","v":{"$error":"#VALUE!"}},{"$f":"(SUM(I123:I126))*Erwerbseinkommen!$I$50/-100*'Hilfstabelle Steuern'!$F$17","v":{"$error":"#VALUE!"}},{"$f":"(SUM(J123:J126))*Erwerbseinkommen!$I$50/-100*'Hilfstabelle Steuern'!$F$17","v":{"$error":"#VALUE!"}},{"$f":"(SUM(K123:K126))*Erwerbseinkommen!$I$50/-100*'Hilfstabelle Steuern'!$F$17","v":{"$error":"#VALUE!"}},{"$f":"(SUM(L123:L126))*Erwerbseinkommen!$I$50/-100*'Hilfstabelle Steuern'!$F$17","v":{"$error":"#VALUE!"}},{"$f":"(SUM(M123:M126))*Erwerbseinkommen!$I$50/-100*'Hilfstabelle Steuern'!$F$17","v":{"$error":"#VALUE!"}},{"$f":"(SUM(N123:N126))*Erwerbseinkommen!$I$50/-100*'Hilfstabelle Steuern'!$F$17","v":{"$error":"#VALUE!"}},{"$f":"(SUM(O123:O126))*Erwerbseinkommen!$I$50/-100*'Hilfstabelle Steuern'!$F$17","v":{"$error":"#VALUE!"}},{"$f":"(SUM(P123:P126))*Erwerbseinkommen!$I$50/-100*'Hilfstabelle Steuern'!$F$17","v":{"$error":"#VALUE!"}},{"$f":"(SUM(Q123:Q126))*Erwerbseinkommen!$I$50/-100*'Hilfstabelle Steuern'!$F$17","v":{"$error":"#VALUE!"}},{"$f":"(SUM(R123:R126))*Erwerbseinkommen!$I$50/-100*'Hilfstabelle Steuern'!$F$17","v":{"$error":"#VALUE!"}},{"$f":"(SUM(S123:S126))*Erwerbseinkommen!$I$50/-100*'Hilfstabelle Steuern'!$F$17","v":{"$error":"#VALUE!"}},{"$f":"(SUM(T123:T126))*Erwerbseinkommen!$I$50/-100*'Hilfstabelle Steuern'!$F$17","v":{"$error":"#VALUE!"}},{"$f":"(SUM(U123:U126))*Erwerbseinkommen!$I$50/-100*'Hilfstabelle Steuern'!$F$17","v":{"$error":"#VALUE!"}},{"$f":"(SUM(V123:V126))*Erwerbseinkommen!$I$50/-100*'Hilfstabelle Steuern'!$F$17","v":{"$error":"#VALUE!"}},{"$f":"(SUM(W123:W126))*Erwerbseinkommen!$I$50/-100*'Hilfstabelle Steuern'!$F$17","v":{"$error":"#VALUE!"}},{"$f":"(SUM(X123:X126))*Erwerbseinkommen!$I$50/-100*'Hilfstabelle Steuern'!$F$17","v":{"$error":"#VALUE!"}},{"$f":"(SUM(Y123:Y126))*Erwerbseinkommen!$I$50/-100*'Hilfstabelle Steuern'!$F$17","v":{"$error":"#VALUE!"}},{"$f":"(SUM(Z123:Z126))*Erwerbseinkommen!$I$50/-100*'Hilfstabelle Steuern'!$F$17","v":{"$error":"#VALUE!"}},{"$f":"(SUM(AA123:AA126))*Erwerbseinkommen!$I$50/-100*'Hilfstabelle Steuern'!$F$17","v":{"$error":"#VALUE!"}},{"$f":"(SUM(AB123:AB126))*Erwerbseinkommen!$I$50/-100*'Hilfstabelle Steuern'!$F$17","v":{"$error":"#VALUE!"}},{"$f":"(SUM(AC123:AC126))*Erwerbseinkommen!$I$50/-100*'Hilfstabelle Steuern'!$F$17","v":{"$error":"#VALUE!"}},{"$f":"(SUM(AD123:AD126))*Erwerbseinkommen!$I$50/-100*'Hilfstabelle Steuern'!$F$17","v":{"$error":"#VALUE!"}},{"$f":"(SUM(AE123:AE126))*Erwerbseinkommen!$I$50/-100*'Hilfstabelle Steuern'!$F$17","v":{"$error":"#VALUE!"}},{"$f":"(SUM(AF123:AF126))*Erwerbseinkommen!$I$50/-100*'Hilfstabelle Steuern'!$F$17","v":{"$error":"#VALUE!"}},{"$f":"(SUM(AG123:AG126))*Erwerbseinkommen!$I$50/-100*'Hilfstabelle Steuern'!$F$17","v":{"$error":"#VALUE!"}},{"$f":"(SUM(AH123:AH126))*Erwerbseinkommen!$I$50/-100*'Hilfstabelle Steuern'!$F$17","v":{"$error":"#VALUE!"}},{"$f":"(SUM(AI123:AI126))*Erwerbseinkommen!$I$50/-100*'Hilfstabelle Steuern'!$F$17","v":{"$error":"#VALUE!"}},{"$f":"(SUM(AJ123:AJ126))*Erwerbseinkommen!$I$50/-100*'Hilfstabelle Steuern'!$F$17","v":{"$error":"#VALUE!"}}]
[]
[]
[]
[]
[null,null,"Ordentliche Steuern zu Beginn Planung",null,null,null,{"$f":"'Hilfstabelle Steuern'!$F$8+HilfstabelleProjektion!G43+HilfstabelleProjektion!G68+HilfstabelleProjektion!G128+G38","v":{"$error":"#VALUE!"}},{"$f":"'Hilfstabelle Steuern'!$F$8+HilfstabelleProjektion!H43+HilfstabelleProjektion!H68+HilfstabelleProjektion!H128+H38","v":{"$error":"#VALUE!"}},{"$f":"'Hilfstabelle Steuern'!$F$8+HilfstabelleProjektion!I43+HilfstabelleProjektion!I68+HilfstabelleProjektion!I128+I38","v":{"$error":"#VALUE!"}},{"$f":"'Hilfstabelle Steuern'!$F$8+HilfstabelleProjektion!J43+HilfstabelleProjektion!J68+HilfstabelleProjektion!J128+J38","v":{"$error":"#VALUE!"}},{"$f":"'Hilfstabelle Steuern'!$F$8+HilfstabelleProjektion!K43+HilfstabelleProjektion!K68+HilfstabelleProjektion!K128+K38","v":{"$error":"#VALUE!"}},{"$f":"'Hilfstabelle Steuern'!$F$8+HilfstabelleProjektion!L43+HilfstabelleProjektion!L68+HilfstabelleProjektion!L128+L38","v":{"$error":"#VALUE!"}},{"$f":"'Hilfstabelle Steuern'!$F$8+HilfstabelleProjektion!M43+HilfstabelleProjektion!M68+HilfstabelleProjektion!M128+M38","v":{"$error":"#VALUE!"}},{"$f":"'Hilfstabelle Steuern'!$F$8+HilfstabelleProjektion!N43+HilfstabelleProjektion!N68+HilfstabelleProjektion!N128+N38","v":{"$error":"#VALUE!"}},{"$f":"'Hilfstabelle Steuern'!$F$8+HilfstabelleProjektion!O43+HilfstabelleProjektion!O68+HilfstabelleProjektion!O128+O38","v":{"$error":"#VALUE!"}},{"$f":"'Hilfstabelle Steuern'!$F$8+HilfstabelleProjektion!P43+HilfstabelleProjektion!P68+HilfstabelleProjektion!P128+P38","v":{"$error":"#VALUE!"}},{"$f":"'Hilfstabelle Steuern'!$F$8+HilfstabelleProjektion!Q43+HilfstabelleProjektion!Q68+HilfstabelleProjektion!Q128+Q38","v":{"$error":"#VALUE!"}},{"$f":"'Hilfstabelle Steuern'!$F$8+HilfstabelleProjektion!R43+HilfstabelleProjektion!R68+HilfstabelleProjektion!R128+R38","v":{"$error":"#VALUE!"}},{"$f":"'Hilfstabelle Steuern'!$F$8+HilfstabelleProjektion!S43+HilfstabelleProjektion!S68+HilfstabelleProjektion!S128+S38","v":{"$error":"#VALUE!"}},{"$f":"'Hilfstabelle Steuern'!$F$8+HilfstabelleProjektion!T43+HilfstabelleProjektion!T68+HilfstabelleProjektion!T128+T38","v":{"$error":"#VALUE!"}},{"$f":"'Hilfstabelle Steuern'!$F$8+HilfstabelleProjektion!U43+HilfstabelleProjektion!U68+HilfstabelleProjektion!U128+U38","v":{"$error":"#VALUE!"}},{"$f":"'Hilfstabelle Steuern'!$F$8+HilfstabelleProjektion!V43+HilfstabelleProjektion!V68+HilfstabelleProjektion!V128+V38","v":{"$error":"#VALUE!"}},{"$f":"'Hilfstabelle Steuern'!$F$8+HilfstabelleProjektion!W43+HilfstabelleProjektion!W68+HilfstabelleProjektion!W128+W38","v":{"$error":"#VALUE!"}},{"$f":"'Hilfstabelle Steuern'!$F$8+HilfstabelleProjektion!X43+HilfstabelleProjektion!X68+HilfstabelleProjektion!X128+X38","v":{"$error":"#VALUE!"}},{"$f":"'Hilfstabelle Steuern'!$F$8+HilfstabelleProjektion!Y43+HilfstabelleProjektion!Y68+HilfstabelleProjektion!Y128+Y38","v":{"$error":"#VALUE!"}},{"$f":"'Hilfstabelle Steuern'!$F$8+HilfstabelleProjektion!Z43+HilfstabelleProjektion!Z68+HilfstabelleProjektion!Z128+Z38","v":{"$error":"#VALUE!"}},{"$f":"'Hilfstabelle Steuern'!$F$8+HilfstabelleProjektion!AA43+HilfstabelleProjektion!AA68+HilfstabelleProjektion!AA128+AA38","v":{"$error":"#VALUE!"}},{"$f":"'Hilfstabelle Steuern'!$F$8+HilfstabelleProjektion!AB43+HilfstabelleProjektion!AB68+HilfstabelleProjektion!AB128+AB38","v":{"$error":"#VALUE!"}},{"$f":"'Hilfstabelle Steuern'!$F$8+HilfstabelleProjektion!AC43+HilfstabelleProjektion!AC68+HilfstabelleProjektion!AC128+AC38","v":{"$error":"#VALUE!"}},{"$f":"'Hilfstabelle Steuern'!$F$8+HilfstabelleProjektion!AD43+HilfstabelleProjektion!AD68+HilfstabelleProjektion!AD128+AD38","v":{"$error":"#VALUE!"}},{"$f":"'Hilfstabelle Steuern'!$F$8+HilfstabelleProjektion!AE43+HilfstabelleProjektion!AE68+HilfstabelleProjektion!AE128+AE38","v":{"$error":"#VALUE!"}},{"$f":"'Hilfstabelle Steuern'!$F$8+HilfstabelleProjektion!AF43+HilfstabelleProjektion!AF68+HilfstabelleProjektion!AF128+AF38","v":{"$error":"#VALUE!"}},{"$f":"'Hilfstabelle Steuern'!$F$8+HilfstabelleProjektion!AG43+HilfstabelleProjektion!AG68+HilfstabelleProjektion!AG128+AG38","v":{"$error":"#VALUE!"}},{"$f":"'Hilfstabelle Steuern'!$F$8+HilfstabelleProjektion!AH43+HilfstabelleProjektion!AH68+HilfstabelleProjektion!AH128+AH38","v":{"$error":"#VALUE!"}},{"$f":"'Hilfstabelle Steuern'!$F$8+HilfstabelleProjektion!AI43+HilfstabelleProjektion!AI68+HilfstabelleProjektion!AI128+AI38","v":{"$error":"#VALUE!"}},{"$f":"'Hilfstabelle Steuern'!$F$8+HilfstabelleProjektion!AJ43+HilfstabelleProjektion!AJ68+HilfstabelleProjektion!AJ128+AJ38","v":{"$error":"#VALUE!"}}]
[null,null,"total",null,null,null,{"$f":"SUM(G72:G133)","v":{"$error":"#VALUE!"}},{"$f":"SUM(H72:H133)","v":{"$error":"#VALUE!"}},{"$f":"SUM(I72:I133)","v":{"$error":"#VALUE!"}},{"$error":"#VALUE!"},{"$error":"#VALUE!"},{"$error":"#VALUE!"},{"$error":"#VALUE!"},{"$error":"#VALUE!"},{"$error":"#VALUE!"},{"$error":"#VALUE!"},{"$error":"#VALUE!"},{"$error":"#VALUE!"},{"$error":"#VALUE!"},{"$error":"#VALUE!"},{"$error":"#VALUE!"},{"$error":"#VALUE!"},{"$error":"#VALUE!"},{"$error":"#VALUE!"},{"$error":"#VALUE!"},{"$error":"#VALUE!"},{"$error":"#VALUE!"},{"$error":"#VALUE!"},{"$error":"#VALUE!"},{"$error":"#VALUE!"},{"$error":"#VALUE!"},{"$error":"#VALUE!"},{"$error":"#VALUE!"},{"$error":"#VALUE!"},{"$error":"#VALUE!"},{"$error":"#VALUE!"}]
[null,null," "]
[null,null,"Total Liquide Mittel Ende Jahr Hilfsgrösse",null,null,null,{"$f":"(SUM(G72:G128))+G15+G16+G21+G26+G29+G35+G36+G37+G38+G39+G43-G53-G55-G57-G59+G66+G68","v":{"$error":"#VALUE!"}},{"$f":"(SUM(H72:H128))+H15+H16+H21+H26+H29+H35+H36+H37+H38+H39+H43-H53-H55-H57-H59+H66+H68","v":{"$error":"#VALUE!"}},{"$error":"#VALUE!"},{"$error":"#VALUE!"},{"$error":"#VALUE!"},{"$error":"#VALUE!"},{"$error":"#VALUE!"},{"$error":"#VALUE!"},{"$error":"#VALUE!"},{"$error":"#VALUE!"},{"$error":"#VALUE!"},{"$error":"#VALUE!"},{"$error":"#VALUE!"},{"$error":"#VALUE!"},{"$error":"#VALUE!"},{"$error":"#VALUE!"},{"$error":"#VALUE!"},{"$error":"#VALUE!"},{"$error":"#VALUE!"},{"$error":"#VALUE!"},{"$error":"#VALUE!"},{"$error":"#VALUE!"},{"$error":"#VALUE!"},{"$error":"#VALUE!"},{"$error":"#VALUE!"},{"$error":"#VALUE!"},{"$error":"#VALUE!"},{"$error":"#VALUE!"},{"$error":"#VALUE!"},{"$error":"#VALUE!"}]
[null,null,"Liquide Mittel Ende Jahr nach Auflösung Obligationen",null,null,null,{"$f":"G136-G19","v":{"$error":"#VALUE!"}},{"$error":"#VALUE!"},{"$error":"#VALUE!"},{"$error":"#VALUE!"},{"$error":"#VALUE!"},{"$error":"#VALUE!"},{"$error":"#VALUE!"},{"$error":"#VALUE!"},{"$error":"#VALUE!"},{"$error":"#VALUE!"},{"$error":"#VALUE!"},{"$error":"#VALUE!"},{"$error":"#VALUE!"},{"$error":"#VALUE!"},{"$error":"#VALUE!"},{"$error":"#VALUE!"},{"$error":"#VALUE!"},{"$error":"#VALUE!"},{"$error":"#VALUE!"},{"$error":"#VALUE!"},{"$error":"#VALUE!"},{"$error":"#VALUE!"},{"$error":"#VALUE!"},{"$error":"#VALUE!"},{"$error":"#VALUE!"},{"$error":"#VALUE!"},{"$error":"#VALUE!"},{"$error":"#VALUE!"},{"$error":"#VALUE!"},{"$error":"#VALUE!"}]
[]
[]
[null,null,"Vermögen am Ende von ",null,null,null,{"$f":"G45+G49+G60","v":{"$error":"#VALUE!"}},{"$f":"H45+H49+H60","v":{"$error":"#VALUE!"}},{"$error":"#VALUE!"},{"$error":"#VALUE!"},{"$error":"#VALUE!"},{"$error":"#VALUE!"},{"$error":"#VALUE!"},{"$error":"#VALUE!"},{"$error":"#VALUE!"},{"$error":"#VALUE!"},{"$error":"#VALUE!"},{"$error":"#VALUE!"},{"$error":"#VALUE!"},{"$error":"#VALUE!"},{"$error":"#VALUE!"},{"$error":"#VALUE!"},{"$error":"#VALUE!"},{"$error":"#VALUE!"},{"$error":"#VALUE!"},{"$error":"#VALUE!"},{"$error":"#VALUE!"},{"$error":"#VALUE!"},{"$error":"#VALUE!"},{"$error":"#VALUE!"},{"$error":"#VALUE!"},{"$error":"#VALUE!"},{"$error":"#VALUE!"},{"$error":"#VALUE!"},{"$error":"#VALUE!"},{"$error":"#VALUE!"}]

{"sheet":"Hilfstabelle Steuern","index":11,"n_rows":17,"n_cols":8,"rows_kept":17,"cut":false,"hidden":false,"merged":[]}
[]
[]
[]
[null,"Steuern"]
[null,null,null,null,null,"gemeindesteuer",null,"inkl. dir. bst"]
[]
[]
[null,"Steuern auf Nettoerwerbseinkommen",null,null,null,{"$f":"(Erwerbseinkommen!I44*Erwerbseinkommen!I50/100)*-1","v":{"$error":"#VALUE!"}},null,{"$f":"F8*$F$17","v":{"$error":"#VALUE!"}}]
[]
[null,"Steuern auf Anlageertrag",null,null,null,{"$f":"'Hilfstabelle Vermögen'!L15","v":{"$error":"#VALUE!"}},null,{"$f":"F10*$F$17","v":{"$error":"#VALUE!"}}]
[]
[null,"Steuern auf Schuldzinsen",null,null,null,{"$f":"'Hilfstabelle Vermögen'!L23","v":{"$error":"#VALUE!"}},null,{"$f":"F12*$F$17","v":{"$error":"#VALUE!"}}]
[]
[null,"Total Steuern",null,null,null,{"$f":"SUM(F8:F12)","v":{"$error":"#VALUE!"}},null,{"$f":"F14*$F$17","v":{"$error":"#VALUE!"}}]
[null," "]
[]
[null,"Multiplikator direkte Bundessteuer",null,null,null,1]

{"sheet":"Tabelle1","index":12,"n_rows":135,"n_cols":11,"rows_kept":135,"cut":false,"hidden":false,"merged":[]}
[]
[]
[]
[]
[]
[]
[]
[]
[]
[]
[]
[]
[]
[]
[]
[]
[]
[]
[]
[]
[]
[]
[]
[]
[]
[]
[]
[]
[]
[]
[]
[]
[]
[]
[]
[]
[]
[]
[]
[]
[]
[]
[]
[]
[]
[]
[]
[]
[]
[]
[]
[]
[]
[]
[]
[]
[]
[]
[]
[]
[]
[]
[]
[]
[]
[]
[]
[]
[]
[]
[]
[]
[]
[]
[]
[]
[]
[]
[]
[]
[]
[]
[]
[]
[]
[]
[]
[]
[]
[]
[]
[]
[]
[]
[]
[]
[]
[]
[]
[]
[]
[]
[]
[]
[]
[]
[]
[]
[]
[]
[]
[]
[]
[]
[]
[]
[]
[]
[]
[]
[]
[]
[]
[]
[]
[]
[]
[null,null,null,null,null,null,null,null,null,null,-125567.7237973806]
[null,null,null,null,null,null,null,null,null,null,770807.27620261943]
[]
[null,null,null,null,null,null,null,null,null,null,5213000.4233941808]
[null,null,null,null,null,null,null,null,null,null,5213000.4233941808]
[]
[]
[null,null,null,null,null,null,null,null,null,null,8620911.897460822]